Workbook

Sheet MPG-2, pgs 1-3
C1: Kentucky Utilities Company / Louisville Gas & Electric Company
C3: Electric Utilities
C4: (Valuation Metrics)
F7: Price to Earnings (P/E) Ratio 1
A8: Ticker | B8: Match | F8: 24-Year | AE8: 3-Year Averages
A9: Lookup: | B9: Row | C9: Line | D9: Company | F9: Average | G9: 2025 2 | H9: 2024 | I9: 2023 | J9: 2022 | K9: 2021 | L9: 2020 | M9: 2019 | N9: 2018 | O9: 2017 | P9: 2016 | Q9: 2015 | R9: 2014 | S9: 2013 | T9: 2012 | U9: 2011 | V9: 2010 | W9: 2009 | X9: 2008 | Y9: 2007 | Z9: 2006 | AA9: 2005 | AB9: 2004 | AC9: 2003 | AD9: 2002 | AE9: 2017-2019 | AF9: 2014-2016 | AG9: 2011-2013 | AH9: 2008-2010 | AI9: 2005-2007 | AJ9: 2002-2004
F10: -1 | G10: =+F10-1 -> -2 | H10: -3 | I10: =+H10-1 -> -4 | J10: =+I10-1 -> -5 | K10: -6 | L10: -7 | AE10: =MIN($F$10:AD10)-1 -> -8 | AF10: =MIN($F$10:AE10)-1 -> -9 | AG10: =MIN($F$10:AF10)-1 -> -10 | AH10: =MIN($F$10:AG10)-1 -> -11 | AI10: =MIN($F$10:AH10)-1 -> -12 | AJ10: =MIN($F$10:AI10)-1 -> -13
L11: =MATCH(L9,OFFSET(PE_WP,-1,0,1,),0) -> 4 | M11: 5 | N11: 6 | O11: 7 | P11: 8 | Q11: 9 | R11: 10 | S11: =MATCH(S9,OFFSET(PE_WP,-1,0,1,),0) -> 11 | T11: 12 | U11: 13 | V11: 14 | W11: 15 | X11: 16 | Y11: 17 | Z11: 18 | AA11: =MATCH(AA9,OFFSET(PE_WP,-1,0,1,),0) -> 19 | AB11: =MATCH(AB9,OFFSET(PE_WP,-1,0,1,),0) -> 20 | AC11: =MATCH(AC9,OFFSET(PE_WP,-1,0,1,),0) -> 21 | AD11: =MATCH(AD9,OFFSET(PE_WP,-1,0,1,),0) -> 22
A12: ALE | B12: =IFERROR(MATCH(A12,OFFSET(PE_WP,0,0,,1),0),"") -> 1 | C12: =IF(ISERROR(D12),"",IF(D12="","",MAX($C$11:C11)+1)) -> 1 | D12: =VLOOKUP(A12,LUCurYr,2,FALSE) -> ALLETE | F12: =IFERROR(AVERAGE(G12:AD12),"N/A") -> 18.13018182 | G12: =IFERROR(IF(VLOOKUP($A12,Data2025,4,FALSE)=0,"",VLOOKUP($A12,Data2025,4,FALSE)),"N/A") -> 17.3 | H12: =IFERROR(IF(VLOOKUP($A12,Data2024,4,FALSE)=0,"",VLOOKUP($A12,Data2024,4,FALSE)),"N/A") -> 17.3 | I12: =IFERROR(IF(VLOOKUP($A12,Data2023,4,FALSE)=0,"",VLOOKUP($A12,Data2023,4,FALSE)),"N/A") -> 16.8 | J12: =IFERROR(IF(VLOOKUP($A12,Data2022,3,FALSE)=0,"",VLOOKUP($A12,Data2022,3,FALSE)),"N/A") -> 18.1 | K12: =IFERROR(IF(VLOOKUP(A12,lucyyr,3,FALSE)=0,"",VLOOKUP(A12,lucyyr,3,FALSE)),"N/A") -> 20.6 | L12: =IFERROR(INDEX(PE_WP,$B12,L$11),"N/A") -> 18.3 | M12: =IFERROR(INDEX(PE_WP,$B12,M$11),"N/A") -> 24.7 | N12: =IFERROR(INDEX(PE_WP,$B12,N$11),"N/A") -> 22.2 | O12: =IFERROR(INDEX(PE_WP,$B12,O$11),"N/A") -> 23 | P12: 18.6 | Q12: 15.1 | R12: 17.2 | S12: 18.6 | T12: 15.9 | U12: 14.7 | V12: 16 | W12: 16.1 | X12: 13.9 | Y12: 14.8 | Z12: 16.545 | AA12: 17.906 | AB12: 25.213 | AC12: N/A | AD12: N/A | AE12: =IFERROR(AVERAGE(M12:O12),"N/A") -> 23.3 | AF12: =IFERROR(AVERAGE(P12:R12),"N/A") -> 16.96666667 | AG12: =IFERROR(AVERAGE(S12:U12),"N/A") -> 16.4 | AH12: =IFERROR(AVERAGE(V12:X12),"N/A") -> 15.33333333 | AI12: =IFERROR(AVERAGE(Y12:AA12),"N/A") -> 16.417 | AJ12: =IFERROR(AVERAGE(AB12:AD12),"N/A") -> 25.213
A13: LNT | B13: =IFERROR(MATCH(A13,OFFSET(PE_WP,0,0,,1),0),"") -> 2 | C13: =IF(ISERROR(D13),"",IF(D13="","",MAX($C$11:C12)+1)) -> 2 | D13: Alliant Energy | F13: =IFERROR(AVERAGE(G13:AD13),"N/A") -> 17.139 | G13: 19 | H13: 19 | I13: 16.4 | J13: 21.4 | K13: 21.2 | L13: =IFERROR(INDEX(PE_WP,$B13,L$11),"N/A") -> 21.2 | M13: 21.2 | N13: =IFERROR(INDEX(PE_WP,$B13,N$11),"N/A") -> 19.1 | O13: 20.6 | P13: =IFERROR(INDEX(PE_WP,$B13,P$11),"N/A") -> 22.3 | Q13: 18.1 | R13: 16.6 | S13: 15.3 | T13: 14.5 | U13: 14.5 | V13: 12.5 | W13: 13.9 | X13: 13.4 | Y13: 15.1 | Z13: 16.82 | AA13: 12.588 | AB13: 14.002 | AC13: 12.692 | AD13: 19.934 | AE13: =IFERROR(AVERAGE(M13:O13),"N/A") -> 20.3 | AF13: =IFERROR(AVERAGE(P13:R13),"N/A") -> 19 | AG13: =IFERROR(AVERAGE(S13:U13),"N/A") -> 14.76666667 | AH13: =IFERROR(AVERAGE(V13:X13),"N/A") -> 13.26666667 | AI13: =IFERROR(AVERAGE(Y13:AA13),"N/A") -> 14.836 | AJ13: =IFERROR(AVERAGE(AB13:AD13),"N/A") -> 15.54266667
A14: AEE | B14: 5 | C14: =IF(ISERROR(D14),"",IF(D14="","",MAX($C$11:C13)+1)) -> 3 | D14: Ameren Corp. | F14: 16.96504167 | G14: 19.5 | H14: 19.5 | I14: 15.5 | J14: 21.5 | K14: 21.4 | L14: 22.2 | M14: 22.1 | N14: 18.3 | O14: 20.6 | P14: 18.3 | Q14: 17.5 | R14: 16.7 | S14: 16.5 | T14: 13.4 | U14: 11.9 | V14: 9.7 | W14: 9.3 | X14: 14.2 | Y14: 17.4 | Z14: 19.385 | AA14: 16.716 | AB14: 16.276 | AC14: 13.505 | AD14: 15.779 | AE14: 20.33333333 | AF14: 17.5 | AG14: 13.93333333 | AH14: 11.06666667 | AI14: 17.83366667 | AJ14: 15.18666667
A15: AEP | B15: 6 | C15: =IF(ISERROR(D15),"",IF(D15="","",MAX($C$11:C14)+1)) -> 4 | D15: American Electric Power | F15: 15.39416667 | G15: 17.4 | H15: 17.4 | I15: 15.9 | J15: 21.1 | K15: 17.1 | L15: 19.6 | M15: 21.4 | N15: 18 | O15: 19.3 | P15: 15.2 | Q15: 15.8 | R15: 15.9 | S15: 14.5 | T15: 13.8 | U15: 11.9 | V15: 13.4 | W15: 10 | X15: 13.1 | Y15: 16.3 | Z15: 12.906 | AA15: 13.695 | AB15: 12.421 | AC15: 10.662 | AD15: 12.676 | AE15: =IFERROR(AVERAGE(M15:O15),"N/A") -> 19.56666667 | AF15: 15.63333333 | AG15: 13.4 | AH15: 12.16666667 | AI15: 14.30033333 | AJ15: 11.91966667
A16: AGR | B16: 9 | C16: =IF(ISERROR(D16),"",IF(D16="","",MAX($C$11:C15)+1)) -> 5 | D16: Avangrid, Inc. | F16: 23.68888889 | G16: N/A | H16: N/A | I16: 16.3 | J16: 19.6 | K16: 23.2 | L16: 23.6 | M16: 23.1 | N16: 26.1 | O16: 27.3 | P16: 20.5 | Q16: 33.5 | R16: N/A | S16: N/A | T16: N/A | U16: N/A | V16: N/A | W16: N/A | X16: N/A | Y16: N/A | Z16: N/A | AA16: N/A | AB16: N/A | AC16: N/A | AD16: N/A | AE16: 25.5 | AF16: 27 | AG16: N/A | AH16: N/A | AI16: N/A | AJ16: N/A
A17: AVA | B17: 10 | C17: =IF(ISERROR(D17),"",IF(D17="","",MAX($C$11:C16)+1)) -> 6 | D17: Avista Corp. | F17: 18.140875 | G17: 16.2 | H17: 16.2 | I17: 14.6 | J17: 20 | K17: 20.2 | L17: 21.2 | M17: 15 | N17: 24.5 | O17: 23.4 | P17: 18.8 | Q17: 17.6 | R17: 17.3 | S17: 14.6 | T17: 19.3 | U17: 14.1 | V17: 12.7 | W17: 11.4 | X17: 15 | Y17: 30.9 | Z17: 15.39 | AA17: 19.447 | AB17: 24.432 | AC17: 13.842 | AD17: 19.27 | AE17: 20.96666667 | AF17: 17.9 | AG17: 16 | AH17: 13.03333333 | AI17: 21.91233333 | AJ17: 19.18133333
A18: BKH | B18: 11 | C18: =IF(ISERROR(D18),"",IF(D18="","",MAX($C$11:C17)+1)) -> 7 | D18: Black Hills | F18: 17.2923913 | G18: 13.9 | H18: 13.9 | I18: 14.2 | J18: 18.1 | K18: 17.7 | L18: 17 | M18: 21.2 | N18: 16.8 | O18: 19.5 | P18: 22.3 | Q18: 16.1 | R18: 19 | S18: 18.2 | T18: 17.1 | U18: 31.1 | V18: 18.1 | W18: 9.9 | X18: NMF | Y18: 15 | Z18: 15.767 | AA18: 17.265 | AB18: 17.129 | AC18: 15.949 | AD18: 12.515 | AE18: 19.16666667 | AF18: 19.13333333 | AG18: 22.13333333 | AH18: 14 | AI18: 16.01066667 | AJ18: 15.19766667
A19: CNP | B19: 13 | C19: =IF(ISERROR(D19),"",IF(D19="","",MAX($C$11:C18)+1)) -> 8 | D19: CenterPoint Energy | F19: 17.31241667 | G19: 22.1 | H19: 22.1 | I19: 20.4 | J19: 18.7 | K19: 26.1 | L19: 15.9 | M19: 19.5 | N19: 37 | O19: 17.9 | P19: 21.9 | Q19: 18.1 | R19: 17 | S19: 18.7 | T19: 14.8 | U19: 14.6 | V19: 13.8 | W19: 11.8 | X19: 11.3 | Y19: 15 | Z19: 10.265 | AA19: 19.055 | AB19: 17.841 | AC19: 6.047 | AD19: 5.59 | AE19: 24.8 | AF19: 19 | AG19: 16.03333333 | AH19: 12.3 | AI19: 14.77333333 | AJ19: 9.826
A20: CMS | B20: 17 | C20: =IF(ISERROR(D20),"",IF(D20="","",MAX($C$11:C19)+1)) -> 9 | D20: CMS Energy Corp. | F20: 18.42577273 | G20: 19.3 | H20: 19.3 | I20: 18.6 | J20: 22.9 | K20: 23.6 | L20: 23.3 | M20: 24.3 | N20: 20.3 | O20: 21.3 | P20: 20.9 | Q20: 18.3 | R20: 17.3 | S20: 16.3 | T20: 15.1 | U20: 13.6 | V20: 12.5 | W20: 13.6 | X20: 10.9 | Y20: 26.8 | Z20: 22.181 | AA20: 12.601 | AB20: 12.385 | AC20: N/A | AD20: N/A | AE20: 21.96666667 | AF20: 18.83333333 | AG20: 15 | AH20: 12.33333333 | AI20: 20.52733333 | AJ20: 12.385
A21: ED | B21: 19 | C21: =IF(ISERROR(D21),"",IF(D21="","",MAX($C$11:C20)+1)) -> 10 | D21: Consol. Edison | F21: 16.41670833 | G21: 19.7 | H21: 19.7 | I21: 17.7 | J21: 20.3 | K21: 17.2 | L21: 19 | M21: 19.7 | N21: 17.1 | O21: 19.8 | P21: 18.8 | Q21: 15.6 | R21: 15.9 | S21: 14.7 | T21: 15.4 | U21: 15.1 | V21: 13.3 | W21: 12.5 | X21: 12.3 | Y21: 13.8 | Z21: 15.485 | AA21: 15.129 | AB21: 18.209 | AC21: 14.3 | AD21: 13.278 | AE21: 18.86666667 | AF21: 16.76666667 | AG21: 15.06666667 | AH21: 12.7 | AI21: 14.80466667 | AJ21: 15.26233333
A22: D | B22: 21 | C22: =IF(ISERROR(D22),"",IF(D22="","",MAX($C$11:C21)+1)) -> 11 | D22: Dominion Resources | F22: 18.12616667 | G22: 15.8 | H22: 15.8 | I22: 18.3 | J22: 18.7 | K22: 19.5 | L22: 22.6 | M22: 18.2 | N22: 17.5 | O22: 22.2 | P22: 21.3 | Q22: 22.1 | R22: 23 | S22: 19.2 | T22: 18.9 | U22: 17.3 | V22: 14.3 | W22: 12.7 | X22: 13.8 | Y22: 20.6 | Z22: 15.976 | AA22: 24.894 | AB22: 15.072 | AC22: 15.241 | AD22: 12.045 | AE22: 19.3 | AF22: 22.13333333 | AG22: 18.46666667 | AH22: 13.6 | AI22: 20.49 | AJ22: 14.11933333
A23: DTE | B23: 22 | C23: =IF(ISERROR(D23),"",IF(D23="","",MAX($C$11:C22)+1)) -> 12 | D23: DTE Energy | F23: 16.901625 | G23: 18.9 | H23: 18.9 | I23: 16.9 | J23: 22.4 | K23: 30 | L23: 16.3 | M23: 19.9 | N23: 17.4 | O23: 18.6 | P23: 19 | Q23: 18.1 | R23: 14.9 | S23: 17.9 | T23: 14.9 | U23: 13.5 | V23: 12.3 | W23: 10.4 | X23: 14.8 | Y23: 18.3 | Z23: 17.431 | AA23: 13.797 | AB23: 16.043 | AC23: 13.689 | AD23: 11.279 | AE23: 18.63333333 | AF23: 17.33333333 | AG23: 15.43333333 | AH23: 12.5 | AI23: 16.50933333 | AJ23: 13.67033333
A24: DUK | B24: 23 | C24: =IF(ISERROR(D24),"",IF(D24="","",MAX($C$11:C23)+1)) -> 13 | D24: Duke Energy | F24: 17.37894737 | G24: 19 | H24: 19 | I24: 16.5 | J24: 19.6 | K24: 18.9 | L24: 17.1 | M24: 17.7 | N24: 17 | O24: 19.9 | P24: 21.3 | Q24: 18.2 | R24: 17.9 | S24: 17.4 | T24: 17.5 | U24: 13.8 | V24: 12.7 | W24: 13.3 | X24: 17.3 | Y24: 16.1 | Z24: N/A | AA24: N/A | AB24: N/A | AC24: N/A | AD24: N/A | AE24: 18.2 | AF24: 19.13333333 | AG24: 16.23333333 | AH24: 14.43333333 | AI24: 16.1 | AJ24: N/A
A25: EIX | B25: 24 | C25: =IF(ISERROR(D25),"",IF(D25="","",MAX($C$11:C24)+1)) -> 14 | D25: Edison Int'l | F25: 16.44221739 | G25: 9.7 | H25: 9.7 | I25: 14.3 | J25: 40.6 | K25: 29.7 | L25: 34.9 | M25: 16.7 | N25: N/A | O25: 17.2 | P25: 17.9 | Q25: 14.8 | R25: 13 | S25: 12.7 | T25: 9.7 | U25: 11.8 | V25: 10.3 | W25: 9.7 | X25: 12.4 | Y25: 16 | Z25: 12.988 | AA25: 11.74 | AB25: 37.591 | AC25: 6.968 | AD25: 7.784 | AE25: 16.95 | AF25: 15.23333333 | AG25: 11.4 | AH25: 10.8 | AI25: 13.576 | AJ25: 17.44766667
A26: EE | B26: 25 | C26: =IF(ISERROR(D26),"",IF(D26="","",MAX($C$11:C25)+1)) -> 15 | D26: El Paso Electric | F26: 17.67929412 | G26: N/A | H26: N/A | I26: N/A | J26: N/A | K26: N/A | L26: N/A | M26: N/A | N26: 26.849 | O26: 21.783 | P26: 18.657 | Q26: 18.329 | R26: 16.383 | S26: 15.879 | T26: 14.473 | U26: 12.595 | V26: 10.72 | W26: 10.793 | X26: 11.894 | Y26: 15.26 | Z26: 16.92 | AA26: 26.724 | AB26: 22.033 | AC26: 18.263 | AD26: 22.993 | AE26: 24.316 | AF26: 17.78966667 | AG26: 14.31566667 | AH26: 11.13566667 | AI26: 19.63466667 | AJ26: 21.09633333
A27: ETR | B27: 27 | C27: =IF(ISERROR(D27),"",IF(D27="","",MAX($C$11:C26)+1)) -> 16 | D27: Entergy Corp. | F27: 15.26420833 | G27: 24.4 | H27: 24.4 | I27: 20.6 | J27: 21.1 | K27: 15 | L27: 15.3 | M27: 16.5 | N27: 13.8 | O27: 15 | P27: 10.9 | Q27: 12.5 | R27: 12.9 | S27: 13.2 | T27: 11.2 | U27: 9.1 | V27: 11.6 | W27: 12 | X27: 16.6 | Y27: 19.3 | Z27: 14.276 | AA27: 16.282 | AB27: 15.087 | AC27: 13.771 | AD27: 11.525 | AE27: 15.1 | AF27: 12.1 | AG27: 11.16666667 | AH27: 13.4 | AI27: 16.61933333 | AJ27: 13.461
A28: ES | B28: 28 | C28: =IF(ISERROR(D28),"",IF(D28="","",MAX($C$11:C27)+1)) -> 17 | D28: Eversource Energy | F28: 17.77958333 | G28: 12.4 | H28: 12.4 | I28: 13.1 | J28: 20.9 | K28: 22.2 | L28: 23.7 | M28: 22.1 | N28: =IFERROR(INDEX(PE_WP,$B28,N$11),"N/A") -> 18.7 | O28: =IFERROR(INDEX(PE_WP,$B28,O$11),"N/A") -> 19.5 | P28: 18.7 | Q28: 18.1 | R28: 17.9 | S28: 16.9 | T28: 19.9 | U28: 15.4 | V28: 13.4 | W28: 12 | X28: 13.7 | Y28: 18.7 | Z28: 27.065 | AA28: 19.757 | AB28: 20.768 | AC28: 13.354 | AD28: 16.066 | AE28: 20.1 | AF28: 18.23333333 | AG28: 17.4 | AH28: 13.03333333 | AI28: 21.84066667 | AJ28: 16.72933333
A29: EVRG | B29: 29 | C29: =IF(ISERROR(D29),"",IF(D29="","",MAX($C$11:C28)+1)) -> 18 | D29: Evergy, Inc. | F29: 18.6875 | G29: 16.2 | H29: =IFERROR(IF(VLOOKUP($A29,Data2024,4,FALSE)=0,"",VLOOKUP($A29,Data2024,4,FALSE)),"N/A") -> 16.2 | I29: 14.8 | J29: 19.9 | K29: 16.2 | L29: 21.7 | M29: 21.8 | N29: 22.7 | O29: N/A | P29: N/A | Q29: N/A | R29: N/A | S29: N/A | T29: N/A | U29: N/A | V29: N/A | W29: N/A | X29: N/A | Y29: N/A | Z29: N/A | AA29: N/A | AB29: N/A | AC29: N/A | AD29: N/A | AE29: 22.25 | AF29: N/A | AG29: N/A | AH29: N/A | AI29: N/A | AJ29: N/A
A30: EXC | B30: 30 | C30: =IF(ISERROR(D30),"",IF(D30="","",MAX($C$11:C29)+1)) -> 19 | D30: Exelon Corp. | F30: 14.64216667 | G30: 17.5 | H30: =IFERROR(IF(VLOOKUP($A30,Data2024,4,FALSE)=0,"",VLOOKUP($A30,Data2024,4,FALSE)),"N/A") -> 17.5 | I30: 15.4 | J30: 19.9 | K30: 16.6 | L30: 12.4 | M30: 14.7 | N30: 13.3 | O30: 13.4 | P30: =IFERROR(INDEX(PE_WP,$B30,P$11),"N/A") -> 12.5 | Q30: 12.6 | R30: 16 | S30: 13.4 | T30: 19.1 | U30: 11.3 | V30: 11 | W30: 11.5 | X30: 18 | Y30: 18.2 | Z30: 16.529 | AA30: 15.371 | AB30: 12.99 | AC30: 11.765 | AD30: 10.457 | AE30: 13.8 | AF30: 13.7 | AG30: 14.6 | AH30: 13.5 | AI30: 16.7 | AJ30: 11.73733333
A31: FE | B31: 31 | C31: =IF(ISERROR(D31),"",IF(D31="","",MAX($C$11:C30)+1)) -> 20 | D31: FirstEnergy Corp. | F31: 15.32270833 | G31: 16.8 | H31: 16.8 | I31: 14.4 | J31: 17 | K31: 14.1 | L31: 15.7 | M31: 17.1 | N31: 13.6 | O31: 11.4 | P31: 12.7 | Q31: 12.6 | R31: 13.2 | S31: 13.1 | T31: 21.1 | U31: 22.4 | V31: 11.7 | W31: 13 | X31: 15.6 | Y31: 15.6 | Z31: 14.229 | AA31: 16.065 | AB31: 14.127 | AC31: 22.47 | AD31: 12.954 | AE31: 14.03333333 | AF31: 12.83333333 | AG31: 18.86666667 | AH31: 13.43333333 | AI31: 15.298 | AJ31: 16.517
A32: FTS.TO | B32: 32 | C32: =IF(ISERROR(D32),"",IF(D32="","",MAX($C$11:C31)+1)) -> 21 | D32: Fortis Inc. | F32: 19.2842 | G32: 19.5 | H32: =IFERROR(IF(VLOOKUP($A32,Data2024,4,FALSE)=0,"",VLOOKUP($A32,Data2024,4,FALSE)),"N/A") -> 19.5 | I32: 17 | J32: 21.1 | K32: 21.2 | L32: 20.6 | M32: 19.2 | N32: 17.1 | O32: 16.8 | P32: 21.6 | Q32: 18 | R32: 24.3 | S32: 20 | T32: 20.1 | U32: 18.8 | V32: 18.2 | W32: 16.4 | X32: 17.5 | Y32: 21.1 | Z32: 17.684 | AA32: N/A | AB32: N/A | AC32: N/A | AD32: N/A | AE32: 17.7 | AF32: 21.3 | AG32: 19.63333333 | AH32: 17.36666667 | AI32: 19.392 | AJ32: N/A
A33: GXP | B33: 34 | C33: =IF(ISERROR(D33),"",IF(D33="","",MAX($C$11:C32)+1)) -> 22 | D33: Great Plains Energy | F33: 15.52253333 | G33: N/A | H33: N/A | I33: N/A | J33: N/A | K33: N/A | L33: =IFERROR(INDEX(PE_WP,$B33,L$11),"N/A") -> N/A | M33: N/A | N33: N/A | O33: NMF | P33: 17.981 | Q33: 19.366 | R33: 16.47 | S33: 14.186 | T33: 15.534 | U33: 16.105 | V33: 12.095 | W33: 16.033 | X33: 20.547 | Y33: 16.348 | Z33: 18.299 | AA33: 13.962 | AB33: 12.593 | AC33: 12.229 | AD33: 11.09 | AE33: N/A | AF33: 17.939 | AG33: 15.275 | AH33: 16.225 | AI33: 16.203 | AJ33: 11.97066667
A34: HE | B34: 35 | C34: =IF(ISERROR(D34),"",IF(D34="","",MAX($C$11:C33)+1)) -> 23 | D34: Hawaiian Elec. | F34: 17.092 | G34: 11.2 | H34: 11.2 | I34: 6 | J34: 18.5 | K34: 18.2 | L34: 21.5 | M34: 21.3 | N34: 18.9 | O34: 20.7 | P34: 13.6 | Q34: 20.4 | R34: 15.9 | S34: 16.2 | T34: 15.8 | U34: 17.1 | V34: 18.6 | W34: 19.8 | X34: 23.2 | Y34: 21..6 | Z34: 20.329 | AA34: 18.273 | AB34: 19.181 | AC34: 13.759 | AD34: 13.474 | AE34: 20.3 | AF34: 16.63333333 | AG34: 16.36666667 | AH34: 20.53333333 | AI34: 19.301 | AJ34: 15.47133333
A35: H.TO | B35: =IFERROR(MATCH(A35,OFFSET(PE_WP,0,0,,1),0),"") -> 36 | C35: =IF(ISERROR(D35),"",IF(D35="","",MAX($C$11:C34)+1)) -> 24 | D35: Hydro One Limited3 | F35: 19.31 | G35: 25.2 | H35: 25.2 | I35: =IFERROR(IF(VLOOKUP($A35,Data2023,4,FALSE)=0,"",VLOOKUP($A35,Data2023,4,FALSE)),"N/A") -> 20.5 | J35: 19.6 | K35: =IFERROR(IF(VLOOKUP(A35,lucyyr,3,FALSE)=0,"",VLOOKUP(A35,lucyyr,3,FALSE)),"N/A") -> 18.7 | L35: 9.2 | M35: 17.5 | N35: N/A | O35: 21 | P35: 20.1 | Q35: 16.1 | R35: N/A | S35: N/A | T35: N/A | U35: N/A | V35: N/A | W35: N/A | X35: N/A | Y35: N/A | Z35: N/A | AA35: N/A | AB35: N/A | AC35: N/A | AD35: N/A | AE35: =IFERROR(AVERAGE(M35:O35),"N/A") -> 19.25 | AF35: =IFERROR(AVERAGE(P35:R35),"N/A") -> 18.1 | AG35: =IFERROR(AVERAGE(S35:U35),"N/A") -> N/A | AH35: =IFERROR(AVERAGE(V35:X35),"N/A") -> N/A | AI35: =IFERROR(AVERAGE(Y35:AA35),"N/A") -> N/A | AJ35: =IFERROR(AVERAGE(AB35:AD35),"N/A") -> N/A
A36: IDA | B36: 37 | C36: =IF(ISERROR(D36),"",IF(D36="","",MAX($C$11:C35)+1)) -> 25 | D36: IDACORP, Inc. | F36: 17.35179167 | G36: 19.6 | H36: 19.6 | I36: 18.1 | J36: 21 | K36: 20.8 | L36: 19.9 | M36: 22.3 | N36: 20.5 | O36: 20.6 | P36: 19.1 | Q36: 16.2 | R36: 14.7 | S36: 13.4 | T36: 12.4 | U36: 11.5 | V36: 11.8 | W36: 10.2 | X36: 13.9 | Y36: 18.2 | Z36: 15.07 | AA36: 16.699 | AB36: 15.488 | AC36: 26.511 | AD36: 18.875 | AE36: 21.13333333 | AF36: 16.66666667 | AG36: 12.43333333 | AH36: 11.96666667 | AI36: 16.65633333 | AJ36: 20.29133333
A37: MGEE | B37: =IFERROR(MATCH(A37,OFFSET(PE_WP,0,0,,1),0),"") -> 41 | C37: =IF(ISERROR(D37),"",IF(D37="","",MAX($C$11:C36)+1)) -> 26 | D37: =VLOOKUP(A37,LUCurYr,2,FALSE) -> MGE Energy | F37: 20.47791667 | G37: 24.7 | H37: 24.7 | I37: 21.1 | J37: 24.7 | K37: =IFERROR(IF(VLOOKUP(A37,lucyyr,3,FALSE)=0,"",VLOOKUP(A37,lucyyr,3,FALSE)),"N/A") -> 25.5 | L37: 26.4 | M37: 28.4 | N37: 25.1 | O37: 29.4 | P37: 24.9 | Q37: 20.3 | R37: 17.2 | S37: 17 | T37: 17.2 | U37: 15.8 | V37: 15 | W37: 15.1 | X37: 14.2 | Y37: 15 | Z37: 15.879 | AA37: 22.401 | AB37: 17.983 | AC37: 17.55 | AD37: 15.957 | AE37: 27.63333333 | AF37: 20.8 | AG37: 16.66666667 | AH37: 14.76666667 | AI37: 17.76 | AJ37: 17.16333333
A38: NEE | B38: =IFERROR(MATCH(A38,OFFSET(PE_WP,0,0,,1),0),"") -> 44 | C38: =IF(ISERROR(D38),"",IF(D38="","",MAX($C$11:C37)+1)) -> 27 | D38: =VLOOKUP(A38,LUCurYr,2,FALSE) -> NextEra Energy, Inc. | F38: 18.68641667 | G38: 17.9 | H38: 17.9 | I38: 19.8 | J38: 27.8 | K38: 31.3 | L38: 28.9 | M38: 26.8 | N38: 24.8 | O38: 21.6 | P38: 20.7 | Q38: 16.9 | R38: 17.3 | S38: 16.6 | T38: 14.4 | U38: 11.5 | V38: 10.8 | W38: 13.4 | X38: 14.5 | Y38: 18.9 | Z38: 13.652 | AA38: 17.884 | AB38: 13.652 | AC38: 17.884 | AD38: 13.602 | AE38: 24.4 | AF38: 18.3 | AG38: 14.16666667 | AH38: 12.9 | AI38: 16.812 | AJ38: 15.046
A39: NWE | B39: 47 | C39: =IF(ISERROR(D39),"",IF(D39="","",MAX($C$11:C38)+1)) -> 28 | D39: NorthWestern Corp | F39: 16.83542857 | G39: 16 | H39: 16 | I39: 13.7 | J39: 17.3 | K39: 17.4 | L39: 18.6 | M39: 19.9 | N39: 16.8 | O39: 17.8 | P39: 17.2 | Q39: 18.4 | R39: 16.2 | S39: 16.9 | T39: 15.7 | U39: 12.6 | V39: 12.9 | W39: 11.5 | X39: 13.9 | Y39: 21.7 | Z39: 25.953 | AA39: 17.091 | AB39: N/A | AC39: N/A | AD39: N/A | AE39: 18.16666667 | AF39: 17.26666667 | AG39: 15.06666667 | AH39: 12.76666667 | AI39: 21.58133333 | AJ39: N/A
A40: OGE | B40: 48 | C40: =IF(ISERROR(D40),"",IF(D40="","",MAX($C$11:C39)+1)) -> 29 | D40: OGE Energy | F40: 15.704875 | G40: 19.2 | H40: 19.2 | I40: 17 | J40: 17.2 | K40: 14.3 | L40: 16.2 | M40: 19 | N40: 16.5 | O40: 18.3 | P40: 17.7 | Q40: 17.7 | R40: 18.3 | S40: 17.7 | T40: 15.2 | U40: 14.4 | V40: 13.3 | W40: 10.8 | X40: 12.4 | Y40: 13.8 | Z40: 13.675 | AA40: 14.95 | AB40: 14.131 | AC40: 11.838 | AD40: 14.123 | AE40: 17.93333333 | AF40: 17.9 | AG40: 15.76666667 | AH40: 12.16666667 | AI40: 14.14166667 | AJ40: 13.364
A41: OTTR | B41: 50 | C41: =IF(ISERROR(D41),"",IF(D41="","",MAX($C$11:C40)+1)) -> 30 | D41: Otter Tail Corp. | F41: 19.93313043 | G41: 12.3 | H41: 12.3 | I41: 14.3 | J41: 9.5 | K41: 12.3 | L41: 18.3 | M41: 23.5 | N41: 22.2 | O41: 22.1 | P41: 20.2 | Q41: 18.2 | R41: 18.8 | S41: 21.1 | T41: 21.7 | U41: 47.5 | V41: NMF | W41: 31.2 | X41: 30.1 | Y41: 19 | Z41: 17.349 | AA41: 15.4 | AB41: 17.335 | AC41: 17.767 | AD41: 16.011 | AE41: 22.6 | AF41: 19.06666667 | AG41: 30.1 | AH41: 30.65 | AI41: 17.24966667 | AJ41: 17.03766667
A42: PNW | B42: 53 | C42: =IF(ISERROR(D42),"",IF(D42="","",MAX($C$11:C41)+1)) -> 31 | D42: Pinnacle West Capital | F42: 16.11741667 | G42: 18.7 | H42: 18.7 | I42: 15.8 | J42: 17.1 | K42: 14.1 | L42: 16.7 | M42: 19.4 | N42: 17.8 | O42: 19.3 | P42: 18.7 | Q42: 16 | R42: 15.9 | S42: 15.3 | T42: 14.3 | U42: 14.6 | V42: 12.6 | W42: 13.7 | X42: 16.1 | Y42: 14.9 | Z42: 13.691 | AA42: 19.236 | AB42: 15.799 | AC42: 13.961 | AD42: 14.431 | AE42: 18.83333333 | AF42: 16.86666667 | AG42: 14.73333333 | AH42: 14.13333333 | AI42: 15.94233333 | AJ42: 14.73033333
A43: TXNM | B43: 54 | C43: =IF(ISERROR(D43),"",IF(D43="","",MAX($C$11:C42)+1)) -> 32 | D43: TXNM Energy | F43: 18.24269565 | G43: 17.8 | H43: 17.8 | I43: 14.2 | J43: 17.4 | K43: 19.9 | L43: 19.6 | M43: 22.2 | N43: 19.4 | O43: 20.4 | P43: 22.4 | Q43: 18.7 | R43: 18.7 | S43: 16.1 | T43: 15 | U43: 14.5 | V43: 14 | W43: 18.1 | X43: N/A | Y43: 35.6 | Z43: 15.573 | AA43: 17.379 | AB43: 15.021 | AC43: 14.73 | AD43: 15.079 | AE43: 20.66666667 | AF43: 19.93333333 | AG43: 15.2 | AH43: 16.05 | AI43: 22.85066667 | AJ43: 14.94333333
A44: POR | B44: 55 | C44: =IF(ISERROR(D44),"",IF(D44="","",MAX($C$11:C43)+1)) -> 33 | D44: Portland General | F44: 16.4125 | G44: 13.7 | H44: 13.7 | I44: 14.3 | J44: 18.2 | K44: 17.7 | L44: 16.6 | M44: 22.3 | N44: 18.4 | O44: 20 | P44: 19.1 | Q44: 17.7 | R44: 15.3 | S44: 16.9 | T44: 14 | U44: 12.4 | V44: 12 | W44: 14.4 | X44: 16.3 | Y44: 11.9 | Z44: 23.35 | AA44: N/A | AB44: N/A | AC44: N/A | AD44: N/A | AE44: 20.23333333 | AF44: 17.36666667 | AG44: 14.43333333 | AH44: 14.23333333 | AI44: 17.625 | AJ44: N/A
A45: PPL | B45: 56 | C45: =IF(ISERROR(D45),"",IF(D45="","",MAX($C$11:C44)+1)) -> 34 | D45: PPL Corp. | F45: 16.528375 | G45: 19.7 | H45: 19.7 | I45: 16.2 | J45: 20 | K45: 54.1 | L45: 13.9 | M45: 13.3 | N45: 11.3 | O45: 17.6 | P45: 12.8 | Q45: 13.9 | R45: 14.1 | S45: 12.8 | T45: 10.9 | U45: 10.5 | V45: 11.9 | W45: 25.7 | X45: 17.6 | Y45: 17.3 | Z45: 14.1 | AA45: 15.116 | AB45: 12.513 | AC45: 10.588 | AD45: 11.064 | AE45: 14.06666667 | AF45: 13.6 | AG45: 11.4 | AH45: 18.4 | AI45: 15.50533333 | AJ45: 11.38833333
A46: PEG | B46: 57 | C46: =IF(ISERROR(D46),"",IF(D46="","",MAX($C$11:C45)+1)) -> 35 | D46: =VLOOKUP(A46,LUCurYr,2,FALSE) -> Public Serv. Enterprise | F46: 14.98633333 | G46: 20.2 | H46: 20.2 | I46: 18.8 | J46: 18.5 | K46: 16.8 | L46: 15.7 | M46: 18 | N46: 16.6 | O46: 16.3 | P46: 15.3 | Q46: 14.1 | R46: 12.6 | S46: 13.5 | T46: 12.8 | U46: 10.4 | V46: 10.4 | W46: 10 | X46: 13.6 | Y46: 16.5 | Z46: 17.808 | AA46: 16.738 | AB46: 14.255 | AC46: 10.576 | AD46: 9.995 | AE46: 16.96666667 | AF46: 14 | AG46: 12.23333333 | AH46: 11.33333333 | AI46: 17.01533333 | AJ46: 11.60866667
A47: SCG | B47: 58 | C47: =IF(ISERROR(D47),"",IF(D47="","",MAX($C$11:C46)+1)) -> 36 | D47: SCANA Corp. | F47: 13.9576875 | G47: N/A | H47: N/A | I47: N/A | J47: N/A | K47: N/A | L47: N/A | M47: N/A | N47: N/A | O47: 14.46 | P47: =IFERROR(INDEX(PE_WP,$B47,P$11),"N/A") -> 16.796 | Q47: 14.665 | R47: 13.677 | S47: 14.427 | T47: 14.799 | U47: 13.671 | V47: 12.934 | W47: 11.626 | X47: 12.667 | Y47: 14.957 | Z47: 15.42 | AA47: 14.444 | AB47: 13.568 | AC47: 13.045 | AD47: 12.167 | AE47: 14.46 | AF47: 15.046 | AG47: 14.299 | AH47: 12.409 | AI47: 14.94033333 | AJ47: 12.92666667
A48: SRE | B48: 59 | C48: =IF(ISERROR(D48),"",IF(D48="","",MAX($C$11:C47)+1)) -> 37 | D48: Sempra Energy | F48: 15.32879167 | G48: 13 | H48: 13 | I48: 15 | J48: 16.8 | K48: 15.4 | L48: 17.5 | M48: 22.5 | N48: 20.4 | O48: 24.3 | P48: 24.4 | Q48: 19.7 | R48: 21.9 | S48: 19.7 | T48: 14.9 | U48: 11.8 | V48: 12.6 | W48: 10.1 | X48: 11.8 | Y48: 14 | Z48: 11.501 | AA48: 11.794 | AB48: 8.647 | AC48: 8.959 | AD48: 8.19 | AE48: 22.4 | AF48: 22 | AG48: 15.46666667 | AH48: 11.5 | AI48: 12.43166667 | AJ48: 8.598666667
A49: SO | B49: 63 | C49: =IF(ISERROR(D49),"",IF(D49="","",MAX($C$11:C48)+1)) -> 38 | D49: Southern Co. | F49: 16.67720833 | G49: 21.1 | H49: 21.1 | I49: 18.6 | J49: 19.6 | K49: 18.4 | L49: 17.9 | M49: 17.6 | N49: 15.1 | O49: 15.5 | P49: 17.8 | Q49: 15.8 | R49: 16 | S49: 16.2 | T49: 17 | U49: 15.8 | V49: 14.9 | W49: 13.5 | X49: 16.1 | Y49: 16 | Z49: 16.189 | AA49: 15.917 | AB49: 14.684 | AC49: 14.831 | AD49: 14.632 | AE49: 16.06666667 | AF49: 16.53333333 | AG49: 16.33333333 | AH49: 14.83333333 | AI49: 16.03533333 | AJ49: 14.71566667
A50: VVC | B50: 71 | C50: =IF(ISERROR(D50),"",IF(D50="","",MAX($C$11:C49)+1)) -> 39 | D50: Vectren Corp. | F50: 17.04925 | G50: N/A | H50: N/A | I50: N/A | J50: N/A | K50: N/A | L50: N/A | M50: N/A | N50: N/A | O50: 23.536 | P50: 19.178 | Q50: 17.922 | R50: 19.983 | S50: 20.664 | T50: 15.018 | U50: 15.826 | V50: 15.102 | W50: 12.891 | X50: 16.788 | Y50: 15.334 | Z50: 18.917 | AA50: 15.106 | AB50: 17.57 | AC50: 14.796 | AD50: 14.157 | AE50: 23.536 | AF50: 19.02766667 | AG50: 17.16933333 | AH50: 14.927 | AI50: 16.45233333 | AJ50: 15.50766667
A51: WEC | B51: 72 | C51: =IF(ISERROR(D51),"",IF(D51="","",MAX($C$11:C50)+1)) -> 40 | D51: WEC Energy Group | F51: 17.67208333 | G51: 20.3 | H51: 20.3 | I51: 16.5 | J51: 21.9 | K51: 22.3 | L51: 24.9 | M51: 23.5 | N51: 19.6 | O51: 20 | P51: 19.9 | Q51: 21.3 | R51: 17.7 | S51: 16.5 | T51: 15.8 | U51: 14.2 | V51: 14 | W51: 13.3 | X51: 14.8 | Y51: 16.5 | Z51: 15.967 | AA51: 14.463 | AB51: 17.514 | AC51: 12.427 | AD51: 10.459 | AE51: 21.03333333 | AF51: 19.63333333 | AG51: 15.5 | AH51: 14.03333333 | AI51: 15.64333333 | AJ51: 13.46666667
A52: WR | B52: 73 | C52: =IF(ISERROR(D52),"",IF(D52="","",MAX($C$11:C51)+1)) -> 41 | D52: Westar Energy | F52: 15.5759375 | G52: N/A | H52: N/A | I52: N/A | J52: N/A | K52: N/A | L52: N/A | M52: N/A | N52: N/A | O52: 23.4 | P52: 21.586 | Q52: 18.454 | R52: 15.358 | S52: 14.037 | T52: 13.43 | U52: 14.778 | V52: 12.957 | W52: 14.947 | X52: 16.963 | Y52: 14.103 | Z52: 12.177 | AA52: 14.785 | AB52: 17.436 | AC52: 10.781 | AD52: 14.023 | AE52: 23.4 | AF52: 18.466 | AG52: 14.08166667 | AH52: 14.95566667 | AI52: 13.68833333 | AJ52: 14.08
A53: XEL | B53: 75 | C53: =IF(ISERROR(D53),"",IF(D53="","",MAX($C$11:C52)+1)) -> 42 | D53: Xcel Energy Inc. | F53: 17.888625 | G53: 18.1 | H53: 18.1 | I53: 15.3 | J53: 22.2 | K53: 22.5 | L53: 23.9 | M53: 22.3 | N53: 18.9 | O53: 20.2 | P53: 18.5 | Q53: 16.5 | R53: 15.4 | S53: 15 | T53: 14.8 | U53: 14.2 | V53: 14.1 | W53: 12.7 | X53: 13.7 | Y53: 16.7 | Z53: 14.801 | AA53: 15.362 | AB53: 13.648 | AC53: 11.616 | AD53: 40.8 | AE53: 20.46666667 | AF53: 16.8 | AG53: 14.66666667 | AH53: 13.5 | AI53: 15.621 | AJ53: 22.02133333
C54: =IF(ISERROR(D54),"",IF(D54="","",MAX($C$11:C53)+1)) -> 
C55: =IF(ISERROR(D55),"",IF(D55="","",MAX($C$11:C54)+1)) -> 43 | D55: Average | F55: =AVERAGE(G55:AD55) -> 17.09213175 | G55: =AVERAGE(G12:G54) -> 17.86944444 | H55: =AVERAGE(H12:H54) -> 17.86944444 | I55: 16.29459459 | J55: 20.27567568 | K55: 20.84864865 | L55: 19.65675676 | M55: 20.42972973 | N55: 19.43469444 | O55: 19.874475 | P55: 18.78287805 | Q55: 17.54478049 | R55: 16.76592308 | S55: 16.187 | T55: 15.56035897 | U55: 15.29935897 | V55: 13.16336842 | W55: 13.57153846 | X55: 15.26645946 | Y55: 17.65794737 | Z55: 16.51426316 | AA55: 16.55644444 | AB55: 16.64677143 | AC55: 13.82927273 | AD55: 14.31133333 | AE55: 19.96817886 | AF55: 17.79191057 | AG55: 15.68223932 | AH55: 14.14578632 | AI55: 16.94952137 | AJ55: 15.10926667
C56: =IF(ISERROR(D56),"",IF(D56="","",MAX($C$11:C55)+1)) -> 44 | D56: Median | F56: =MEDIAN(G56:AD56) -> 16.312 | G56: =MEDIAN(G12:G54) -> 18.4 | H56: =MEDIAN(H12:H54) -> 18.4 | I56: 16.3 | J56: 19.9 | K56: 19.5 | L56: 19 | M56: 21.2 | N56: 18.55 | O56: 20 | P56: 18.8 | Q56: 17.7 | R56: 16.47 | S56: 16.2 | T56: 15.018 | U56: 14.2 | V56: 12.8 | W56: 12.7 | X56: 14.2 | Y56: 16.324 | Z56: 15.923 | AA56: 15.991 | AB56: 15.488 | AC56: 13.689 | AD56: 13.474 | AE56: 20.23333333 | AF56: 17.9 | AG56: 15.2 | AH56: 13.43333333 | AI56: 16.45233333 | AJ56: 14.94333333
D58: Sources:
E59: The current year P/E ratio is based on the forward P/E (price over expected earnings per share). All historical year P/E ratios are based on annual average share price over
E60: achieved earnings per share.
D61: 1 | E61: ="Data for years 2019 and prior were retrieved from the Value Line Investment Survey Investment Analyzer Software, downloaded on "&TEXT('2020'!$A$1,"mmmm d, yyyy.") -> Data for years 2019 and prior were retrieved from the Value Line Investment Survey Investment Analyzer Software, downloaded on June 18, 2021.
E62: Data for the years 2020 - 2024 was retrieved from Value Line Investment Surveys.
D63: 2 | E63: ="The Value Line Investment Survey, "&'2025 Data (WP)'!$D$1 -> The Value Line Investment Survey, May 9, June 6, and July 18, 2025.
D64: 3 | E64: Tracked by Value Line starting in May 9, 2025 Value Line Electric Utility (East) reports. Using average annual P/E ratios prior to 2024.
F67: Market Price to Cash Flow (MP/CF) Ratio 1
F68: =F8 -> 24-Year | AE68: 3-Year Averages
C69: Line | D69: Company | F69: Average | G69: 2025 2 | H69: 2024 | I69: 2023 | J69: 2022 | K69: 2021 | L69: 2020 | M69: 2019 | N69: 2018 | O69: 2017 | P69: 2016 | Q69: 2015 | R69: 2014 | S69: 2013 | T69: 2012 | U69: 2011 | V69: 2010 | W69: 2009 | X69: 2008 | Y69: 2007 | Z69: 2006 | AA69: 2005 | AB69: 2004 | AC69: 2003 | AD69: 2002 | AE69: 2017-2019 | AF69: 2014-2016 | AG69: 2011-2013 | AH69: 2008-2010 | AI69: 2005-2007 | AJ69: 2002-2004
F70: -1 | G70: =+F70-1 -> -2 | H70: -3 | I70: =+H70-1 -> -4 | J70: =+I70-1 -> -5 | K70: =+J70-1 -> -6 | L70: =+K70-1 -> -7 | AE70: =MIN($F$10:AD70)-1 -> -8 | AF70: =MIN($F$10:AE70)-1 -> -9 | AG70: =MIN($F$10:AF70)-1 -> -10 | AH70: =MIN($F$10:AG70)-1 -> -11 | AI70: =MIN($F$10:AH70)-1 -> -12 | AJ70: =MIN($F$10:AI70)-1 -> -13
L71: =MATCH(VALUE(LEFT(L69,4)),OFFSET(MP_CF_WP,-1,0,1,),0) -> 7 | M71: 8 | N71: 9 | O71: 10 | P71: 11 | Q71: 12 | R71: 13 | S71: 14 | T71: 15 | U71: 16 | V71: 17 | W71: 18 | X71: 19 | Y71: 20 | Z71: 21 | AA71: =MATCH(VALUE(LEFT(AA69,4)),OFFSET(MP_CF_WP,-1,0,1,),0) -> 22 | AB71: =MATCH(VALUE(LEFT(AB69,4)),OFFSET(MP_CF_WP,-1,0,1,),0) -> 23 | AC71: =MATCH(VALUE(LEFT(AC69,4)),OFFSET(MP_CF_WP,-1,0,1,),0) -> 24 | AD71: =MATCH(VALUE(LEFT(AD69,4)),OFFSET(MP_CF_WP,-1,0,1,),0) -> 25
A72: =A12 -> ALE | B72: =IFERROR(MATCH(A72,OFFSET(MP_CF_WP,0,0,,1),0),"") -> 2 | C72: =IF(ISERROR(D72),"",IF(D72="","",MAX($C$70:C71)+1)) -> 1 | D72: =D12 -> ALLETE | F72: =IFERROR(AVERAGE(G72:AD72),"N/A") -> 9.055996362 | G72: =IFERROR(IF(VLOOKUP($A72,Data2025,19,FALSE)=0,"N/A",VLOOKUP($A72,Data2025,19,FALSE)),"N/A") -> 7.698224852 | H72: =IFERROR(IF(VLOOKUP($A72,Data2024,19,FALSE)=0,"N/A",VLOOKUP($A72,Data2024,19,FALSE)),"N/A") -> 8.034300792 | I72: =IFERROR(IF(VLOOKUP($A72,Data2023,19,FALSE)=0,"N/A",VLOOKUP($A72,Data2023,19,FALSE)),"N/A") -> 6.689734717 | J72: =IFERROR(IF(VLOOKUP($A72,Data2022,17,FALSE)=0,"N/A",VLOOKUP($A72,Data2022,17,FALSE)),"N/A") -> 7.558441558 | K72: =IFERROR(IF(VLOOKUP(A72,lucyyr,17,FALSE)=0,"N/A",VLOOKUP(A72,lucyyr,17,FALSE)),"N/A") -> 8.614058355 | L72: =IFERROR(IF(INDEX(MP_CF_WP,$B72,L$71)=0,"N/A",INDEX(MP_CF_WP,$B72,L$71)),"N/A") -> 8.140749601 | M72: 11.37807236 | N72: 10.16180659 | O72: =IFERROR(IF(INDEX(MP_CF_WP,$B72,O$71)=0,"N/A",INDEX(MP_CF_WP,$B72,O$71)),"N/A") -> 10.94764001 | P72: 8.264444131 | Q72: 7.494845361 | R72: 8.804229075 | S72: 9.14929841 | T72: 8.181709265 | U72: 7.91021987 | V72: 8.039292279 | W72: 8.510781294 | X72: 9.291755256 | Y72: 10.30233084 | Z72: 11.05669481 | AA72: 11.54302054 | AB72: 11.46027 | AC72: N/A | AD72: N/A | AE72: =IFERROR(AVERAGE(M72:O72),"N/A") -> 10.82917298 | AF72: =IFERROR(AVERAGE(P72:R72),"N/A") -> 8.187839522 | AG72: =IFERROR(AVERAGE(S72:U72),"N/A") -> 8.413742515 | AH72: =IFERROR(AVERAGE(V72:X72),"N/A") -> 8.613942943 | AI72: =IFERROR(AVERAGE(Y72:AA72),"N/A") -> 10.96734873 | AJ72: =IFERROR(AVERAGE(AB72:AD72),"N/A") -> 11.46027
A73: LNT | B73: 3 | C73: =IF(ISERROR(D73),"",IF(D73="","",MAX($C$70:C72)+1)) -> 2 | D73: Alliant Energy | F73: =IFERROR(AVERAGE(G73:AD73),"N/A") -> 8.40387653 | G73: 10.4957265 | H73: 9.736842105 | I73: 9.433085502 | J73: 10.42592593 | K73: 10.31428571 | L73: 10.66253304 | M73: 10.74133798 | N73: 9.708825573 | O73: 13.21276596 | P73: 10.66695652 | Q73: 8.862739408 | R73: 8.39581517 | S73: 7.519150209 | T73: 7.499660787 | U73: 7.214960058 | V73: 6.586021505 | W73: 6.228720875 | X73: 7.489025461 | Y73: 7.924579914 | Z73: 8.002309469 | AA73: 5.091508053 | AB73: 5.52185 | AC73: 4.75788 | AD73: 5.200531 | AE73: =IFERROR(AVERAGE(M73:O73),"N/A") -> 11.2209765 | AF73: =IFERROR(AVERAGE(P73:R73),"N/A") -> 9.3085037 | AG73: =IFERROR(AVERAGE(S73:U73),"N/A") -> 7.411257018 | AH73: =IFERROR(AVERAGE(V73:X73),"N/A") -> 6.767922614 | AI73: =IFERROR(AVERAGE(Y73:AA73),"N/A") -> 7.006132479 | AJ73: =IFERROR(AVERAGE(AB73:AD73),"N/A") -> 5.160087
A74: AEE | B74: 6 | C74: =IF(ISERROR(D74),"",IF(D74="","",MAX($C$70:C73)+1)) -> 3 | D74: Ameren Corp. | F74: 7.470414687 | G74: 8.522321429 | H74: 7.755004766 | I74: 8.053053053 | J74: 9.540929204 | K74: 9.032620922 | L74: 9.63427015 | M74: 9.449495594 | N74: 7.946465969 | O74: 8.384773663 | P74: 7.444275736 | Q74: 6.869221911 | R74: 6.948873484 | S74: 6.610444063 | T74: 5.478801294 | U74: 5.018215867 | V74: 4.226805753 | W74: 4.25045402 | X74: 6.353626339 | Y74: 7.687758723 | Z74: 8.57130984 | AA74: 8.574565716 | AB74: 8.241695 | AC74: 6.739511 | AD74: 7.955459 | AE74: 8.593578409 | AF74: 7.087457044 | AG74: 5.702487075 | AH74: 4.943628704 | AI74: 8.277878093 | AJ74: 7.645555
A75: AEP | B75: 7 | C75: =IF(ISERROR(D75),"",IF(D75="","",MAX($C$70:C74)+1)) -> 4 | D75: American Electric Power | F75: 6.826503626 | G75: 8.213114754 | H75: 7.702818104 | I75: 7.678571429 | J75: 8.670708955 | K75: 7.572859745 | L75: 8.411124076 | M75: 9.338464828 | N75: 8.025094103 | O75: 8.805814246 | P75: 7.570669501 | Q75: 7.094999373 | R75: 7 | S75: 6.56754061 | T75: 5.928612717 | U75: 5.464840316 | V75: 5.543865226 | W75: 4.713652903 | X75: 5.7125512 | Y75: 6.844071786 | Z75: 5.535542891 | AA75: 6.065425264 | AB75: 5.50331 | AC75: 4.685427 | AD75: 5.187008 | AE75: =IFERROR(AVERAGE(M75:O75),"N/A") -> 8.723124392 | AF75: 7.221889625 | AG75: 5.986997881 | AH75: 5.323356443 | AI75: 6.148346647 | AJ75: 5.125248333
A76: AGR | B76: 10 | C76: =IF(ISERROR(D76),"",IF(D76="","",MAX($C$70:C75)+1)) -> 5 | D76: Avangrid, Inc. | F76: 9.52645079 | G76: N/A | H76: N/A | I76: 7.116141732 | J76: 8.686770428 | K76: 11.19101124 | L76: 9.389907353 | M76: 9.109736124 | N76: 10.23552282 | O76: 10.1434618 | P76: 8.563739975 | Q76: 11.30176565 | R76: N/A | S76: N/A | T76: N/A | U76: N/A | V76: N/A | W76: N/A | X76: N/A | Y76: N/A | Z76: N/A | AA76: N/A | AB76: N/A | AC76: N/A | AD76: N/A | AE76: =IFERROR(AVERAGE(M76:O76),"N/A") -> 9.829573578 | AF76: 9.932752812 | AG76: N/A | AH76: N/A | AI76: N/A | AJ76: N/A
A77: AVA | B77: 11 | C77: =IF(ISERROR(D77),"",IF(D77="","",MAX($C$70:C76)+1)) -> 6 | D77: Avista Corp. | F77: 6.907263793 | G77: 6.182539683 | H77: 6.340388007 | I77: 6.731793961 | J77: 9.386363636 | K77: 8.033707865 | L77: 7.804655674 | M77: 7.339106053 | N77: 10.13849531 | O77: 9.351251539 | P77: 7.631539188 | Q77: 6.758074345 | R77: 7.300045914 | S77: 6.209633028 | T77: 6.882464199 | U77: 6.404125893 | V77: 5.803423523 | W77: 4.055992804 | X77: 5.118652589 | Y77: 7.58444217 | Z77: 5.297120112 | AA77: 6.582413539 | AB77: 7.579685 | AC77: 5.360289 | AD77: 5.898128 | AE77: 8.942950967 | AF77: 7.229886482 | AG77: 6.49874104 | AH77: 4.992689639 | AI77: 6.487991941 | AJ77: 6.279367333
A78: BKH | B78: 12 | C78: =IF(ISERROR(D78),"",IF(D78="","",MAX($C$70:C77)+1)) -> 7 | D78: Black Hills | F78: 7.885825646 | G78: 7.548387097 | H78: 7.579155673 | I78: 7.757731959 | J78: 8.917197452 | K78: 8.839406208 | L78: 8.556215414 | M78: 10.65260758 | N78: 8.829526547 | O78: 9.202683813 | P78: 9.326809865 | Q78: 8.061429832 | R78: 8.806244996 | S78: 8.028335301 | T78: 6.037388193 | U78: 7.848227659 | V78: 6.160787531 | W78: 4.254202845 | X78: 11.25702675 | Y78: 7.615093626 | Z78: 6.916633585 | AA78: 7.573804574 | AB78: 6.68701 | AC78: 6.8855 | AD78: 5.918409 | AE78: 9.56160598 | AF78: 8.731494898 | AG78: 7.304650384 | AH78: 7.224005709 | AI78: 7.368510595 | AJ78: 6.496973
A79: CNP | B79: 14 | C79: =IF(ISERROR(D79),"",IF(D79="","",MAX($C$70:C78)+1)) -> 8 | D79: CenterPoint Energy | F79: 5.791686537 | G79: 8.7375 | H79: 7.74535809 | I79: 7.752043597 | J79: 8.01369863 | K79: 7.95 | L79: 5.941567833 | M79: 7.031538088 | N79: 8.447222222 | O79: 6.969509172 | P79: 5.957041871 | Q79: 5.748823529 | R79: 6.253700338 | S79: 6.561106407 | T79: 5.151117965 | U79: 5.393356643 | V79: 4.697674419 | W79: 4.054743285 | X79: 4.287302516 | Y79: 5.173003242 | Z79: 3.938834391 | AA79: 4.698932646 | AB79: 4.25616 | AC79: 2.080613 | AD79: 2.159629 | AE79: 7.482756494 | AF79: 5.986521913 | AG79: 5.701860338 | AH79: 4.346573406 | AI79: 4.603590093 | AJ79: 2.832134
A80: CMS | B80: 18 | C80: =IF(ISERROR(D80),"",IF(D80="","",MAX($C$70:C79)+1)) -> 9 | D80: CMS Energy Corp. | F80: 6.672440615 | G80: 8.162790698 | H80: 8.534136546 | I80: 8.280802292 | J80: 9.431988042 | K80: 9.267912773 | L80: 9.865865385 | M80: 9.8524618 | N80: 8.398681162 | O80: 8.748817855 | P80: 8.500820008 | Q80: 7.526671021 | R80: 7.129322596 | S80: 6.675535846 | T80: 6.034022507 | U80: 5.405805038 | V80: 4.475148568 | W80: 3.636284973 | X80: 3.446364105 | Y80: 5.573004543 | Z80: 4.404591995 | AA80: 4.042286381 | AB80: 3.196721 | AC80: 2.876099 | AD80: NMF | AE80: 8.999986939 | AF80: 7.718937875 | AG80: 6.038454464 | AH80: 3.852599215 | AI80: 4.673294306 | AJ80: 3.03641
A81: ED | B81: 20 | C81: =IF(ISERROR(D81),"",IF(D81="","",MAX($C$70:C80)+1)) -> 10 | D81: Consol. Edison | F81: 8.231084697 | G81: 7.929411765 | H81: 8.341946598 | I81: 8.260473588 | J81: 8.701737452 | K81: 7.255278311 | L81: 8.345995568 | M81: 9.461868132 | N81: 8.725886048 | O81: 9.64019025 | P81: 9.394927077 | Q81: 7.963546922 | R81: 7.88858435 | S81: 7.769705922 | T81: 8.3131822 | U81: 8.145754503 | V81: 7.388470777 | W81: 6.720061412 | X81: 6.893620574 | Y81: 8.30959806 | Z81: 8.653154006 | AA81: 8.588760205 | AB81: 9.313492 | AC81: 7.899277 | AD81: 7.64111 | AE81: 9.275981476 | AF81: 8.415686116 | AG81: 8.076214208 | AH81: 7.000717588 | AI81: 8.517170757 | AJ81: 8.284626333
A82: D | B82: 22 | C82: =IF(ISERROR(D82),"",IF(D82="","",MAX($C$70:C81)+1)) -> 11 | D82: Dominion Resources | F82: 9.781612688 | G82: 8.022727273 | H82: 9.079173838 | I82: 9.238351254 | J82: 9.346991037 | K82: 11.15269461 | L82: 14.58599307 | M82: 13.46611946 | N82: 10.93669909 | O82: 11.34826736 | P82: 11.59443654 | Q82: 11.83773396 | R82: 12.27075306 | S82: 10.87726358 | T82: 9.917620137 | U82: 9.448166501 | V82: 8.122820764 | W82: 6.984842193 | X82: 8.267219262 | Y82: 8.646526274 | Z82: 7.809164969 | AA82: 10.08943529 | AB82: 7.682221 | AC82: 7.50718 | AD82: 6.526304 | AE82: 11.91702864 | AF82: 11.90097452 | AG82: 10.08101674 | AH82: 7.791627406 | AI82: 8.848375511 | AJ82: 7.238568333
A83: DTE | B83: 23 | C83: =IF(ISERROR(D83),"",IF(D83="","",MAX($C$70:C82)+1)) -> 12 | D83: DTE Energy | F83: 6.855830892 | G83: 8.047021944 | H83: 7.724570674 | I83: 7.2696011 | J83: 7.957295374 | K83: 10.61976549 | L83: 7.852633011 | M83: 9.673042808 | N83: 8.535526943 | O83: 9.049265268 | P83: 8.642075472 | Q83: 8.520288166 | R83: 6.41580901 | S83: 6.652938272 | T83: 5.912496162 | U83: 5.182835041 | V83: 4.690593047 | W83: 3.594585953 | X83: 4.896935933 | Y83: 5.725987036 | Z83: 5.213893298 | AA83: 5.540341398 | AB83: 6.003669 | AC83: 5.617711 | AD83: 5.20106 | AE83: 9.085945006 | AF83: 7.859390882 | AG83: 5.916089825 | AH83: 4.394038311 | AI83: 5.493407244 | AJ83: 5.60748
A84: DUK | B84: 24 | C84: =IF(ISERROR(D84),"",IF(D84="","",MAX($C$70:C83)+1)) -> 13 | D84: Duke Energy | F84: 7.608861236 | G84: 7.683333333 | H84: 7.469964664 | I84: 7.167170953 | J84: 7.749806352 | K84: 7.886178862 | L84: 8.061151409 | M84: 7.402209763 | N84: 7.645561171 | O84: 8.397782882 | P84: 8.569891304 | Q84: 7.946170213 | R84: 8.120636663 | S84: 8.114863286 | T84: 9.530744337 | U84: 6.564400922 | V84: 6.009073769 | W84: 5.955540897 | X84: 7.131553861 | Y84: 7.162328852 | Z84: N/A | AA84: N/A | AB84: N/A | AC84: N/A | AD84: N/A | AE84: 7.815184605 | AF84: 8.212232727 | AG84: 8.070002848 | AH84: 6.365389509 | AI84: 7.162328852 | AJ84: N/A
A85: EIX | B85: 25 | C85: =IF(ISERROR(D85),"",IF(D85="","",MAX($C$70:C84)+1)) -> 14 | D85: Edison Int'l | F85: 5.963484078 | G85: 4.696750903 | H85: 6.036536934 | I85: 5.665254237 | J85: 6.828877005 | K85: 7.138694639 | L85: 7.566696057 | M85: 7.247840822 | N85: 13.46175154 | O85: 7.046233342 | P85: 6.771916363 | Q85: 5.920966184 | R85: 5.678424279 | S85: 5.456860293 | T85: 4.58714167 | U85: 4.22358804 | V85: 4.108997979 | W85: 3.953170119 | X85: 5.625309253 | Y85: 7.005529226 | Z85: 5.873293809 | AA85: 5.612940166 | AB85: 6.836584 | AC85: 2.819759 | AD85: 2.960502 | AE85: 9.251941903 | AF85: 6.123768942 | AG85: 4.755863334 | AH85: 4.56249245 | AI85: 6.163921067 | AJ85: 4.205615
A86: EE | B86: 26 | C86: =IF(ISERROR(D86),"",IF(D86="","",MAX($C$70:C85)+1)) -> 15 | D86: El Paso Electric | F86: 5.934878559 | G86: N/A | H86: N/A | I86: N/A | J86: N/A | K86: N/A | L86: N/A | M86: N/A | N86: 9.432790224 | O86: 8.53960797 | P86: 7.461512718 | Q86: 6.470782609 | R86: 6.332368466 | S86: 6.188308237 | T86: 5.778131072 | U86: 5.162975207 | V86: 4.306229381 | W86: 3.980821244 | X86: 4.947583554 | Y86: 6.435705045 | Z86: 6.248618785 | AA86: 6.667760998 | AB86: 4.65493 | AC86: 3.898599 | AD86: 4.386211 | AE86: 8.986199097 | AF86: 6.754887931 | AG86: 5.709804839 | AH86: 4.411544726 | AI86: 6.450694943 | AJ86: 4.313246667
A87: ETR | B87: 28 | C87: =IF(ISERROR(D87),"",IF(D87="","",MAX($C$70:C86)+1)) -> 16 | D87: Entergy Corp. | F87: 5.973558677 | G87: 9.272727273 | H87: 7.845679012 | I87: 4.62145843 | J87: 7.147001934 | K87: 5.608938547 | L87: 5.780810633 | M87: 6.048106567 | N87: 4.922223569 | O87: =IFERROR(IF(INDEX(MP_CF_WP,$B87,O$71)=0,"N/A",INDEX(MP_CF_WP,$B87,O$71)),"N/A") -> 4.663154744 | P87: 4.013191626 | Q87: 4.111318197 | R87: 4.206268387 | S87: 4.034223809 | T87: 4.228549972 | U87: 3.902407027 | V87: 4.660417297 | W87: 5.68038832 | X87: 7.963460047 | Y87: 9.213689056 | Z87: 7.156176938 | AA87: 8.756049866 | AB87: 7.122042 | AC87: 6.83746 | AD87: 5.569665 | AE87: 5.211161627 | AF87: 4.110259403 | AG87: 4.055060269 | AH87: 6.101421888 | AI87: 8.375305286 | AJ87: 6.509722333
A88: ES | B88: 29 | C88: =IF(ISERROR(D88),"",IF(D88="","",MAX($C$70:C87)+1)) -> 17 | D88: Eversource Energy | F88: 7.551344985 | G88: 6.412087912 | H88: 6.510752688 | I88: 10.38922156 | J88: 9.391353811 | K88: 11.4083558 | L88: 12.52988106 | M88: 11.4697038 | N88: 9.163480355 | O88: 10.35882957 | P88: =IFERROR(IF(INDEX(MP_CF_WP,$B88,P$71)=0,"N/A",INDEX(MP_CF_WP,$B88,P$71)),"N/A") -> 10.13686332 | Q88: 10.12006479 | R88: 10.14326459 | S88: 8.081034483 | T88: 9.302429351 | U88: 6.988720263 | V88: 4.966349542 | W88: 4.606573906 | X88: 4.123316567 | Y88: 6.183817427 | Z88: 6.015993494 | AA88: =IFERROR(IF(INDEX(MP_CF_WP,$B88,AA$71)=0,"N/A",INDEX(MP_CF_WP,$B88,AA$71)),"N/A") -> 3.548103353 | AB88: 3.782826 | AC88: 2.852541 | AD88: 2.746715 | AE88: 10.33067124 | AF88: 10.13339757 | AG88: 8.124061365 | AH88: 4.565413338 | AI88: 5.249304758 | AJ88: 3.127360667
A89: EVRG | C89: =IF(ISERROR(D89),"",IF(D89="","",MAX($C$70:C88)+1)) -> 18 | D89: Evergy, Inc. | F89: 7.399289203 | G89: 7.608187135 | H89: 6.568287037 | I89: 6.740696279 | J89: 8.664850136 | K89: 7.414425428 | L89: N/A | M89: N/A | N89: N/A | O89: N/A | P89: N/A | Q89: N/A | R89: N/A | S89: N/A | T89: N/A | U89: N/A | V89: N/A | W89: N/A | X89: N/A | Y89: N/A | Z89: N/A | AA89: N/A | AB89: N/A | AC89: N/A | AD89: N/A | AE89: N/A | AF89: N/A | AG89: N/A | AH89: N/A | AI89: N/A | AJ89: N/A
A90: =A30 -> EXC | B90: =IFERROR(MATCH(A90,OFFSET(MP_CF_WP,0,0,,1),0),"") -> 30 | C90: =IF(ISERROR(D90),"",IF(D90="","",MAX($C$70:C89)+1)) -> 19 | D90: =D30 -> Exelon Corp. | F90: 6.077640113 | G90: 6.604651163 | H90: 6.056910569 | I90: 6.413398693 | J90: 7.693574959 | K90: 5.084388186 | L90: 4.436855527 | M90: 5.291694575 | N90: 5.045493146 | O90: 4.454121864 | P90: 4.80028551 | Q90: 4.696809293 | R90: 5.091266838 | S90: 4.614126394 | T90: 5.544959128 | U90: 5.858446226 | V90: 5.103137396 | W90: 5.97599127 | X90: 9.65108055 | Y90: 9.886106624 | Z90: 8.615040953 | AA90: 7.97092084 | AB90: 6.28687 | AC90: 5.712263 | AD90: 4.97497 | AE90: 4.930436528 | AF90: 4.862787214 | AG90: 5.339177249 | AH90: 6.910069739 | AI90: 8.824022806 | AJ90: 5.658034333
A91: FE | B91: =IFERROR(MATCH(A91,OFFSET(MP_CF_WP,0,0,,1),0),"") -> 31 | C91: =IF(ISERROR(D91),"",IF(D91="","",MAX($C$70:C90)+1)) -> 20 | D91: FirstEnergy Corp. | F91: 6.954500267 | G91: 7.660377358 | H91: 7.472118959 | I91: 7.89748954 | J91: 8.927813163 | K91: 6.598513011 | L91: 9.233843118 | M91: 11.09485164 | N91: 8.840321366 | O91: 4.761657239 | P91: 5.116980554 | Q91: 5.380907223 | R91: 7.433186813 | S91: 6.152332593 | T91: 7.421869838 | U91: 7.325791855 | V91: 4.490179936 | W91: 4.914753353 | X91: 7.57858644 | Y91: 7.885039559 | Z91: 7.527212297 | AA91: 6.041313559 | AB91: 5.149756 | AC91: 6.898705 | AD91: 5.104406 | AE91: 8.232276747 | AF91: 5.977024863 | AG91: 6.966664762 | AH91: 5.661173243 | AI91: 7.151188472 | AJ91: 5.717622333
A92: FTS.TO | B92: 32 | C92: =IF(ISERROR(D92),"",IF(D92="","",MAX($C$70:C91)+1)) -> 21 | D92: Fortis Inc. | F92: 8.399768638 | G92: 7.510204082 | H92: 8.091549296 | I92: 8.338301043 | J92: 9.102564103 | K92: 9.574652778 | L92: 9.495131882 | M92: 9.464620474 | N92: 7.973693961 | O92: 8.230259525 | P92: 10.45556978 | Q92: 7.285193709 | R92: 9.250621032 | S92: 7.929598051 | T92: 8.092127711 | U92: 8.377914425 | V92: 7.40476788 | W92: 6.760601915 | X92: 7.581455064 | Y92: 9.183935201 | Z92: 7.892610837 | AA92: N/A | AB92: N/A | AC92: N/A | AD92: N/A | AE92: 8.55619132 | AF92: 8.997128175 | AG92: 8.133213396 | AH92: 7.24894162 | AI92: 8.538273019 | AJ92: N/A
A93: GXP | B93: 34 | C93: =IF(ISERROR(D93),"",IF(D93="","",MAX($C$70:C92)+1)) -> 22 | D93: Great Plains Energy | F93: 6.890969984 | G93: N/A | H93: N/A | I93: N/A | J93: N/A | K93: N/A | L93: N/A | M93: N/A | N93: N/A | O93: 14.61904762 | P93: 8.628614009 | Q93: 6.662732295 | R93: 6.449987528 | S93: 5.732601646 | T93: 6.087373004 | U93: 5.735327635 | V93: 4.491504854 | W93: 5.057886677 | X93: 7.705787262 | Y93: 7.132783019 | Z93: 7.679792746 | AA93: 6.698283451 | AB93: 6.521684 | AC93: 5.915193 | AD93: 5.136921 | AE93: 14.61904762 | AF93: 7.247111277 | AG93: 5.851767429 | AH93: 5.751726264 | AI93: 7.170286405 | AJ93: 5.857932667
A94: HE | B94: 35 | C94: =IF(ISERROR(D94),"",IF(D94="","",MAX($C$70:C93)+1)) -> 23 | D94: Hawaiian Elec. | F94: 7.537836984 | G94: 3.722222222 | H94: 2.16080402 | I94: 5.701943844 | J94: 7.948979592 | K94: 8.229166667 | L94: 8.687374302 | M94: 9.298330404 | N94: 8.343013568 | O94: 9.21449905 | P94: 7.441035475 | Q94: 9.251511487 | R94: 7.642312207 | S94: 8.151769088 | T94: 8.046313224 | U94: 7.731385485 | V94: 7.809375 | W94: 6.949054419 | X94: 9.104335048 | Y94: 7.945255474 | Z94: 8.473205892 | AA94: 8.290553139 | AB94: 8.444804 | AC94: 6.121469 | AD94: 6.199375 | AE94: 8.951947674 | AF94: 8.111619723 | AG94: 7.976489266 | AH94: 7.954254822 | AI94: 8.236338168 | AJ94: 6.921882667
A95: H.TO | B95: =IFERROR(MATCH(A95,OFFSET(MP_CF_WP,0,0,,1),0),"") -> 36 | C95: =IF(ISERROR(D95),"",IF(D95="","",MAX($C$70:C94)+1)) -> 24 | D95: Hydro One Limited3 | F95: 11.76753655 | G95: 12.921875 | H95: 15.81481481 | I95: 14.81854839 | J95: 14.51476793 | K95: =IFERROR(IF(VLOOKUP(A95,lucyyr,17,FALSE)=0,"N/A",VLOOKUP(A95,lucyyr,17,FALSE)),"N/A") -> 13.75 | L95: 7.305475504 | M95: 8.202846975 | N95: 15.93023256 | O95: 9.163346614 | P95: 9.529411765 | Q95: 7.491582492 | R95: N/A | S95: N/A | T95: N/A | U95: N/A | V95: N/A | W95: N/A | X95: N/A | Y95: N/A | Z95: N/A | AA95: N/A | AB95: N/A | AC95: N/A | AD95: N/A | AE95: =IFERROR(AVERAGE(M95:O95),"N/A") -> 11.09880872 | AF95: =IFERROR(AVERAGE(P95:R95),"N/A") -> 8.510497128 | AG95: =IFERROR(AVERAGE(S95:U95),"N/A") -> N/A | AH95: =IFERROR(AVERAGE(V95:X95),"N/A") -> N/A | AI95: =IFERROR(AVERAGE(Y95:AA95),"N/A") -> N/A | AJ95: =IFERROR(AVERAGE(AB95:AD95),"N/A") -> N/A
A96: IDA | B96: 37 | C96: =IF(ISERROR(D96),"",IF(D96="","",MAX($C$70:C95)+1)) -> 25 | D96: IDACORP, Inc. | F96: 9.126607413 | G96: 10.78947368 | H96: 10.78206465 | I96: 11.03732162 | J96: 12.42105263 | K96: 11.83709869 | L96: 11.38298132 | M96: 12.75176689 | N96: 11.72414671 | O96: 11.55770256 | P96: 10.95201983 | Q96: 9.367761194 | R96: 8.585614355 | S96: 7.777124702 | T96: 7.049898854 | U96: 6.641192598 | V96: 6.521495327 | W96: 5.306721861 | X96: 7.104376316 | Y96: 8.227571116 | Z96: 7.728939328 | AA96: 7.547520661 | AB96: 7.145945 | AC96: 7.265487 | AD96: 7.533301 | AE96: 12.01120539 | AF96: 9.635131794 | AG96: 7.156072051 | AH96: 6.310864501 | AI96: 7.834677035 | AJ96: 7.314911
A97: MGEE | B97: =IFERROR(MATCH(A97,OFFSET(MP_CF_WP,0,0,,1),0),"") -> 41 | C97: =IF(ISERROR(D97),"",IF(D97="","",MAX($C$70:C96)+1)) -> 26 | D97: MGE Energy | F97: 11.82217254 | G97: 12.97122302 | H97: 13.62261146 | I97: 12.30514096 | J97: 13.62799263 | K97: =IFERROR(IF(VLOOKUP(A97,lucyyr,17,FALSE)=0,"N/A",VLOOKUP(A97,lucyyr,17,FALSE)),"N/A") -> N/A | L97: 14.90340786 | M97: 15.57833698 | N97: 15.04190288 | O97: 17.3338701 | P97: 15.65907124 | Q97: 12.529994 | R97: 11.42452019 | S97: 11.20115818 | T97: 10.77277311 | U97: 9.478897209 | V97: 9.049293222 | W97: 8.396084337 | X97: 8.42403882 | Y97: 9.22633076 | Z97: 9.301194539 | AA97: 11.727 | AB97: 11.04441 | AC97: 10.19708 | AD97: 8.093637 | AE97: =IFERROR(AVERAGE(M97:O97),"N/A") -> 15.98470332 | AF97: 13.20452848 | AG97: 10.48427617 | AH97: 8.623138793 | AI97: 10.08484177 | AJ97: 9.778375667
A98: NEE | B98: =IFERROR(MATCH(A98,OFFSET(MP_CF_WP,0,0,,1),0),"") -> 44 | C98: =IF(ISERROR(D98),"",IF(D98="","",MAX($C$70:C97)+1)) -> 27 | D98: NextEra Energy, Inc. | F98: 9.341438605 | G98: 10.53435115 | H98: 11.23595506 | I98: 10.88762215 | J98: 15.16981132 | K98: =IFERROR(IF(VLOOKUP(A98,lucyyr,17,FALSE)=0,"N/A",VLOOKUP(A98,lucyyr,17,FALSE)),"N/A") -> 20.40302267 | L98: 15.48154168 | M98: 12.32566414 | N98: 10.76979167 | O98: 11.61056106 | P98: 9.237037037 | Q98: 7.925375445 | R98: 7.984217485 | S98: 7.596716021 | T98: 7.577365876 | U98: 5.98450113 | V98: 5.334892423 | W98: 6.086857143 | X98: 7.344006977 | Y98: 9.018242849 | Z98: 6.514551632 | AA98: 6.714840589 | AB98: 6.714840589 | AC98: 5.974290305 | AD98: 5.768470149 | AE98: 11.56867229 | AF98: 8.382209989 | AG98: 7.052861009 | AH98: 6.255252181 | AI98: 7.415878357 | AJ98: 6.152533681
A99: NWE | B99: =IFERROR(MATCH(A99,OFFSET(MP_CF_WP,0,0,,1),0),"") -> 47 | C99: =IF(ISERROR(D99),"",IF(D99="","",MAX($C$70:C98)+1)) -> 28 | D99: NorthWestern Corp | F99: 7.8593272 | G99: 7.554794521 | H99: 7.333804809 | I99: 8.011958146 | J99: 8.653250774 | K99: =IFERROR(IF(VLOOKUP(A99,lucyyr,17,FALSE)=0,"N/A",VLOOKUP(A99,lucyyr,17,FALSE)),"N/A") -> 8.831908832 | L99: 8.879708203 | M99: 9.925925926 | N99: 8.194137089 | O99: 8.820926447 | P99: 8.647914502 | Q99: 8.988690074 | R99: 9.009651076 | S99: 7.607300073 | T99: 6.854689309 | U99: 5.890979524 | V99: 5.792611251 | W99: 5.046990039 | X99: 5.574153986 | Y99: 8.449784017 | Z99: 9.39430782 | AA99: 7.311983988 | AB99: 8.129728 | AC99: N/A | AD99: N/A | AE99: 8.98032982 | AF99: 8.882085218 | AG99: 6.784322969 | AH99: 5.471251759 | AI99: 8.385358608 | AJ99: 8.129728
A100: OGE | B100: 48 | C100: =IF(ISERROR(D100),"",IF(D100="","",MAX($C$70:C99)+1)) -> 29 | D100: OGE Energy | F100: 7.968452395 | G100: 8.544554455 | H100: 8.138297872 | I100: 7.776572668 | J100: 8.355263158 | K100: 7.635135135 | L100: 8.376549331 | M100: 10.58468043 | N100: 9.364608393 | O100: 10.52033493 | P100: 9.029918404 | Q100: 9.249690594 | R100: 10.64958775 | S100: 9.928840035 | T100: 7.346060114 | U100: 7.480229399 | V100: 6.610428429 | W100: 5.366480447 | X100: 6.433985839 | Y100: 7.581871345 | Z100: 7.498657117 | AA100: 7.036522634 | AB100: 6.729 | AC100: 5.617115 | AD100: 5.388474 | AE100: 10.15654125 | AF100: 9.643065583 | AG100: 8.251709849 | AH100: 6.136964905 | AI100: 7.372350365 | AJ100: 5.911529667
A101: OTTR | B101: 50 | C101: =IF(ISERROR(D101),"",IF(D101="","",MAX($C$70:C100)+1)) -> 30 | D101: Otter Tail Corp. | F101: 9.238921044 | G101: 8.926136364 | H101: 8.909928352 | I101: 8.021390374 | J101: 7.702394527 | K101: 8.612403101 | L101: 9.987179487 | M101: 12.42123204 | N101: 11.57806973 | O101: 11.0880843 | P101: 9.38396747 | Q101: 9.035646085 | R101: 9.452573648 | S101: 9.580794702 | T101: 8.430047988 | U101: 9.038494078 | V101: 8.065100154 | W101: 8.009775525 | X101: 11.65457133 | Y101: 9.528567408 | Z101: 8.656333038 | AA101: 8.175365344 | AB101: 9.012825 | AC101: 8.129697 | AD101: 8.333528 | AE101: 11.69579536 | AF101: 9.290729068 | AG101: 9.016445589 | AH101: 9.243149002 | AI101: 8.786755263 | AJ101: 8.492016667
A102: PNW | B102: 53 | C102: =IF(ISERROR(D102),"",IF(D102="","",MAX($C$70:C101)+1)) -> 31 | D102: Pinnacle West Capital | F102: 6.233644848 | G102: 6.926070039 | H102: 6.111111111 | I102: 6.468619247 | J102: 5.193452381 | K102: 6.185609158 | L102: 7.49005708 | M102: 8.296273013 | N102: 7.091785746 | O102: 8.728183119 | P102: 7.886131231 | Q102: 6.914530855 | R102: 7.033391046 | S102: 6.853078244 | T102: 6.343651295 | U102: 5.803561935 | V102: 5.650313914 | W102: 3.844515969 | X102: 4.187361692 | Y102: 4.755837727 | Z102: 4.475969472 | AA102: 7.479257073 | AB102: 5.880265 | AC102: 4.803003 | AD102: 5.205447 | AE102: 8.038747292 | AF102: 7.278017711 | AG102: 6.333430491 | AH102: 4.560730525 | AI102: 5.570354758 | AJ102: 5.296238333
A103: TXNM | B103: 54 | C103: =IF(ISERROR(D103),"",IF(D103="","",MAX($C$70:C102)+1)) -> 32 | D103: TXNM Energy | F103: 6.867598785 | G103: 6.979310345 | H103: 6.064285714 | I103: 6.873111782 | J103: 6.949025487 | K103: 7.811980033 | L103: 7.869167107 | M103: 7.918918919 | N103: 7.571177847 | O103: 7.400830345 | P103: 7.643541229 | Q103: 6.945449975 | R103: 7.480662983 | S103: 6.4745232 | T103: 5.802366864 | U103: 4.938640654 | V103: 4.581552306 | W103: 4.527178602 | X103: 7.100797267 | Y103: 10.67073651 | Z103: 7.496781416 | AA103: 7.620011242 | AB103: 6.838586 | AC103: 5.54844 | AD103: 5.715295 | AE103: 7.630309037 | AF103: 7.356551396 | AG103: 5.738510239 | AH103: 5.403176058 | AI103: 8.595843056 | AJ103: 6.034107
A104: POR | B104: 55 | C104: =IF(ISERROR(D104),"",IF(D104="","",MAX($C$70:C103)+1)) -> 33 | D104: Portland General | F104: 5.961322548 | G104: 5.27607362 | H104: 5.903054449 | I104: 6.559297218 | J104: 6.65317139 | K104: 6.475862069 | L104: 6.719347251 | M104: 7.650502152 | N104: 6.562218215 | O104: 7.445544554 | P104: 7.123204707 | Q104: 6.726917349 | R104: 5.487756779 | S104: 6.060243408 | T104: 5.077700078 | U104: 4.860165223 | V104: 4.132780083 | W104: 4.634308184 | X104: 4.805048791 | Y104: 5.336401995 | Z104: 5.736853448 | AA104: N/A | AB104: N/A | AC104: N/A | AD104: N/A | AE104: 7.21942164 | AF104: 6.445959612 | AG104: 5.332702903 | AH104: 4.524045686 | AI104: 5.536627721 | AJ104: N/A
A105: PPL | B105: 56 | C105: =IF(ISERROR(D105),"",IF(D105="","",MAX($C$70:C104)+1)) -> 34 | D105: PPL Corp. | F105: 7.985721779 | G105: 9.175675676 | H105: 9.950657895 | I105: 7.834302326 | J105: 8.818770227 | K105: 13.74396135 | L105: 7.461033849 | M105: 7.986308316 | N105: 7.022099448 | O105: 10.11159381 | P105: 8.366993922 | Q105: 8.731532963 | R105: 7.318042813 | S105: 6.589351153 | T105: 5.865551425 | U105: 5.979520697 | V105: 7.46420765 | W105: 8.821645022 | X105: 9.165217391 | Y105: 8.900215644 | Z105: 7.581357126 | AA105: =IFERROR(IF(INDEX(MP_CF_WP,$B105,AA$71)=0,"N/A",INDEX(MP_CF_WP,$B105,AA$71)),"N/A") -> 7.567926988 | AB105: 6.493322 | AC105: 5.407161 | AD105: 5.300874 | AE105: 8.373333858 | AF105: 8.138856566 | AG105: 6.144807758 | AH105: 8.483690021 | AI105: 8.016499919 | AJ105: 5.733785667
A106: PEG | B106: 57 | C106: =IF(ISERROR(D106),"",IF(D106="","",MAX($C$70:C105)+1)) -> 35 | D106: Public Serv. Enterprise | F106: 8.271594811 | G106: 11.83571429 | H106: 11.78294574 | I106: 9.675324675 | J106: 10.53453947 | K106: 11.32022472 | L106: 8.222188264 | M106: 8.717436353 | N106: 9.484937546 | O106: 8.670375259 | P106: 8.564977322 | Q106: 6.663413047 | R106: 6.478014428 | S106: 6.403678606 | T106: 6.400615385 | U106: 6.031156716 | V106: 6.039081768 | W106: 6.203852327 | X106: 8.459384352 | Y106: 9.831574117 | Z106: 8.409521372 | AA106: 8.594499707 | AB106: 7.165344 | AC106: 6.791096 | AD106: 6.23838 | AE106: 8.957583053 | AF106: 7.235468266 | AG106: 6.278483569 | AH106: 6.900772816 | AI106: 8.945198399 | AJ106: 6.731606667
A107: SCG | B107: 58 | C107: =IF(ISERROR(D107),"",IF(D107="","",MAX($C$70:C106)+1)) -> 36 | D107: SCANA Corp. | F107: 7.09343727 | G107: N/A | H107: N/A | I107: N/A | J107: N/A | K107: N/A | L107: N/A | M107: N/A | N107: N/A | O107: 8.262585034 | P107: 9.591077557 | Q107: 8.334576372 | R107: 7.50130246 | S107: 7.487140233 | T107: =IFERROR(IF(INDEX(MP_CF_WP,$B107,T$71)=0,"N/A",INDEX(MP_CF_WP,$B107,T$71)),"N/A") -> 7.396001904 | U107: 6.752369865 | V107: 6.523865944 | W107: 5.880212955 | X107: 6.379139638 | Y107: 7.147017789 | Z107: 7.02745029 | AA107: 5.404172275 | AB107: 6.862474 | AC107: 6.589816 | AD107: 6.355794 | AE107: 8.262585034 | AF107: 8.47565213 | AG107: 7.211837334 | AH107: 6.261072846 | AI107: 6.526213451 | AJ107: 6.602694667
A108: SRE | B108: 59 | C108: =IF(ISERROR(D108),"",IF(D108="","",MAX($C$70:C107)+1)) -> 37 | D108: Sempra Energy | F108: 8.531618818 | G108: 9.011976048 | H108: 9.759326113 | I108: 8.932515337 | J108: 9.751592357 | K108: 13.23139653 | L108: 10.40145044 | M108: 12.04970839 | N108: 10.10155403 | O108: 10.65352246 | P108: =IFERROR(IF(INDEX(MP_CF_WP,$B108,P$71)=0,"N/A",INDEX(MP_CF_WP,$B108,P$71)),"N/A") -> 10.8801853 | Q108: 9.994768456 | R108: 10.76600043 | S108: 9.366824538 | T108: 7.257171672 | U108: 6.134545879 | V108: 6.528107272 | W108: 6.071887196 | X108: 7.065693431 | Y108: 8.606519544 | Z108: 7.222090261 | AA108: 6.959932942 | AB108: 5.163653 | AC108: 4.85018 | AD108: 3.99825 | AE108: 10.93492829 | AF108: 10.54698473 | AG108: 7.586180696 | AH108: 6.5552293 | AI108: 7.596180916 | AJ108: 4.670694333
A109: SO | B109: 63 | C109: =IF(ISERROR(D109),"",IF(D109="","",MAX($C$70:C108)+1)) -> 38 | D109: Southern Co. | F109: 8.424450431 | G109: 10.24117647 | H109: 9.592814371 | I109: 8.63928113 | J109: 9.625340599 | K109: 8.722222222 | L109: 8.343270747 | M109: 8.801357966 | N109: 7.046943231 | O109: 7.487797529 | P109: 8.832337434 | Q109: 8.227015171 | R109: 8.418639894 | S109: 8.298898595 | T109: 8.745945946 | U109: 8.223443223 | V109: 7.790161755 | W109: 7.077617329 | X109: 8.183581416 | Y109: 8.618483412 | Z109: 8.47146773 | AA109: 8.410816175 | AB109: 8.276334 | AC109: 8.279399 | AD109: 7.832465 | AE109: 7.778699576 | AF109: 8.492664166 | AG109: 8.422762588 | AH109: 7.683786833 | AI109: 8.500255772 | AJ109: 8.129399333
A110: VVC | B110: 71 | C110: =IF(ISERROR(D110),"",IF(D110="","",MAX($C$70:C109)+1)) -> 39 | D110: Vectren Corp. | F110: 7.078196483 | G110: N/A | H110: N/A | I110: N/A | J110: N/A | K110: N/A | L110: N/A | M110: N/A | N110: N/A | O110: 10.31939292 | P110: 8.596238355 | Q110: 7.819277108 | R110: 7.571750141 | S110: 6.82103798 | T110: 5.789944356 | U110: 5.810483871 | V110: 5.57712227 | W110: 5.242899341 | X110: 6.901639344 | Y110: 6.534932464 | Z110: 7.374390904 | AA110: 7.061208678 | AB110: 7.632304 | AC110: 7.274504 | AD110: 6.924018 | AE110: 10.31939292 | AF110: 7.995755201 | AG110: 6.140488736 | AH110: 5.907220318 | AI110: 6.990177349 | AJ110: 7.276942
A111: WEC | B111: 72 | C111: =IF(ISERROR(D111),"",IF(D111="","",MAX($C$70:C110)+1)) -> 40 | D111: WEC Energy Group | F111: 9.282852285 | G111: 9.995073892 | H111: 9.533762058 | I111: 10.11574074 | J111: 11.8102372 | K111: 11.98539177 | L111: 13.67323862 | M111: 12.87959559 | N111: 10.82312024 | O111: 11.04376098 | P111: 10.95195697 | Q111: 12.89615087 | R111: 10.26611459 | S111: 9.57605178 | T111: 9.238522954 | U111: 8.431596091 | V111: 8.146577832 | W111: 6.870656371 | X111: 7.573265651 | Y111: 7.841099564 | Z111: 7.272601794 | AA111: 6.401452282 | AB111: 6.274206 | AC111: 4.914946 | AD111: 4.273335 | AE111: 11.58215894 | AF111: 11.37140747 | AG111: 9.082056942 | AH111: 7.530166618 | AI111: 7.17171788 | AJ111: 5.154162333
A112: WR | B112: 73 | C112: =IF(ISERROR(D112),"",IF(D112="","",MAX($C$70:C111)+1)) -> 41 | D112: Westar Energy | F112: 6.914351898 | G112: N/A | H112: N/A | I112: N/A | J112: N/A | K112: N/A | L112: N/A | M112: N/A | N112: N/A | O112: 10.86734694 | P112: 10.85554636 | Q112: 9.047384471 | R112: 7.925120773 | S112: 7.231956423 | T112: 6.714883721 | U112: 6.671626734 | V112: 5.506965762 | W112: 5.324798219 | X112: 7.088038278 | Y112: 6.875993641 | Z112: 5.807458143 | AA112: 6.997251908 | AB112: 6.538462 | AC112: 4.235732 | AD112: 2.941065 | AE112: 10.86734694 | AF112: 9.276017201 | AG112: 6.872822293 | AH112: 5.973267419 | AI112: 6.560234564 | AJ112: 4.571753
A113: XEL | B113: 75 | C113: =IF(ISERROR(D113),"",IF(D113="","",MAX($C$70:C112)+1)) -> 42 | D113: Xcel Energy Inc. | F113: 7.072679805 | G113: 7.450549451 | H113: 7.129300119 | I113: 7.958542714 | J113: 8.61715749 | K113: 9.187853107 | L113: 10.07195767 | M113: 9.442914331 | N113: 7.901993917 | O113: 8.500091491 | P113: 8.096172913 | Q113: 7.621022603 | R113: 7.314819137 | S113: 7.004389173 | T113: 6.853286678 | U113: 6.472126816 | V113: 6.275911162 | W113: 5.427092321 | X113: 5.705882353 | Y113: 6.508975101 | Z113: 5.539783754 | AA113: 5.62385601 | AB113: 5.308729 | AC113: 4.267622 | AD113: 5.464286 | AE113: 8.614999913 | AF113: 7.677338217 | AG113: 6.776600889 | AH113: 5.802961945 | AI113: 5.890871622 | AJ113: 5.013545667
C114: =IF(ISERROR(D114),"",IF(D114="","",MAX($C$70:C113)+1)) -> 
C115: =IF(ISERROR(D115),"",IF(D115="","",MAX($C$70:C114)+1)) -> 43 | D115: Average | F115: =AVERAGE(G115:AD115) -> 7.729163907 | G115: =AVERAGE(G72:G114) -> 8.329564872 | H115: =AVERAGE(H72:H114) -> 8.290306471 | I115: 8.192205628 | J115: 9.148396982 | K115: 9.403360682 | L115: 9.20977246 | M115: 9.73179659 | N115: 9.219643258 | O115: 9.406719151 | P115: 8.701982929 | Q115: 8.058472551 | R115: 7.903320379 | S115: 7.408609656 | T115: 7.012133135 | U115: 6.562333234 | V115: 6.017318076 | W115: 5.614837894 | X115: 7.014787962 | Y115: 7.771301044 | Z115: 7.168181692 | AA115: 7.183612152 | AB115: 6.818222405 | AC115: 5.753266009 | AD115: 5.57978855 | AE115: 9.546909814 | AF115: 8.242694467 | AG115: 6.994358675 | AH115: 6.215647977 | AI115: 7.371634538 | AJ115: 6.179782213
C116: =IF(ISERROR(D116),"",IF(D116="","",MAX($C$70:C115)+1)) -> 44 | D116: Median | F116: =MEDIAN(G116:AD116) -> 7.686046015 | G116: =MEDIAN(G72:G114) -> 8.034874608 | H116: =MEDIAN(H72:H114) -> 7.800341889 | I116: 7.89748954 | J116: 8.701737452 | K116: 8.777065527 | L116: 8.483669745 | M116: 9.455681863 | N116: 8.829526547 | O116: 9.163346614 | P116: 8.596238355 | Q116: 7.925375445 | R116: 7.571750141 | S116: 7.231956423 | T116: 6.854689309 | U116: 6.404125893 | V116: 5.803423523 | W116: 5.366480447 | X116: 7.100797267 | Y116: 7.841099564 | Z116: 7.43558616 | AA116: 7.048865656 | AB116: 6.721920295 | AC116: 5.664987 | AD116: 5.464286 | AE116: 8.999986939 | AF116: 8.187839522 | AG116: 6.872822293 | AH116: 6.136964905 | AI116: 7.368510595 | AJ116: 5.972818333
D118: Sources:
E119: =E59 -> The current year P/E ratio is based on the forward P/E (price over expected earnings per share). All historical year P/E ratios are based on annual average share price over
E120: =E60 -> achieved earnings per share.
D121: 1 | E121: =E61 -> Data for years 2019 and prior were retrieved from the Value Line Investment Survey Investment Analyzer Software, downloaded on June 18, 2021.
E122: Data for the years 2020 - 2024 was retrieved from Value Line Investment Surveys.
D123: 2 | E123: ="The Value Line Investment Survey, "&'2025 Data (WP)'!$D$1 -> The Value Line Investment Survey, May 9, June 6, and July 18, 2025.
D125: Note:
D126: a | E126: Based on the average of the high and low price and the projected Cash Flow per share.
F128: Market Price to Book Value (MP/BV) Ratio 1
F129: 21-Year | AE129: 3-Year Averages
C130: Line | D130: Company | F130: Average | G130: 2025 2 | H130: 2024 | I130: 2023 | J130: 2022 | K130: 2021 | L130: 2020 | M130: 2019 | N130: 2018 | O130: 2017 | P130: 2016 | Q130: 2015 | R130: 2014 | S130: 2013 | T130: 2012 | U130: 2011 | V130: 2010 | W130: 2009 | X130: 2008 | Y130: 2007 | Z130: 2006 | AA130: 2005 | AE130: 2017-2019 | AF130: 2014-2016 | AG130: 2011-2013 | AH130: 2008-2010 | AI130: 2005-2007
F131: -1 | G131: =+F131-1 -> -2 | H131: =+G131-1 -> -3 | I131: =+H131-1 -> -4 | J131: =+I131-1 -> -5 | K131: =+J131-1 -> -6 | L131: =+K131-1 -> -7 | AE131: =MIN($F$10:AD131)-1 -> -8 | AF131: =MIN($F$10:AE131)-1 -> -9 | AG131: =MIN($F$10:AF131)-1 -> -10 | AH131: =MIN($F$10:AG131)-1 -> -11 | AI131: =MIN($F$10:AH131)-1 -> -12
L132: =MATCH(VALUE(LEFT(L130,4)),OFFSET(MP_BV_WP,-1,0,1,),0) -> 6 | M132: 7 | N132: 8 | O132: 9 | P132: 10 | Q132: 11 | R132: 12 | S132: 13 | T132: 14 | U132: 15 | V132: 16 | W132: 17 | X132: 18 | Y132: 19 | Z132: 20 | AA132: =MATCH(VALUE(LEFT(AA130,4)),OFFSET(MP_BV_WP,-1,0,1,),0) -> 21
A133: =A12 -> ALE | B133: =MATCH(A133,OFFSET(MP_BV_WP,0,0,,1),0) -> 2 | C133: =IF(ISERROR(D133),"",IF(D133="","",MAX($C$131:C132)+1)) -> 1 | D133: =D12 -> ALLETE | F133: =AVERAGE(G133:AA133) -> 1.517722909 | G133: =IFERROR(IF(VLOOKUP($A133,Data2025,20,FALSE)=0,"",VLOOKUP($A133,Data2025,20,FALSE)),"N/A") -> 1.237868696 | H133: =IFERROR(IF(VLOOKUP($A133,Data2024,20,FALSE)=0,"",VLOOKUP($A133,Data2024,20,FALSE)),"N/A") -> 1.189917937 | I133: =IFERROR(IF(VLOOKUP($A133,Data2023,20,FALSE)=0,"",VLOOKUP($A133,Data2023,20,FALSE)),"N/A") -> 1.18901189 | J133: =IFERROR(IF(VLOOKUP($A133,Data2022,18,FALSE)=0,"",VLOOKUP($A133,Data2022,18,FALSE)),"N/A") -> 1.236719082 | K133: =IFERROR(IF(VLOOKUP(A133,lucyyr,18,FALSE)=0,"",VLOOKUP(A133,lucyyr,18,FALSE)),"N/A") -> 1.431878307 | L133: =IFERROR(IF(INDEX(MP_BV_WP,$B133,L$132)=0,"N/A",INDEX(MP_BV_WP,$B133,L$132)),"N/A") -> 1.390740657 | M133: 1.908732916 | N133: 1.789847109 | O133: 1.782230568 | P133: 1.532922835 | Q133: 1.372771169 | R133: 1.424977897 | S133: 1.507630175 | T133: 1.344203136 | U133: 1.350022584 | V133: 1.283314382 | W133: 1.150950542 | X133: 1.550273935 | Y133: 1.888262132 | Z133: 2.092598511 | AA133: 2.217306636 | AE133: =IFERROR(AVERAGE(M133:O133),"N/A") -> 1.826936865 | AF133: =IFERROR(AVERAGE(P133:R133),"N/A") -> 1.4435573 | AG133: =IFERROR(AVERAGE(S133:U133),"N/A") -> 1.400618632 | AH133: =IFERROR(AVERAGE(V133:X133),"N/A") -> 1.328179619 | AI133: =IFERROR(AVERAGE(Y133:AA133),"N/A") -> 2.06605576
A134: LNT | B134: 3 | C134: =IF(ISERROR(D134),"",IF(D134="","",MAX($C$131:C133)+1)) -> 2 | D134: Alliant Energy | F134: =AVERAGE(G134:AA134) -> 1.837793059 | G134: 2.128249567 | H134: 2.033711982 | I134: 1.917989418 | J134: 2.25290116 | K134: 2.264742785 | L134: 2.304032683 | M134: 2.320387892 | N134: 2.157572326 | O134: 2.381107303 | P134: 2.16948653 | Q134: 1.860894467 | R134: 1.858594956 | S134: 1.699168301 | T134: 1.565460596 | U134: 1.464259396 | V134: 1.314478424 | W134: 1.044827311 | X134: 1.334689407 | Y134: 1.669328284 | Z134: 1.517606868 | AA134: 1.334164589 | AE134: =IFERROR(AVERAGE(M134:O134),"N/A") -> 2.28635584 | AF134: =IFERROR(AVERAGE(P134:R134),"N/A") -> 1.962991984 | AG134: =IFERROR(AVERAGE(S134:U134),"N/A") -> 1.576296098 | AH134: =IFERROR(AVERAGE(V134:X134),"N/A") -> 1.231331714 | AI134: =IFERROR(AVERAGE(Y134:AA134),"N/A") -> 1.507033247
A135: AEE | B135: 6 | C135: =IF(ISERROR(D135),"",IF(D135="","",MAX($C$131:C134)+1)) -> 3 | D135: Ameren Corp. | F135: 1.633969192 | G135: 2.077257889 | H135: 1.901589528 | I135: 1.998261302 | J135: 2.150336574 | K135: 2.133368757 | L135: 2.205293884 | M135: 2.260615873 | N135: 1.945179584 | O135: 1.926844096 | P135: 1.674796748 | Q135: 1.458692842 | R135: 1.449199407 | S135: 1.286010901 | T135: 1.180071148 | U135: 0.9030390295 | V135: 0.8316902503 | W135: 0.77828834 | X135: 1.247362644 | Y135: 1.604195588 | Z135: 1.618283957 | AA135: 1.682974686 | AE135: 2.044213185 | AF135: 1.527562999 | AG135: 1.123040359 | AH135: 0.9524470781 | AI135: 1.63515141
A136: AEP | B136: 7 | C136: =IF(ISERROR(D136),"",IF(D136="","",MAX($C$131:C135)+1)) -> 4 | D136: American Electric Power | F136: 1.661778469 | G136: 1.914040115 | H136: 1.781552439 | I136: 1.730293025 | J136: 1.994635193 | K136: 1.868959317 | L136: 2.090230288 | M136: 2.19875151 | N136: 1.823733734 | O136: 1.882560267 | P136: 1.812210288 | Q136: 1.553753259 | R136: 1.542859637 | S136: 1.397713489 | T136: 1.307684952 | U136: 1.229742203 | V136: 1.23118735 | W136: 1.084006403 | X136: 1.482968139 | Y136: 1.848396965 | Z136: 1.555653896 | AA136: 1.566415389 | AE136: 1.968348504 | AF136: 1.636274395 | AG136: 1.311713548 | AH136: 1.266053964 | AI136: 1.656822083
A137: AGR | B137: 10 | C137: =IF(ISERROR(D137),"",IF(D137="","",MAX($C$131:C136)+1)) -> 5 | D137: Avangrid, Inc. | F137: 0.9003717235 | G137: N/A | H137: N/A | I137: 0.7116141732 | J137: 0.890684221 | K137: 1.009118541 | L137: 0.9680336531 | M137: 1.015169337 | N137: =IFERROR(IF(INDEX(MP_BV_WP,$B137,N$132)=0,"N/A",INDEX(MP_BV_WP,$B137,N$132)),"N/A") -> 1.023363817 | O137: 0.9332267585 | P137: 0.8297885394 | Q137: 0.7223464719 | R137: N/A | S137: N/A | T137: N/A | U137: N/A | V137: N/A | W137: N/A | X137: N/A | Y137: N/A | Z137: N/A | AA137: N/A | AE137: 0.9905866374 | AF137: 0.7760675056 | AG137: N/A | AH137: N/A | AI137: N/A
A138: AVA | B138: 11 | C138: =IF(ISERROR(D138),"",IF(D138="","",MAX($C$131:C137)+1)) -> 6 | D138: Avista Corp. | F138: 1.307321952 | G138: 1.132267442 | H138: 1.110596231 | I138: 1.190700597 | J138: 1.325842697 | K138: 1.423357664 | L138: 1.372437319 | M138: 1.541395317 | N138: 1.882047862 | O138: 1.725655005 | P138: 1.573191622 | Q138: 1.356187836 | R138: 1.334018543 | S138: 1.252845905 | T138: 1.209668994 | U138: 1.193101749 | V138: 1.066517834 | W138: 0.9408481561 | X138: 1.112920857 | Y138: 1.286905175 | Z138: 1.295835959 | AA138: 1.127418237 | AE138: 1.716366061 | AF138: 1.421132667 | AG138: 1.218538883 | AH138: 1.040095616 | AI138: 1.23671979
A139: BKH | B139: 12 | C139: =IF(ISERROR(D139),"",IF(D139="","",MAX($C$131:C138)+1)) -> 7 | D139: Black Hills | F139: 1.470525331 | G139: 1.13592233 | H139: 1.146249002 | I139: 1.276776246 | J139: 1.544912823 | K139: 1.521486643 | L139: 1.554130914 | M139: 1.945709601 | N139: 1.605523008 | O139: 2.062595946 | P139: 1.938010381 | Q139: 1.5948315 | R139: 1.785378048 | S139: 1.619708725 | T139: 1.210465909 | U139: 1.14194392 | V139: 1.072129626 | W139: 0.8271848845 | X139: 1.222536869 | Y139: 1.569017927 | Z139: 1.471785775 | AA139: 1.634731882 | AE139: 1.871276185 | AF139: 1.772739976 | AG139: 1.324039518 | AH139: 1.040617127 | AI139: 1.558511861
A140: CNP | B140: 14 | C140: =IF(ISERROR(D140),"",IF(D140="","",MAX($C$131:C139)+1)) -> 8 | D140: CenterPoint Energy | F140: 2.236510494 | G140: 1.957983193 | H140: 1.783750764 | I140: 1.858262573 | J140: 1.992506812 | K140: 1.740875912 | L140: 1.904673591 | M140: 2.212012516 | N140: 2.184277733 | O140: 2.585049651 | P140: 2.727159572 | Q140: 2.428376196 | R140: 2.271766814 | S140: 2.303636904 | T140: 1.991949911 | U140: 1.867810293 | V140: 1.958300133 | W140: 1.77033848 | X140: 2.489636425 | Y140: 3.129256552 | Z140: 2.751864543 | AA140: 3.057231801 | AE140: 2.3271133 | AF140: 2.475767527 | AG140: 2.054465702 | AH140: 2.072758346 | AI140: 2.979450965
A141: CMS | B141: 18 | C141: =IF(ISERROR(D141),"",IF(D141="","",MAX($C$131:C140)+1)) -> 9 | D141: CMS Energy Corp. | F141: 2.206411065 | G141: 2.548094374 | H141: 2.379619261 | I141: 2.325020113 | J141: 2.705831904 | K141: 2.691090005 | L141: 3.236580621 | M141: 3.282853425 | N141: 2.808402861 | O141: 2.933472856 | P141: 2.722360819 | Q141: 2.433136261 | R141: 2.25704859 | S141: 2.08751926 | T141: 1.906399868 | U141: 1.65662499 | V141: 1.48051832 | W141: 1.104133824 | X141: 1.228626586 | Y141: 1.815452912 | Z141: 1.415636219 | AA141: 1.316209287 | AE141: 3.008243047 | AF141: 2.470848557 | AG141: 1.883514706 | AH141: 1.27109291 | AI141: 1.515766139
A142: ED | B142: 20 | C142: =IF(ISERROR(D142),"",IF(D142="","",MAX($C$131:C141)+1)) -> 10 | D142: Consol. Edison | F142: 1.430894035 | G142: 1.520300752 | H142: 1.528566919 | I142: 1.480816327 | J142: 1.546842828 | K142: 1.335689046 | L142: 1.436523792 | M142: 1.589202658 | N142: 1.493110198 | O142: 1.630119634 | P142: 1.580217155 | Q142: 1.417298972 | R142: 1.340544946 | S142: 1.383903372 | T142: 1.46587376 | U142: 1.378348614 | V142: 1.216477722 | W142: 1.080533231 | X142: 1.165086085 | Y142: 1.472070468 | Z142: 1.469329988 | AA142: 1.517918261 | AE142: 1.57081083 | AF142: 1.446020358 | AG142: 1.409375249 | AH142: 1.154032346 | AI142: 1.486439572
A143: D | B143: 22 | C143: =IF(ISERROR(D143),"",IF(D143="","",MAX($C$131:C142)+1)) -> 11 | D143: Dominion Resources | F143: 2.462698444 | G143: 1.672985782 | H143: 1.711550941 | I143: 1.678059896 | J143: 2.335252719 | K143: 2.365079365 | L143: 2.716357584 | M143: 2.182417707 | N143: 2.398814765 | O143: 2.94321814 | P143: 3.153284044 | Q143: 3.335389396 | R143: 3.549083173 | S143: 2.97018131 | T143: 2.835150458 | U143: 2.372505102 | V143: 2.007503873 | W143: 1.802733119 | X143: 2.424330112 | Y143: 2.69411909 | Z143: 2.072594595 | AA143: 2.49605615 | AE143: 2.508150204 | AF143: 3.345918871 | AG143: 2.725945623 | AH143: 2.078189035 | AI143: 2.420923278
A144: DTE | B144: 23 | C144: =IF(ISERROR(D144),"",IF(D144="","",MAX($C$131:C143)+1)) -> 12 | D144: DTE Energy | F144: 1.69556392 | G144: 2.197773973 | H144: 2.095127195 | I144: 1.973856209 | J144: 2.412081985 | K144: 2.822167817 | L144: 1.799975048 | M144: 2.06519448 | N144: 1.908548072 | O144: 2.009184347 | P144: 1.824130309 | Q144: 1.645416044 | R144: 1.616498045 | S144: 1.50598046 | T144: 1.350452325 | U144: 1.197184459 | V144: 1.156244486 | W144: 0.8886078617 | X144: 1.099496941 | Y144: 1.354965558 | Z144: 1.293406826 | AA144: 1.390549871 | AE144: 1.994308966 | AF144: 1.695348133 | AG144: 1.351205748 | AH144: 1.04811643 | AI144: 1.346307418
A145: DUK | B145: 24 | C145: =IF(ISERROR(D145),"",IF(D145="","",MAX($C$131:C144)+1)) -> 13 | D145: Duke Energy | F145: 1.328692315 | G145: 1.758199847 | H145: 1.668771708 | I145: 1.48744113 | J145: 1.626564786 | K145: 1.575954509 | L145: 1.467611708 | M145: 1.466871456 | N145: 1.330308108 | O145: 1.410216848 | P145: 1.345007591 | Q145: 1.293559392 | R145: 1.279581424 | S145: 1.186296783 | T145: 1.116222176 | U145: 1.11417677 | V145: 1.002910807 | W145: 0.9055403996 | X145: 1.057812342 | Y145: 1.152106193 | Z145: N/A | AA145: N/A | AE145: 1.402465471 | AF145: 1.306049469 | AG145: 1.138898576 | AH145: 0.9887545164 | AI145: 1.152106193
A146: EIX | B146: 25 | C146: =IF(ISERROR(D146),"",IF(D146="","",MAX($C$131:C145)+1)) -> 14 | D146: Edison Int'l | F146: 1.718446148 | G146: 1.676546392 | H146: 2.100608071 | I146: 1.855913381 | J146: 2.078450521 | K146: 1.674870112 | L146: 1.62028321 | M146: 1.803972789 | N146: 1.968038379 | O146: 2.169872421 | P146: 1.917596893 | Q146: 1.756384168 | R146: 1.67977645 | S146: 1.573798439 | T146: 1.525614011 | U146: 1.235831632 | V146: 1.065563159 | W146: 1.042443304 | X146: 1.556829853 | Y146: 2.053246904 | Z146: 1.800388825 | AA146: 1.931340196 | AE146: 1.980627863 | AF146: 1.784585837 | AG146: 1.445081361 | AH146: 1.221612105 | AI146: 1.928325308
A147: EE | B147: 26 | C147: =IF(ISERROR(D147),"",IF(D147="","",MAX($C$131:C146)+1)) -> 15 | D147: El Paso Electric | F147: 1.560857947 | G147: N/A | H147: N/A | I147: N/A | J147: N/A | K147: N/A | L147: N/A | M147: N/A | N147: 1.942268041 | O147: 1.873112319 | P147: 1.681562771 | Q147: 1.480286453 | R147: 1.524867768 | S147: 1.4903157 | T147: 1.590411825 | U147: 1.64175339 | V147: 1.165686069 | W147: 0.9839552692 | X147: 1.330380811 | Y147: 1.685116185 | Z147: 1.705070221 | AA147: 1.757224433 | AE147: 1.90769018 | AF147: 1.562238997 | AG147: 1.574160305 | AH147: 1.160007383 | AI147: 1.715803613
A148: ETR | B148: 28 | C148: =IF(ISERROR(D148),"",IF(D148="","",MAX($C$131:C147)+1)) -> 16 | D148: Entergy Corp. | F148: 1.763571729 | G148: 2.235616438 | H148: 1.810025634 | I148: 1.448326055 | J148: 1.805374593 | K148: 1.74851968 | L148: 1.929055788 | M148: =IFERROR(IF(INDEX(MP_BV_WP,$B148,M$132)=0,"N/A",INDEX(MP_BV_WP,$B148,M$132)),"N/A") -> 2.025303387 | N148: 1.73568329 | O148: 1.759373024 | P148: 1.665514108 | Q148: 1.402844424 | R148: 1.331625891 | S148: 1.213658753 | T148: 1.306292895 | U148: 1.346420278 | V148: 1.621189489 | W148: 1.657284005 | X148: 2.439899218 | Y148: 2.654983544 | Z148: 1.891742892 | AA148: 2.006272928 | AE148: 1.8401199 | AF148: 1.466661474 | AG148: 1.288790642 | AH148: 1.906124237 | AI148: 2.184333122
A149: ES | B149: 29 | C149: =IF(ISERROR(D149),"",IF(D149="","",MAX($C$131:C148)+1)) -> 17 | D149: Eversource Energy | F149: 1.539087978 | G149: 1.36013986 | H149: 1.476109215 | I149: 1.711467324 | J149: 1.858815582 | K149: 1.996933239 | L149: =IFERROR(IF(INDEX(MP_BV_WP,$B149,L$132)=0,"N/A",INDEX(MP_BV_WP,$B149,L$132)),"N/A") -> 2.106494013 | M149: 1.992451746 | N149: 1.679301498 | O149: =IFERROR(IF(INDEX(MP_BV_WP,$B149,O$132)=0,"N/A",INDEX(MP_BV_WP,$B149,O$132)),"N/A") -> 1.730370159 | P149: =IFERROR(IF(INDEX(MP_BV_WP,$B149,P$132)=0,"N/A",INDEX(MP_BV_WP,$B149,P$132)),"N/A") -> 1.636748218 | Q149: =IFERROR(IF(INDEX(MP_BV_WP,$B149,Q$132)=0,"N/A",INDEX(MP_BV_WP,$B149,Q$132)),"N/A") -> 1.531482673 | R149: 1.468926733 | S149: 1.383684314 | T149: 1.275873793 | U149: 1.504503311 | V149: 1.305106718 | W149: 1.121287979 | X149: 1.311113404 | Y149: 1.598005576 | Z149: 1.223226589 | AA149: 1.04880559 | AE149: =IFERROR(AVERAGE(M149:O149),"N/A") -> 1.800707801 | AF149: 1.545719208 | AG149: 1.388020473 | AH149: 1.245836034 | AI149: 1.290012585
A150: EVRG | B150: =MATCH(A150,OFFSET(MP_BV_WP,0,0,,1),0) ->  | C150: =IF(ISERROR(D150),"",IF(D150="","",MAX($C$131:C149)+1)) -> 18 | D150: Evergy, Inc. | F150: 1.418047433 | G150: 1.424972618 | H150: 1.306700437 | I150: 1.334997622 | J150: 1.519350215 | K150: 1.50421627 | L150: N/A | M150: N/A | N150: N/A | O150: N/A | P150: N/A | Q150: =IFERROR(IF(INDEX(MP_BV_WP,$B150,Q$132)=0,"N/A",INDEX(MP_BV_WP,$B150,Q$132)),"N/A") -> N/A | R150: N/A | S150: N/A | T150: N/A | U150: N/A | V150: N/A | W150: N/A | X150: N/A | Y150: N/A | Z150: N/A | AA150: N/A | AE150: =IFERROR(AVERAGE(M150:O150),"N/A") -> N/A | AF150: N/A | AG150: N/A | AH150: N/A | AI150: N/A
A151: =A30 -> EXC | B151: =MATCH(A151,OFFSET(MP_BV_WP,0,0,,1),0) -> 30 | C151: =IF(ISERROR(D151),"",IF(D151="","",MAX($C$131:C150)+1)) -> 19 | D151: =D30 -> Exelon Corp. | F151: 2.018267795 | G151: 1.563302752 | H151: 1.390444196 | I151: 1.522498061 | J151: 1.876255524 | K151: 1.372046684 | L151: 1.198586234 | M151: 1.431336433 | N151: 1.308890637 | O151: 1.202884522 | P151: 1.202603626 | Q151: 1.139275269 | R151: 1.279351919 | S151: 1.170236838 | T151: 1.460992342 | U151: 1.954346322 | V151: 2.07209098 | W151: 2.572368078 | X151: 4.389991063 | Y151: 4.787404655 | Z151: 3.885679742 | AA151: 3.603037827 | AE151: =IFERROR(AVERAGE(M151:O151),"N/A") -> 1.314370531 | AF151: 1.207076938 | AG151: 1.528525168 | AH151: 3.011483374 | AI151: 4.092040741
A152: FE | B152: =MATCH(A152,OFFSET(MP_BV_WP,0,0,,1),0) -> 31 | C152: =IF(ISERROR(D152),"",IF(D152="","",MAX($C$131:C151)+1)) -> 20 | D152: FirstEnergy Corp. | F152: 2.038254474 | G152: 1.824719101 | H152: 1.861111111 | I152: 2.07760044 | J152: 2.366347777 | K152: 2.333990796 | L152: 2.809305816 | M152: 3.390977444 | N152: 2.673170361 | O152: 3.533696392 | P152: 2.368629953 | Q152: 1.160954817 | R152: 1.146707805 | S152: 1.278844251 | T152: 1.436215439 | U152: 1.325628267 | V152: 1.36201484 | W152: 1.540050575 | X152: 2.521639923 | Y152: 2.233590275 | Z152: 1.920296767 | AA152: 1.637851809 | AE152: 3.199281399 | AF152: 1.558764191 | AG152: 1.346895986 | AH152: 1.80790178 | AI152: 1.930579617
A153: FTS.TO | B153: 32 | C153: =IF(ISERROR(D153),"",IF(D153="","",MAX($C$131:C152)+1)) -> 21 | D153: Fortis Inc. | F153: 1.458005688 | G153: 1.268965517 | H153: 1.374073188 | I153: 1.425840979 | J153: 1.558726674 | K153: 1.48212846 | L153: 1.466440659 | M153: 1.41107001 | N153: 1.236981262 | O153: 1.407282684 | P153: 1.263468977 | Q153: 1.326940544 | R153: 1.346254268 | S153: 1.454078442 | T153: 1.593262633 | U153: 1.592587181 | V153: 1.557068229 | W153: 1.330712478 | X153: 1.476031772 | Y153: 1.627122698 | Z153: 1.961077111 | AA153: N/A | AE153: 1.351777985 | AF153: 1.312221263 | AG153: 1.546642752 | AH153: 1.45460416 | AI153: 1.794099905
A154: GXP | B154: 34 | C154: =IF(ISERROR(D154),"",IF(D154="","",MAX($C$131:C153)+1)) -> 22 | D154: Great Plains Energy | F154: 1.209766224 | G154: N/A | H154: N/A | I154: N/A | J154: N/A | K154: N/A | L154: N/A | M154: N/A | N154: N/A | O154: 1.333622937 | P154: 1.170555174 | Q154: 1.120349647 | R154: 1.111598315 | S154: 1.017758292 | T154: 0.9639623075 | U154: 0.9259463686 | V154: 0.870209264 | W154: 0.8008341012 | X154: 1.114363194 | Y154: 1.663348367 | Z154: 1.774983534 | AA154: 1.859429409 | AE154: 1.333622937 | AF154: 1.134167712 | AG154: 0.9692223228 | AH154: 0.9284688532 | AI154: 1.765920437
A155: HE | B155: 35 | C155: =IF(ISERROR(D155),"",IF(D155="","",MAX($C$131:C154)+1)) -> 23 | D155: Hawaiian Elec. | F155: 1.618757739 | G155: 1.052356021 | H155: 1.503496503 | I155: 1.240018788 | J155: 1.935884692 | K155: 1.806127115 | L155: 1.81587183 | M155: 2.022747909 | N155: 1.764892492 | O155: 1.760217842 | P155: 1.630976148 | Q155: 1.706098785 | R155: 1.49118287 | S155: 1.539927298 | T155: 1.622511674 | U155: 1.542787286 | V155: 1.435473577 | W155: 1.155499936 | X155: 1.614462541 | Y155: 1.566494407 | Z155: 2.01100781 | AA155: 1.775876989 | AE155: 1.849286081 | AF155: 1.609419267 | AG155: 1.568408753 | AH155: 1.401812018 | AI155: 1.784459735
A156: H.TO | B156: =MATCH(A156,OFFSET(MP_BV_WP,0,0,,1),0) -> 36 | C156: =IF(ISERROR(D156),"",IF(D156="","",MAX($C$131:C155)+1)) -> 24 | D156: Hydro One Limited3 | F156: 1.620971248 | G156: 2.007281553 | H156: 2.121212121 | I156: 1.889460154 | J156: 1.827842721 | K156: =IFERROR(IF(VLOOKUP(A156,lucyyr,18,FALSE)=0,"",VLOOKUP(A156,lucyyr,18,FALSE)),"N/A") -> 1.637265711 | L156: 1.443621868 | M156: 1.47284345 | N156: 1.342259961 | O156: 1.407588739 | P156: 1.510254817 | Q156: 1.171052632 | R156: N/A | S156: N/A | T156: N/A | U156: N/A | V156: N/A | W156: N/A | X156: N/A | Y156: N/A | Z156: N/A | AA156: N/A | AE156: =IFERROR(AVERAGE(M156:O156),"N/A") -> 1.40756405 | AF156: =IFERROR(AVERAGE(P156:R156),"N/A") -> 1.340653724 | AG156: =IFERROR(AVERAGE(S156:U156),"N/A") -> N/A | AH156: =IFERROR(AVERAGE(V156:X156),"N/A") -> N/A | AI156: =IFERROR(AVERAGE(Y156:AA156),"N/A") -> N/A
A157: IDA | B157: 37 | C157: =IF(ISERROR(D157),"",IF(D157="","",MAX($C$131:C156)+1)) -> 25 | D157: IDACORP, Inc. | F157: 1.532708974 | G157: 1.691672918 | H157: 1.675036449 | I157: 1.750522284 | J157: 1.912824207 | K157: 1.884702764 | L157: 1.837890048 | M157: 2.103903277 | N157: 1.95818089 | O157: 1.942288312 | P157: 1.75713049 | Q157: 1.535360454 | R157: 1.453106501 | S157: 1.328836654 | T157: 1.192642236 | U157: 1.167937321 | V157: 1.125084647 | W157: 0.9227737026 | X157: 1.093591268 | Y157: 1.263063601 | Z157: 1.374446946 | AA157: 1.215893489 | AE157: 2.001457493 | AF157: 1.581865815 | AG157: 1.229805404 | AH157: 1.047149873 | AI157: 1.284468012
A158: MGEE | B158: =MATCH(A158,OFFSET(MP_BV_WP,0,0,,1),0) -> 41 | C158: =IF(ISERROR(D158),"",IF(D158="","",MAX($C$131:C157)+1)) -> 26 | D158: MGE Energy | F158: 2.188257511 | G158: 2.497229917 | H158: 2.537822605 | I158: 2.353314304 | J158: 2.474088933 | K158: =IFERROR(IF(VLOOKUP(A158,lucyyr,18,FALSE)=0,"",VLOOKUP(A158,lucyyr,18,FALSE)),"N/A") -> N/A | L158: 2.543999407 | M158: 2.884409691 | N158: 2.590635082 | O158: 2.87726645 | P158: 2.599348846 | Q158: 2.097559751 | R158: 2.096898002 | S158: 2.063271951 | T158: 1.917723791 | U158: 1.752611705 | V158: 1.648639725 | W158: 1.540800111 | X158: 1.621497342 | Y158: 1.747959969 | Z158: 1.827646911 | AA158: 2.092425729 | AE158: 2.784103741 | AF158: 2.2646022 | AG158: 1.911202483 | AH158: 1.603645726 | AI158: 1.889344203
A159: NEE | B159: =MATCH(A159,OFFSET(MP_BV_WP,0,0,,1),0) -> 44 | C159: =IF(ISERROR(D159),"",IF(D159="","",MAX($C$131:C158)+1)) -> 27 | D159: NextEra Energy, Inc. | F159: 2.420817595 | G159: 2.648752399 | H159: 2.873563218 | I159: 2.890185906 | J159: 4.072948328 | K159: =IFERROR(IF(VLOOKUP(A159,lucyyr,18,FALSE)=0,"",VLOOKUP(A159,lucyyr,18,FALSE)),"N/A") -> 4.274406332 | L159: 3.579311826 | M159: 2.746709657 | N159: 2.31556551 | O159: 2.3500334 | P159: 2.302153846 | Q159: 2.090795842 | R159: 2.149275975 | S159: 1.929999277 | T159: 1.736779607 | U159: 1.547896773 | V159: 1.493800931 | W159: 1.698883573 | X159: 2.063397045 | Y159: 2.344729453 | Z159: 1.800318445 | AA159: 1.927662145 | AE159: 2.470769522 | AF159: 2.180741888 | AG159: 1.738225219 | AH159: 1.752027183 | AI159: 2.024236681
A160: NWE | B160: 47 | C160: =IF(ISERROR(D160),"",IF(D160="","",MAX($C$131:C159)+1)) -> 28 | D160: NorthWestern Corp | F160: 1.408376989 | G160: 1.16350211 | H160: 1.112660944 | I160: 1.178540018 | J160: 1.253082269 | K160: 1.432532348 | L160: 1.451251855 | M160: 1.73733175 | N160: 1.47735634 | O160: 1.635827204 | P160: 1.679862753 | Q160: 1.603016437 | R160: 1.54112829 | S160: 1.559151912 | T160: 1.415517654 | U160: 1.34854947 | V160: 1.218743099 | W160: 1.066193962 | X160: 1.154910357 | Y160: 1.481983048 | Z160: 1.646312527 | AA160: 1.418462434 | AE160: 1.616838431 | AF160: 1.608002493 | AG160: 1.441073012 | AH160: 1.146615806 | AI160: 1.515586003
A161: OGE | B161: 48 | C161: =IF(ISERROR(D161),"",IF(D161="","",MAX($C$131:C160)+1)) -> 29 | D161: OGE Energy | F161: 1.814831225 | G161: 1.816842105 | H161: 1.672496721 | I161: 1.617050068 | J161: 1.735763098 | K161: 1.672422299 | L161: 1.861763085 | M161: 2.05737903 | N161: 1.746759075 | O161: 1.824310309 | P161: 1.732676138 | Q161: 1.79495647 | R161: 2.222727552 | S161: 2.243398693 | T161: 1.937232219 | U161: 1.896823574 | V161: 1.696845695 | W161: 1.369676806 | X161: 1.523020803 | Y161: 1.982632441 | Z161: 1.905151825 | AA161: 1.801527723 | AE161: 1.876149471 | AF161: 1.91678672 | AG161: 2.025818162 | AH161: 1.529847768 | AI161: 1.89643733
A162: OTTR | B162: 50 | C162: =IF(ISERROR(D162),"",IF(D162="","",MAX($C$131:C161)+1)) -> 30 | D162: Otter Tail Corp. | F162: 1.93683305 | G162: 1.859171598 | H162: 2.182251191 | I162: 2.5492862 | J162: 2.297619048 | K162: 2.33011745 | L162: 2.040043805 | M162: 2.621479959 | N162: 2.493796256 | O162: 2.329397741 | P162: 1.897181445 | Q162: 1.77637342 | R162: 1.897394243 | S162: 1.962292302 | T162: 1.582386364 | U162: 1.349864173 | V162: 1.191972673 | W162: 1.177694969 | X162: 1.711740425 | Y162: 1.928949917 | Z162: 1.759104818 | AA162: 1.735376045 | AE162: 2.481557985 | AF162: 1.856983036 | AG162: 1.63151428 | AH162: 1.360469356 | AI162: 1.80781026
A163: PNW | B163: 53 | C163: =IF(ISERROR(D163),"",IF(D163="","",MAX($C$131:C162)+1)) -> 31 | D163: Pinnacle West Capital | F163: 1.425729296 | G163: 1.534482759 | H163: 1.415976018 | I163: 1.419129796 | J163: 1.305893358 | K163: 1.447569843 | L163: 1.628442754 | M163: 1.912608696 | N163: 1.736301002 | O163: 1.906477389 | P163: 1.715957817 | Q163: 1.5218865 | R163: 1.43983392 | S163: 1.467860989 | T163: 1.38697826 | U163: 1.248170592 | V163: 1.14277699 | W163: 0.9499571761 | X163: 0.9971893664 | Y163: 1.257533077 | Z163: 1.258854242 | AA163: 1.246434667 | AE163: 1.851795696 | AF163: 1.559226079 | AG163: 1.367669947 | AH163: 1.029974511 | AI163: 1.254273995
A164: TXNM | B164: 54 | C164: =IF(ISERROR(D164),"",IF(D164="","",MAX($C$131:C163)+1)) -> 32 | D164: TXNM Energy | F164: 1.39311043 | G164: 1.756944444 | H164: 1.486344538 | I164: 1.747311828 | J164: 1.814800313 | K164: 1.859405941 | L164: 1.87163379 | M164: 2.28004745 | N164: 1.831627117 | O164: 1.842644364 | P164: 1.555228137 | Q164: 1.329915764 | R164: 1.209414497 | S164: 1.0900508 | T164: 0.9783986031 | U164: 0.8001121533 | V164: 0.6943797238 | W164: 0.5552087191 | X164: 0.6599798867 | Y164: 1.229711329 | Z164: 1.212475104 | AA164: 1.449684526 | AE164: 1.984772977 | AF164: 1.364852799 | AG164: 0.9561871856 | AH164: 0.6365227766 | AI164: 1.29729032
A165: POR | B165: 55 | C165: =IF(ISERROR(D165),"",IF(D165="","",MAX($C$131:C164)+1)) -> 33 | D165: Portland General | F165: 1.354367236 | G165: 1.194444444 | H165: 1.280979827 | I165: 1.365437367 | J165: 1.583681336 | K165: 1.550528402 | L165: 1.566151527 | M165: 1.839646726 | N165: 1.555409112 | O165: 1.692006934 | P165: 1.562061245 | Q165: 1.421038144 | R165: 1.366996889 | S165: 1.282549903 | T165: 1.142982073 | U165: 1.093080165 | V165: 0.9424232389 | W165: 0.9197639255 | X165: 1.046815787 | Y165: 1.322056448 | Z165: 1.359291222 | AA165: =IFERROR(IF(INDEX(MP_BV_WP,$B165,AA$132)=0,"N/A",INDEX(MP_BV_WP,$B165,AA$132)),"N/A") -> N/A | AE165: 1.695687591 | AF165: 1.450032093 | AG165: 1.172870714 | AH165: 0.9696676505 | AI165: 1.340673835
A166: PPL | B166: 56 | C166: =IF(ISERROR(D166),"",IF(D166="","",MAX($C$131:C165)+1)) -> 34 | D166: PPL Corp. | F166: 1.958332596 | G166: 1.652068127 | H166: 1.586261143 | I166: 1.425925926 | J166: 1.442562202 | K166: 1.523835029 | L166: 1.634889604 | M166: 1.860264588 | N166: 1.80640178 | O166: 2.399703589 | P166: 2.457872691 | Q166: 2.240421196 | R166: 1.636878878 | S166: 1.545633817 | T166: 1.577044811 | U166: 1.466132479 | V166: 1.608513895 | W166: 2.097796994 | X166: 3.188283901 | Y166: 3.050050386 | Z166: 2.427196873 | AA166: 2.497246601 | AE166: 2.022123319 | AF166: 2.111724255 | AG166: 1.529603702 | AH166: 2.298198264 | AI166: 2.65816462
A167: PEG | B167: 57 | C167: =IF(ISERROR(D167),"",IF(D167="","",MAX($C$131:C166)+1)) -> 35 | D167: Public Serv. Enterprise | F167: 1.978282184 | G167: 2.454814815 | H167: 2.348578492 | I167: 1.917631918 | J167: 2.31897176 | K167: 2.109947644 | L167: 1.69660087 | M167: 1.96723228 | N167: 1.81013812 | O167: 1.676841721 | P167: 1.670050371 | Q167: 1.583974632 | R167: 1.565652372 | S167: 1.441364884 | T167: 1.464310855 | U167: 1.592541505 | V167: 1.671936551 | W167: 1.780285583 | X167: 2.576870483 | Y167: 2.985159897 | Z167: 2.460570658 | AA167: 2.45045045 | AE167: 1.818070707 | AF167: 1.606559125 | AG167: 1.499405748 | AH167: 2.009697539 | AI167: 2.632060335
A168: SCG | B168: 58 | C168: =IF(ISERROR(D168),"",IF(D168="","",MAX($C$131:C167)+1)) -> 36 | D168: SCANA Corp. | F168: 1.508192976 | G168: N/A | H168: N/A | I168: N/A | J168: N/A | K168: N/A | L168: N/A | M168: N/A | N168: N/A | O168: 1.652606945 | P168: 1.744028156 | Q168: 1.466920452 | R168: 1.483217444 | S168: 1.478505351 | T168: 1.481456764 | U168: 1.355976355 | V168: 1.326872762 | W168: 1.199196555 | X168: 1.445441535 | Y168: 1.615205739 | Z168: 1.637097766 | AA168: 1.719982866 | AE168: 1.652606945 | AF168: 1.564722017 | AG168: 1.438646157 | AH168: 1.323836951 | AI168: =IFERROR(AVERAGE(Y168:AA168),"N/A") -> 1.65742879
A169: SRE | B169: 59 | C169: =IF(ISERROR(D169),"",IF(D169="","",MAX($C$131:C168)+1)) -> 37 | D169: Sempra Energy | F169: 1.780383338 | G169: 1.579223505 | H169: 1.73959674 | I169: 1.654545455 | J169: 1.835071317 | K169: 1.639509915 | L169: 1.841004065 | M169: 2.21691401 | N169: 2.05703562 | O169: 2.235071222 | P169: 1.996059646 | Q169: 2.169175778 | R169: 2.202418495 | S169: 1.844659116 | T169: 1.526601136 | U169: 1.283223179 | V169: 1.348640226 | W169: 1.319968252 | X169: 1.596042869 | Y169: 1.872262316 | Z169: 1.697654941 | AA169: 1.733372302 | AE169: 2.169673617 | AF169: 2.122551307 | AG169: 1.551494477 | AH169: 1.421550449 | AI169: 1.767763186
A170: SO | B170: 63 | C170: =IF(ISERROR(D170),"",IF(D170="","",MAX($C$131:C169)+1)) -> 38 | D170: Southern Co. | F170: 2.175292962 | G170: 2.741732283 | H170: 2.683417085 | I170: 2.3351839 | J170: 2.529538131 | K170: 2.3878327 | L170: 2.198549685 | M170: 2.134448955 | N170: 1.889399958 | O170: 2.072295184 | P170: 2.010400832 | Q170: 1.992827415 | R170: 2.022297051 | S170: 2.039576236 | T170: 2.148636471 | U170: 1.988876858 | V170: 1.829950031 | W170: 1.728074041 | X170: 2.12422433 | Y170: 2.240911892 | Z170: 2.231147864 | AA170: 2.351831299 | AE170: 2.032048032 | AF170: 2.008508433 | AG170: 2.059029855 | AH170: 1.894082801 | AI170: 2.274630351
A171: VVC | B171: 71 | C171: =IF(ISERROR(D171),"",IF(D171="","",MAX($C$131:C170)+1)) -> 39 | D171: Vectren Corp. | F171: 1.834550763 | G171: N/A | H171: N/A | I171: N/A | J171: N/A | K171: N/A | L171: N/A | M171: N/A | N171: N/A | O171: 2.746465598 | P171: 2.292948237 | Q171: 2.106313926 | R171: 2.075321337 | S171: 1.818533637 | T171: 1.569266401 | U171: 1.530065944 | V171: 1.406313877 | W171: 1.339331321 | X171: 1.640489179 | Y171: 1.73677044 | Z171: 1.765456902 | AA171: 1.821883121 | AE171: 2.746465598 | AF171: 2.1581945 | AG171: 1.639288661 | AH171: 1.462044792 | AI171: 1.774703488
A172: WEC | B172: 72 | C172: =IF(ISERROR(D172),"",IF(D172="","",MAX($C$131:C171)+1)) -> 40 | D172: WEC Energy Group | F172: 2.094692344 | G172: 2.492628993 | H172: 2.274354385 | I172: 2.346308725 | J172: 2.573449402 | K172: 2.608381503 | L172: 2.841673948 | M172: 2.622356684 | N172: 2.106433729 | O172: 2.095960775 | P172: 2.086805924 | Q172: 1.820871024 | R172: 2.340493928 | S172: 2.211391662 | T172: 2.050958236 | U172: 1.806455365 | V172: 1.653959666 | W172: 1.399803343 | X172: 1.568255081 | Y172: 1.7651498 | Z172: 1.706696899 | AA172: 1.616150153 | AE172: 2.274917063 | AF172: 2.082723625 | AG172: 2.022935088 | AH172: 1.540672696 | AI172: 1.69599895
A173: WR | B173: 73 | C173: =IF(ISERROR(D173),"",IF(D173="","",MAX($C$131:C172)+1)) -> 41 | D173: Westar Energy | F173: 1.369913967 | G173: N/A | H173: N/A | I173: N/A | J173: N/A | K173: N/A | L173: N/A | M173: N/A | N173: N/A | O173: 1.936363636 | P173: 1.954249097 | Q173: 1.490935096 | R173: 1.442486011 | S173: 1.334394238 | T173: 1.261203809 | U173: 1.200717171 | V173: 1.097454237 | W173: 0.9293694744 | X173: 1.100921522 | Y173: 1.355870213 | Z173: 1.299630996 | AA173: 1.405286073 | AE173: 1.936363636 | AF173: 1.629223401 | AG173: 1.265438406 | AH173: 1.042581745 | AI173: 1.353595761
A174: XEL | B174: 75 | C174: =IF(ISERROR(D174),"",IF(D174="","",MAX($C$131:C173)+1)) -> 42 | D174: Xcel Energy Inc. | F174: 1.741602302 | G174: 1.893854749 | H174: 1.768167108 | I174: 1.995904222 | J174: 2.218193804 | K174: 2.266550523 | L174: 2.456801504 | M174: 2.336503031 | N174: 1.966774614 | O174: 2.059086879 | P174: =IFERROR(IF(INDEX(MP_BV_WP,$B174,P$132)=0,"N/A",INDEX(MP_BV_WP,$B174,P$132)),"N/A") -> 1.879096097 | Q174: 1.662708862 | R174: 1.551913651 | S174: 1.49531494 | T174: 1.507753217 | U174: 1.405047319 | V174: 1.315173936 | W174: 1.185375966 | X174: 1.302098267 | Y174: 1.529908132 | Z174: 1.399103767 | AA174: 1.378317757 | AE174: 2.120788175 | AF174: 1.697906203 | AG174: 1.469371825 | AH174: 1.26754939 | AI174: 1.435776552
C175: =IF(ISERROR(D175),"",IF(D175="","",MAX($C$131:C174)+1)) -> 
C176: =IF(ISERROR(D176),"",IF(D176="","",MAX($C$131:C175)+1)) -> 43 | D176: Average | F176: =AVERAGE(G176:AD176) -> 1.737612724 | G176: =AVERAGE(G133:G175) -> 1.796450261 | H176: =AVERAGE(H133:H175) -> 1.775341412 | I176: 1.726229828 | J176: 1.951639151 | K176: 1.909100262 | L176: 1.941285804 | M176: 2.079479268 | N176: 1.874162954 | O176: 1.991662198 | P176: 1.849355826 | Q176: 1.65788718 | R176: 1.686853809 | S176: 1.601530366 | T176: 1.516323401 | U176: 1.430067827 | V176: 1.345875832 | W176: 1.250322635 | X176: 1.630390297 | Y176: 1.899058912 | Z176: 1.776216561 | AA176: 1.800633426 | AE176: =AVERAGE(AE133:AE175) -> 1.976497898 | AF176: =AVERAGE(AF133:AF175) -> 1.721146203 | AG176: =AVERAGE(AG133:AG175) -> 1.515973865 | AH176: =AVERAGE(AH133:AH175) -> 1.408862921 | AI176: =AVERAGE(AI133:AI175) -> 1.810438601
C177: =IF(ISERROR(D177),"",IF(D177="","",MAX($C$131:C176)+1)) -> 44 | D177: Median | F177: =MEDIAN(G177:AD177) -> 1.711467324 | G177: =MEDIAN(G133:G175) -> 1.757572146 | H177: =MEDIAN(H133:H175) -> 1.72557384 | I177: 1.711467324 | J177: 1.876255524 | K177: 1.744697796 | L177: 1.839447056 | M177: 2.041341209 | N177: 1.831627117 | O177: 1.906477389 | P177: 1.744028156 | Q177: 1.553753259 | R177: 1.54112829 | S177: 1.49531494 | T177: 1.46587376 | U177: 1.355976355 | V177: 1.314478424 | W177: 1.150950542 | X177: 1.476031772 | Y177: 1.685116185 | Z177: 1.70588356 | AA177: 1.726677584 | AE177: =MEDIAN(AE133:AE175) -> 1.936363636 | AF177: =MEDIAN(AF133:AF175) -> 1.608002493 | AG177: =MEDIAN(AG133:AG175) -> 1.445081361 | AH177: =MEDIAN(AH133:AH175) -> 1.27109291 | AI177: =MEDIAN(AI133:AI175) -> 1.715803613
D179: Sources:
E180: =E59 -> The current year P/E ratio is based on the forward P/E (price over expected earnings per share). All historical year P/E ratios are based on annual average share price over
E181: =E60 -> achieved earnings per share.
D182: 1 | E182: =E121 -> Data for years 2019 and prior were retrieved from the Value Line Investment Survey Investment Analyzer Software, downloaded on June 18, 2021.
E183: Data for the years 2020 - 2024 was retrieved from Value Line Investment Surveys.
D184: 2 | E184: ="The Value Line Investment Survey, "&'2025 Data (WP)'!$D$1 -> The Value Line Investment Survey, May 9, June 6, and July 18, 2025.
D186: Notes:
D187: b | E187: Based on the average of the high and low price and the projected Book Value per share.

Sheet MPG-2, pg 4
C1: =ElectricU -> Kentucky Utilities Company / Louisville Gas & Electric Company
C3: Electric Utilities
C4: (Valuation Metrics)
F7: Dividend Yield1
A8: Ticker | B8: Match | F8: 20-Year | H8: 2024 | I8: 2023 | J8: 2022 | K8: 2021 | L8: 2020 | M8: 2019 | N8: 2018 | O8: 2017 | P8: 2016 | Q8: 2015 | R8: 2014 | S8: 2013 | T8: 2012 | U8: 2011 | V8: 2010 | W8: 2009 | X8: 2008 | Y8: 2007 | Z8: 2006 | AA8: 3-Year Averages
A9: Lookup: | B9: Row | C9: Line | D9: Company | F9: Average | G9: 2025 2/a | H9: 2024 | I9: 2023 | J9: 2022 | K9: 2021 | L9: 2020 | M9: 2019 | N9: 2018 | O9: 2017 | P9: 2016 | Q9: 2015 | R9: 2014 | S9: 2013 | T9: 2012 | U9: 2011 | V9: 2010 | W9: 2009 | X9: 2008 | Y9: 2007 | Z9: 2006 | AA9: 2018-2020 | AB9: 2015-2017 | AC9: 2012-2014 | AD9: 2009-2011 | AE9: 2006-2008
K10: 2021 | L10: 2020 | M10: 2019 | N10: 2018 | O10: 2017 | P10: 2016 | Q10: 2015 | R10: 2014 | S10: 2013 | T10: 2012 | U10: 2011 | V10: 2010 | W10: 2009 | X10: 2008 | Y10: 2007 | Z10: 2006
F11: -1 | G11: =+F11-1 -> -2 | H11: -3 | I11: -4 | J11: =+I11-1 -> -5 | K11: =+J11-1 -> -6 | AA11: =MIN($F$10:Z11)-1 -> -7 | AB11: =MIN($F$10:AA11)-1 -> -8 | AC11: =MIN($F$10:AB11)-1 -> -9 | AD11: =MIN($F$10:AC11)-1 -> -10 | AE11: =MIN($F$10:AD11)-1 -> -11
D12: 2 | L12: =MATCH(L9,OFFSET(DIV_MP_WP,-1,0,1,),0) -> 6 | M12: 7 | N12: 8 | O12: 9 | P12: 10 | Q12: 11 | R12: 12 | S12: 13 | T12: 14 | U12: 15 | V12: 16 | W12: 17 | X12: 18 | Y12: 19 | Z12: 20
A13: ALE | B13: =IFERROR(MATCH(A13,OFFSET(DIV_MP_WP,0,0,,1),0),"") -> 2 | C13: =IF(ISERROR(D13),"",IF(D13="","",MAX($C$12:C12)+1)) -> 1 | D13: =VLOOKUP(A13,LUCurYr,2,FALSE) -> ALLETE | F13: =IFERROR(AVERAGE(G13:Z13),"N/A") -> 0.04068798328 | G13: =IFERROR(IF(VLOOKUP($A13,Data2025,24,FALSE)=0,"",VLOOKUP($A13,Data2025,24,FALSE)),"N/A") -> 0.04519600307 | H13: =IFERROR(IF(VLOOKUP($A13,Data2024,24,FALSE)=0,"",VLOOKUP($A13,Data2024,24,FALSE)),"N/A") -> 0.04630541872 | I13: =IFERROR(IF(VLOOKUP($A13,Data2023,24,FALSE)=0,"",VLOOKUP($A13,Data2023,24,FALSE)),"N/A") -> 0.04672413793 | J13: =IFERROR(IF(VLOOKUP($A13,Data2022,22,FALSE)=0,"",VLOOKUP($A13,Data2022,22,FALSE)),"N/A") -> 0.04467353952 | K13: =IFERROR(IF(VLOOKUP(A13,lucyyr,22,FALSE)=0,"",VLOOKUP(A13,lucyyr,22,FALSE)),"N/A") -> 0.03879907621 | L13: =IFERROR(IF(INDEX(DIV_MP_WP,$B13,L$12)=0,"N/A",INDEX(DIV_MP_WP,$B13,L$12)),"N/A") -> 0.04032587223 | M13: 0.02851941748 | N13: 0.02989736129 | O13: 0.02966700862 | P13: 0.03555312457 | Q13: 0.03969345647 | R13: =IFERROR(IF(INDEX(DIV_MP_WP,$B13,R$12)=0,"N/A",INDEX(DIV_MP_WP,$B13,R$12)),"N/A") -> 0.03922824434 | S13: 0.03885242214 | T13: 0.04490652609 | U13: 0.04581134989 | V13: 0.05030439878 | W13: 0.05790997631 | X13: 0.04373029594 | Y13: 0.03602337126 | Z13: 0.03163866463 | AA13: =IFERROR(AVERAGE(L13:N13),"N/A") -> 0.032914217 | AB13: =IFERROR(AVERAGE(O13:Q13),"N/A") -> 0.03497119656 | AC13: =IFERROR(AVERAGE(R13:T13),"N/A") -> 0.04099573086 | AD13: =IFERROR(AVERAGE(U13:W13),"N/A") -> 0.05134190833 | AE13: =IFERROR(AVERAGE(X13:Z13),"N/A") -> 0.03713077728
A14: LNT | B14: 3 | C14: =IF(ISERROR(D14),"",IF(D14="","",MAX($C$12:C13)+1)) -> 2 | D14: Alliant Energy | F14: =IFERROR(AVERAGE(G14:Z14),"N/A") -> 0.03586129067 | G14: 0.0332247557 | H14: 0.03459459459 | I14: 0.03566502463 | J14: 0.03037300178 | K14: 0.0297322253 | L14: 0.02898053347 | M14: 0.02880792015 | N14: 0.03197098752 | O14: 0.03074220466 | P14: 0.03206434608 | Q14: 0.03601715726 | R14: 0.03530633437 | S14: 0.03740697998 | T14: 0.04070740422 | U14: 0.04277805737 | V14: 0.04606413994 | W14: 0.05725627911 | X14: 0.04103165299 | Y14: 0.03131318112 | Z14: 0.03318903319 | AA14: =IFERROR(AVERAGE(L14:N14),"N/A") -> 0.02991981371 | AB14: =IFERROR(AVERAGE(O14:Q14),"N/A") -> 0.032941236 | AC14: =IFERROR(AVERAGE(R14:T14),"N/A") -> 0.03780690619 | AD14: 0.04869949214 | AE14: =IFERROR(AVERAGE(X14:Z14),"N/A") -> 0.03517795577
A15: AEE | B15: 6 | C15: =IF(ISERROR(D15),"",IF(D15="","",MAX($C$12:C14)+1)) -> 3 | D15: Ameren Corp. | F15: 0.04015535221 | G15: 0.02985856469 | H15: 0.03294406884 | I15: 0.0313238036 | J15: 0.02736231884 | K15: 0.02739726027 | L15: 0.02570165519 | M15: 0.02594629657 | N15: 0.03043929436 | O15: 0.03116564417 | P15: 0.03498001142 | Q15: 0.03963312419 | R15: 0.04015463275 | S15: 0.04612945077 | T15: 0.04972495882 | U15: 0.05275299386 | V15: 0.05758516247 | W15: 0.05981744028 | X15: 0.06208599154 | Y15: 0.04884615385 | Z15: 0.04925821778 | AA15: 0.02736241537 | AB15: 0.03525959326 | AC15: 0.04533634745 | AD15: 0.0567185322 | AE15: 0.05339678772
A16: AEP | B16: 7 | C16: =IF(ISERROR(D16),"",IF(D16="","",MAX($C$12:C15)+1)) -> 4 | D16: American Electric Power | F16: 0.03959515052 | G16: 0.0379241517 | H16: 0.03957871397 | I16: 0.04019081694 | J16: 0.03410435718 | K16: 0.03607937462 | L16: 0.03283236994 | M16: 0.03102390329 | N16: 0.03595997498 | O16: 0.0341570079 | P16: 0.0354045792 | Q16: 0.03797848475 | R16: 0.03828382838 | S16: 0.04230760886 | T16: 0.04582459903 | U16: 0.04959386645 | V16: 0.04902241844 | W16: 0.05504279241 | X16: 0.04199636373 | Y16: 0.03395950651 | Z16: 0.04063829211 | AA16: 0.03327208274 | AB16: 0.03584669062 | AC16: 0.04213867876 | AD16: 0.05121969243 | AE16: 0.03886472078
A17: AGR | B17: 10 | C17: =IF(ISERROR(D17),"",IF(D17="","",MAX($C$12:C16)+1)) -> 5 | D17: Avangrid, Inc. | F17: 0.03886934348 | G17: N/A | H17: N/A | I17: 0.04868603043 | J17: 0.03941769317 | K17: 0.03534136546 | L17: 0.03694762255 | M17: 0.03515921531 | N17: 0.03486535655 | O17: 0.03794966399 | P17: 0.04258780037 | Q17: N/A | R17: N/A | S17: N/A | T17: N/A | U17: N/A | V17: N/A | W17: N/A | X17: N/A | Y17: N/A | Z17: N/A | AA17: 0.03565739814 | AB17: 0.04026873218 | AC17: N/A | AD17: N/A | AE17: N/A
A18: AVA | B18: 11 | C18: =IF(ISERROR(D18),"",IF(D18="","",MAX($C$12:C17)+1)) -> 6 | D18: Avista Corp. | F18: 0.03992173529 | G18: 0.0513478819 | H18: 0.0528511822 | I18: 0.04854881266 | J18: 0.04261501211 | K18: 0.03939393939 | L18: 0.04026545373 | M18: 0.03483380902 | N18: 0.02932839934 | O18: 0.03137478608 | P18: 0.03390333837 | Q18: 0.03967538323 | R18: 0.03993836284 | S18: 0.0450616828 | T18: 0.04554020101 | U18: 0.04542826464 | V18: 0.0475737393 | W18: 0.04490768975 | X18: 0.03388665161 | Y18: 0.02676563203 | Z18: 0.02519448373 | AA18: 0.0348092207 | AB18: 0.03498450256 | AC18: 0.04351341555 | AD18: 0.0459698979 | AE18: 0.02861558912
A19: BKH | B19: 12 | C19: =IF(ISERROR(D19),"",IF(D19="","",MAX($C$12:C18)+1)) -> 7 | D19: Black Hills | F19: 0.03814424576 | G19: 0.04615384615 | H19: 0.045256745 | I19: 0.0415282392 | J19: 0.03442857143 | K19: 0.03496183206 | L19: 0.03423090878 | M19: 0.02742108079 | N19: 0.03306379771 | O19: 0.02749255726 | P19: 0.0286596496 | Q19: 0.03547341683 | R19: 0.02836621511 | S19: 0.03193277311 | T19: 0.0438531512 | U19: 0.04643765903 | V19: 0.04793608522 | W19: 0.06166406114 | X19: 0.04211539619 | Y19: 0.03402796751 | Z19: 0.03788096195 | AA19: 0.03157192909 | AB19: 0.03054187457 | AC19: 0.03471737981 | AD19: 0.0520126018 | AE19: 0.03800810855
A20: CNP | B20: 14 | C20: =IF(ISERROR(D20),"",IF(D20="","",MAX($C$12:C19)+1)) -> 8 | D20: CenterPoint Energy | F20: 0.04000289439 | G20: 0.02546494993 | H20: 0.02773972603 | I20: 0.02706502636 | J20: 0.02461538462 | K20: 0.02767295597 | L20: 0.04381694255 | M20: 0.0297750483 | N20: 0.04092221126 | O20: 0.04794593633 | P20: 0.04701049749 | Q20: 0.05064974931 | R20: 0.03944691276 | S20: 0.03570506754 | T20: 0.04041311181 | U20: 0.04267963263 | V20: 0.05289570053 | W20: 0.06373165618 | X20: 0.04981574997 | Y20: 0.0387420237 | Z20: 0.04394960445 | AA20: 0.0381714007 | AB20: 0.04853539438 | AC20: 0.03852169737 | AD20: 0.05310232978 | AE20: 0.04416912604
A21: CMS | B21: 18 | C21: =IF(ISERROR(D21),"",IF(D21="","",MAX($C$12:C20)+1)) -> 9 | D21: CMS Energy Corp. | F21: 0.03192395338 | G21: 0.03091168091 | H21: 0.03231372549 | I21: 0.03373702422 | J21: 0.02916006339 | K21: 0.02924369748 | L21: 0.02647694232 | M21: 0.02636521859 | N21: 0.03034482759 | O21: 0.02875364825 | P21: 0.0299032966 | Q21: 0.03355510558 | R21: 0.03588039867 | S21: 0.03764393268 | T21: 0.04163775156 | U21: 0.04254888056 | V21: 0.03983823263 | W21: 0.03966050607 | X21: 0.02693602694 | Y21: 0.01164415463 | Z21: N/A | AA21: 0.02772899617 | AB21: 0.03073735014 | AC21: 0.03838736097 | AD21: 0.04068253975 | AE21: 0.01929009079
A22: ED | B22: 20 | C22: =IF(ISERROR(D22),"",IF(D22="","",MAX($C$12:C21)+1)) -> 10 | D22: Consol. Edison | F22: 0.04197204963 | G22: 0.03363006924 | H22: 0.03427981415 | I22: 0.03572216097 | J22: 0.03505268996 | K22: 0.04100529101 | L22: 0.03868765409 | M22: 0.03437743168 | N22: 0.03676092545 | O22: 0.03404297309 | P22: 0.03617759419 | Q22: 0.04118159499 | R22: 0.04377812136 | S22: 0.04251568414 | T22: 0.04073662593 | U22: 0.04459391665 | V22: 0.05158102338 | W22: 0.05990912091 | X22: 0.05668741975 | Y22: 0.04837061902 | Z22: 0.0503502627 | AA22: 0.03660867041 | AB22: 0.03713405409 | AC22: 0.04234347714 | AD22: 0.05202802031 | AE22: 0.05180276716
A23: D | B23: 22 | C23: =IF(ISERROR(D23),"",IF(D23="","",MAX($C$12:C22)+1)) -> 11 | D23: Dominion Resources | F23: 0.04158577319 | G23: 0.05042492918 | H23: 0.05061611374 | I23: 0.05179437439 | J23: 0.03657534247 | K23: 0.03382550336 | L23: 0.04313848078 | M23: 0.04759619749 | N23: 0.04715050044 | O23: 0.03877652711 | P23: =IFERROR(IF(INDEX(DIV_MP_WP,$B23,P$12)=0,"N/A",INDEX(DIV_MP_WP,$B23,P$12)),"N/A") -> 0.03816897953 | Q23: 0.03656281322 | R23: 0.03425341821 | S23: 0.03783674705 | T23: 0.04057068143 | U23: 0.04132924936 | V23: 0.04413147804 | W23: 0.05202294955 | X23: 0.03771783242 | Y23: 0.0332324221 | Z23: 0.03599092403 | AA23: =IFERROR(AVERAGE(L23:N23),"N/A") -> 0.04596172624 | AB23: 0.03783610662 | AC23: 0.03755361556 | AD23: 0.04582789232 | AE23: 0.03564705951
A24: DTE | B24: 23 | C24: =IF(ISERROR(D24),"",IF(D24="","",MAX($C$12:C23)+1)) -> 12 | D24: DTE Energy | F24: 0.03932138413 | G24: 0.03435917413 | H24: 0.03548525011 | I24: 0.0367076632 | J24: 0.03166368515 | K24: 0.03059936909 | L24: 0.03569633853 | M24: 0.03069906149 | N24: 0.03342831071 | O24: 0.03153833879 | P24: 0.03340392551 | Q24: 0.03531328103 | R24: 0.03537007087 | S24: 0.03844954796 | T24: 0.04188952935 | U24: 0.04679400553 | V24: 0.04752147186 | W24: 0.06285578748 | X24: 0.05243112232 | Y24: 0.04363486673 | Z24: 0.04858688271 | AA24: 0.03327457024 | AB24: 0.03341851511 | AC24: 0.03856971606 | AD24: 0.05239042162 | AE24: 0.04821762392
A25: DUK | B25: 24 | C25: =IF(ISERROR(D25),"",IF(D25="","",MAX($C$12:C24)+1)) -> 13 | D25: Duke Energy | F25: 0.04517023727 | G25: 0.03661605206 | H25: 0.03916745506 | I25: 0.04284960422 | J25: 0.03978010995 | K25: 0.04020618557 | L25: 0.04351094608 | M25: 0.04171586428 | N25: 0.04539842103 | O25: 0.04150463211 | P25: 0.0426163388 | Q25: 0.04337697807 | R25: 0.04257965098 | S25: 0.04449436261 | T25: 0.04676647631 | U25: 0.05212446691 | V25: 0.05706665621 | W25: 0.06246815675 | X25: 0.05155918804 | Y25: 0.04443296306 | Z25: N/A | AA25: 0.0435417438 | AB25: 0.04249931633 | AC25: 0.04461349663 | AD25: 0.05721975995 | AE25: 0.04799607555
A26: EIX | B26: 25 | C26: =IF(ISERROR(D26),"",IF(D26="","",MAX($C$12:C25)+1)) -> 14 | D26: Edison Int'l | F26: 0.03496754279 | G26: 0.05165257494 | H26: 0.04171052632 | I26: 0.04472700075 | J26: 0.04447924824 | K26: 0.04391836735 | L26: 0.04286522839 | M26: 0.03733256908 | N26: 0.03843231607 | O26: 0.02872875577 | P26: 0.02808622741 | Q26: 0.02827910316 | R26: 0.02624500053 | S26: 0.0284976252 | T26: 0.02972942375 | U26: 0.03369254569 | V26: 0.03659347971 | W26: 0.03954012767 | X26: 0.02693787795 | Y26: 0.02208065547 | Z26: 0.0258222024 | AA26: 0.03954337118 | AB26: 0.02836469545 | AC26: 0.02815734983 | AD26: 0.03660871769 | AE26: 0.02494691194
A27: EE | B27: 26 | C27: =IF(ISERROR(D27),"",IF(D27="","",MAX($C$12:C26)+1)) -> 15 | D27: El Paso Electric | F27: 0.02744996466 | G27: N/A | H27: N/A | I27: N/A | J27: N/A | K27: N/A | L27: N/A | M27: N/A | N27: 0.02545971428 | O27: 0.02494546144 | P27: 0.02747252747 | Q27: 0.03131131239 | R27: 0.02971228825 | S27: 0.02991440758 | T27: 0.0296545399 | U27: 0.021129466 | V27: N/A | W27: N/A | X27: N/A | Y27: N/A | Z27: N/A | AA27: 0.02545971428 | AB27: 0.0279097671 | AC27: 0.02976041191 | AD27: 0.021129466 | AE27: N/A
A28: ETR | B28: 28 | C28: =IF(ISERROR(D28),"",IF(D28="","",MAX($C$12:C27)+1)) -> 16 | D28: Entergy Corp. | F28: 0.03961276888 | G28: 0.02977941176 | H28: 0.03619197482 | I28: 0.04361809045 | J28: 0.03698691926 | K28: 0.03844621514 | L28: 0.03553207863 | M28: 0.03520144653 | N28: 0.0440902989 | O28: 0.04493055021 | P28: 0.04551322146 | Q28: 0.04588227213 | R28: 0.0446536651 | S28: 0.05065608789 | T28: 0.04913568553 | U28: 0.04852595115 | V28: 0.04204515962 | W28: 0.03974510142 | X28: 0.02922580834 | Y28: 0.02386789398 | Z28: 0.02822754538 | AA28: 0.03827460802 | AB28: 0.0454420146 | AC28: 0.0481484795 | AD28: 0.04343873739 | AE28: 0.02710708257
A29: ES | B29: 29 | C29: =IF(ISERROR(D29),"",IF(D29="","",MAX($C$12:C28)+1)) -> 17 | D29: Eversource Energy | F29: 0.03434569513 | G29: 0.05158526135 | H29: 0.04723369116 | I29: 0.03890489914 | J29: 0.03089036947 | K29: 0.02847017129 | L29: =IFERROR(IF(INDEX(DIV_MP_WP,$B29,L$12)=0,"N/A",INDEX(DIV_MP_WP,$B29,L$12)),"N/A") -> 0.02627892708 | M29: 0.02805269712 | N29: =IFERROR(IF(INDEX(DIV_MP_WP,$B29,N$12)=0,"N/A",INDEX(DIV_MP_WP,$B29,N$12)),"N/A") -> 0.03318384177 | O29: 0.03138576408 | P29: 0.03217235708 | Q29: 0.03341135986 | R29: 0.03395842796 | S29: 0.03484816158 | T29: 0.03517561158 | U29: 0.03227983684 | V29: 0.03636170137 | W29: 0.04158641219 | X29: 0.03246497718 | Y29: 0.02600147621 | Z29: 0.03266795837 | AA29: 0.02917182199 | AB29: 0.03232316034 | AC29: 0.03466073371 | AD29: 0.03674265013 | AE29: 0.03037813725
A30: EVRG | B30: =IFERROR(MATCH(A30,OFFSET(DIV_MP_WP,0,0,,1),0),"") ->  | C30: =IF(ISERROR(D30),"",IF(D30="","",MAX($C$12:C29)+1)) -> 18 | D30: Evergy, Inc. | F30: 0.04084436176 | G30: 0.04166026134 | H30: 0.04581497797 | I30: 0.04416740873 | J30: 0.03663522013 | K30: 0.03594394064 | L30: N/A | M30: N/A | N30: N/A | O30: N/A | P30: N/A | Q30: N/A | R30: N/A | S30: N/A | T30: N/A | U30: N/A | V30: N/A | W30: N/A | X30: N/A | Y30: N/A | Z30: N/A | AA30: N/A | AB30: N/A | AC30: N/A | AD30: N/A | AE30: N/A
A31: EXC | B31: =IFERROR(MATCH(A31,OFFSET(DIV_MP_WP,0,0,,1),0),"") -> 30 | C31: =IF(ISERROR(D31),"",IF(D31="","",MAX($C$12:C30)+1)) -> 19 | D31: Exelon Corp. | F31: 0.03766354904 | G31: 0.03802816901 | H31: 0.04080536913 | I31: 0.03668789809 | J31: 0.02890792291 | K31: 0.03174273859 | L31: 0.03823470612 | M31: 0.0305887813 | N31: 0.03318105314 | O31: 0.03513854242 | P31: 0.03747100458 | Q31: 0.0388191466 | R31: 0.03686307153 | S31: 0.04689010635 | T31: 0.05733005733 | U31: 0.04955167532 | V31: 0.0494664688 | W31: 0.04261017775 | X31: 0.02782075292 | Y31: 0.02478415993 | Z31: 0.02834917891 | AA31: 0.03400151352 | AB31: 0.03714289787 | AC31: 0.04702774507 | AD31: 0.04720944062 | AE31: 0.02698469725
A32: FE | B32: =IFERROR(MATCH(A32,OFFSET(DIV_MP_WP,0,0,,1),0),"") -> 31 | C32: =IF(ISERROR(D32),"",IF(D32="","",MAX($C$12:C31)+1)) -> 20 | D32: FirstEnergy Corp. | F32: 0.04308422366 | G32: 0.04384236453 | H32: 0.04228855721 | I32: 0.04238410596 | J32: 0.03709869203 | K32: 0.04394366197 | L32: 0.04167334509 | M32: 0.03497382678 | N32: 0.05168839283 | O32: 0.04623386631 | P32: 0.0430892606 | Q32: 0.04229695991 | R32: 0.04257709707 | S32: 0.04255648406 | T32: 0.04896287724 | U32: 0.05226398061 | V32: 0.05762179151 | W32: 0.05087881591 | X32: 0.03210835109 | Y32: 0.03116590906 | Z32: 0.0340361335 | AA32: 0.04277852157 | AB32: 0.04387336227 | AC32: 0.04469881946 | AD32: 0.05358819601 | AE32: 0.03243679788
A33: FTS.TO | B33: 32 | C33: =IF(ISERROR(D33),"",IF(D33="","",MAX($C$12:C32)+1)) -> 21 | D33: Fortis Inc. | F33: 0.03772428514 | G33: 0.04510869565 | H33: 0.04160139252 | I33: 0.04092940125 | J33: 0.03820422535 | K33: 0.03771532185 | L33: 0.03663447556 | M33: 0.03602151582 | N33: 0.04065796199 | O33: 0.036900369 | P33: 0.03796321242 | Q33: 0.03764643938 | R33: 0.03878860212 | S33: 0.03840127799 | T33: 0.03644358774 | U33: 0.03578091073 | V33: 0.03795580859 | W33: 0.04208822339 | X33: 0.03763218304 | Y33: 0.03013376452 | Z33: 0.02787833396 | AA33: 0.03777131779 | AB33: 0.03750334027 | AC33: 0.03787782262 | AD33: 0.03860831424 | AE33: 0.03188142717
A34: GXP | B34: 34 | C34: =IF(ISERROR(D34),"",IF(D34="","",MAX($C$12:C33)+1)) -> 22 | D34: Great Plains Energy | F34: 0.04519369047 | G34: N/A | H34: N/A | I34: N/A | J34: N/A | K34: N/A | L34: N/A | M34: N/A | N34: N/A | O34: 0.03583061889 | P34: =IFERROR(IF(INDEX(DIV_MP_WP,$B34,P$12)=0,"N/A",INDEX(DIV_MP_WP,$B34,P$12)),"N/A") -> 0.03644340046 | Q34: 0.0376163733 | R34: 0.03615902235 | S34: 0.03837786093 | T34: 0.04077058795 | U34: 0.04147831702 | V34: 0.0448527425 | W34: 0.05026038513 | X34: 0.06964840144 | Y34: 0.05488873458 | Z34: 0.05599784105 | AA34: N/A | AB34: 0.03663013088 | AC34: 0.03843582375 | AD34: 0.04553048155 | AE34: 0.06017832569
A35: HE | B35: 35 | C35: =IF(ISERROR(D35),"",IF(D35="","",MAX($C$12:C34)+1)) -> 23 | D35: Hawaiian Elec. | F35: 0.04398349848 | G35: N/A | H35: N/A | I35: 0.04090909091 | J35: 0.03594351733 | K35: 0.03443037975 | L35: 0.03395411051 | M35: 0.03024145915 | N35: 0.03537904077 | O35: 0.03653829154 | P35: 0.03994330627 | Q35: 0.0405175794 | R35: 0.04760990593 | S35: 0.04721111746 | T35: 0.04695546804 | U35: 0.05038806941 | V35: 0.05513316438 | W35: 0.0688697584 | X35: 0.05003631668 | Y35: 0.05178101641 | Z35: 0.04586138028 | AA35: 0.03319153681 | AB35: 0.03899972574 | AC35: 0.04725883048 | AD35: 0.05813033073 | AE35: 0.04922623779
A36: H.TO | B36: =IFERROR(MATCH(A36,OFFSET(DIV_MP_WP,0,0,,1),0),"") -> 36 | C36: =IF(ISERROR(D36),"",IF(D36="","",MAX($C$12:C35)+1)) -> 24 | D36: =VLOOKUP(A36,LUCurYr,2,FALSE) -> Hydro One Limited | F36: 0.02776768613 | G36: 0.02418379686 | H36: 0.02107728337 | I36: 0.02340136054 | J36: 0.025 | K36: =IFERROR(IF(VLOOKUP(A36,lucyyr,22,FALSE)=0,"",VLOOKUP(A36,lucyyr,22,FALSE)),"N/A") -> 0.02525252525 | L36: 0.02958579882 | M36: 0.03210412148 | N36: 0.03503649635 | O36: 0.03043478261 | P36: 0.02880658436 | Q36: 0.03056179775 | R36: N/A | S36: N/A | T36: N/A | U36: N/A | V36: N/A | W36: N/A | X36: N/A | Y36: N/A | Z36: N/A | AA36: =IFERROR(AVERAGE(L36:N36),"N/A") -> 0.03224213888 | AB36: =IFERROR(AVERAGE(O36:Q36),"N/A") -> 0.02993438824 | AC36: =IFERROR(AVERAGE(R36:T36),"N/A") -> N/A | AD36: =IFERROR(AVERAGE(U36:W36),"N/A") -> N/A | AE36: =IFERROR(AVERAGE(X36:Z36),"N/A") -> N/A
A37: IDA | B37: 37 | C37: =IF(ISERROR(D37),"",IF(D37="","",MAX($C$12:C36)+1)) -> 25 | D37: IDACORP, Inc. | F37: 0.03160281647 | G37: 0.0312195122 | H37: 0.03239845261 | I37: 0.03182496271 | J37: 0.0286252354 | K37: 0.02893018584 | L37: 0.02917265493 | M37: 0.02489231158 | N37: 0.02607052076 | O37: 0.02582757786 | P37: 0.0276971424 | Q37: 0.03059078453 | R37: 0.03117306364 | S37: 0.03206895847 | T37: 0.03275944524 | U37: 0.03096134991 | V37: 0.03439380911 | W37: 0.0445748672 | X37: 0.03952959779 | Y37: 0.03546099291 | Z37: 0.03388490428 | AA37: 0.02671182909 | AB37: 0.02803850159 | AC37: 0.03200048912 | AD37: 0.03664334208 | AE37: 0.03629183166
A38: MGEE | B38: =IFERROR(MATCH(A38,OFFSET(DIV_MP_WP,0,0,,1),0),"") -> 41 | C38: =IF(ISERROR(D38),"",IF(D38="","",MAX($C$12:C37)+1)) -> 26 | D38: =VLOOKUP(A38,LUCurYr,2,FALSE) -> MGE Energy | F38: 0.02905762101 | G38: 0.0205213533 | H38: 0.02057276447 | I38: 0.02250673854 | J38: 0.02148648649 | K38: =IFERROR(IF(VLOOKUP(A38,lucyyr,22,FALSE)=0,"",VLOOKUP(A38,lucyyr,22,FALSE)),"N/A") -> N/A | L38: 0.0210457326 | M38: 0.0193839282 | N38: 0.02163047931 | O38: 0.01950887189 | P38: 0.02228771413 | Q38: 0.02776780371 | R38: 0.02783140687 | S38: 0.02911485402 | T38: 0.03245031046 | U38: 0.03630291931 | V38: 0.0397724997 | W38: 0.043632287 | X38: 0.04236086494 | Y38: 0.04139874923 | Z38: 0.04251903495 | AA38: 0.02068671337 | AB38: 0.02318812991 | AC38: 0.02979885711 | AD38: 0.03990256867 | AE38: 0.04209288304
A39: NEE | B39: =IFERROR(MATCH(A39,OFFSET(DIV_MP_WP,0,0,,1),0),"") -> 44 | C39: =IF(ISERROR(D39),"",IF(D39="","",MAX($C$12:C38)+1)) -> 27 | D39: =VLOOKUP(A39,LUCurYr,2,FALSE) -> NextEra Energy, Inc. | F39: 0.029222365 | G39: 0.03289855072 | H39: 0.02942857143 | I39: 0.02797307405 | J39: 0.02114427861 | K39: =IFERROR(IF(VLOOKUP(A39,lucyyr,22,FALSE)=0,"",VLOOKUP(A39,lucyyr,22,FALSE)),"N/A") -> 0.01901234568 | L39: 0.02099611572 | M39: 0.02405465217 | N39: 0.02684011993 | O39: 0.02785673678 | P39: 0.02906976744 | Q39: 0.03008400078 | R39: 0.03022023514 | S39: 0.03298350825 | T39: 0.03646529719 | U39: 0.03956549888 | V39: 0.03896508728 | W39: N/A | X39: N/A | Y39: N/A | Z39: N/A | AA39: 0.02396362927 | AB39: 0.02900350167 | AC39: 0.03322301353 | AD39: 0.03926529308 | AE39: N/A
A40: NWE | B40: 47 | C40: =IF(ISERROR(D40),"",IF(D40="","",MAX($C$12:C39)+1)) -> 28 | D40: NorthWestern Corp | F40: 0.04211718849 | G40: 0.04786944696 | H40: 0.05014464802 | I40: 0.04776119403 | J40: 0.04508050089 | K40: 0.04 | L40: 0.04023807528 | M40: 0.03275606699 | N40: 0.03858092349 | O40: 0.03523312585 | P40: 0.03432828135 | Q40: 0.03605701516 | R40: 0.03295978906 | S40: 0.03664858348 | T40: 0.04166549365 | U40: 0.0450915923 | V40: 0.04928250471 | W40: 0.0574934569 | X40: 0.05378315609 | Y40: 0.04089718193 | Z40: 0.03647273369 | AA40: 0.03719168859 | AB40: 0.03520614079 | AC40: 0.03709128873 | AD40: 0.05062251797 | AE40: 0.04371769057
A41: OGE | B41: 48 | C41: =IF(ISERROR(D41),"",IF(D41="","",MAX($C$12:C40)+1)) -> 29 | D41: OGE Energy | F41: 0.03865490628 | G41: 0.03962920046 | H41: 0.04392156863 | I41: 0.04630404463 | J41: 0.04304461942 | K41: 0.04808259587 | L41: 0.04675801249 | M41: 0.03536101125 | N41: 0.03981959866 | O41: 0.03610005685 | P41: 0.03865461847 | Q41: 0.03512293026 | R41: 0.0262677653 | S41: 0.02479314765 | T41: 0.02941501714 | U41: 0.03062706803 | V41: 0.03677652733 | W41: 0.04955236311 | X41: 0.04524857587 | Y41: 0.03768387417 | Z41: 0.03993553009 | AA41: 0.04064620747 | AB41: 0.03662586853 | AC41: 0.02682531003 | AD41: 0.03898531949 | AE41: 0.04095599337
A42: OTTR | B42: 50 | C42: =IF(ISERROR(D42),"",IF(D42="","",MAX($C$12:C41)+1)) -> 30 | D42: Otter Tail Corp. | F42: 0.03697977454 | G42: 0.02673456397 | H42: 0.02148190695 | I42: 0.02333333333 | J42: 0.02442635085 | K42: 0.02808280828 | L42: 0.03454312055 | M42: 0.0274434469 | N42: 0.0292410422 | O42: 0.03119136389 | P42: 0.03868891021 | Q42: 0.04332511448 | R42: 0.04143977533 | S42: 0.04112808461 | T42: 0.05210842055 | U42: 0.05569335892 | V42: 0.0568371782 | W42: 0.05379017312 | X42: 0.03632367754 | Y42: 0.03455914931 | Z42: 0.03922371159 | AA42: 0.03040920322 | AB42: 0.03773512953 | AC42: 0.0448920935 | AD42: 0.05544023675 | AE42: 0.03670217948
A43: PNW | B43: 53 | C43: =IF(ISERROR(D43),"",IF(D43="","",MAX($C$12:C42)+1)) -> 31 | D43: Pinnacle West Capital | F43: 0.04480542892 | G43: 0.04056179775 | H43: 0.04420921544 | I43: 0.04514877102 | J43: 0.04899713467 | K43: 0.0444150694 | L43: 0.03970156225 | M43: 0.03290791197 | N43: 0.03547765032 | O43: 0.03161074297 | P43: 0.03457824002 | Q43: 0.03881641744 | R43: 0.04088127725 | S43: 0.039817466 | T43: 0.05317665804 | U43: 0.04809233729 | V43: 0.05426496809 | W43: 0.06761978362 | X43: 0.06165590135 | Y43: 0.04751561227 | Z43: 0.04666006129 | AA43: 0.03602904151 | AB43: 0.03500180014 | AC43: 0.04462513376 | AD43: 0.05665902966 | AE43: 0.0519438583
A44: TXNM | B44: 54 | C44: =IF(ISERROR(D44),"",IF(D44="","",MAX($C$12:C43)+1)) -> 32 | D44: TXNM Energy | F44: 0.03186122737 | G44: 0.03260869565 | H44: 0.03698468787 | I44: 0.03274725275 | J44: 0.03042071197 | K44: 0.02087326944 | L44: 0.02797108908 | M44: 0.02451510863 | N44: 0.02794591114 | O44: 0.02532065176 | P44: =IFERROR(IF(INDEX(DIV_MP_WP,$B44,P$12)=0,"N/A",INDEX(DIV_MP_WP,$B44,P$12)),"N/A") -> 0.02689322169 | Q44: 0.02895508343 | R44: 0.02788035451 | S44: 0.02989668059 | T44: 0.02957373037 | U44: 0.03185727939 | V44: 0.04091987888 | W44: 0.04764627406 | X44: 0.04852033042 | Y44: 0.03358801166 | Z44: 0.0321063242 | AA44: 0.02681070295 | AB44: 0.02705631896 | AC44: 0.02911692182 | AD44: 0.04014114411 | AE44: 0.03807155543
A45: POR | B45: 55 | C45: =IF(ISERROR(D45),"",IF(D45="","",MAX($C$12:C44)+1)) -> 33 | D45: Portland General | F45: 0.03789909587 | G45: 0.04860465116 | H45: 0.04454443195 | I45: 0.04196428571 | J45: 0.03630831643 | K45: 0.03620873269 | L45: 0.03467891916 | M45: 0.02846748181 | N45: 0.0327035383 | O45: 0.02921171957 | P45: 0.03060852666 | Q45: 0.03265351302 | R45: 0.03339023149 | S45: 0.03665026609 | T45: 0.04112471308 | U45: 0.04373782182 | V45: 0.05195783133 | W45: 0.05356101183 | X45: 0.04282371639 | Y45: 0.03342438183 | Z45: 0.02535782712 | AA45: 0.03194997976 | AB45: 0.03082458642 | AC45: 0.03705507022 | AD45: 0.04975222166 | AE45: 0.03386864178
A46: PPL | B46: 56 | C46: =IF(ISERROR(D46),"",IF(D46="","",MAX($C$12:C45)+1)) -> 34 | D46: PPL Corp. | F46: 0.04359530486 | G46: 0.03210603829 | H46: 0.03404958678 | I46: 0.03525046382 | J46: 0.03229357798 | K46: 0.05834797891 | L46: 0.0583808117 | M46: 0.05238427837 | N46: 0.05610098177 | O46: 0.04242635805 | P46: 0.04246521763 | Q46: 0.04548348949 | R46: 0.04447495672 | S46: 0.04808950537 | T46: 0.05070244005 | U46: 0.05100925454 | V46: 0.0512463853 | W46: 0.04514672686 | X46: 0.03100846948 | Y46: 0.0268722467 | Z46: 0.03406732943 | AA46: 0.05562202395 | AB46: 0.04345835506 | AC46: 0.04775563405 | AD46: 0.04913412223 | AE46: 0.03064934853
A47: PEG | B47: 57 | C47: =IF(ISERROR(D47),"",IF(D47="","",MAX($C$12:C46)+1)) -> 35 | D47: Public Serv. Enterprise | F47: 0.03677519778 | G47: 0.03041641521 | H47: 0.03157894737 | I47: 0.03825503356 | J47: 0.0337236534 | K47: 0.03374689826 | L47: 0.03642716426 | M47: 0.03192121572 | N47: 0.03485940042 | O47: 0.03740838209 | P47: 0.03775930744 | Q47: 0.0380859375 | R47: 0.03924168103 | S47: 0.04353741497 | T47: 0.0455084447 | U47: 0.04237943515 | V47: 0.04303845187 | W47: 0.04301423027 | X47: 0.03259798347 | Y47: 0.02730709985 | Z47: 0.03469685902 | AA47: 0.03440259347 | AB47: 0.03775120901 | AC47: 0.04276251357 | AD47: 0.04281070576 | AE47: 0.03153398078
A48: SCG | B48: 58 | C48: =IF(ISERROR(D48),"",IF(D48="","",MAX($C$12:C47)+1)) -> 36 | D48: SCANA Corp. | F48: 0.04373646886 | G48: N/A | H48: N/A | I48: N/A | J48: N/A | K48: N/A | L48: N/A | M48: N/A | N48: N/A | O48: 0.04034249959 | P48: 0.03291780567 | Q48: 0.03901565996 | R48: 0.04051394837 | S48: 0.0415081994 | T48: 0.04247377566 | U48: 0.04778089749 | V48: 0.04929559194 | W48: 0.05673758865 | X48: 0.04923867377 | Y48: 0.04294673141 | Z48: 0.04206625435 | AA48: N/A | AB48: 0.03742532174 | AC48: 0.04149864115 | AD48: 0.05127135936 | AE48: 0.04475055318
A49: SRE | B49: 59 | C49: =IF(ISERROR(D49),"",IF(D49="","",MAX($C$12:C48)+1)) -> 37 | D49: Sempra Energy | F49: 0.0302597368 | G49: 0.03455149502 | H49: 0.03057953144 | I49: 0.03269230769 | J49: 0.02991508818 | K49: 0.03389830508 | L49: 0.03238251654 | M49: 0.02881737084 | N49: 0.03202032128 | O49: 0.0292026522 | P49: 0.02922392104 | Q49: 0.02714072466 | R49: 0.02607021182 | S49: 0.03033768735 | T49: 0.03705819681 | U49: 0.03649080128 | V49: 0.03081055459 | W49: 0.03234568413 | X49: 0.0262090603 | Y49: 0.02078131023 | Z49: 0.02466699556 | AA49: 0.03107340289 | AB49: 0.02852243263 | AC49: 0.03115536533 | AD49: 0.03321568 | AE49: 0.0238857887
A50: SO | B50: 63 | C50: =IF(ISERROR(D50),"",IF(D50="","",MAX($C$12:C49)+1)) -> 38 | D50: Southern Co. | F50: 0.04466370651 | G50: 0.0340034463 | H50: 0.03570536829 | I50: 0.04130757801 | J50: 0.03821656051 | K50: 0.04171974522 | L50: 0.04363436464 | M50: 0.04413426864 | N50: 0.05267234702 | O50: 0.04627394174 | P50: 0.04423352436 | Q50: 0.04783381471 | R50: 0.04687007785 | S50: 0.04606196513 | T50: 0.04288804521 | U50: 0.04634991339 | V50: 0.05128423927 | W50: 0.05524738587 | X50: 0.04583034779 | Y50: 0.04385482541 | Z50: 0.04515237087 | AA50: 0.0468136601 | AB50: 0.04611376027 | AC50: 0.04527336273 | AD50: 0.05096051284 | AE50: 0.04494584802
A51: VVC | B51: 71 | C51: =IF(ISERROR(D51),"",IF(D51="","",MAX($C$12:C50)+1)) -> 39 | D51: Vectren Corp. | F51: 0.04380395448 | G51: N/A | H51: N/A | I51: N/A | J51: N/A | K51: N/A | L51: N/A | M51: N/A | N51: N/A | O51: 0.02794391607 | P51: 0.03312612465 | Q51: 0.03595274782 | R51: 0.03616994921 | S51: 0.04154155613 | T51: 0.04822378582 | U51: 0.05058621571 | V51: 0.05531330749 | W51: 0.05850741094 | X51: 0.04787136854 | Y51: 0.04525854389 | Z51: 0.04515252744 | AA51: N/A | AB51: 0.03234092951 | AC51: 0.04197843039 | AD51: 0.05480231138 | AE51: 0.04609414662
A52: WEC | B52: 72 | C52: =IF(ISERROR(D52),"",IF(D52="","",MAX($C$12:C51)+1)) -> 40 | D52: WEC Energy Group | F52: 0.03114452813 | G52: 0.03518974864 | H52: 0.03754918494 | I52: 0.0356979405 | J52: 0.03076109937 | K52: 0.03002770083 | L52: 0.02682414809 | M52: 0.02806917386 | N52: 0.0338179036 | O52: 0.03310046309 | P52: 0.03353544934 | Q52: 0.03485507101 | R52: 0.03400989775 | S52: 0.0348814754 | T52: 0.03240790753 | U52: 0.03348142425 | V52: 0.02973977695 | W52: 0.03161000281 | X52: 0.02412976451 | Y52: 0.02137665669 | Z52: 0.02182577339 | AA52: 0.02957040852 | AB52: 0.03383032781 | AC52: 0.03376642689 | AD52: 0.03161040134 | AE52: 0.02244406486
A53: WR | B53: 73 | C53: =IF(ISERROR(D53),"",IF(D53="","",MAX($C$12:C52)+1)) -> 41 | D53: Westar Energy | F53: 0.04370468712 | G53: N/A | H53: N/A | I53: N/A | J53: N/A | K53: N/A | L53: N/A | M53: N/A | N53: N/A | O53: 0.03004694836 | P53: 0.028977771 | Q53: 0.0373356841 | R53: 0.03879083428 | S53: 0.04268139593 | T53: 0.04571586895 | U53: 0.0483877065 | V53: 0.05316868193 | W53: 0.06272214092 | X53: 0.05220287116 | Y53: 0.04161849711 | Z53: 0.04280784519 | AA53: N/A | AB53: 0.03212013448 | AC53: 0.04239603305 | AD53: 0.05475950978 | AE53: 0.04554307115
A54: XEL | B54: 75 | C54: =IF(ISERROR(D54),"",IF(D54="","",MAX($C$12:C53)+1)) -> 42 | D54: Xcel Energy Inc. | F54: 0.03666464488 | G54: 0.03362831858 | H54: 0.03643926789 | I54: 0.03283346488 | J54: 0.02897473997 | K54: 0.028132206 | L54: 0.02581574761 | M54: 0.02747112988 | N54: 0.03250363527 | O54: 0.03099907433 | P54: 0.03330965735 | Q54: 0.03685680555 | R54: 0.0382848392 | S54: 0.03864229765 | T54: 0.03902261123 | U54: 0.04204596481 | V54: 0.04536999229 | W54: 0.05140434552 | X54: 0.0470423381 | Y54: 0.04047682591 | Z54: 0.04403963567 | AA54: 0.02859683759 | AB54: 0.03372184575 | AC54: 0.03864991603 | AD54: 0.04627343421 | AE54: 0.04385293323
C55: =IF(ISERROR(D55),"",IF(D55="","",MAX($C$12:C54)+1)) -> 
C56: =IF(ISERROR(D56),"",IF(D56="","",MAX($C$12:C55)+1)) -> 43 | D56: Average | F56: =AVERAGE(G56:Z56) -> 0.03816578453 | G56: =AVERAGE(G13:G55) -> 0.0371855951 | H56: =AVERAGE(H13:H55) -> 0.03764127756 | I56: 0.03815871405 | J56: 0.03398341185 | K56: 0.03487775664 | L56: 0.03538723404 | M56: 0.03192600663 | N56: 0.0355925367 | O56: 0.03355568326 | P56: 0.03477438499 | Q56: 0.03703463716 | R56: 0.03655445042 | S56: 0.03861724193 | T56: 0.04178125686 | U56: 0.04303599832 | V56: 0.0464207392 | W56: 0.05155219326 | X56: 0.04249310966 | Y56: 0.03542478817 | Z56: 0.03731867484 | AA56: 0.03415423379 | AB56: 0.03514786193 | AC56: 0.0389843164 | AD56: 0.04642177265 | AE56: 0.03834596401
C57: =IF(ISERROR(D57),"",IF(D57="","",MAX($C$12:C56)+1)) -> 44 | D57: Median | F57: =MEDIAN(G57:Z57) -> 0.03666790261 | G57: =MEDIAN(G13:G55) -> 0.03455149502 | H57: =MEDIAN(H13:H55) -> 0.03698468787 | I57: 0.03890489914 | J57: 0.03410435718 | K57: 0.0346961059 | L57: 0.03561420858 | M57: 0.03064392139 | N57: 0.0338179036 | O57: 0.03153833879 | P57: 0.03432828135 | Q57: 0.03709624483 | R57: 0.03686307153 | S57: 0.03844954796 | T57: 0.04166549365 | U57: 0.04459391665 | V57: 0.04775491226 | W57: 0.05202294955 | X57: 0.04236086494 | Y57: 0.03455914931 | Z57: 0.03647273369 | AA57: 0.03327208274 | AB57: 0.03500180014 | AC57: 0.03856971606 | AD57: 0.04869949214 | AE57: 0.03800810855
D59: Sources:
D60: 1 | E60: ='MPG-2, pgs 1-3'!E61 -> Data for years 2019 and prior were retrieved from the Value Line Investment Survey Investment Analyzer Software, downloaded on June 18, 2021.
E61: ='MPG-2, pgs 1-3'!E62 -> Data for the years 2020 - 2024 was retrieved from Value Line Investment Surveys.
D62: 2 | E62: ="The Value Line Investment Survey, "&'2025 Data (WP)'!$D$1 -> The Value Line Investment Survey, May 9, June 6, and July 18, 2025.
D63: 3 | E63: St. Louis Federal Reserve: Economic Research, http://research.stlouisfed.org.
D64: 4 | E64: ="Mergent Bond Record, through "&'A-Rated Yields (WP)'!$E$1&"." -> Mergent Bond Record, through June 30, 2025.
D65: Notes:
D66: a | E66: Based on the average of the high and low price and the projected Dividends Declared per share, published in the Value Line Investment Survey.

Sheet MPG-2, pg 5
C1: =ElectricU -> Kentucky Utilities Company / Louisville Gas & Electric Company
C3: Electric Utilities
C4: (Valuation Metrics)
F7: Dividend Yield1
A8: Ticker | B8: Match | F8: 20-Year | G8: 2025 | H8: 2024 | I8: 2023 | J8: 2022 | K8: 2021 | L8: 2020 | M8: 2019 | N8: 2018 | O8: 2017 | P8: 2016 | Q8: 2015 | R8: 2014 | S8: 2013 | T8: 2012 | U8: 2011 | V8: 2010 | W8: 2009 | X8: 2008 | Y8: 2007 | Z8: 2006 | AA8: 3-Year Averages
A9: Lookup: | B9: Row | C9: Line | D9: Company | F9: Average | G9: 2025 2/a | H9: 2024 | I9: 2023 | J9: 2022 | K9: 2021 | L9: 2020 | M9: 2019 | N9: 2018 | O9: 2017 | P9: 2016 | Q9: 2015 | R9: 2014 | S9: 2013 | T9: 2012 | U9: 2011 | V9: 2010 | W9: 2009 | X9: 2008 | Y9: 2007 | Z9: 2006 | AA9: 2018-2020 | AB9: 2015-2017 | AC9: 2012-2014 | AD9: 2009-2011 | AE9: 2006-2008
K10: 2021 | L10: 2020 | M10: 2019 | N10: 2018 | O10: 2017 | P10: 2016 | Q10: 2015 | R10: 2014 | S10: 2013 | T10: 2012 | U10: 2011 | V10: 2010 | W10: 2009 | X10: 2008 | Y10: 2007 | Z10: 2006
F11: -1 | G11: =+F11-1 -> -2 | H11: -3 | I11: -4 | J11: =+I11-1 -> -5 | K11: =+J11-1 -> -6 | AA11: =MIN($F$10:Z11)-1 -> -7 | AB11: =MIN($F$10:AA11)-1 -> -8 | AC11: =MIN($F$10:AB11)-1 -> -9 | AD11: =MIN($F$10:AC11)-1 -> -10 | AE11: =MIN($F$10:AD11)-1 -> -11
D12: 2 | L12: =MATCH(L9,OFFSET(DIV_MP_WP,-1,0,1,),0) -> 6 | M12: 7 | N12: 8 | O12: 9 | P12: 10 | Q12: 11 | R12: 12 | S12: 13 | T12: 14 | U12: 15 | V12: 16 | W12: 17 | X12: 18 | Y12: 19 | Z12: 20
C13: =IF(ISERROR(D13),"",IF(D13="","",MAX($C$12:C12)+1)) -> 1 | D13: Average | F13: =AVERAGE(G13:Z13) -> 0.03816578453 | G13: ='MPG-2, pg 4'!G56 -> 0.0371855951 | H13: ='MPG-2, pg 4'!H56 -> 0.03764127756 | I13: ='MPG-2, pg 4'!I56 -> 0.03815871405 | J13: ='MPG-2, pg 4'!J56 -> 0.03398341185 | K13: ='MPG-2, pg 4'!K56 -> 0.03487775664 | L13: ='MPG-2, pg 4'!L56 -> 0.03538723404 | M13: ='MPG-2, pg 4'!M56 -> 0.03192600663 | N13: ='MPG-2, pg 4'!N56 -> 0.0355925367 | O13: ='MPG-2, pg 4'!O56 -> 0.03355568326 | P13: ='MPG-2, pg 4'!P56 -> 0.03477438499 | Q13: ='MPG-2, pg 4'!Q56 -> 0.03703463716 | R13: ='MPG-2, pg 4'!R56 -> 0.03655445042 | S13: ='MPG-2, pg 4'!S56 -> 0.03861724193 | T13: ='MPG-2, pg 4'!T56 -> 0.04178125686 | U13: ='MPG-2, pg 4'!U56 -> 0.04303599832 | V13: ='MPG-2, pg 4'!V56 -> 0.0464207392 | W13: ='MPG-2, pg 4'!W56 -> 0.05155219326 | X13: ='MPG-2, pg 4'!X56 -> 0.04249310966 | Y13: ='MPG-2, pg 4'!Y56 -> 0.03542478817 | Z13: ='MPG-2, pg 4'!Z56 -> 0.03731867484 | AA13: ='MPG-2, pg 4'!AA56 -> 0.03415423379 | AB13: ='MPG-2, pg 4'!AB56 -> 0.03514786193 | AC13: ='MPG-2, pg 4'!AC56 -> 0.0389843164 | AD13: ='MPG-2, pg 4'!AD56 -> 0.04642177265 | AE13: ='MPG-2, pg 4'!AE56 -> 0.03834596401
C14: =IF(ISERROR(D14),"",IF(D14="","",MAX($C$12:C13)+1)) -> 2 | D14: Median | F14: =MEDIAN(G14:Z14) -> 0.03666790261 | G14: ='MPG-2, pg 4'!G57 -> 0.03455149502 | H14: ='MPG-2, pg 4'!H57 -> 0.03698468787 | I14: ='MPG-2, pg 4'!I57 -> 0.03890489914 | J14: ='MPG-2, pg 4'!J57 -> 0.03410435718 | K14: ='MPG-2, pg 4'!K57 -> 0.0346961059 | L14: ='MPG-2, pg 4'!L57 -> 0.03561420858 | M14: ='MPG-2, pg 4'!M57 -> 0.03064392139 | N14: ='MPG-2, pg 4'!N57 -> 0.0338179036 | O14: ='MPG-2, pg 4'!O57 -> 0.03153833879 | P14: ='MPG-2, pg 4'!P57 -> 0.03432828135 | Q14: ='MPG-2, pg 4'!Q57 -> 0.03709624483 | R14: ='MPG-2, pg 4'!R57 -> 0.03686307153 | S14: ='MPG-2, pg 4'!S57 -> 0.03844954796 | T14: ='MPG-2, pg 4'!T57 -> 0.04166549365 | U14: ='MPG-2, pg 4'!U57 -> 0.04459391665 | V14: ='MPG-2, pg 4'!V57 -> 0.04775491226 | W14: ='MPG-2, pg 4'!W57 -> 0.05202294955 | X14: ='MPG-2, pg 4'!X57 -> 0.04236086494 | Y14: ='MPG-2, pg 4'!Y57 -> 0.03455914931 | Z14: ='MPG-2, pg 4'!Z57 -> 0.03647273369 | AA14: ='MPG-2, pg 4'!AA57 -> 0.03327208274 | AB14: ='MPG-2, pg 4'!AB57 -> 0.03500180014 | AC14: ='MPG-2, pg 4'!AC57 -> 0.03856971606 | AD14: ='MPG-2, pg 4'!AD57 -> 0.04869949214 | AE14: ='MPG-2, pg 4'!AE57 -> 0.03800810855
C15: =IF(ISERROR(D15),"",IF(D15="","",MAX($C$12:C14)+1)) -> 
C16: =IF(ISERROR(D16),"",IF(D16="","",MAX($C$12:C15)+1)) -> 3 | D16: 30-Yr Treasury Yields | F16: =AVERAGE(G16:Z16) -> 0.03498815431 | G16: =VLOOKUP(G$8,'Implied Inflation'!$B$13:$G$36,6,0) -> 0.04788088235 | H16: =VLOOKUP(H$8,'Implied Inflation'!$B$13:$G$36,6,0) -> 0.0440728 | I16: =VLOOKUP(I$8,'Implied Inflation'!$B$13:$G$36,6,0) -> 0.040948 | J16: =VLOOKUP(J$8,'Implied Inflation'!$B$13:$G$36,6,0) -> 0.0311313253 | K16: =VLOOKUP(K$8,'Implied Inflation'!$B$13:$G$36,6,0) -> 0.02055577689 | L16: =VLOOKUP(L$8,'Implied Inflation'!$B$13:$G$36,6,0) -> 0.01556135458 | M16: =VLOOKUP(M$8,'Implied Inflation'!$B$13:$G$36,6,0) -> 0.025804 | N16: =VLOOKUP(N$8,'Implied Inflation'!$B$13:$G$36,6,0) -> 0.03111566265 | O16: =VLOOKUP(O$8,'Implied Inflation'!$B$13:$G$36,6,0) -> 0.0289404 | P16: =VLOOKUP(P$8,'Implied Inflation'!$B$13:$G$36,6,0) -> 0.025944 | Q16: =VLOOKUP(Q$8,'Implied Inflation'!$B$13:$G$36,6,0) -> 0.02840996016 | R16: =VLOOKUP(R$8,'Implied Inflation'!$B$13:$G$36,6,0) -> 0.0333816 | S16: =VLOOKUP(S$8,'Implied Inflation'!$B$13:$G$36,6,0) -> 0.0344616 | T16: =VLOOKUP(T$8,'Implied Inflation'!$B$13:$G$36,6,0) -> 0.0292168 | U16: =VLOOKUP(U$8,'Implied Inflation'!$B$13:$G$36,6,0) -> 0.039108 | V16: =VLOOKUP(V$8,'Implied Inflation'!$B$13:$G$36,6,0) -> 0.04251075697 | W16: =VLOOKUP(W$8,'Implied Inflation'!$B$13:$G$36,6,0) -> 0.0407668 | X16: =VLOOKUP(X$8,'Implied Inflation'!$B$13:$G$36,6,0) -> 0.0427752988 | Y16: =VLOOKUP(Y$8,'Implied Inflation'!$B$13:$G$36,6,0) -> 0.04838286853 | Z16: =VLOOKUP(Z$8,'Implied Inflation'!$B$13:$G$36,6,0) -> 0.0487952 | AA16: =IFERROR(AVERAGE(L16:N16),"N/A") -> 0.02416033908 | AB16: =IFERROR(AVERAGE(O16:Q16),"N/A") -> 0.02776478672 | AC16: =IFERROR(AVERAGE(R16:T16),"N/A") -> 0.03235333333 | AD16: =IFERROR(AVERAGE(U16:W16),"N/A") -> 0.04079518566 | AE16: =IFERROR(AVERAGE(X16:Z16),"N/A") -> 0.04665112244
C17: =IF(ISERROR(D17),"",IF(D17="","",MAX($C$12:C16)+1)) -> 4 | D17: 20-Yr Treasury Yields3 | F17: =AVERAGE(G17:Z17) -> 0.03389791667 | G17: =VLOOKUP(G$8,'Implied Inflation'!$B$13:$F$36,3,0) -> 0.04806666667 | H17: =VLOOKUP(H$8,'Implied Inflation'!$B$13:$F$36,3,0) -> 0.045 | I17: =VLOOKUP(I$8,'Implied Inflation'!$B$13:$F$36,3,0) -> 0.04254166667 | J17: =VLOOKUP(J$8,'Implied Inflation'!$B$13:$F$36,3,0) -> 0.03299166667 | K17: =VLOOKUP(K$8,'Implied Inflation'!$B$13:$F$36,3,0) -> 0.019775 | L17: =VLOOKUP(L$8,'Implied Inflation'!$B$13:$F$36,3,0) -> 0.01353333333 | M17: =VLOOKUP(M$8,'Implied Inflation'!$B$13:$F$36,3,0) -> 0.02403333333 | N17: =VLOOKUP(N$9,'Implied Inflation'!$B$13:$F$36,3,0) -> 0.03018333333 | O17: =VLOOKUP(O$9,'Implied Inflation'!$B$13:$F$36,3,0) -> 0.026525 | P17: =VLOOKUP(P$9,'Implied Inflation'!$B$13:$F$36,3,0) -> 0.02225 | Q17: =VLOOKUP(Q$9,'Implied Inflation'!$B$13:$F$36,3,0) -> 0.02546666667 | R17: =VLOOKUP(R$9,'Implied Inflation'!$B$13:$F$36,3,0) -> 0.03074166667 | S17: =VLOOKUP(S$9,'Implied Inflation'!$B$13:$F$36,3,0) -> 0.03119166667 | T17: =VLOOKUP(T$9,'Implied Inflation'!$B$13:$F$36,3,0) -> 0.02544166667 | U17: =VLOOKUP(U$9,'Implied Inflation'!$B$13:$F$36,3,0) -> 0.03620833333 | V17: =VLOOKUP(V$9,'Implied Inflation'!$B$13:$F$36,3,0) -> 0.0403 | W17: =VLOOKUP(W$9,'Implied Inflation'!$B$13:$F$36,3,0) -> 0.041075 | X17: =VLOOKUP(X$9,'Implied Inflation'!$B$13:$F$36,3,0) -> 0.043625 | Y17: =VLOOKUP(Y$9,'Implied Inflation'!$B$13:$F$36,3,0) -> 0.04908333333 | Z17: =VLOOKUP(Z$9,'Implied Inflation'!$B$13:$F$36,3,0) -> 0.049925 | AA17: =IFERROR(AVERAGE(L17:N17),"N/A") -> 0.02258333333 | AB17: =IFERROR(AVERAGE(O17:Q17),"N/A") -> 0.02474722222 | AC17: =IFERROR(AVERAGE(R17:T17),"N/A") -> 0.029125 | AD17: =IFERROR(AVERAGE(U17:W17),"N/A") -> 0.03919444444 | AE17: =IFERROR(AVERAGE(X17:Z17),"N/A") -> 0.04754444444
C18: =IF(ISERROR(D18),"",IF(D18="","",MAX($C$12:C17)+1)) -> 5 | D18: 20-Yr TIPS3 | F18: =AVERAGE(G18:Z18) -> 0.01179791667 | G18: =VLOOKUP(G$8,'Implied Inflation'!$B$13:$F$36,4,0) -> 0.02358333333 | H18: =VLOOKUP(H$8,'Implied Inflation'!$B$13:$F$36,4,0) -> 0.020625 | I18: =VLOOKUP(I$8,'Implied Inflation'!$B$13:$F$36,4,0) -> 0.01728333333 | J18: =VLOOKUP(J$8,'Implied Inflation'!$B$13:$F$36,4,0) -> 0.006441666667 | K18: =VLOOKUP(K$8,'Implied Inflation'!$B$13:$F$36,4,0) -> -0.004308333333 | L18: =VLOOKUP(L$8,'Implied Inflation'!$B$13:$F$36,4,0) -> -0.003033333333 | M18: =VLOOKUP(M$8,'Implied Inflation'!$B$13:$F$36,4,0) -> 0.006 | N18: =VLOOKUP(N$9,'Implied Inflation'!$B$13:$F$36,4,0) -> 0.00935 | O18: =VLOOKUP(O$9,'Implied Inflation'!$B$13:$F$36,4,0) -> 0.007458333333 | P18: =VLOOKUP(P$9,'Implied Inflation'!$B$13:$F$36,4,0) -> 0.006575 | Q18: =VLOOKUP(Q$9,'Implied Inflation'!$B$13:$F$36,4,0) -> 0.007833333333 | R18: =VLOOKUP(R$9,'Implied Inflation'!$B$13:$F$36,4,0) -> 0.008658333333 | S18: =VLOOKUP(S$9,'Implied Inflation'!$B$13:$F$36,4,0) -> 0.007516666667 | T18: =VLOOKUP(T$9,'Implied Inflation'!$B$13:$F$36,4,0) -> 0.002133333333 | U18: =VLOOKUP(U$9,'Implied Inflation'!$B$13:$F$36,4,0) -> 0.01191666667 | V18: =VLOOKUP(V$9,'Implied Inflation'!$B$13:$F$36,4,0) -> 0.01731666667 | W18: =VLOOKUP(W$9,'Implied Inflation'!$B$13:$F$36,4,0) -> 0.02213333333 | X18: =VLOOKUP(X$9,'Implied Inflation'!$B$13:$F$36,4,0) -> 0.02185 | Y18: =VLOOKUP(Y$9,'Implied Inflation'!$B$13:$F$36,4,0) -> 0.02355 | Z18: =VLOOKUP(Z$9,'Implied Inflation'!$B$13:$F$36,4,0) -> 0.023075 | AA18: =IFERROR(AVERAGE(L18:N18),"N/A") -> 0.004105555556 | AB18: =IFERROR(AVERAGE(O18:Q18),"N/A") -> 0.007288888889 | AC18: =IFERROR(AVERAGE(R18:T18),"N/A") -> 0.006102777778 | AD18: 0.01712222222 | AE18: =IFERROR(AVERAGE(X18:Z18),"N/A") -> 0.022825
C19: =IF(ISERROR(D19),"",IF(D19="","",MAX($C$12:C18)+1)) -> 6 | D19: Implied Inflationb | F19: =AVERAGE(G19:Z19) -> 0.02183279019 | G19: =(1+G17)/(1+G18)-1 -> 0.02391923797 | H19: =(1+H17)/(1+H18)-1 -> 0.02388242498 | I19: =(1+I17)/(1+I18)-1 -> 0.02482920196 | J19: =(1+J17)/(1+J18)-1 -> 0.02638006839 | K19: 0.02418754132 | L19: 0.01661707178 | M19: 0.01792577866 | N19: 0.0206403461 | O19: 0.01892551388 | P19: 0.01557261009 | Q19: 0.01749627915 | R19: 0.02189376978 | S19: 0.02349837058 | T19: 0.02325871474 | U19: 0.02400559993 | V19: 0.02259211324 | W19: 0.01853150274 | X19: 0.02130938983 | Y19: 0.02494585837 | Z19: 0.02624441023 | AA19: 0.01839439885 | AB19: 0.0173314677 | AC19: 0.02288361837 | AD19: 0.02170973864 | AE19: 0.02416655281
C21: =IF(ISERROR(D21),"",IF(D21="","",MAX($C$12:C19)+1)) -> 7 | D21: Real Dividend Yieldc | F21: =(1+F13)/(1+F19)-1 -> 0.01598401862 | G21: =(1+G13)/(1+G19)-1 -> 0.01295644874 | H21: =(1+H13)/(1+H19)-1 -> 0.0134379224 | I21: 0.01300656935 | J21: 0.007407921968 | K21: 0.01043775177 | L21: 0.01846335535 | M21: 0.0137536825 | N21: =(1+N13)/(1+N19)-1 -> 0.01464981338 | O21: 0.01435842874 | P21: 0.0189073383 | Q21: 0.01920238768 | R21: 0.01434657992 | S21: 0.01477175908 | T21: 0.01810152394 | U21: 0.0185842718 | V21: 0.02330218046 | W21: 0.03241990104 | X21: 0.0207417263 | Y21: 0.01022388618 | Z21: 0.01079105961 | AA21: 0.01547517834 | AB21: 0.01751287047 | AC21: 0.01574049848 | AD21: 0.02418694183 | AE21: 0.0138448294
C22: =IF(ISERROR(D22),"",IF(D22="","",MAX($C$12:C20)+1)) -> 
D23: A-Rated Utility
C24: =IF(ISERROR(D24),"",IF(D24="","",MAX($C$12:C22)+1)) -> 8 | D24: Nominal "A" Rated Yield4 | F24: =AVERAGE(G24:Z24) -> 0.04800802974 | G24: =VLOOKUP(G8,'A-Rated Yields (WP)'!$B$6:$C$51,2,FALSE) -> 0.0587 | H24: =VLOOKUP(2024,'A-Rated Yields (WP)'!$B$6:$C$50,2,FALSE) -> 0.0554 | I24: =VLOOKUP(2023,'A-Rated Yields (WP)'!$B$6:$C$50,2,FALSE) -> 0.0555 | J24: =VLOOKUP(2022,'A-Rated Yields (WP)'!$B$6:$C$50,2,FALSE) -> 0.0474 | K24: =VLOOKUP(2021,'A-Rated Yields (WP)'!$B$6:$C$50,2,FALSE) -> 0.03102870207 | L24: =VLOOKUP(L9,'A-Rated Yields (WP)'!$B$6:$C$50,2,FALSE) -> 0.03052526349 | M24: =VLOOKUP(M9,'A-Rated Yields (WP)'!$B$6:$C$50,2,FALSE) -> 0.03767404752 | N24: =VLOOKUP(N9,'A-Rated Yields (WP)'!$B$6:$C$50,2,FALSE) -> 0.04250229382 | O24: =VLOOKUP(O9,'A-Rated Yields (WP)'!$B$6:$C$50,2,FALSE) -> 0.03998876166 | P24: =VLOOKUP(P9,'A-Rated Yields (WP)'!$B$6:$C$50,2,FALSE) -> 0.03930199127 | Q24: =VLOOKUP(Q9,'A-Rated Yields (WP)'!$B$6:$C$50,2,FALSE) -> 0.04115396759 | R24: =VLOOKUP(R9,'A-Rated Yields (WP)'!$B$6:$C$50,2,FALSE) -> 0.04277409402 | S24: =VLOOKUP(S9,'A-Rated Yields (WP)'!$B$6:$C$50,2,FALSE) -> 0.04475970748 | T24: =VLOOKUP(T9,'A-Rated Yields (WP)'!$B$6:$C$50,2,FALSE) -> 0.04130856422 | U24: =VLOOKUP(U9,'A-Rated Yields (WP)'!$B$6:$C$50,2,FALSE) -> 0.05040715727 | V24: =VLOOKUP(V9,'A-Rated Yields (WP)'!$B$6:$C$50,2,FALSE) -> 0.05464437773 | W24: =VLOOKUP(W9,'A-Rated Yields (WP)'!$B$6:$C$50,2,FALSE) -> 0.06039166667 | X24: =VLOOKUP(X9,'A-Rated Yields (WP)'!$B$6:$C$50,2,FALSE) -> 0.06528333333 | Y24: =VLOOKUP(Y9,'A-Rated Yields (WP)'!$B$6:$C$50,2,FALSE) -> 0.06073333333 | Z24: =VLOOKUP(Z9,'A-Rated Yields (WP)'!$B$6:$C$50,2,FALSE) -> 0.06068333333 | AA24: =IFERROR(AVERAGE(L24:N24),"N/A") -> 0.03690053494 | AB24: =IFERROR(AVERAGE(O24:Q24),"N/A") -> 0.04014824017 | AC24: =IFERROR(AVERAGE(R24:T24),"N/A") -> 0.04294745524 | AD24: =IFERROR(AVERAGE(U24:W24),"N/A") -> 0.05514773389 | AE24: =IFERROR(AVERAGE(X24:Z24),"N/A") -> 0.06223333333
C25: =IF(ISERROR(D25),"",IF(D25="","",MAX($C$12:C24)+1)) -> 9 | D25: Real "A" Rated Yield | F25: =AVERAGE(G25:Z25) -> 0.02561147211 | G25: =(1+G24)/(1+G19)-1 -> 0.03396826697 | H25: =(1+H24)/(1+H19)-1 -> 0.03078241627 | I25: =(1+I24)/(1+I19)-1 -> 0.02992771672 | J25: =(1+J24)/(1+J19)-1 -> 0.02047967634 | K25: 0.0066795977 | L25: 0.01368085594 | M25: 0.0194004998 | N25: 0.02141983491 | O25: 0.0206720192 | P25: 0.02336551907 | Q25: 0.02325088448 | R25: 0.02043296951 | S25: 0.02077320053 | T25: 0.01763957562 | U25: 0.02578262983 | V25: 0.03134413426 | W25: 0.04109854611 | X25: 0.0430564371 | Y25: 0.03491645405 | Z25: 0.03355820773 | AA25: 0.01817187537 | AB25: 0.02242806125 | AC25: 0.01961497527 | AD25: 0.03272749 | AE25: 0.03716854492
D27: Baa-Rated Utility
C28: =IF(ISERROR(D28),"",IF(D28="","",MAX($C$12:C26)+1)) -> 10 | D28: Nominal "Baa" Rated Yield | F28: =AVERAGE(G28:Z28) -> 0.05276393762 | G28: =VLOOKUP(G8,'Baa-Rated Yields (WP)'!$B$6:$C$51,2,FALSE) -> 0.0605 | H28: =VLOOKUP(2024,'Baa-Rated Yields (WP)'!$B$6:$C$50,2,FALSE) -> 0.0576 | I28: =VLOOKUP(2023,'Baa-Rated Yields (WP)'!$B$6:$C$50,2,FALSE) -> 0.0585 | J28: =VLOOKUP(2022,'Baa-Rated Yields (WP)'!$B$6:$C$50,2,FALSE) -> 0.0505 | K28: =VLOOKUP(2021,'Baa-Rated Yields (WP)'!$B$6:$C$50,2,FALSE) -> 0.03355220411 | L28: =VLOOKUP(L9,'Baa-Rated Yields (WP)'!$B$6:$C$50,2,FALSE) -> 0.03435106739 | M28: =VLOOKUP(M9,'Baa-Rated Yields (WP)'!$B$6:$C$50,2,FALSE) -> 0.04194267905 | N28: =VLOOKUP(N9,'Baa-Rated Yields (WP)'!$B$6:$C$50,2,FALSE) -> 0.04668750759 | O28: =VLOOKUP(O9,'Baa-Rated Yields (WP)'!$B$6:$C$50,2,FALSE) -> 0.04377426687 | P28: =VLOOKUP(P9,'Baa-Rated Yields (WP)'!$B$6:$C$50,2,FALSE) -> 0.04674638136 | Q28: =VLOOKUP(Q9,'Baa-Rated Yields (WP)'!$B$6:$C$50,2,FALSE) -> 0.05028074169 | R28: =VLOOKUP(R9,'Baa-Rated Yields (WP)'!$B$6:$C$50,2,FALSE) -> 0.04798378703 | S28: =VLOOKUP(S9,'Baa-Rated Yields (WP)'!$B$6:$C$50,2,FALSE) -> 0.04982134358 | T28: =VLOOKUP(T9,'Baa-Rated Yields (WP)'!$B$6:$C$50,2,FALSE) -> 0.04825689385 | U28: =VLOOKUP(U9,'Baa-Rated Yields (WP)'!$B$6:$C$50,2,FALSE) -> 0.05566181397 | V28: =VLOOKUP(V9,'Baa-Rated Yields (WP)'!$B$6:$C$50,2,FALSE) -> 0.05964506591 | W28: =VLOOKUP(W9,'Baa-Rated Yields (WP)'!$B$6:$C$50,2,FALSE) -> 0.07055 | X28: =VLOOKUP(X9,'Baa-Rated Yields (WP)'!$B$6:$C$50,2,FALSE) -> 0.07245833333 | Y28: =VLOOKUP(Y9,'Baa-Rated Yields (WP)'!$B$6:$C$50,2,FALSE) -> 0.0633 | Z28: =VLOOKUP(Z9,'Baa-Rated Yields (WP)'!$B$6:$C$50,2,FALSE) -> 0.06316666667 | AA28: =IFERROR(AVERAGE(L28:N28),"N/A") -> 0.04099375134 | AB28: =IFERROR(AVERAGE(O28:Q28),"N/A") -> 0.04693379664 | AC28: =IFERROR(AVERAGE(R28:T28),"N/A") -> 0.04868734149 | AD28: =IFERROR(AVERAGE(U28:W28),"N/A") -> 0.06195229329 | AE28: =IFERROR(AVERAGE(X28:Z28),"N/A") -> 0.06630833333
C29: =IF(ISERROR(D29),"",IF(D29="","",MAX($C$12:C28)+1)) -> 11 | D29: Real "Baa" Rated Yield | F29: =AVERAGE(G29:Z29) -> 0.03026993023 | G29: =(1+G28)/(1+G19)-1 -> 0.03572621812 | H29: 0.03293110048 | I29: 0.03285503377 | J29: 0.0235 | K29: 0.009143503906 | L29: 0.01744412533 | M29: =(1+M28)/(1+M19)-1 -> 0.02359396028 | N29: 0.02552041137 | O29: 0.02438721246 | P29: 0.03069575819 | Q29: 0.03222071983 | R29: 0.0255310464 | S29: 0.02571862716 | T29: 0.02442996942 | U29: 0.03091410246 | V29: 0.03623434231 | W29: 0.05107205533 | X29: 0.05008173234 | Y29: =(1+Y28)/(1+Y19)-1 -> 0.03742065136 | Z29: =(1+Z28)/(1+Z19)-1 -> 0.03597803415 | AA29: =(1+AA28)/(1+AA19)-1 -> 0.02219115946 | AB29: 0.02909801758 | AC29: 0.02522645065 | AD29: 0.03938746313 | AE29: 0.04114738995
D31: Spreads (A-Rated Utility Bond - Stock)
C32: =IF(ISERROR(D32),"",IF(D32="","",MAX($C$12:C31)+1)) -> 12 | D32: Nominal Spreadd | F32: =F24-F13 -> 0.00984224521 | G32: =G24-G13 -> 0.0215144049 | H32: =H24-H13 -> 0.01775872244 | I32: 0.01734128595 | J32: 0.01341658815 | K32: -0.003849054574 | L32: -0.004861970546 | M32: 0.005748040899 | N32: =N24-N13 -> 0.006909757118 | O32: 0.006433078405 | P32: =P24-P13 -> 0.004527606279 | Q32: 0.004119330429 | R32: 0.006219643603 | S32: 0.006142465552 | T32: -0.0004726926383 | U32: 0.007371158942 | V32: 0.008223638535 | W32: 0.008839473407 | X32: 0.02279022367 | Y32: 0.02530854517 | Z32: 0.0233646585 | AA32: 0.002746301158 | AB32: 0.005000378249 | AC32: 0.003963138839 | AD32: 0.00872596124 | AE32: 0.02388736932
C33: =IF(ISERROR(D33),"",IF(D33="","",MAX($C$12:C32)+1)) -> 13 | D33: Real Spreade | F33: =F25-F21 -> 0.009627453488 | G33: =G25-G21 -> 0.02101181822 | H33: =H25-H21 -> 0.01734449387 | I33: =I25-I21 -> 0.01692114737 | J33: =J25-J21 -> 0.01307175438 | K33: =K25-K21 -> -0.003758154067 | L33: -0.00478249941 | M33: 0.005646817302 | N33: 0.00677002153 | O33: 0.006313590462 | P33: 0.004458180768 | Q33: 0.004048496799 | R33: 0.006086389591 | S33: 0.006001441457 | T33: -0.0004619483142 | U33: 0.007198358039 | V33: 0.008041953804 | W33: 0.008678645072 | X33: 0.0223147108 | Y33: 0.02469256787 | Z33: 0.02276714812 | AA33: 0.002696697037 | AB33: 0.004915190779 | AC33: 0.003874476791 | AD33: 0.008540548172 | AE33: 0.02332371552
D35: Spreads (Baa-Rated Utility Bond - Stock)
C36: =IF(ISERROR(D36),"",IF(D36="","",MAX($C$12:C35)+1)) -> 14 | D36: Nominal Spreadb | F36: =F28-F13 -> 0.01459815309 | G36: =G28-G13 -> 0.0233144049 | H36: =H28-H13 -> 0.01995872244 | I36: 0.02034128595 | J36: 0.01651658815 | K36: -0.001325552534 | L36: -0.001036166642 | M36: 0.01001667242 | N36: =N28-N13 -> 0.0110949709 | O36: 0.01021858361 | P36: 0.01197199636 | Q36: 0.01324610453 | R36: 0.01142933661 | S36: 0.01120410165 | T36: 0.006475636989 | U36: 0.01262581565 | V36: 0.01322432671 | W36: 0.01899780674 | X36: 0.02996522367 | Y36: =Y28-Y13 -> 0.02787521183 | Z36: =Z28-Z13 -> 0.02584799183 | AA36: =AA28-AA13 -> 0.00683951756 | AB36: 0.01178593471 | AC36: 0.009703025083 | AD36: 0.01553052065 | AE36: 0.02796236932
C37: =IF(ISERROR(D37),"",IF(D37="","",MAX($C$12:C36)+1)) -> 15 | D37: Real Spreadc | F37: =F29-F21 -> 0.01428591161 | G37: 0.02276976937 | H37: 0.01949317808 | I37: 0.01984846442 | J37: 0.01609207803 | K37: -0.001294247861 | L37: =L29-L21 -> -0.001019230024 | M37: 0.009840277779 | N37: 0.01087059799 | O37: 0.01002878372 | P37: 0.0117884199 | Q37: 0.01301833216 | R37: 0.01118446648 | S37: 0.01094686809 | T37: 0.006328445481 | U37: 0.01232983067 | V37: 0.01293216185 | W37: 0.01865215429 | X37: 0.02934000604 | Y37: =Y29-Y21 -> 0.02719676518 | Z37: =Z29-Z21 -> 0.02518697454 | AA37: =AA29-AA21 -> 0.006715981124 | AB37: 0.01158514711 | AC37: 0.009485952174 | AD37: 0.0152005213 | AE37: 0.02730256055
C38: =IF(ISERROR(D38),"",IF(D38="","",MAX($C$12:C33)+1)) -> 
D39: Spreads (20-Yr Treasury Bond - Stock)
C40: =IF(ISERROR(D40),"",IF(D40="","",MAX($C$12:C39)+1)) -> 16 | D40: Nominalf | F40: =F17-F13 -> -0.004267867864 | G40: =G17-G13 -> 0.01088107157 | H40: =H17-H13 -> 0.007358722444 | I40: =I17-I13 -> 0.004382952618 | J40: =J17-J13 -> -0.0009917451825 | K40: =K17-K13 -> -0.01510275664 | L40: -0.0218539007 | M40: -0.007892673292 | N40: -0.005409203364 | O40: -0.007030683258 | P40: -0.01252438499 | Q40: -0.01156797049 | R40: -0.005812783752 | S40: -0.007425575261 | T40: -0.01633959019 | U40: -0.00682766499 | V40: -0.006120739198 | W40: -0.01047719326 | X40: 0.001131890335 | Y40: 0.01365854517 | Z40: 0.01260632516 | AA40: -0.01157090045 | AB40: -0.0104006397 | AC40: -0.009859316402 | AD40: -0.007227328204 | AE40: 0.009198480432
C41: =IF(ISERROR(D41),"",IF(D41="","",MAX($C$12:C40)+1)) -> 17 | D41: Realg | F41: =F18-F21 -> -0.004186101953 | G41: =G18-G21 -> 0.01062688459 | H41: =H18-H21 -> 0.007187077602 | I41: =I18-I21 -> 0.004276763981 | J41: =J18-J21 -> -0.0009662553015 | K41: -0.0147460851 | L41: -0.02149668868 | M41: -0.007753682496 | N41: -0.005299813382 | O41: -0.006900095406 | P41: -0.0123323383 | Q41: -0.01136905435 | R41: -0.00568824659 | S41: -0.007255092411 | T41: -0.0159681906 | U41: -0.006667605129 | V41: -0.005985513793 | W41: -0.0102865677 | X41: 0.001108273699 | Y41: 0.01332611382 | Z41: 0.01228394039 | AA41: -0.01136962278 | AB41: -0.01022398158 | AC41: -0.009637720697 | AD41: -0.007064719603 | AE41: 0.0089801706
D43: Spreads (30-Yr Treasury Bond - Stock)
C44: =IF(ISERROR(D44),"",IF(D44="","",MAX($C$11:C42)+1)) -> 18 | D44: Nominalh | F44: =F16-F13 -> -0.003177630219 | G44: =G16-G13 -> 0.01069528726 | H44: =H16-H13 -> 0.006431522444 | I44: 0.002789285951 | J44: -0.002852086548 | K44: -0.01432197975 | L44: -0.01982587945 | M44: -0.006122006625 | N44: -0.004476874047 | O44: -0.004615283258 | P44: -0.008830384993 | Q44: -0.008624677001 | R44: -0.003172850418 | S44: -0.004155641927 | T44: -0.01256445686 | U44: -0.003927998323 | V44: -0.003909982226 | W44: -0.01078539326 | X44: 0.00028218914 | Y44: 0.01295808036 | Z44: 0.01147652516 | AA44: -0.009993894708 | AB44: -0.007383075206 | AC44: -0.006630983068 | AD44: -0.005626586991 | AE44: 0.008305158432
D69: Sources:
D70: 1 | E70: ='MPG-2, pgs 1-3'!E61 -> Data for years 2019 and prior were retrieved from the Value Line Investment Survey Investment Analyzer Software, downloaded on June 18, 2021.
E71: ='MPG-2, pgs 1-3'!E62 -> Data for the years 2020 - 2024 was retrieved from Value Line Investment Surveys.
D72: 2 | E72: ="The Value Line Investment Survey, "&'2025 Data (WP)'!$D$1 -> The Value Line Investment Survey, May 9, June 6, and July 18, 2025.
D73: 3 | E73: St. Louis Federal Reserve: Economic Research, http://research.stlouisfed.org.
D74: 4 | E74: ="Mergent Bond Record, through "&'A-Rated Yields (WP)'!$E$1&"." -> Mergent Bond Record, through June 30, 2025.
D75: Notes:
D76: a | E76: Based on the average of the high and low price and the projected Dividends Declared per share, published in the Value Line Investment Survey.
D77: b | E77: Line 6 = (1 + Line 4) / (1 + Line 5) - 1.
D78: c | E78: Line 7 = (1 + Line 1) / (1 +Line 6) - 1.
D79: d | E79: The spread being measured here is the nominal A-rated utility bond yield over the average nominal utility dividend yield; (Line 8 - Line 1).
D80: e | E80: The spread being measured here is the real A-rated utility bond yield over the average real utility dividend yield; Line 9 - Line 7)
D81: f | E81: The spread being measured here is the nominal 20-Year Treasury yield over the average nominal utility dividend yield; (Line 4 - Line 1).
D82: g | E82: The spread being measured here is the real 20-Year TIPS yield over the average real utility dividend yield; Line 7 - Line 5)
D83: h | E83: The spread being measured here is the nominal utility dividend yield over the nominal 30-Year Treasury yield; (Line 3 - Line 1).

Sheet MPG-2, pg 6
C1: =ElectricU -> Kentucky Utilities Company / Louisville Gas & Electric Company
C3: Electric Utilities
C4: (Valuation Metrics)
F7: Dividend per Share1
A8: Ticker | B8: Match | F8: 20-Year | M8: 2017 | AA8: 3-Year Averages
A9: Lookup: | B9: Row | C9: Line | D9: Company | F9: Average | G9: 20252 | H9: 2024 | I9: 2023 | J9: 2022 | K9: 2021 | L9: 2020 | M9: 2019 | N9: 2018 | O9: 2017 | P9: 2016 | Q9: 2015 | R9: 2014 | S9: 2013 | T9: 2012 | U9: 2011 | V9: 2010 | W9: 2009 | X9: 2008 | Y9: 2007 | Z9: 2006 | AA9: 2018-2020 | AB9: 2015-2017 | AC9: 2012-2014 | AD9: 2009-2011 | AE9: 2006-2008
F10: =-1 -> -1 | G10: =+F10-1 -> -2 | H10: -3 | I10: -4 | J10: =+I10-1 -> -5 | K10: =+J10-1 -> -6 | AA10: =MIN($F$10:Z10)-1 -> -7 | AB10: =MIN($F$10:AA10)-1 -> -8 | AC10: =MIN($F$10:AB10)-1 -> -9 | AD10: =MIN($F$10:AC10)-1 -> -10 | AE10: =MIN($F$10:AD10)-1 -> -11
D11: 2 | L11: =MATCH(L9,OFFSET(Dividends,-2,0,1,),0) -> 2 | M11: 3 | N11: 4 | O11: 5 | P11: 6 | Q11: 7 | R11: 8 | S11: 9 | T11: 10 | U11: 11 | V11: 12 | W11: 13 | X11: 14 | Y11: 15 | Z11: 16
A12: ALE | B12: =IFERROR(MATCH(A12,OFFSET(Dividends,0,0,,1),0),"") -> 3 | C12: =IF(ISERROR(D12),"",IF(D12="","",MAX($C$11:C11)+1)) -> 1 | D12: =VLOOKUP(A12,LUCurYr,2,FALSE) -> ALLETE | F12: =IFERROR(AVERAGE(G12:Z12),"N/A") -> 2.135 | G12: =IFERROR(IF(VLOOKUP($A12,Data2025,10,FALSE)=0,"",VLOOKUP($A12,Data2025,10,FALSE)),"N/A") -> 2.94 | H12: =IFERROR(IF(VLOOKUP($A12,Data2024,10,FALSE)=0,"",VLOOKUP($A12,Data2024,10,FALSE)),"N/A") -> 2.82 | I12: =IFERROR(IF(VLOOKUP($A12,Data2023,10,FALSE)=0,"",VLOOKUP($A12,Data2023,10,FALSE)),"N/A") -> 2.71 | J12: =IFERROR(IF(VLOOKUP($A12,Data2022,9,FALSE)=0,"",VLOOKUP($A12,Data2022,9,FALSE)),"N/A") -> 2.6 | K12: =IFERROR(IF(VLOOKUP(A12,lucyyr,9,FALSE)=0,"",VLOOKUP(A12,lucyyr,9,FALSE)),"N/A") -> 2.52 | L12: =IFERROR(IF(INDEX(Dividends,$B12,L$11)=0,"N/A",INDEX(Dividends,$B12,L$11)),"N/A") -> 2.47 | M12: 2.35 | N12: 2.24 | O12: 2.14 | P12: 2.08 | Q12: 2.02 | R12: 1.96 | S12: 1.9 | T12: 1.84 | U12: 1.78 | V12: 1.76 | W12: 1.76 | X12: 1.72 | Y12: 1.64 | Z12: 1.45 | AA12: =IFERROR(AVERAGE(L12:N12),"N/A") -> 2.353333333 | AB12: =IFERROR(AVERAGE(O12:Q12),"N/A") -> 2.08 | AC12: =IFERROR(AVERAGE(R12:T12),"N/A") -> 1.9 | AD12: =IFERROR(AVERAGE(U12:W12),"N/A") -> 1.766666667 | AE12: =IFERROR(AVERAGE(X12:Z12),"N/A") -> 1.603333333
A13: LNT | B13: 4 | C13: =IF(ISERROR(D13),"",IF(D13="","",MAX($C$11:C12)+1)) -> 2 | D13: Alliant Energy | F13: =IFERROR(AVERAGE(G13:Z13),"N/A") -> 1.2035 | G13: 2.04 | H13: 1.92 | I13: 1.81 | J13: 1.71 | K13: 1.61 | L13: 1.52 | M13: 1.42 | N13: 1.34 | O13: 1.26 | P13: 1.18 | Q13: 1.1 | R13: 1.02 | S13: 0.94 | T13: 0.9 | U13: 0.85 | V13: 0.79 | W13: 0.75 | X13: 0.7 | Y13: 0.635 | Z13: 0.575 | AA13: =IFERROR(AVERAGE(L13:N13),"N/A") -> 1.426666667 | AB13: =IFERROR(AVERAGE(O13:Q13),"N/A") -> 1.18 | AC13: =IFERROR(AVERAGE(R13:T13),"N/A") -> 0.9533333333 | AD13: 0.7966666667 | AE13: =IFERROR(AVERAGE(X13:Z13),"N/A") -> 0.6366666667
A14: AEE | B14: 8 | C14: =IF(ISERROR(D14),"",IF(D14="","",MAX($C$11:C13)+1)) -> 3 | D14: Ameren Corp. | F14: 2.02955 | G14: 2.85 | H14: 2.68 | I14: 2.52 | J14: 2.36 | K14: 2.2 | L14: 2 | M14: 1.92 | N14: 1.848 | O14: 1.778 | P14: 1.715 | Q14: 1.655 | R14: 1.61 | S14: 1.6 | T14: 1.6 | U14: 1.555 | V14: 1.54 | W14: 1.54 | X14: 2.54 | Y14: 2.54 | Z14: 2.54 | AA14: 1.922666667 | AB14: 1.716 | AC14: 1.603333333 | AD14: 1.545 | AE14: 2.54
A15: AEP | B15: 5 | C15: =IF(ISERROR(D15),"",IF(D15="","",MAX($C$11:C14)+1)) -> 4 | D15: American Electric Power | F15: 2.379 | G15: 3.8 | H15: 3.57 | I15: 3.37 | J15: 3.17 | K15: 3 | L15: 2.84 | M15: 2.71 | N15: 2.53 | O15: 2.39 | P15: 2.27 | Q15: 2.15 | R15: 2.03 | S15: 1.95 | T15: 1.88 | U15: 1.85 | V15: 1.71 | W15: 1.64 | X15: 1.64 | Y15: 1.58 | Z15: 1.5 | AA15: 2.693333333 | AB15: 2.27 | AC15: 1.953333333 | AD15: 1.733333333 | AE15: 1.573333333
A16: AGR | B16: 13 | C16: =IF(ISERROR(D16),"",IF(D16="","",MAX($C$11:C15)+1)) -> 5 | D16: Avangrid, Inc. | F16: 1.75 | G16: N/A | H16: N/A | I16: 1.76 | J16: 1.76 | K16: 1.76 | L16: 1.76 | M16: 1.76 | N16: 1.744 | O16: 1.728 | P16: 1.728 | Q16: N/A | R16: N/A | S16: N/A | T16: N/A | U16: N/A | V16: N/A | W16: N/A | X16: N/A | Y16: N/A | Z16: N/A | AA16: 1.754666667 | AB16: 1.728 | AC16: N/A | AD16: N/A | AE16: N/A
A17: AVA | B17: 14 | C17: =IF(ISERROR(D17),"",IF(D17="","",MAX($C$11:C16)+1)) -> 6 | D17: Avista Corp. | F17: 1.31925 | G17: 2 | H17: 1.9 | I17: 1.84 | J17: 1.76 | K17: 1.69 | L17: 1.62 | M17: 1.55 | N17: 1.49 | O17: 1.43 | P17: 1.37 | Q17: 1.32 | R17: 1.27 | S17: 1.22 | T17: 1.16 | U17: 1.1 | V17: 1 | W17: 0.81 | X17: 0.69 | Y17: 0.595 | Z17: 0.57 | AA17: 1.553333333 | AB17: 1.373333333 | AC17: 1.216666667 | AD17: 0.97 | AE17: 0.6183333333
A18: BKH | B18: 15 | C18: =IF(ISERROR(D18),"",IF(D18="","",MAX($C$11:C17)+1)) -> 7 | D18: Black Hills | F18: 1.8365 | G18: 2.7 | H18: 2.6 | I18: 2.5 | J18: 2.41 | K18: 2.29 | L18: 2.17 | M18: 2.05 | N18: 1.93 | O18: 1.81 | P18: 1.68 | Q18: 1.62 | R18: 1.56 | S18: 1.52 | T18: 1.48 | U18: 1.46 | V18: 1.44 | W18: 1.42 | X18: 1.4 | Y18: 1.37 | Z18: 1.32 | AA18: 2.05 | AB18: 1.703333333 | AC18: 1.52 | AD18: 1.44 | AE18: 1.363333333
A19: CNP | B19: 17 | C19: =IF(ISERROR(D19),"",IF(D19="","",MAX($C$11:C18)+1)) -> 8 | D19: CenterPoint Energy | F19: 0.85155 | G19: 0.89 | H19: 0.81 | I19: 0.77 | J19: 0.72 | K19: 0.66 | L19: 0.9 | M19: 0.863 | N19: 1.12 | O19: 1.348 | P19: 1.03 | Q19: 0.99 | R19: 0.95 | S19: 0.83 | T19: 0.81 | U19: 0.79 | V19: 0.78 | W19: 0.76 | X19: 0.73 | Y19: 0.68 | Z19: 0.6 | AA19: 0.961 | AB19: 1.122666667 | AC19: 0.8633333333 | AD19: 0.7766666667 | AE19: 0.67
A20: CMS | B20: 19 | C20: =IF(ISERROR(D20),"",IF(D20="","",MAX($C$11:C19)+1)) -> 9 | D20: CMS Energy Corp. | F20: 1.247368421 | G20: 2.17 | H20: 2.06 | I20: 1.95 | J20: 1.84 | K20: 1.74 | L20: 1.63 | M20: 1.53 | N20: 1.43 | O20: 1.33 | P20: 1.24 | Q20: 1.16 | R20: 1.08 | S20: 1.02 | T20: 0.96 | U20: 0.84 | V20: 0.66 | W20: 0.5 | X20: 0.36 | Y20: 0.2 | Z20: N/A | AA20: 1.53 | AB20: 1.243333333 | AC20: 1.02 | AD20: 0.6666666667 | AE20: 0.28
A21: ED | B21: 21 | C21: =IF(ISERROR(D21),"",IF(D21="","",MAX($C$11:C20)+1)) -> 10 | D21: Consol. Edison | F21: 2.732 | G21: 3.4 | H21: 3.32 | I21: 3.24 | J21: 3.16 | K21: 3.1 | L21: 3.06 | M21: 2.96 | N21: 2.86 | O21: 2.76 | P21: 2.68 | Q21: 2.6 | R21: 2.52 | S21: 2.46 | T21: 2.42 | U21: 2.4 | V21: 2.38 | W21: 2.36 | X21: 2.34 | Y21: 2.32 | Z21: 2.3 | AA21: 2.96 | AB21: 2.68 | AC21: 2.466666667 | AD21: 2.38 | AE21: 2.32
A22: D | B22: 24 | C22: =IF(ISERROR(D22),"",IF(D22="","",MAX($C$11:C21)+1)) -> 11 | D22: Dominion Resources | F22: 2.44075 | G22: 2.67 | H22: 2.67 | I22: 2.67 | J22: 2.67 | K22: 2.52 | L22: 3.45 | M22: 3.67 | N22: 3.34 | O22: 3.035 | P22: =IFERROR(IF(INDEX(Dividends,$B22,P$11)=0,"N/A",INDEX(Dividends,$B22,P$11)),"N/A") -> 2.8 | Q22: 2.59 | R22: 2.4 | S22: 2.25 | T22: 2.11 | U22: 1.97 | V22: 1.83 | W22: 1.75 | X22: 1.58 | Y22: 1.46 | Z22: 1.38 | AA22: 3.486666667 | AB22: 2.808333333 | AC22: 2.253333333 | AD22: 1.85 | AE22: 1.473333333
A23: DTE | B23: 25 | C23: =IF(ISERROR(D23),"",IF(D23="","",MAX($C$11:C22)+1)) -> 12 | D23: DTE Energy | F23: 3.06575 | G23: 4.41 | H23: 4.15 | I23: 3.88 | J23: 3.54 | K23: 3.88 | L23: 4.12 | M23: 3.85 | N23: 3.59 | O23: 3.36 | P23: 3.06 | Q23: 2.84 | R23: 2.69 | S23: 2.59 | T23: 2.42 | U23: 2.32 | V23: 2.18 | W23: 2.12 | X23: 2.12 | Y23: 2.12 | Z23: 2.075 | AA23: 3.853333333 | AB23: 3.086666667 | AC23: 2.566666667 | AD23: 2.206666667 | AE23: 2.105
A24: DUK | B24: 26 | C24: =IF(ISERROR(D24),"",IF(D24="","",MAX($C$11:C23)+1)) -> 13 | D24: Duke Energy | F24: 3.412894737 | G24: 4.22 | H24: 4.14 | I24: 4.06 | J24: 3.98 | K24: 3.9 | L24: 3.82 | M24: 3.745 | N24: 3.64 | O24: 3.49 | P24: 3.36 | Q24: 3.24 | R24: 3.15 | S24: 3.09 | T24: 3.03 | U24: 2.97 | V24: 2.91 | W24: 2.82 | X24: 2.7 | Y24: 2.58 | Z24: N/A | AA24: 3.735 | AB24: 3.363333333 | AC24: 3.09 | AD24: 2.9 | AE24: 2.64
A25: EIX | B25: 27 | C25: =IF(ISERROR(D25),"",IF(D25="","",MAX($C$11:C24)+1)) -> 14 | D25: Edison Int'l | F25: 1.9968 | G25: 3.36 | H25: 3.17 | I25: 2.99 | J25: 2.84 | K25: 2.69 | L25: 2.575 | M25: 2.475 | N25: 2.428 | O25: 2.233 | P25: 1.983 | Q25: 1.733 | R25: 1.483 | S25: 1.368 | T25: 1.313 | U25: 1.285 | V25: 1.265 | W25: 1.245 | X25: 1.225 | Y25: 1.175 | Z25: 1.1 | AA25: 2.492666667 | AB25: 1.983 | AC25: 1.388 | AD25: 1.265 | AE25: 1.166666667
A26: EE | B26: 28 | C26: =IF(ISERROR(D26),"",IF(D26="","",MAX($C$11:C25)+1)) -> 15 | D26: El Paso Electric | F26: 1.1125 | G26: N/A | H26: N/A | I26: N/A | J26: N/A | K26: N/A | L26: N/A | M26: N/A | N26: 1.415 | O26: 1.315 | P26: 1.225 | Q26: 1.165 | R26: 1.105 | S26: 1.045 | T26: 0.97 | U26: 0.66 | V26: N/A | W26: N/A | X26: N/A | Y26: N/A | Z26: N/A | AA26: 1.415 | AB26: 1.235 | AC26: 1.04 | AD26: 0.66 | AE26: N/A
A27: ETR | B27: 29 | C27: =IF(ISERROR(D27),"",IF(D27="","",MAX($C$11:C26)+1)) -> 16 | D27: Entergy Corp. | F27: 1.7565 | G27: 2.43 | H27: 2.3 | I27: 2.17 | J27: 2.05 | K27: 1.93 | L27: 1.87 | M27: 1.83 | N27: 1.79 | O27: 1.75 | P27: 1.71 | Q27: 1.67 | R27: 1.66 | S27: 1.66 | T27: 1.66 | U27: 1.66 | V27: 1.62 | W27: 1.5 | X27: 1.5 | Y27: 1.29 | Z27: 1.08 | AA27: =IFERROR(AVERAGE(L27:N27),"N/A") -> 1.83 | AB27: 1.71 | AC27: 1.66 | AD27: 1.593333333 | AE27: 1.29
A28: ES | B28: 30 | C28: =IF(ISERROR(D28),"",IF(D28="","",MAX($C$11:C27)+1)) -> 17 | D28: Eversource Energy | F28: 1.7535 | G28: 3.01 | H28: 2.86 | I28: 2.7 | J28: 2.55 | K28: 2.41 | L28: =IFERROR(IF(INDEX(Dividends,$B28,L$11)=0,"N/A",INDEX(Dividends,$B28,L$11)),"N/A") -> 2.27 | M28: 2.14 | N28: =IFERROR(IF(INDEX(Dividends,$B28,N$11)=0,"N/A",INDEX(Dividends,$B28,N$11)),"N/A") -> 2.02 | O28: =IFERROR(IF(INDEX(Dividends,$B28,O$11)=0,"N/A",INDEX(Dividends,$B28,O$11)),"N/A") -> 1.9 | P28: 1.78 | Q28: 1.67 | R28: 1.57 | S28: 1.47 | T28: 1.32 | U28: 1.1 | V28: 1.025 | W28: 0.95 | X28: 0.825 | Y28: 0.775 | Z28: 0.725 | AA28: 2.143333333 | AB28: 1.783333333 | AC28: 1.453333333 | AD28: 1.025 | AE28: 0.775
A29: EVRG | B29: =IFERROR(MATCH(A29,OFFSET(Dividends,0,0,,1),0),"") ->  | C29: =IF(ISERROR(D29),"",IF(D29="","",MAX($C$11:C28)+1)) -> 18 | D29: Evergy, Inc. | F29: 2.46 | G29: 2.71 | H29: 2.6 | I29: 2.48 | J29: 2.33 | K29: 2.18 | L29: N/A | M29: N/A | N29: N/A | O29: N/A | P29: N/A | Q29: N/A | R29: N/A | S29: N/A | T29: N/A | U29: N/A | V29: N/A | W29: N/A | X29: N/A | Y29: N/A | Z29: N/A | AA29: N/A | AB29: N/A | AC29: N/A | AD29: N/A | AE29: N/A
A30: EXC | B30: 31 | C30: =IF(ISERROR(D30),"",IF(D30="","",MAX($C$11:C29)+1)) -> 19 | D30: Exelon Corp. | F30: 1.61175 | G30: 1.62 | H30: 1.52 | I30: 1.44 | J30: 1.35 | K30: 1.53 | L30: 1.53 | M30: 1.45 | N30: 1.38 | O30: 1.31 | P30: 1.26 | Q30: 1.24 | R30: 1.24 | S30: 1.455 | T30: 2.1 | U30: 2.1 | V30: 2.1 | W30: 2.1 | X30: 2.05 | Y30: 1.82 | Z30: 1.64 | AA30: 1.453333333 | AB30: 1.27 | AC30: 1.598333333 | AD30: 2.1 | AE30: 1.836666667
A31: FE | B31: 32 | C31: =IF(ISERROR(D31),"",IF(D31="","",MAX($C$11:C30)+1)) -> 20 | D31: FirstEnergy Corp. | F31: 1.771 | G31: 1.78 | H31: 1.7 | I31: 1.6 | J31: 1.56 | K31: 1.56 | L31: 1.56 | M31: 1.53 | N31: 1.82 | O31: 1.44 | P31: 1.44 | Q31: 1.44 | R31: 1.44 | S31: 1.65 | T31: 2.2 | U31: 2.2 | V31: 2.2 | W31: 2.2 | X31: 2.2 | Y31: 2.05 | Z31: 1.85 | AA31: 1.636666667 | AB31: 1.44 | AC31: 1.763333333 | AD31: 2.2 | AE31: 2.033333333
A32: FTS.TO | B32: 33 | C32: =IF(ISERROR(D32),"",IF(D32="","",MAX($C$11:C31)+1)) -> 21 | D32: Fortis Inc. | F32: 1.56 | G32: 2.49 | H32: 2.39 | I32: 2.29 | J32: 2.17 | K32: 2.08 | L32: 1.965 | M32: 1.855 | N32: 1.75 | O32: 1.65 | P32: 1.55 | Q32: 1.43 | R32: 1.3 | S32: 1.25 | T32: 1.21 | U32: 1.17 | V32: 1.12 | W32: 1.04 | X32: 1 | Y32: 0.82 | Z32: 0.67 | AA32: 1.856666667 | AB32: 1.543333333 | AC32: 1.253333333 | AD32: 1.11 | AE32: 0.83
A33: GXP | B33: 35 | C33: =IF(ISERROR(D33),"",IF(D33="","",MAX($C$11:C32)+1)) -> 22 | D33: Great Plains Energy | F33: 1.108333333 | G33: N/A | H33: N/A | I33: N/A | J33: N/A | K33: N/A | L33: N/A | M33: N/A | N33: N/A | O33: 1.1 | P33: =IFERROR(IF(INDEX(Dividends,$B33,P$11)=0,"N/A",INDEX(Dividends,$B33,P$11)),"N/A") -> 1.055 | Q33: 0.998 | R33: 0.935 | S33: 0.882 | T33: 0.855 | U33: 0.835 | V33: 0.83 | W33: 0.83 | X33: 1.66 | Y33: 1.66 | Z33: 1.66 | AA33: N/A | AB33: 1.051 | AC33: 0.8906666667 | AD33: 0.8316666667 | AE33: 1.66
A34: HE | B34: 36 | C34: =IF(ISERROR(D34),"",IF(D34="","",MAX($C$11:C33)+1)) -> 23 | D34: Hawaiian Elec. | F34: 1.253333333 | G34: N/A | H34: N/A | I34: 1.08 | J34: 1.4 | K34: 1.36 | L34: 1.32 | M34: 1.28 | N34: 1.24 | O34: 1.24 | P34: 1.24 | Q34: 1.24 | R34: 1.24 | S34: 1.24 | T34: 1.24 | U34: 1.24 | V34: 1.24 | W34: 1.24 | X34: 1.24 | Y34: 1.24 | Z34: 1.24 | AA34: 1.28 | AB34: 1.24 | AC34: 1.24 | AD34: 1.24 | AE34: 1.24
A35: H.TO | B35: =IFERROR(MATCH(A35,OFFSET(Dividends,0,0,,1),0),"") -> 37 | C35: =IF(ISERROR(D35),"",IF(D35="","",MAX($C$11:C34)+1)) -> 24 | D35: =VLOOKUP(A35,LUCurYr,2,FALSE) -> Hydro One Limited | F35: 0.7872727273 | G35: 1 | H35: 0.9 | I35: 0.86 | J35: 0.86 | K35: =IFERROR(IF(VLOOKUP(A35,lucyyr,9,FALSE)=0,"",VLOOKUP(A35,lucyyr,9,FALSE)),"N/A") -> 0.75 | L35: 0.75 | M35: 0.74 | N35: 0.72 | O35: 0.7 | P35: 0.7 | Q35: 0.68 | R35: N/A | S35: N/A | T35: N/A | U35: N/A | V35: N/A | W35: N/A | X35: N/A | Y35: N/A | Z35: N/A | AA35: =IFERROR(AVERAGE(L35:N35),"N/A") -> 0.7366666667 | AB35: =IFERROR(AVERAGE(O35:Q35),"N/A") -> 0.6933333333 | AC35: =IFERROR(AVERAGE(R35:T35),"N/A") -> N/A | AD35: =IFERROR(AVERAGE(U35:W35),"N/A") -> N/A | AE35: =IFERROR(AVERAGE(X35:Z35),"N/A") -> N/A
A36: IDA | B36: 38 | C36: =IF(ISERROR(D36),"",IF(D36="","",MAX($C$11:C35)+1)) -> 25 | D36: IDACORP, Inc. | F36: 2.0905 | G36: 3.52 | H36: 3.35 | I36: 3.2 | J36: 3.04 | K36: 2.88 | L36: 2.72 | M36: 2.56 | N36: 2.4 | O36: 2.24 | P36: 2.08 | Q36: 1.92 | R36: 1.76 | S36: 1.57 | T36: 1.37 | U36: 1.2 | V36: 1.2 | W36: 1.2 | X36: 1.2 | Y36: 1.2 | Z36: 1.2 | AA36: 2.56 | AB36: 2.08 | AC36: 1.566666667 | AD36: 1.2 | AE36: 1.2
A37: MGEE | B37: =IFERROR(MATCH(A37,OFFSET(Dividends,0,0,,1),0),"") -> 39 | C37: =IF(ISERROR(D37),"",IF(D37="","",MAX($C$11:C36)+1)) -> 26 | D37: =VLOOKUP(A37,LUCurYr,2,FALSE) -> MGE Energy | F37: 1.245526316 | G37: 1.85 | H37: 1.76 | I37: 1.67 | J37: 1.59 | K37: N/A | L37: 1.445 | M37: 1.38 | N37: 1.32 | O37: 1.26 | P37: 1.21 | Q37: 1.16 | R37: 1.11 | S37: 1.07 | T37: 1.04 | U37: 1.011 | V37: 0.993 | W37: 0.973 | X37: 0.956 | Y37: 0.94 | Z37: 0.927 | AA37: 1.381666667 | AB37: 1.21 | AC37: 1.073333333 | AD37: 0.9923333333 | AE37: 0.941
A38: NEE | B38: =IFERROR(MATCH(A38,OFFSET(Dividends,0,0,,1),0),"") -> 42 | C38: =IF(ISERROR(D38),"",IF(D38="","",MAX($C$11:C37)+1)) -> 27 | D38: =VLOOKUP(A38,LUCurYr,2,FALSE) -> NextEra Energy, Inc. | F38: 1.0285 | G38: 2.27 | H38: 2.06 | I38: 1.87 | J38: 1.7 | K38: 1.54 | L38: 1.4 | M38: 1.25 | N38: 1.11 | O38: 0.98 | P38: 0.87 | Q38: 0.77 | R38: 0.73 | S38: 0.66 | T38: 0.6 | U38: 0.55 | V38: 0.5 | W38: 0.47 | X38: 0.45 | Y38: 0.41 | Z38: 0.38 | AA38: 1.253333333 | AB38: 0.8733333333 | AC38: 0.6633333333 | AD38: 0.5066666667 | AE38: 0.4133333333
A39: NWE | B39: 45 | C39: =IF(ISERROR(D39),"",IF(D39="","",MAX($C$11:C38)+1)) -> 28 | D39: NorthWestern Corp | F39: 1.915 | G39: 2.64 | H39: 2.6 | I39: 2.56 | J39: 2.52 | K39: 2.48 | L39: 2.4 | M39: 2.3 | N39: 2.2 | O39: 2.1 | P39: 2 | Q39: 1.92 | R39: 1.6 | S39: 1.52 | T39: 1.48 | U39: 1.44 | V39: 1.36 | W39: 1.34 | X39: 1.32 | Y39: 1.28 | Z39: 1.24 | AA39: 2.3 | AB39: 2.006666667 | AC39: 1.533333333 | AD39: 1.38 | AE39: 1.28
A40: OGE | B40: 46 | C40: =IF(ISERROR(D40),"",IF(D40="","",MAX($C$11:C39)+1)) -> 29 | D40: OGE Energy | F40: 1.15655 | G40: 1.71 | H40: 1.68 | I40: 1.66 | J40: 1.64 | K40: 1.63 | L40: 1.58 | M40: 1.505 | N40: 1.395 | O40: 1.27 | P40: 1.155 | Q40: 1.05 | R40: 0.95 | S40: 0.851 | T40: 0.798 | U40: 0.759 | V40: 0.732 | W40: 0.714 | X40: 0.699 | Y40: 0.684 | Z40: 0.669 | AA40: 1.493333333 | AB40: 1.158333333 | AC40: 0.8663333333 | AD40: 0.735 | AE40: 0.684
A41: OTTR | B41: 48 | C41: =IF(ISERROR(D41),"",IF(D41="","",MAX($C$11:C40)+1)) -> 30 | D41: Otter Tail Corp. | F41: 1.379 | G41: 2.1 | H41: 1.87 | I41: 1.75 | J41: 1.65 | K41: 1.56 | L41: 1.48 | M41: 1.4 | N41: 1.34 | O41: 1.28 | P41: 1.25 | Q41: 1.23 | R41: 1.21 | S41: 1.19 | T41: 1.19 | U41: 1.19 | V41: 1.19 | W41: 1.19 | X41: 1.19 | Y41: 1.17 | Z41: 1.15 | AA41: 1.406666667 | AB41: 1.253333333 | AC41: 1.196666667 | AD41: 1.19 | AE41: 1.17
A42: PNW | B42: 50 | C42: =IF(ISERROR(D42),"",IF(D42="","",MAX($C$11:C41)+1)) -> 31 | D42: Pinnacle West Capital | F42: 2.70075 | G42: 3.61 | H42: 3.55 | I42: 3.49 | J42: 3.42 | K42: 3.36 | L42: 3.23 | M42: 3.04 | N42: 2.87 | O42: 2.7 | P42: 2.56 | Q42: 2.44 | R42: 2.325 | S42: 2.225 | T42: 2.67 | U42: 2.1 | V42: 2.1 | W42: 2.1 | X42: 2.1 | Y42: 2.1 | Z42: 2.025 | AA42: 3.046666667 | AB42: 2.566666667 | AC42: 2.406666667 | AD42: 2.1 | AE42: 2.075
A43: TXNM | B43: 51 | C43: =IF(ISERROR(D43),"",IF(D43="","",MAX($C$11:C42)+1)) -> 32 | D43: TXNM Energy | F43: 0.9588 | G43: 1.65 | H43: 1.57 | I43: 1.49 | J43: 1.41 | K43: 0.98 | L43: 1.25 | M43: 1.178 | N43: 1.085 | O43: 0.993 | P43: =IFERROR(IF(INDEX(Dividends,$B43,P$11)=0,"N/A",INDEX(Dividends,$B43,P$11)),"N/A") -> 0.88 | Q43: 0.8 | R43: 0.755 | S43: 0.68 | T43: 0.58 | U43: 0.5 | V43: 0.5 | W43: 0.5 | X43: 0.605 | Y43: 0.91 | Z43: 0.86 | AA43: 1.171 | AB43: 0.891 | AC43: 0.6716666667 | AD43: 0.5 | AE43: 0.7916666667
A44: POR | B44: 52 | C44: =IF(ISERROR(D44),"",IF(D44="","",MAX($C$11:C43)+1)) -> 33 | D44: Portland General | F44: 1.33555 | G44: 2.09 | H44: 1.98 | I44: 1.88 | J44: 1.79 | K44: 1.7 | L44: 1.585 | M44: 1.518 | N44: 1.428 | O44: 1.34 | P44: 1.26 | Q44: 1.18 | R44: 1.115 | S44: 1.095 | T44: 1.075 | U44: 1.055 | V44: 1.035 | W44: 1.01 | X44: 0.97 | Y44: 0.93 | Z44: 0.675 | AA44: 1.510333333 | AB44: 1.26 | AC44: 1.095 | AD44: 1.033333333 | AE44: 0.8583333333
A45: PPL | B45: 53 | C45: =IF(ISERROR(D45),"",IF(D45="","",MAX($C$11:C44)+1)) -> 34 | D45: PPL Corp. | F45: 1.37 | G45: 1.09 | H45: 1.03 | I45: 0.95 | J45: 0.88 | K45: 1.66 | L45: 1.66 | M45: 1.65 | N45: 1.64 | O45: 1.58 | P45: 1.52 | Q45: 1.5 | R45: 1.49 | S45: 1.47 | T45: 1.44 | U45: 1.4 | V45: 1.4 | W45: 1.38 | X45: 1.34 | Y45: 1.22 | Z45: 1.1 | AA45: 1.65 | AB45: 1.533333333 | AC45: 1.466666667 | AD45: 1.393333333 | AE45: 1.22
A46: PEG | B46: 54 | C46: =IF(ISERROR(D46),"",IF(D46="","",MAX($C$11:C45)+1)) -> 35 | D46: Public Serv. Enterprise | F46: 1.6985 | G46: 2.52 | H46: 2.4 | I46: 2.28 | J46: 2.16 | K46: 2.04 | L46: 1.96 | M46: 1.88 | N46: 1.8 | O46: 1.72 | P46: 1.64 | Q46: 1.56 | R46: 1.48 | S46: 1.44 | T46: 1.42 | U46: 1.37 | V46: 1.37 | W46: 1.33 | X46: 1.29 | Y46: 1.17 | Z46: 1.14 | AA46: 1.88 | AB46: 1.64 | AC46: 1.446666667 | AD46: 1.356666667 | AE46: 1.2
A47: SCG | B47: 56 | C47: =IF(ISERROR(D47),"",IF(D47="","",MAX($C$11:C46)+1)) -> 36 | D47: SCANA Corp. | F47: 2.003333333 | G47: N/A | H47: N/A | I47: N/A | J47: N/A | K47: N/A | L47: N/A | M47: N/A | N47: N/A | O47: 2.45 | P47: 2.3 | Q47: 2.18 | R47: 2.1 | S47: 2.03 | T47: 1.98 | U47: 1.94 | V47: 1.9 | W47: 1.88 | X47: 1.84 | Y47: 1.76 | Z47: 1.68 | AA47: N/A | AB47: 2.31 | AC47: 2.036666667 | AD47: 1.906666667 | AE47: 1.76
A48: SRE | B48: 57 | C48: =IF(ISERROR(D48),"",IF(D48="","",MAX($C$11:C47)+1)) -> 37 | D48: Sempra Energy | F48: 2.6795 | G48: 2.6 | H48: 2.48 | I48: 2.38 | J48: 4.58 | K48: 4.4 | L48: 4.18 | M48: 3.87 | N48: 3.58 | O48: 3.29 | P48: 3.02 | Q48: 2.8 | R48: 2.64 | S48: 2.52 | T48: 2.4 | U48: 1.92 | V48: 1.56 | W48: 1.56 | X48: 1.37 | Y48: 1.24 | Z48: 1.2 | AA48: 3.876666667 | AB48: 3.036666667 | AC48: 2.52 | AD48: 1.68 | AE48: 1.27
A49: SO | B49: 60 | C49: =IF(ISERROR(D49),"",IF(D49="","",MAX($C$11:C48)+1)) -> 38 | D49: Southern Co. | F49: 2.21085 | G49: 2.96 | H49: 2.86 | I49: 2.78 | J49: 2.7 | K49: 2.62 | L49: 2.54 | M49: 2.46 | N49: 2.38 | O49: 2.3 | P49: 2.223 | Q49: 2.153 | R49: 2.083 | S49: 2.013 | T49: 1.943 | U49: 1.873 | V49: 1.803 | W49: 1.733 | X49: 1.663 | Y49: 1.595 | Z49: 1.535 | AA49: 2.46 | AB49: 2.225333333 | AC49: 2.013 | AD49: 1.803 | AE49: 1.597666667
A50: VVC | B50: 66 | C50: =IF(ISERROR(D50),"",IF(D50="","",MAX($C$11:C49)+1)) -> 39 | D50: Vectren Corp. | F50: 1.422916667 | G50: N/A | H50: N/A | I50: N/A | J50: N/A | K50: N/A | L50: N/A | M50: N/A | N50: N/A | O50: 1.71 | P50: 1.62 | Q50: 1.54 | R50: 1.46 | S50: 1.425 | T50: 1.405 | U50: 1.385 | V50: 1.37 | W50: 1.35 | X50: 1.31 | Y50: 1.27 | Z50: 1.23 | AA50: N/A | AB50: 1.623333333 | AC50: 1.43 | AD50: 1.368333333 | AE50: 1.27
A51: WEC | B51: 67 | C51: =IF(ISERROR(D51),"",IF(D51="","",MAX($C$11:C50)+1)) -> 40 | D51: WEC Energy Group | F51: 1.8385 | G51: 3.57 | H51: 3.34 | I51: 3.12 | J51: 2.91 | K51: 2.71 | L51: 2.53 | M51: 2.36 | N51: 2.21 | O51: 2.08 | P51: 1.98 | Q51: 1.74 | R51: 1.56 | S51: 1.445 | T51: 1.2 | U51: 1.04 | V51: 0.8 | W51: 0.675 | X51: 0.54 | Y51: 0.5 | Z51: 0.46 | AA51: 2.366666667 | AB51: 1.933333333 | AC51: 1.401666667 | AD51: 0.8383333333 | AE51: 0.5
A52: WR | B52: 68 | C52: =IF(ISERROR(D52),"",IF(D52="","",MAX($C$11:C51)+1)) -> 41 | D52: Westar Energy | F52: 1.298333333 | G52: N/A | H52: N/A | I52: N/A | J52: N/A | K52: N/A | L52: N/A | M52: N/A | N52: N/A | O52: 1.6 | P52: 1.52 | Q52: 1.44 | R52: 1.4 | S52: 1.36 | T52: 1.32 | U52: 1.28 | V52: 1.24 | W52: 1.2 | X52: 1.16 | Y52: 1.08 | Z52: 0.98 | AA52: N/A | AB52: 1.52 | AC52: 1.36 | AD52: 1.24 | AE52: 1.073333333
A53: XEL | B53: 70 | C53: =IF(ISERROR(D53),"",IF(D53="","",MAX($C$11:C52)+1)) -> 42 | D53: Xcel Energy Inc. | F53: 1.419 | G53: 2.28 | H53: 2.19 | I53: 2.08 | J53: 1.95 | K53: 1.83 | L53: 1.72 | M53: 1.62 | N53: 1.52 | O53: 1.44 | P53: 1.36 | Q53: 1.28 | R53: 1.2 | S53: 1.11 | T53: 1.07 | U53: 1.03 | V53: 1 | W53: 0.97 | X53: 0.94 | Y53: 0.91 | Z53: 0.88 | AA53: 1.62 | AB53: 1.36 | AC53: 1.126666667 | AD53: 1 | AE53: 0.91
C54: =IF(ISERROR(D54),"",IF(D54="","",MAX($C$11:C53)+1)) -> 
C55: =IF(ISERROR(D55),"",IF(D55="","",MAX($C$11:C54)+1)) -> 43 | D55: Average | F55: =AVERAGE(G55:Z55) -> 1.775914447 | G55: =AVERAGE(G12:G54) -> 2.541428571 | H55: 2.422857143 | I55: 2.266216216 | J55: 2.235945946 | K55: 2.1875 | L55: 2.135555556 | M55: =AVERAGE(M12:M41,M42:M53) -> 2.045805556 | N55: =AVERAGE(N12:N41,N42:N53) -> 1.944405405 | O55: =AVERAGE(O12:O41,O42:O53) -> 1.825121951 | P55: =AVERAGE(P12:P54) -> 1.721560976 | Q55: 1.63035 | R55: 1.56874359 | S55: 1.514461538 | T55: 1.498948718 | U55: 1.414820513 | V55: 1.379815789 | W55: 1.339736842 | X55: 1.346394737 | Y55: 1.287342105 | Z55: 1.211277778 | AA55: =AVERAGE(AA12:AA54) -> 2.029747748 | AB55: 1.726471545 | AC55: 1.527384615 | AD55: 1.366162393 | AE55: 1.286035088
C56: =IF(ISERROR(D56),"",IF(D56="","",MAX($C$11:C55)+1)) -> 44 | D56: Industry Average Growth | F56: =AVERAGE(G56:Y56) -> 0.03997249707 | G56: =G55/H55-1 -> 0.04893867925 | H56: 0.06912002726 | I56: 0.01353801523 | J56: 0.02214671815 | K56: 0.02432362123 | L56: 0.04387024943 | M56: 0.05214969567 | N56: 0.06535642953 | O56: 0.06015527598 | P56: =P55/Q55-1 -> 0.05594564088 | Q56: 0.03927117896 | R56: 0.03584247596 | S56: 0.01034913358 | T56: 0.05946210446 | U56: 0.02536912798 | V56: 0.02991553722 | W56: -0.004944979771 | X56: 0.04587174717 | Y56: =Y55/Z55-1 -> 0.06279676626 | AA56: =IFERROR(AVERAGE(L56:N56),"N/A") -> 0.05379212487 | AB56: =IFERROR(AVERAGE(O56:Q56),"N/A") -> 0.05179069861 | AC56: =IFERROR(AVERAGE(R56:T56),"N/A") -> 0.03521790467 | AD56: =IFERROR(AVERAGE(U56:W56),"N/A") -> 0.01677989514 | AE56: =IFERROR(AVERAGE(X56:Z56),"N/A") -> 0.05433425672
D59: Sources:
D60: 1 | E60: ='MPG-2, pg 4'!E60 -> Data for years 2019 and prior were retrieved from the Value Line Investment Survey Investment Analyzer Software, downloaded on June 18, 2021.
E61: ='MPG-2, pg 4'!E61 -> Data for the years 2020 - 2024 was retrieved from Value Line Investment Surveys.
D62: 2 | E62: ="The Value Line Investment Survey, "&'2025 Data (WP)'!$D$1 -> The Value Line Investment Survey, May 9, June 6, and July 18, 2025.

Sheet MPG-2, pg 7
C1: =ElectricU -> Kentucky Utilities Company / Louisville Gas & Electric Company
C3: Electric Utilities
C4: (Valuation Metrics)
F7: Earnings per Share1
A8: Ticker | B8: Match | F8: 20-Year | M8: 2017 | AA8: 3-Year Averages
A9: Lookup: | B9: Row | C9: Line | D9: Company | F9: Average | G9: 20252 | H9: 2024 | I9: 2023 | J9: 2022 | K9: 2021 | L9: 2020 | M9: 2019 | N9: 2018 | O9: 2017 | P9: 2016 | Q9: 2015 | R9: 2014 | S9: 2013 | T9: 2012 | U9: 2011 | V9: 2010 | W9: 2009 | X9: 2008 | Y9: 2007 | Z9: 2006 | AA9: 2018-2020 | AB9: 2015-2017 | AC9: 2012-2014 | AD9: 2009-2011 | AE9: 2006-2008
F10: -1 | G10: =+F10-1 -> -2 | H10: -3 | I10: -4 | J10: =+I10-1 -> -5 | K10: =+J10-1 -> -6 | AA10: =MIN($F$10:Z10)-1 -> -7 | AB10: =MIN($F$10:AA10)-1 -> -8 | AC10: =MIN($F$10:AB10)-1 -> -9 | AD10: =MIN($F$10:AC10)-1 -> -10 | AE10: =MIN($F$10:AD10)-1 -> -11
D11: 2 | L11: =MATCH(L9,OFFSET(Dividends,-2,0,1,),0) -> 2 | M11: 3 | N11: 4 | O11: 5 | P11: 6 | Q11: 7 | R11: 8 | S11: 9 | T11: 10 | U11: 11 | V11: 12 | W11: 13 | X11: 14 | Y11: 15 | Z11: 16
A12: ALE | B12: =IFERROR(MATCH(A12,OFFSET(Dividends,0,0,,1),0),"") -> 3 | C12: =IF(ISERROR(D12),"",IF(D12="","",MAX($C$11:C11)+1)) -> 1 | D12: =VLOOKUP(A12,LUCurYr,2,FALSE) -> ALLETE | F12: =IFERROR(AVERAGE(G12:Z12),"N/A") -> 3.049 | G12: =IFERROR(IF(VLOOKUP($A12,Data2025,9,FALSE)=0,"",VLOOKUP($A12,Data2025,9,FALSE)),"N/A") -> 3.75 | H12: =IFERROR(IF(VLOOKUP($A12,Data2024,9,FALSE)=0,"",VLOOKUP($A12,Data2024,9,FALSE)),"N/A") -> 3.1 | I12: =IFERROR(IF(VLOOKUP($A12,Data2023,9,FALSE)=0,"",VLOOKUP($A12,Data2023,9,FALSE)),"N/A") -> 4.3 | J12: =IFERROR(IF(VLOOKUP($A12,Data2022,8,FALSE)=0,"",VLOOKUP($A12,Data2022,8,FALSE)),"N/A") -> 3.38 | K12: =IFERROR(IF(VLOOKUP(A12,lucyyr,8,FALSE)=0,"",VLOOKUP(A12,lucyyr,8,FALSE)),"N/A") -> 3.23 | L12: =IFERROR(IF(INDEX(Earnings,$B12,L$11)=0,"N/A",INDEX(Earnings,$B12,L$11)),"N/A") -> 3.35 | M12: 3.33 | N12: 3.38 | O12: 3.13 | P12: 3.14 | Q12: 3.38 | R12: 2.9 | S12: 2.63 | T12: 2.58 | U12: 2.65 | V12: 2.19 | W12: 1.89 | X12: 2.82 | Y12: 3.08 | Z12: 2.77 | AA12: =IFERROR(AVERAGE(L12:N12),"N/A") -> 3.353333333 | AB12: =IFERROR(AVERAGE(O12:Q12),"N/A") -> 3.216666667 | AC12: =IFERROR(AVERAGE(R12:T12),"N/A") -> 2.703333333 | AD12: =IFERROR(AVERAGE(U12:W12),"N/A") -> 2.243333333 | AE12: =IFERROR(AVERAGE(X12:Z12),"N/A") -> 2.89
A13: LNT | B13: 4 | C13: =IF(ISERROR(D13),"",IF(D13="","",MAX($C$11:C12)+1)) -> 2 | D13: Alliant Energy | F13: =IFERROR(AVERAGE(G13:Z13),"N/A") -> 1.9325 | G13: 3.25 | H13: 2.69 | I13: 2.78 | J13: 2.73 | K13: 2.63 | L13: 2.47 | M13: 2.33 | N13: 2.19 | O13: 1.99 | P13: 1.65 | Q13: 1.69 | R13: 1.74 | S13: 1.645 | T13: 1.525 | U13: 1.375 | V13: 1.375 | W13: 0.945 | X13: 1.27 | Y13: 1.345 | Z13: 1.03 | AA13: =IFERROR(AVERAGE(L13:N13),"N/A") -> 2.33 | AB13: =IFERROR(AVERAGE(O13:Q13),"N/A") -> 1.776666667 | AC13: =IFERROR(AVERAGE(R13:T13),"N/A") -> 1.636666667 | AD13: 1.231666667 | AE13: =IFERROR(AVERAGE(X13:Z13),"N/A") -> 1.215
A14: AEE | B14: 8 | C14: =IF(ISERROR(D14),"",IF(D14="","",MAX($C$11:C13)+1)) -> 3 | D14: Ameren Corp. | F14: 3.167 | G14: 4.95 | H14: 4.59 | I14: 4.37 | J14: 4.14 | K14: 3.84 | L14: 3.5 | M14: 3.35 | N14: 3.32 | O14: 2.77 | P14: 2.68 | Q14: 2.38 | R14: 2.4 | S14: 2.1 | T14: 2.41 | U14: 2.47 | V14: 2.77 | W14: 2.78 | X14: 2.88 | Y14: 2.98 | Z14: 2.66 | AA14: 3.39 | AB14: 2.61 | AC14: 2.303333333 | AD14: 2.673333333 | AE14: 2.84
A15: AEP | B15: 5 | C15: =IF(ISERROR(D15),"",IF(D15="","",MAX($C$11:C14)+1)) -> 4 | D15: American Electric Power | F15: 3.8775 | G15: 5.9 | H15: 5.61 | I15: 5.24 | J15: 5.09 | K15: 4.96 | L15: 4.42 | M15: 4.08 | N15: 3.9 | O15: 3.62 | P15: 4.23 | Q15: 3.59 | R15: 3.34 | S15: 3.18 | T15: 2.98 | U15: 3.13 | V15: 2.6 | W15: 2.97 | X15: 2.99 | Y15: 2.86 | Z15: 2.86 | AA15: 4.133333333 | AB15: 3.813333333 | AC15: 3.166666667 | AD15: 2.9 | AE15: 2.903333333
A16: AGR | B16: 13 | C16: =IF(ISERROR(D16),"",IF(D16="","",MAX($C$11:C15)+1)) -> 5 | D16: Avangrid, Inc. | F16: 1.883333333 | G16: N/A | H16: N/A | I16: 2.09 | J16: 2.32 | K16: 1.97 | L16: 1.88 | M16: 2.26 | N16: 1.92 | O16: 1.67 | P16: 1.98 | Q16: 0.86 | R16: N/A | S16: N/A | T16: N/A | U16: N/A | V16: N/A | W16: N/A | X16: N/A | Y16: N/A | Z16: N/A | AA16: 2.02 | AB16: 1.503333333 | AC16: N/A | AD16: N/A | AE16: N/A
A17: AVA | B17: 14 | C17: =IF(ISERROR(D17),"",IF(D17="","",MAX($C$11:C16)+1)) -> 6 | D17: Avista Corp. | F17: 1.8895 | G17: 2.6 | H17: 2.29 | I17: 2.24 | J17: 2.12 | K17: 2.1 | L17: 1.9 | M17: 2.97 | N17: 2.07 | O17: 1.95 | P17: 2.15 | Q17: 1.89 | R17: 1.84 | S17: 1.85 | T17: 1.32 | U17: 1.72 | V17: 1.65 | W17: 1.58 | X17: 1.36 | Y17: 0.72 | Z17: 1.47 | AA17: 2.313333333 | AB17: 1.996666667 | AC17: 1.67 | AD17: 1.65 | AE17: 1.183333333
A18: BKH | B18: 15 | C18: =IF(ISERROR(D18),"",IF(D18="","",MAX($C$11:C17)+1)) -> 7 | D18: Black Hills | F18: 2.8365 | G18: 4.1 | H18: 3.91 | I18: 3.91 | J18: 3.97 | K18: 3.74 | L18: 3.73 | M18: 3.53 | N18: 3.47 | O18: 3.38 | P18: 2.63 | Q18: 2.83 | R18: 2.89 | S18: 2.61 | T18: 1.97 | U18: 1.01 | V18: 1.66 | W18: 2.32 | X18: 0.18 | Y18: 2.68 | Z18: 2.21 | AA18: 3.576666667 | AB18: 2.946666667 | AC18: 2.49 | AD18: 1.663333333 | AE18: 1.69
A19: CNP | B19: 17 | C19: =IF(ISERROR(D19),"",IF(D19="","",MAX($C$11:C18)+1)) -> 8 | D19: CenterPoint Energy | F19: 1.2755 | G19: 1.7 | H19: 1.58 | I19: 1.37 | J19: 1.59 | K19: 0.94 | L19: 1.29 | M19: 1.49 | N19: 0.74 | O19: 1.57 | P19: 1 | Q19: 1.08 | R19: 1.42 | S19: 1.24 | T19: 1.35 | U19: 1.27 | V19: 1.07 | W19: 1.01 | X19: 1.3 | Y19: 1.17 | Z19: 1.33 | AA19: 1.173333333 | AB19: 1.216666667 | AC19: 1.336666667 | AD19: 1.116666667 | AE19: 1.266666667
A20: CMS | B20: 19 | C20: =IF(ISERROR(D20),"",IF(D20="","",MAX($C$11:C19)+1)) -> 9 | D20: CMS Energy Corp. | F20: 1.995 | G20: 3.6 | H20: 3.33 | I20: 3.01 | J20: 2.84 | K20: 2.58 | L20: 2.64 | M20: 2.39 | N20: 2.32 | O20: 2.17 | P20: 1.98 | Q20: 1.89 | R20: 1.74 | S20: 1.66 | T20: 1.53 | U20: 1.45 | V20: 1.33 | W20: 0.93 | X20: 1.23 | Y20: 0.64 | Z20: 0.64 | AA20: 2.45 | AB20: 2.013333333 | AC20: 1.643333333 | AD20: 1.236666667 | AE20: 0.8366666667
A21: ED | B21: 21 | C21: =IF(ISERROR(D21),"",IF(D21="","",MAX($C$11:C20)+1)) -> 10 | D21: Consol. Edison | F21: 4.07 | G21: 5.65 | H21: 5.38 | I21: 5.04 | J21: 4.55 | K21: 4.74 | L21: 3.94 | M21: 4.08 | N21: 4.55 | O21: 4.1 | P21: 3.94 | Q21: 4.05 | R21: 3.62 | S21: 3.93 | T21: 3.86 | U21: 3.57 | V21: 3.47 | W21: 3.14 | X21: 3.36 | Y21: 3.48 | Z21: 2.95 | AA21: 4.19 | AB21: 4.03 | AC21: 3.803333333 | AD21: 3.393333333 | AE21: 3.263333333
A22: D | B22: 24 | C22: =IF(ISERROR(D22),"",IF(D22="","",MAX($C$11:C21)+1)) -> 11 | D22: Dominion Resources | F22: 2.882 | G22: 3.4 | H22: 2.77 | I22: 1.99 | J22: 4.11 | K22: 3.19 | L22: 1.82 | M22: 2.19 | N22: 3.25 | O22: 3.53 | P22: =IFERROR(IF(INDEX(Earnings,$B22,P$11)=0,"N/A",INDEX(Earnings,$B22,P$11)),"N/A") -> 3.44 | Q22: 3.2 | R22: 3.05 | S22: 3.09 | T22: 2.75 | U22: 2.76 | V22: 2.89 | W22: 2.64 | X22: 3.04 | Y22: 2.13 | Z22: 2.4 | AA22: 2.42 | AB22: 3.39 | AC22: 2.963333333 | AD22: 2.763333333 | AE22: 2.523333333
A23: DTE | B23: 25 | C23: =IF(ISERROR(D23),"",IF(D23="","",MAX($C$11:C22)+1)) -> 12 | D23: DTE Energy | F23: 4.807 | G23: 7.2 | H23: 6.77 | I23: 6.76 | J23: 5.52 | K23: 4.1 | L23: 7.08 | M23: 6.31 | N23: 6.17 | O23: 5.73 | P23: 4.83 | Q23: 4.44 | R23: 5.1 | S23: 3.76 | T23: 3.88 | U23: 3.67 | V23: 3.74 | W23: 3.24 | X23: 2.73 | Y23: 2.66 | Z23: 2.45 | AA23: 6.52 | AB23: 5 | AC23: 4.246666667 | AD23: 3.55 | AE23: 2.613333333
A24: DUK | B24: 26 | C24: =IF(ISERROR(D24),"",IF(D24="","",MAX($C$11:C23)+1)) -> 13 | D24: Duke Energy | F24: 4.2945 | G24: 6.35 | H24: 5.9 | I24: 5.56 | J24: 5.27 | K24: 4.93 | L24: 3.92 | M24: 5.07 | N24: 4.13 | O24: 4.22 | P24: 3.71 | Q24: 4.1 | R24: 4.13 | S24: 3.98 | T24: 3.71 | U24: 4.14 | V24: 4.02 | W24: 3.39 | X24: 3.03 | Y24: 3.6 | Z24: 2.73 | AA24: 4.373333333 | AB24: 4.01 | AC24: 3.94 | AD24: 3.85 | AE24: 3.12
A25: EIX | B25: 27 | C25: =IF(ISERROR(D25),"",IF(D25="","",MAX($C$11:C24)+1)) -> 14 | D25: Edison Int'l | F25: 3.441 | G25: 5.75 | H25: 4.91 | I25: 4.76 | J25: 1.6 | K25: 2 | L25: 1.72 | M25: 3.98 | N25: -1.26 | O25: 4.51 | P25: 3.94 | Q25: 4.15 | R25: 4.33 | S25: 3.78 | T25: 4.55 | U25: 3.23 | V25: 3.35 | W25: 3.24 | X25: 3.68 | Y25: 3.32 | Z25: 3.28 | AA25: 1.48 | AB25: 4.2 | AC25: 4.22 | AD25: 3.273333333 | AE25: 3.426666667
A26: EE | B26: 28 | C26: =IF(ISERROR(D26),"",IF(D26="","",MAX($C$11:C25)+1)) -> 15 | D26: El Paso Electric | F26: 2.024615385 | G26: N/A | H26: N/A | I26: N/A | J26: N/A | K26: N/A | L26: N/A | M26: N/A | N26: 2.07 | O26: 2.42 | P26: 2.39 | Q26: 2.03 | R26: 2.27 | S26: 2.2 | T26: 2.26 | U26: 2.48 | V26: 2.07 | W26: 1.5 | X26: 1.73 | Y26: 1.63 | Z26: 1.27 | AA26: 2.07 | AB26: 2.28 | AC26: 2.243333333 | AD26: 2.016666667 | AE26: 1.543333333
A27: ETR | B27: 29 | C27: =IF(ISERROR(D27),"",IF(D27="","",MAX($C$11:C26)+1)) -> 16 | D27: Entergy Corp. | F27: 3.158 | G27: 3.35 | H27: 2.45 | I27: 5.55 | J27: 2.685 | K27: 3.435 | L27: 3.45 | M27: 3.15 | N27: 2.94 | O27: 2.595 | P27: 3.44 | Q27: 2.905 | R27: 2.885 | S27: 2.48 | T27: 3.01 | U27: 3.775 | V27: 3.33 | W27: 3.15 | X27: 3.1 | Y27: 2.8 | Z27: 2.68 | AA27: 3.18 | AB27: 2.98 | AC27: 2.791666667 | AD27: 3.418333333 | AE27: 2.86
A28: ES | B28: 30 | C28: =IF(ISERROR(D28),"",IF(D28="","",MAX($C$11:C27)+1)) -> 17 | D28: Eversource Energy | F28: 2.8915 | G28: 4.75 | H28: 4.57 | I28: 4.34 | J28: 4.09 | K28: 3.54 | L28: =IFERROR(IF(INDEX(Earnings,$B28,L$11)=0,"N/A",INDEX(Earnings,$B28,L$11)),"N/A") -> 3.55 | M28: 3.45 | N28: =IFERROR(IF(INDEX(Earnings,$B28,N$11)=0,"N/A",INDEX(Earnings,$B28,N$11)),"N/A") -> 3.25 | O28: =IFERROR(IF(INDEX(Earnings,$B28,O$11)=0,"N/A",INDEX(Earnings,$B28,O$11)),"N/A") -> 3.11 | P28: 2.96 | Q28: 2.76 | R28: 2.58 | S28: 2.49 | T28: 1.89 | U28: 2.22 | V28: 2.1 | W28: 1.91 | X28: 1.86 | Y28: 1.59 | Z28: 0.82 | AA28: 3.416666667 | AB28: 2.943333333 | AC28: 2.32 | AD28: 2.076666667 | AE28: 1.423333333
A29: EVRG | C29: =IF(ISERROR(D29),"",IF(D29="","",MAX($C$11:C28)+1)) -> 18 | D29: Evergy, Inc. | F29: 3.622 | G29: 4.05 | H29: 3.8 | I29: 3.17 | J29: 3.26 | K29: 3.83 | L29: N/A | M29: N/A | N29: N/A | O29: N/A | P29: N/A | Q29: N/A | R29: N/A | S29: N/A | T29: N/A | U29: N/A | V29: N/A | W29: N/A | X29: N/A | Y29: N/A | Z29: N/A | AA29: N/A | AB29: N/A | AC29: N/A | AD29: N/A | AE29: N/A
A30: EXC | B30: 31 | C30: =IF(ISERROR(D30),"",IF(D30="","",MAX($C$11:C29)+1)) -> 19 | D30: Exelon Corp. | F30: 2.8075 | G30: 2.65 | H30: 2.45 | I30: 2.38 | J30: 2.26 | K30: 1.74 | L30: 2.6 | M30: 3.01 | N30: 2.07 | O30: 2.78 | P30: 1.8 | Q30: 2.54 | R30: 2.1 | S30: 2.31 | T30: 1.92 | U30: 3.75 | V30: 3.87 | W30: 4.29 | X30: 4.1 | Y30: 4.03 | Z30: 3.5 | AA30: 2.56 | AB30: 2.373333333 | AC30: 2.11 | AD30: 3.97 | AE30: 3.876666667
A31: FE | B31: 32 | C31: =IF(ISERROR(D31),"",IF(D31="","",MAX($C$11:C30)+1)) -> 20 | D31: FirstEnergy Corp. | F31: 2.5755 | G31: 2.55 | H31: 2.63 | I31: 2.56 | J31: 2.41 | K31: 2.69 | L31: 1.85 | M31: 1.84 | N31: 1.33 | O31: 2.73 | P31: 2.1 | Q31: 2 | R31: 0.85 | S31: 2.97 | T31: 2.13 | U31: 1.88 | V31: 3.25 | W31: 3.32 | X31: 4.38 | Y31: 4.22 | Z31: 3.82 | AA31: 1.673333333 | AB31: 2.276666667 | AC31: 1.983333333 | AD31: 2.816666667 | AE31: 4.14
A32: FTS.TO | B32: 33 | C32: =IF(ISERROR(D32),"",IF(D32="","",MAX($C$11:C31)+1)) -> 21 | D32: Fortis Inc. | F32: 2.1663 | G32: 3.4 | H32: 3.28 | I32: 3.1 | J32: 2.78 | K32: 2.61 | L32: 2.6 | M32: 2.68 | N32: 2.52 | O32: 2.66 | P32: 1.89 | Q32: 2.11 | R32: 1.38 | S32: 1.63 | T32: 1.65 | U32: 1.74 | V32: 1.62 | W32: 1.51 | X32: 1.52 | Y32: 1.287 | Z32: 1.359 | AA32: 2.6 | AB32: 2.22 | AC32: 1.553333333 | AD32: 1.623333333 | AE32: 1.388666667
A33: GXP | B33: 35 | C33: =IF(ISERROR(D33),"",IF(D33="","",MAX($C$11:C32)+1)) -> 22 | D33: Great Plains Energy | F33: 1.325 | G33: N/A | H33: N/A | I33: N/A | J33: N/A | K33: N/A | L33: N/A | M33: N/A | N33: N/A | O33: -0.06 | P33: =IFERROR(IF(INDEX(Earnings,$B33,P$11)=0,"N/A",INDEX(Earnings,$B33,P$11)),"N/A") -> 1.61 | Q33: 1.37 | R33: 1.57 | S33: 1.62 | T33: 1.35 | U33: 1.25 | V33: 1.53 | W33: 1.03 | X33: 1.16 | Y33: 1.85 | Z33: 1.62 | AA33: N/A | AB33: 0.9733333333 | AC33: 1.513333333 | AD33: 1.27 | AE33: 1.543333333
A34: HE | B34: 36 | C34: =IF(ISERROR(D34),"",IF(D34="","",MAX($C$11:C33)+1)) -> 23 | D34: Hawaiian Elec. | F34: 2.0355 | G34: 0.95 | H34: 10.42 | I34: 1.81 | J34: 2.2 | K34: 2.25 | L34: 1.81 | M34: 1.99 | N34: 1.85 | O34: 1.64 | P34: 2.29 | Q34: 1.5 | R34: 1.64 | S34: 1.62 | T34: 1.67 | U34: 1.44 | V34: 1.21 | W34: 0.91 | X34: 1.07 | Y34: 1.11 | Z34: 1.33 | AA34: 1.883333333 | AB34: 1.81 | AC34: 1.643333333 | AD34: 1.186666667 | AE34: 1.17
A35: H.TO | B35: =IFERROR(MATCH(A35,OFFSET(Dividends,0,0,,1),0),"") -> 37 | C35: =IF(ISERROR(D35),"",IF(D35="","",MAX($C$11:C34)+1)) -> 24 | D35: Hydro One Limited | F35: 1.567272727 | G35: 2.05 | H35: 1.92 | I35: 1.81 | J35: 1.75 | K35: =IFERROR(IF(VLOOKUP(A35,lucyyr,8,FALSE)=0,"",VLOOKUP(A35,lucyyr,8,FALSE)),"N/A") -> 1.61 | L35: 2.95 | M35: 1.3 | N35: 0.15 | O35: 1.1 | P35: 1.21 | Q35: 1.39 | R35: N/A | S35: N/A | T35: N/A | U35: N/A | V35: N/A | W35: N/A | X35: N/A | Y35: N/A | Z35: N/A | AA35: =IFERROR(AVERAGE(L35:N35),"N/A") -> 1.466666667 | AB35: =IFERROR(AVERAGE(O35:Q35),"N/A") -> 1.233333333 | AC35: =IFERROR(AVERAGE(R35:T35),"N/A") -> N/A | AD35: =IFERROR(AVERAGE(U35:W35),"N/A") -> N/A | AE35: =IFERROR(AVERAGE(X35:Z35),"N/A") -> N/A
A36: IDA | B36: 38 | C36: =IF(ISERROR(D36),"",IF(D36="","",MAX($C$11:C35)+1)) -> 25 | D36: IDACORP, Inc. | F36: 3.9205 | G36: 5.8 | H36: 5.5 | I36: 5.14 | J36: 5.11 | K36: 4.85 | L36: 4.69 | M36: 4.61 | N36: 4.49 | O36: 4.21 | P36: 3.94 | Q36: 3.87 | R36: 3.85 | S36: 3.64 | T36: 3.37 | U36: 3.36 | V36: 2.95 | W36: 2.64 | X36: 2.18 | Y36: 1.86 | Z36: 2.35 | AA36: 4.596666667 | AB36: 4.006666667 | AC36: 3.62 | AD36: 2.983333333 | AE36: 2.13
A37: MGEE | B37: =IFERROR(MATCH(A37,OFFSET(Dividends,0,0,,1),0),"") -> 39 | C37: =IF(ISERROR(D37),"",IF(D37="","",MAX($C$11:C36)+1)) -> 26 | D37: =VLOOKUP(A37,LUCurYr,2,FALSE) -> MGE Energy | F37: 2.262789474 | G37: 3.65 | H37: 3.33 | I37: 3.25 | J37: 3.07 | K37: =IFERROR(IF(VLOOKUP(A37,lucyyr,8,FALSE)=0,"",VLOOKUP(A37,lucyyr,8,FALSE)),"N/A") -> N/A | L37: 2.6 | M37: 2.51 | N37: 2.43 | O37: 2.2 | P37: 2.18 | Q37: 2.06 | R37: 2.32 | S37: 2.16 | T37: 1.86 | U37: 1.76 | V37: 1.667 | W37: 1.473 | X37: 1.587 | Y37: 1.513 | Z37: 1.373 | AA37: 2.513333333 | AB37: 2.146666667 | AC37: 2.113333333 | AD37: 1.633333333 | AE37: 1.491
A38: NEE | B38: =IFERROR(MATCH(A38,OFFSET(Dividends,0,0,,1),0),"") -> 42 | C38: =IF(ISERROR(D38),"",IF(D38="","",MAX($C$11:C37)+1)) -> 27 | D38: =VLOOKUP(A38,LUCurYr,2,FALSE) -> NextEra Energy, Inc. | F38: 1.7555 | G38: 3.7 | H38: 3.43 | I38: 3.17 | J38: 2.9 | K38: =IFERROR(IF(VLOOKUP(A38,lucyyr,8,FALSE)=0,"",VLOOKUP(A38,lucyyr,8,FALSE)),"N/A") -> 1.81 | L38: 2.1 | M38: 1.94 | N38: 1.67 | O38: 1.63 | P38: 1.45 | Q38: 1.52 | R38: 1.4 | S38: 1.21 | T38: 1.14 | U38: 1.21 | V38: 1.19 | W38: 0.99 | X38: 1.02 | Y38: 0.82 | Z38: 0.81 | AA38: 1.903333333 | AB38: 1.533333333 | AC38: 1.25 | AD38: 1.13 | AE38: 0.8833333333
A39: NWE | B39: 45 | C39: =IF(ISERROR(D39),"",IF(D39="","",MAX($C$11:C38)+1)) -> 28 | D39: NorthWestern Corp | F39: 2.7735 | G39: 3.55 | H39: 3.27 | I39: 3.22 | J39: 3.29 | K39: 3.6 | L39: 3.06 | M39: 3.53 | N39: 3.4 | O39: 3.34 | P39: 3.39 | Q39: 2.9 | R39: 2.99 | S39: 2.46 | T39: 2.26 | U39: 2.53 | V39: 2.14 | W39: 2.02 | X39: 1.77 | Y39: 1.44 | Z39: 1.31 | AA39: 3.33 | AB39: 3.21 | AC39: 2.57 | AD39: 2.23 | AE39: 1.506666667
A40: OGE | B40: 46 | C40: =IF(ISERROR(D40),"",IF(D40="","",MAX($C$11:C39)+1)) -> 29 | D40: OGE Energy | F40: 1.848 | G40: 2.3 | H40: 2.19 | I40: 2.07 | J40: 2.25 | K40: 2.36 | L40: 2.08 | M40: 2.24 | N40: 2.12 | O40: 1.92 | P40: 1.69 | Q40: 1.69 | R40: 1.98 | S40: 1.94 | T40: 1.79 | U40: 1.725 | V40: 1.495 | W40: 1.33 | X40: 1.245 | Y40: 1.32 | Z40: 1.225 | AA40: 2.146666667 | AB40: 1.766666667 | AC40: 1.903333333 | AD40: 1.516666667 | AE40: 1.263333333
A41: OTTR | B41: 48 | C41: =IF(ISERROR(D41),"",IF(D41="","",MAX($C$11:C40)+1)) -> 30 | D41: Otter Tail Corp. | F41: 2.652 | G41: 6.2 | H41: 7.17 | I41: 7 | J41: 6.78 | K41: 4.23 | L41: 2.34 | M41: 2.17 | N41: 2.06 | O41: 1.86 | P41: 1.6 | Q41: 1.56 | R41: 1.55 | S41: 1.37 | T41: 1.05 | U41: 0.45 | V41: 0.38 | W41: 0.71 | X41: 1.09 | Y41: 1.78 | Z41: 1.69 | AA41: 2.19 | AB41: 1.673333333 | AC41: 1.323333333 | AD41: 0.5133333333 | AE41: 1.52
A42: PNW | B42: 50 | C42: =IF(ISERROR(D42),"",IF(D42="","",MAX($C$11:C41)+1)) -> 31 | D42: Pinnacle West Capital | F42: 3.899 | G42: 4.8 | H42: 5.24 | I42: 4.41 | J42: 4.26 | K42: 5.47 | L42: 4.87 | M42: 4.77 | N42: 4.54 | O42: 4.43 | P42: 3.95 | Q42: 3.92 | R42: 3.58 | S42: 3.66 | T42: 3.5 | U42: 2.99 | V42: 3.08 | W42: 2.26 | X42: 2.12 | Y42: 2.96 | Z42: 3.17 | AA42: 4.726666667 | AB42: 4.1 | AC42: 3.58 | AD42: 2.776666667 | AE42: 2.75
A43: TXNM | B43: 51 | C43: =IF(ISERROR(D43),"",IF(D43="","",MAX($C$11:C42)+1)) -> 32 | D43: TXNM Energy | F43: 1.6955 | G43: 2.8 | H43: 2.74 | I43: 2.82 | J43: 2.69 | K43: 2.27 | L43: 2.15 | M43: 2.28 | N43: 1.66 | O43: 1.92 | P43: =IFERROR(IF(INDEX(Earnings,$B43,P$11)=0,"N/A",INDEX(Earnings,$B43,P$11)),"N/A") -> 1.65 | Q43: 1.64 | R43: 1.45 | S43: 1.41 | T43: 1.31 | U43: 1.08 | V43: 0.87 | W43: 0.58 | X43: 0.11 | Y43: 0.76 | Z43: 1.72 | AA43: 2.03 | AB43: 1.736666667 | AC43: 1.39 | AD43: 0.8433333333 | AE43: 0.8633333333
A44: POR | B44: 52 | C44: =IF(ISERROR(D44),"",IF(D44="","",MAX($C$11:C43)+1)) -> 33 | D44: Portland General | F44: 2.14 | G44: 3.25 | H44: 3.14 | I44: 2.38 | J44: 2.74 | K44: 2.72 | L44: 1.72 | M44: 2.39 | N44: 2.37 | O44: 2.29 | P44: 2.16 | Q44: 2.04 | R44: 2.18 | S44: 1.77 | T44: 1.87 | U44: 1.95 | V44: 1.66 | W44: 1.31 | X44: 1.39 | Y44: 2.33 | Z44: 1.14 | AA44: 2.16 | AB44: 2.163333333 | AC44: 1.94 | AD44: 1.64 | AE44: 1.62
A45: PPL | B45: 53 | C45: =IF(ISERROR(D45),"",IF(D45="","",MAX($C$11:C44)+1)) -> 34 | D45: PPL Corp. | F45: 2.108 | G45: 1.85 | H45: 1.68 | I45: 1.6 | J45: 1.41 | K45: 0.53 | L45: 2.04 | M45: 2.37 | N45: 2.58 | O45: 2.11 | P45: 2.79 | Q45: 2.37 | R45: 2.38 | S45: 2.38 | T45: 2.61 | U45: 2.61 | V45: 2.29 | W45: 1.19 | X45: 2.45 | Y45: 2.63 | Z45: 2.29 | AA45: 2.33 | AB45: 2.423333333 | AC45: 2.456666667 | AD45: 2.03 | AE45: 2.456666667
A46: PEG | B46: 54 | C46: =IF(ISERROR(D46),"",IF(D46="","",MAX($C$11:C45)+1)) -> 35 | D46: Public Serv. Enterprise | F46: 3.04375 | G46: 4 | H46: 3.68 | I46: 3.48 | J46: 3.47 | K46: 2.55 | L46: 3.61 | M46: 3.9 | N46: 2.76 | O46: 2.82 | P46: 2.83 | Q46: 3.3 | R46: 2.99 | S46: 2.45 | T46: 2.44 | U46: 3.11 | V46: 3.07 | W46: 3.08 | X46: 2.9 | Y46: 2.59 | Z46: 1.845 | AA46: 3.423333333 | AB46: 2.983333333 | AC46: 2.626666667 | AD46: 3.086666667 | AE46: 2.445
A47: SCG | B47: 56 | C47: =IF(ISERROR(D47),"",IF(D47="","",MAX($C$11:C46)+1)) -> 36 | D47: SCANA Corp. | F47: 3.298333333 | G47: N/A | H47: N/A | I47: N/A | J47: N/A | K47: N/A | L47: N/A | M47: N/A | N47: N/A | O47: 4.2 | P47: 4.16 | Q47: 3.81 | R47: 3.79 | S47: 3.39 | T47: 3.15 | U47: 2.97 | V47: 2.98 | W47: 2.85 | X47: 2.95 | Y47: 2.74 | Z47: 2.59 | AA47: N/A | AB47: 4.056666667 | AC47: 3.443333333 | AD47: 2.933333333 | AE47: 2.76
A48: SRE | B48: 57 | C48: =IF(ISERROR(D48),"",IF(D48="","",MAX($C$11:C47)+1)) -> 37 | D48: Sempra Energy | F48: 4.9275 | G48: 4.55 | H48: 4.65 | I48: 4.61 | J48: 9.21 | K48: 4.01 | L48: 6.58 | M48: 5.97 | N48: 5.48 | O48: 4.63 | P48: 4.24 | Q48: 5.23 | R48: 4.63 | S48: 4.22 | T48: 4.35 | U48: 4.47 | V48: 4.02 | W48: 4.78 | X48: 4.43 | Y48: 4.26 | Z48: 4.23 | AA48: 6.01 | AB48: 4.7 | AC48: 4.4 | AD48: 4.423333333 | AE48: 4.306666667
A49: SO | B49: 60 | C49: =IF(ISERROR(D49),"",IF(D49="","",MAX($C$11:C48)+1)) -> 38 | D49: Southern Co. | F49: 2.9665 | G49: 4.3 | H49: 4.06 | I49: 3.64 | J49: 3.61 | K49: 3.42 | L49: 3.25 | M49: 3.17 | N49: 3 | O49: 3.21 | P49: 2.83 | Q49: 2.84 | R49: 2.77 | S49: 2.7 | T49: 2.67 | U49: 2.55 | V49: 2.36 | W49: 2.32 | X49: 2.25 | Y49: 2.28 | Z49: 2.1 | AA49: 3.14 | AB49: 2.96 | AC49: 2.713333333 | AD49: 2.41 | AE49: 2.21
A50: VVC | B50: 66 | C50: =IF(ISERROR(D50),"",IF(D50="","",MAX($C$11:C49)+1)) -> 39 | D50: Vectren Corp. | F50: 1.935 | G50: N/A | H50: N/A | I50: N/A | J50: N/A | K50: N/A | L50: N/A | M50: N/A | N50: N/A | O50: 2.6 | P50: 2.55 | Q50: 2.39 | R50: 2.02 | S50: 1.66 | T50: 1.94 | U50: 1.73 | V50: 1.64 | W50: 1.79 | X50: 1.63 | Y50: 1.83 | Z50: 1.44 | AA50: N/A | AB50: 2.513333333 | AC50: 1.873333333 | AD50: 1.72 | AE50: 1.633333333
A51: WEC | B51: 67 | C51: =IF(ISERROR(D51),"",IF(D51="","",MAX($C$11:C50)+1)) -> 40 | D51: WEC Energy Group | F51: 2.99475 | G51: 5.25 | H51: 4.89 | I51: 4.63 | J51: 4.46 | K51: 4.11 | L51: 3.79 | M51: 3.58 | N51: 3.34 | O51: 3.14 | P51: 2.96 | Q51: 2.34 | R51: 2.59 | S51: 2.51 | T51: 2.35 | U51: 2.18 | V51: 1.92 | W51: 1.6 | X51: 1.515 | Y51: 1.42 | Z51: 1.32 | AA51: 3.57 | AB51: 2.813333333 | AC51: 2.483333333 | AD51: 1.9 | AE51: 1.418333333
A52: WR | B52: 68 | C52: =IF(ISERROR(D52),"",IF(D52="","",MAX($C$11:C51)+1)) -> 41 | D52: Westar Energy | F52: 1.955 | G52: N/A | H52: N/A | I52: N/A | J52: N/A | K52: N/A | L52: N/A | M52: N/A | N52: N/A | O52: 2.27 | P52: 2.43 | Q52: 2.09 | R52: 2.35 | S52: 2.27 | T52: 2.15 | U52: 1.79 | V52: 1.8 | W52: 1.28 | X52: 1.31 | Y52: 1.84 | Z52: 1.88 | AA52: N/A | AB52: 2.263333333 | AC52: 2.256666667 | AD52: 1.623333333 | AE52: 1.676666667
A53: XEL | B53: 70 | C53: =IF(ISERROR(D53),"",IF(D53="","",MAX($C$11:C52)+1)) -> 42 | D53: Xcel Energy Inc. | F53: 2.3005 | G53: 3.8 | H53: 3.5 | I53: 3.35 | J53: 3.17 | K53: 2.96 | L53: 2.79 | M53: 2.64 | N53: 2.47 | O53: 2.3 | P53: 2.21 | Q53: 2.1 | R53: 2.03 | S53: 1.91 | T53: 1.85 | U53: 1.72 | V53: 1.56 | W53: 1.49 | X53: 1.46 | Y53: 1.35 | Z53: 1.35 | AA53: 2.633333333 | AB53: 2.203333333 | AC53: 1.93 | AD53: 1.59 | AE53: 1.386666667
C54: =IF(ISERROR(D54),"",IF(D54="","",MAX($C$11:C53)+1)) -> 
C55: =IF(ISERROR(D55),"",IF(D55="","",MAX($C$11:C54)+1)) -> 43 | D55: Average | F55: =AVERAGE(G55:Z55) -> 2.772293463 | G55: =AVERAGE(G12:G54) -> 3.9375 | H55: 3.967222222 | I55: 3.592162162 | J55: 3.488783784 | K55: 3.098472222 | L55: 3.059444444 | M55: =AVERAGE(M12:M41,M42:M53) -> 3.134722222 | N55: =AVERAGE(N12:N41,N42:N53) -> 2.721621622 | O55: =AVERAGE(O12:O41,O42:O53) -> 2.790121951 | P55: =AVERAGE(P12:P54) -> 2.682926829 | Q55: 2.580609756 | R55: 2.580128205 | S55: 2.458589744 | T55: 2.357820513 | U55: 2.337564103 | V55: 2.260692308 | W55: 2.086871795 | X55: 2.107615385 | Y55: 2.177051282 | Z55: 2.025948718 | AA55: =AVERAGE(AA12:AA54) -> 2.953423423 | AB55: 2.684552846 | AC55: 2.465512821 | AD55: 2.228376068 | AE55: 2.103538462
C56: =IF(ISERROR(D56),"",IF(D56="","",MAX($C$11:C55)+1)) -> 44 | D56: Industry Average Growth | F56: =AVERAGE(G56:Y56) -> 0.03680347875 | G56: =G55/H55-1 -> -0.007491947906 | H56: =H55/I55-1 -> 0.1044106705 | I56: =I55/J55-1 -> 0.02963163807 | J56: =J55/K55-1 -> 0.1259690369 | K56: =K55/L55-1 -> 0.01275649174 | L56: =L55/M55-1 -> -0.02401417811 | M56: 0.1517847291 | N56: -0.02455101633 | O56: 0.03995454545 | P56: 0.03964840981 | Q56: 0.0001866383881 | R56: 0.04943421807 | S56: 0.04273829591 | T56: 0.008665606318 | U56: 0.03400365216 | V56: 0.08329237725 | W56: -0.009842208353 | X56: -0.03189447029 | Y56: 0.07458360755 | AA56: =IFERROR(AVERAGE(L56:N56),"N/A") -> 0.03440651156 | AB56: =IFERROR(AVERAGE(O56:Q56),"N/A") -> 0.02659653122 | AC56: =IFERROR(AVERAGE(R56:T56),"N/A") -> 0.03361270677 | AD56: =IFERROR(AVERAGE(U56:W56),"N/A") -> 0.03581794035 | AE56: =IFERROR(AVERAGE(X56:Z56),"N/A") -> 0.02134456863
D58: Sources:
D59: 1 | E59: ='MPG-2, pg 6'!E60 -> Data for years 2019 and prior were retrieved from the Value Line Investment Survey Investment Analyzer Software, downloaded on June 18, 2021.
E60: ='MPG-2, pg 6'!E61 -> Data for the years 2020 - 2024 was retrieved from Value Line Investment Surveys.
D61: 2 | E61: ="The Value Line Investment Survey, "&'2025 Data (WP)'!$D$1 -> The Value Line Investment Survey, May 9, June 6, and July 18, 2025.

Sheet MPG-2, pg 8
C1: =ElectricU -> Kentucky Utilities Company / Louisville Gas & Electric Company
D3: Electric Utilities
D4: (Valuation Metrics)
G8: Cash Flow / Capital Spending1
R9: 3 - 5 yr2
D10: Line | E10: Company | J10: 2020 | K10: 2021 | L10: 2022 | M10: 2023 | N10: 2024 | O10: 2025 | P10: 20262 | R10: Projection | AB10: 2005
J11: =+I11-1 -> -1 | K11: -2 | L11: -3 | M11: -4 | N11: -5 | O11: -6 | P11: -7 | R11: =+P11-1 -> -8 | AB11: =+AA11-1 -> -1
AB12: =MATCH(VALUE(LEFT(AB10,4)),OFFSET(CF_CAP_WP,-1,0,1,),0) ->  | AC12: =MATCH(VALUE(LEFT(AC10,4)),OFFSET(CF_CAP_WP,-1,0,1,),0) ->  | AD12: =MATCH(VALUE(LEFT(AD10,4)),OFFSET(CF_CAP_WP,-1,0,1,),0) ->  | AE12: =MATCH(VALUE(LEFT(AE10,4)),OFFSET(CF_CAP_WP,-1,0,1,),0) -> 
A13: ALE | B13: =MATCH(A13,CapCashTic,0) -> 5 | D13: =IF(ISERROR(E13),"",IF(E13="","",MAX($D$11:D12)+1)) -> 1 | E13: ALLETE | J13: =IFERROR(VLOOKUP($A13,LUCurYr,23,0),"N/A") -> 0.7427184466 | K13: =IFERROR(VLOOKUP($A13,lucyr,23,0),"N/A") -> 0.7967914439 | L13: =IFERROR(VLOOKUP($A13,lucyyr,23,0),"N/A") -> 2.263888889 | M13: =IFERROR(VLOOKUP($A13,Data2022,23,0),"N/A") -> 1.420168067 | N13: =IFERROR(VLOOKUP($A13,Data2023,25,0),"N/A") -> 2.213333333 | O13: =IFERROR(VLOOKUP($A13,Data2024,25,0),"N/A") -> 1.362903226 | P13: =IFERROR(VLOOKUP($A13,Data2025,25,0),"N/A") -> 1.384615385 | R13: =IFERROR(VLOOKUP($A13,Data2025,26,0),"N/A") -> 1.386206897
A14: LNT | B14: 6 | D14: =IF(ISERROR(E14),"",IF(E14="","",MAX($D$11:D13)+1)) -> 2 | E14: Alliant Energy | J14: 0.8173913043 | K14: 0.9714285714 | L14: 0.9406779661 | M14: 0.9482758621 | N14: 0.974137931 | O14: 1.044642857 | P14: 1.080357143 | R14: 1.268518519
A15: AEE | B15: 10 | D15: =IF(ISERROR(E15),"",IF(E15="","",MAX($D$11:D14)+1)) -> 3 | E15: Ameren Corp. | J15: 0.5141955836 | K15: 0.59375 | L15: 0.7248062016 | M15: 0.7364341085 | N15: 0.8406374502 | O15: 0.875 | P15: 0.906614786 | R15: 0.9923076923
A16: AEP | B16: 7 | D16: =IF(ISERROR(E16),"",IF(E16="","",MAX($D$11:D15)+1)) -> 4 | E16: American Electric Power | J16: 0.7433962264 | K16: 0.6893203883 | L16: 0.7296416938 | M16: 0.7166123779 | N16: 0.8233215548 | O16: 0.865248227 | P16: 0.9078014184 | R16: 1.121428571
A17: AVA | B17: 16 | D17: =IF(ISERROR(E17),"",IF(E17="","",MAX($D$11:D16)+1)) -> 5 | E17: Avista Corp. | J17: 0.8512396694 | K17: 0.8699186992 | L17: 0.8333333333 | M17: 0.776 | N17: 0.8417266187 | O17: 0.9545454545 | P17: 0.9285714286 | R17: 0.7714285714
A18: BKH | B18: 17 | D18: =IF(ISERROR(E18),"",IF(E18="","",MAX($D$11:D17)+1)) -> 6 | E18: Black Hills | J18: 0.7185929648 | K18: 0.7562189055 | L18: 0.8532608696 | M18: 0.8225806452 | N18: 0.6794871795 | O18: 0.6739130435 | P18: 0.6913043478 | R18: 0.7291666667
A19: CNP | B19: 19 | D19: =IF(ISERROR(E19),"",IF(E19="","",MAX($D$11:D18)+1)) -> 7 | E19: CenterPoint Energy | J19: 0.8762886598 | K19: 0.6194690265 | L19: 0.6216216216 | M19: 0.5714285714 | N19: 0.5547445255 | O19: 0.522875817 | P19: 0.5 | R19: 0.5882352941
A20: CMS | B20: 21 | D20: =IF(ISERROR(E20),"",IF(E20="","",MAX($D$11:D19)+1)) -> 8 | E20: CMS Energy Corp. | J20: 0.8169934641 | K20: 0.7719298246 | L20: 0.7765363128 | M20: 0.9235294118 | N20: 0.795 | O20: 0.6745098039 | P20: 0.6923076923 | R20: 0.7735849057
A21: ED | B21: 23 | D21: =IF(ISERROR(E21),"",IF(E21="","",MAX($D$11:D20)+1)) -> 9 | E21: Consol. Edison | J21: 0.8181818182 | K21: 0.8854625551 | L21: 0.8253968254 | M21: 0.7238095238 | N21: 0.8402777778 | O21: 0.8793103448 | P21: 0.864516129 | R21: 0.9903225806
A22: D | B22: 25 | D22: =IF(ISERROR(E22),"",IF(E22="","",MAX($D$11:D21)+1)) -> 10 | E22: Dominion Resources | J22: 1 | K22: 0.8882352941 | L22: 0.7378640777 | M22: 0.6326530612 | N22: 0.5118110236 | O22: 0.5322580645 | P22: 0.6227272727 | R22: 0.7045454545
A23: DTE | B23: 26 | D23: =IF(ISERROR(E23),"",IF(E23="","",MAX($D$11:D22)+1)) -> 11 | E23: DTE Energy | J23: 0.6674757282 | K23: 0.6995412844 | L23: 0.7451523546 | M23: 0.8240469208 | N23: 0.8685714286 | O23: 0.8985915493 | P23: 0.9331476323 | R23: 1.005405405
A24: DUK | B24: 27 | D24: =IF(ISERROR(E24),"",IF(E24="","",MAX($D$11:D23)+1)) -> 12 | E24: Duke Energy | J24: 0.8607142857 | K24: 0.9264705882 | L24: 0.8099688474 | M24: 0.7940298507 | N24: 0.7698863636 | O24: 0.9202453988 | P24: 0.9402985075 | R24: 1.01369863
A25: EIX | B25: 28 | D25: =IF(ISERROR(E25),"",IF(E25="","",MAX($D$11:D24)+1)) -> 13 | E25: Edison Int'l | J25: 0.6740740741 | K25: 0.7412587413 | L25: 0.6676923077 | M25: 0.7508196721 | N25: 0.8158730159 | O25: 0.8523076923 | P25: 0.8626865672 | R25: 0.9029411765
A26: EE | B26: 29 | D26: =IF(ISERROR(E26),"",IF(E26="","",MAX($D$11:D25)+1)) -> 14 | E26: El Paso Electric | J26: 1 | K26: 0.8282208589 | L26: N/A | M26: N/A | N26: N/A | O26: N/A | P26: N/A | R26: N/A
A27: ETR | B27: 30 | D27: =IF(ISERROR(E27),"",IF(E27="","",MAX($D$11:D26)+1)) -> 15 | E27: Entergy Corp. | J27: 0.8144578313 | K27: 1.04664723 | L27: 0.9779614325 | M27: 0.8475 | N27: 0.8119047619 | O27: 0.7333333333 | P27: 0.744 | R27: 0.75
A28: ES | B28: 32 | D28: =IF(ISERROR(E28),"",IF(E28="","",MAX($D$11:D27)+1)) -> 16 | E28: Eversource Energy | J28: 0.9545454545 | K28: 0.7365853659 | L28: 0.72 | M28: 0.8619047619 | N28: 0.7580645161 | O28: 0.7428571429 | P28: 0.756 | R28: 0.8
A29: EVRG | B29: =MATCH(A29,CapCashTic,0) -> 31 | D29: =IF(ISERROR(E29),"",IF(E29="","",MAX($D$11:D28)+1)) -> 17 | E29: Evergy, Inc. | J29: 1.062937063 | K29: 0.9570552147 | L29: 0.9360465116 | M29: 0.8641304348 | N29: 0.8594594595 | O29: 0.9193548387 | P29: 0.9465240642 | R29: 1.015789474
A30: EXC | B30: 33 | D30: =IF(ISERROR(E30),"",IF(E30="","",MAX($D$11:D29)+1)) -> 18 | E30: Exelon Corp. | J30: 1.303448276 | K30: 1.324137931 | L30: 0.9562043796 | M30: 0.9926470588 | N30: 0.8012820513 | O30: 0.8269230769 | P30: 0.8407643312 | R30: 0.925
A31: FE | B31: 34 | D31: =IF(ISERROR(E31),"",IF(E31="","",MAX($D$11:D30)+1)) -> 19 | E31: FirstEnergy Corp. | J31: 0.9636363636 | K31: 0.9142857143 | L31: 0.8608695652 | M31: 0.7966101695 | N31: 0.8181818182 | O31: 0.6424242424 | P31: 0.6787878788 | R31: 0.7135135135
A32: FTS.TO | B32: 35 | D32: =IF(ISERROR(E32),"",IF(E32="","",MAX($D$11:D31)+1)) -> 20 | E32: Fortis Inc. | J32: 0.5989304813 | K32: 0.7407407407 | L32: 0.7454545455 | M32: 0.8152866242 | N32: 0.8484848485 | O32: 0.8909090909 | P32: 0.9090909091 | R32: 0.9939393939
A33: HE | B33: 36 | D33: =IF(ISERROR(E33),"",IF(E33="","",MAX($D$11:D32)+1)) -> 21 | E33: Hawaiian Elec. | J33: 1.097560976 | K33: 1.415384615 | L33: 1.301369863 | M33: 1.507462687 | N33: 1.2 | O33: 1.285714286 | P33: 1.333333333 | R33: 1.4
A34: H.TO | B34: =MATCH(A34,CapCashTic,0) ->  | D34: =IF(ISERROR(E34),"",IF(E34="","",MAX($D$11:D33)+1)) -> 22 | E34: Hydro One Electric | J34: 1.213286713 | K34: 0.6728971963 | L34: 0.7247706422 | M34: 0.6342710997 | N34: 0.6 | O34: 0.6336633663 | P34: 0.6442307692 | R34: 0.6333333333
A35: IDA | B35: 37 | D35: =IF(ISERROR(E35),"",IF(E35="","",MAX($D$11:D34)+1)) -> 23 | E35: IDACORP, Inc. | J35: 1.251908397 | K35: 1.15862069 | L35: 0.8254716981 | M35: 0.625 | N35: 0.5588235294 | O35: 0.5648648649 | P35: 0.5357142857 | R35: 0.5543478261
A36: MGEE | B36: =MATCH(A36,CapCashTic,0) -> 38 | D36: =IF(ISERROR(E36),"",IF(E36="","",MAX($D$11:D35)+1)) -> 24 | E36: MGE Energy | J36: 0.7251908397 | K36: 0.8660714286 | L36: N/A | M36: 1.258064516 | N36: 1.097560976 | O36: 0.8176470588 | P36: 0.8055555556 | R36: 1.133333333
A37: NEE | B37: 41 | D37: =IF(ISERROR(E37),"",IF(E37="","",MAX($D$11:D36)+1)) -> 25 | E37: NextEra Energy, Inc. | J37: 0.5771812081 | K37: 0.6923076923 | L37: 0.5432098765 | M37: 0.5894736842 | N37: 0.5863636364 | O37: 0.5954545455 | P37: 0.6136363636 | R37: 0.6875
A38: NWE | B38: 44 | D38: =IF(ISERROR(E38),"",IF(E38="","",MAX($D$11:D37)+1)) -> 26 | E38: NorthWestern Corp | J38: 0.9794520548 | K38: 0.8228571429 | L38: 0.6616915423 | M38: 0.7472527473 | N38: 0.8711656442 | O38: 0.8639053254 | P38: 0.9117647059 | R38: 0.9828571429
A39: OGE | B39: 45 | D39: =IF(ISERROR(E39),"",IF(E39="","",MAX($D$11:D38)+1)) -> 27 | E39: OGE Energy | J39: 1.431034483 | K39: 1.133333333 | L39: 0.9894736842 | M39: 0.9684210526 | N39: 0.9894736842 | O39: 1.063157895 | P39: 1.105263158 | R39: 1.284210526
A40: OTTR | B40: 47 | D40: =IF(ISERROR(E40),"",IF(E40="","",MAX($D$11:D39)+1)) -> 28 | E40: Otter Tail Corp. | J40: 0.4468085106 | K40: 1.421875 | L40: 1.448275862 | M40: 1.084745763 | N40: 1.458333333 | O40: 1.466666667 | P40: 1.338842975 | R40: 1.168
A41: PNW | B41: 49 | D41: =IF(ISERROR(E41),"",IF(E41="","",MAX($D$11:D40)+1)) -> 29 | E41: Pinnacle West Capital | J41: 0.975308642 | K41: 0.8489208633 | L41: 0.7836879433 | M41: 0.9464285714 | N41: 0.744047619 | O41: 0.7671641791 | P41: 0.8 | R41: 0.9285714286
A42: TXNM | B42: 50 | D42: =IF(ISERROR(E42),"",IF(E42="","",MAX($D$11:D41)+1)) -> 30 | E42: TXNM Energy | J42: 0.5902439024 | K42: 0.5147679325 | L42: 0.6323529412 | M42: 0.6279069767 | N42: 0.5271317829 | O42: 0.523465704 | P42: 0.5263157895 | R42: 0.5580645161
A43: POR | B43: 51 | D43: =IF(ISERROR(E43),"",IF(E43="","",MAX($D$11:D42)+1)) -> 31 | E43: Portland General | J43: 0.7525252525 | K43: 0.9735099338 | L43: 1.006535948 | M43: 0.5843137255 | N43: 0.6201550388 | O43: 0.7086956522 | P43: 0.7304347826 | R43: 0.8739130435
A44: PPL | B44: 52 | D44: =IF(ISERROR(E44),"",IF(E44="","",MAX($D$11:D43)+1)) -> 32 | E44: PPL Corp. | J44: 1.061728395 | K44: 1.115384615 | L44: 1.348837209 | M44: 0.9846153846 | N44: 0.9726027397 | O44: 1 | P44: 1.013333333 | R44: 1.0625
A45: PEG | B45: 53 | D45: =IF(ISERROR(E45),"",IF(E45="","",MAX($D$11:D44)+1)) -> 33 | E45: Public Serv. Enterprise | J45: 1 | K45: 1.048 | L45: 0.824 | M45: 0.8680555556 | N45: 0.9027777778 | O45: 0.9032258065 | P45: 0.8823529412 | R45: 0.9722222222
A46: SRE | B46: 55 | D46: =IF(ISERROR(E46),"",IF(E46="","",MAX($D$11:D45)+1)) -> 34 | E46: Sempra Energy | J46: 0.921641791 | K46: 0.784660767 | L46: 0.9190031153 | M46: 0.9558823529 | N46: 0.6301886792 | O46: 0.5859649123 | P46: 0.6275862069 | R46: 0.6935483871
A47: SO | B47: 58 | D47: =IF(ISERROR(E47),"",IF(E47="","",MAX($D$11:D46)+1)) -> 35 | E47: Southern Co. | J47: 1.007692308 | K47: 0.9285714286 | L47: 0.9668874172 | M47: 0.974522293 | N47: 0.9039548023 | O47: 0.9714285714 | P47: 1.011494253 | R47: 1.152941176
A48: WEC | B48: 64 | D48: =IF(ISERROR(E48),"",IF(E48="","",MAX($D$11:D47)+1)) -> 36 | E48: WEC Energy Group | J48: 0.695 | K48: 0.7474747475 | L48: 0.8663101604 | M48: 0.9247311828 | N48: 1.005376344 | O48: 1.091397849 | P48: 1.14516129 | R48: 1.345945946
A49: XEL | B49: 65 | D49: =IF(ISERROR(E49),"",IF(E49="","",MAX($D$11:D48)+1)) -> 37 | E49: Xcel Energy Inc. | J49: 0.9850746269 | K49: 0.8614457831 | L49: 0.8031088083 | M49: 0.9166666667 | N49: 0.6490566038 | O49: 0.6066666667 | P49: 0.6964285714 | R49: 0.9
D50: =IF(ISERROR(E50),"",IF(E50="","",MAX($D$11:D49)+1)) -> 
D51: =IF(ISERROR(E51),"",IF(E51="","",MAX($D$11:D50)+1)) -> 38 | E51: Average | J51: =AVERAGE(J13:J50) -> 0.8786717782 | K51: 0.8855013932 | L51: 0.8963246985 | M51: 0.8615633717 | N51: 0.853977718 | O51: 0.8405899043 | P51: 0.8586545502 | R51: =AVERAGE(R13:R50) -> 0.9382589341
D52: =IF(ISERROR(E52),"",IF(E52="","",MAX($D$11:D51)+1)) -> 39 | E52: Median | J52: =MEDIAN(J13:J50) -> 0.8607142857 | K52: 0.8614457831 | L52: 0.8253968254 | M52: 0.8357734604 | N52: 0.8207516865 | O52: 0.8581065089 | P52: 0.8636013481 | R52: =MEDIAN(R13:R50) -> 0.9503968254
E55: Source:
E56: 1 | F56: Data for the years 2020 - 2024 was retrieved from Value Line Investment Surveys.
E57: 2 | F57: ="The Value Line Investment Survey, "&'2025 Data (WP)'!$D$1 -> The Value Line Investment Survey, May 9, June 6, and July 18, 2025.
E58: Notes:
F59: Based on the projected Cash Flow per share and Capital Spending per share.

Sheet MPG-2, pg 9-11
C1: =ElectricU -> Kentucky Utilities Company / Louisville Gas & Electric Company
C3: Electric Utilities
C4: (Valuation Metrics)
F7: Percent Dividends to Book Value 1
A8: Ticker | B8: Match | F8: 20-Year | AA8: 3-Year Averages
A9: Lookup: | B9: Row | C9: Line | D9: Company | F9: Average | G9: 2025 2/a | H9: 2024 | I9: 2023 | J9: 2022 | K9: 2021 | L9: 2020 | M9: 2019 | N9: 2018 | O9: 2017 | P9: 2016 | Q9: 2015 | R9: 2014 | S9: 2013 | T9: 2012 | U9: 2011 | V9: 2010 | W9: 2009 | X9: 2008 | Y9: 2007 | Z9: 2006 | AA9: 2018-2020 | AB9: 2015-2017 | AC9: 2012-2014 | AD9: 2009-2011 | AE9: 2006-2008
F10: -1 | G10: =+F10-1 -> -2 | H10: -3 | I10: -4 | J10: =+I10-1 -> -5 | K10: =+J10-1 -> -6 | AA10: =MIN($F$10:Z10)-1 -> -7 | AB10: =MIN($F$10:AA10)-1 -> -8 | AC10: =MIN($F$10:AB10)-1 -> -9 | AD10: =MIN($F$10:AC10)-1 -> -10 | AE10: =MIN($F$10:AD10)-1 -> -11
M11: =MATCH(M9,OFFSET(DIV_BV_WP,-1,0,1,),0) -> 7 | N11: 8 | O11: 9 | P11: 10 | Q11: 11 | R11: 12 | S11: 13 | T11: 14 | U11: 15 | V11: 16 | W11: 17 | X11: 18 | Y11: 19 | Z11: 20
A12: ALE | B12: =IFERROR(MATCH(A12,OFFSET(DIV_BV_WP,0,0,,1),0),"") -> 2 | C12: =IF(ISERROR(D12),"",IF(D12="","",MAX($C$11:C11)+1)) -> 1 | D12: =VLOOKUP(A12,LUCurYr,2,FALSE) -> ALLETE | F12: =IFERROR(AVERAGE(G12:Z12),"N/A") -> 0.05866087643 | G12: =IFERROR(IF(VLOOKUP($A12,Data2025,21,FALSE)=0,"",VLOOKUP($A12,Data2025,21,FALSE)),"N/A") -> 0.05594671741 | H12: =IFERROR(IF(VLOOKUP($A12,Data2024,21,FALSE)=0,"",VLOOKUP($A12,Data2024,21,FALSE)),"N/A") -> 0.0550996483 | I12: =IFERROR(IF(VLOOKUP($A12,Data2023,21,FALSE)=0,"",VLOOKUP($A12,Data2023,21,FALSE)),"N/A") -> 0.05555555556 | J12: =IFERROR(IF(VLOOKUP($A12,Data2022,19,FALSE)=0,"",VLOOKUP($A12,Data2022,19,FALSE)),"N/A") -> 0.05524861878 | K12: =IFERROR(IF(VLOOKUP(A12,lucyyr,19,FALSE)=0,"",VLOOKUP(A12,lucyyr,19,FALSE)),"N/A") -> 0.05555555556 | L12: =IFERROR(IF(VLOOKUP(A12,lucyr,19,FALSE)=0,"",VLOOKUP(A12,lucyr,19,FALSE)),"N/A") -> 0.05608537693 | M12: =IFERROR(INDEX(DIV_BV_WP,$B12,M$11),"N/A") -> 0.05443595089 | N12: 0.05351170569 | O12: 0.05287344962 | P12: 0.05450019652 | Q12: 0.05449003264 | R12: 0.05589938111 | S12: 0.05857508401 | T12: 0.06036349321 | U12: 0.06184635697 | V12: 0.06455635843 | W12: 0.06665151859 | X12: 0.06779393796 | Y12: 0.06802156781 | Z12: 0.06620702251 | AA12: =IFERROR(AVERAGE(L12:N12),"N/A") -> 0.05467767784 | AB12: =IFERROR(AVERAGE(O12:Q12),"N/A") -> 0.05395455959 | AC12: =IFERROR(AVERAGE(R12:T12),"N/A") -> 0.05827931944 | AD12: =IFERROR(AVERAGE(U12:W12),"N/A") -> 0.06435141133 | AE12: =IFERROR(AVERAGE(X12:Z12),"N/A") -> 0.06734084276
A13: LNT | B13: 3 | C13: =IF(ISERROR(D13),"",IF(D13="","",MAX($C$11:C12)+1)) -> 2 | D13: Alliant Energy | F13: =IFERROR(AVERAGE(G13:Z13),"N/A") -> 0.06454769133 | G13: 0.07071057192 | H13: 0.07035544155 | I13: 0.06840513983 | J13: 0.06842737095 | K13: 0.06733584274 | L13: 0.06678383128 | M13: 0.06684554912 | N13: 0.0689797179 | O13: 0.073200488 | P13: 0.06956316689 | Q13: 0.06702412869 | R13: 0.06562017499 | S13: 0.06356075461 | T13: 0.06372583729 | U13: 0.06263817244 | V13: 0.06055031808 | W13: 0.05982292414 | X13: 0.0547645126 | Y13: 0.05227197893 | Z13: 0.0503679047 | AA13: =IFERROR(AVERAGE(L13:N13),"N/A") -> 0.0675363661 | AB13: =IFERROR(AVERAGE(O13:Q13),"N/A") -> 0.06992926119 | AC13: =IFERROR(AVERAGE(R13:T13),"N/A") -> 0.06430225563 | AD13: 0.06100380489 | AE13: =IFERROR(AVERAGE(X13:Z13),"N/A") -> 0.05246813207
A14: AEE | B14: 6 | C14: =IF(ISERROR(D14),"",IF(D14="","",MAX($C$11:C13)+1)) -> 3 | D14: Ameren Corp. | F14: 0.06046662575 | G14: 0.06202393906 | H14: 0.06264609631 | I14: 0.06259314456 | J14: 0.05883819496 | K14: 0.05844845909 | L14: 0.05667327855 | M14: 0.05865460989 | N14: 0.05920989395 | O14: 0.06005133748 | P14: 0.05858440937 | Q14: 0.05781255458 | R14: 0.05819206998 | S14: 0.05932297653 | T14: 0.05867898925 | U14: 0.04763801238 | V14: 0.04789301819 | W14: 0.0465552163 | X14: 0.07744374657 | Y14: 0.07835878451 | Z14: 0.07971378358 | AA14: 0.05817926079 | AB14: 0.05881610048 | AC14: 0.05873134525 | AD14: 0.04736208229 | AE14: 0.07850543822
A15: AEP | B15: 7 | C15: =IF(ISERROR(D15),"",IF(D15="","",MAX($C$11:C14)+1)) -> 4 | D15: American Electric Power | F15: 0.06427010538 | G15: 0.07258834766 | H15: 0.07051155441 | I15: 0.06954189022 | J15: 0.06802575107 | K15: 0.06743088334 | L15: 0.06863218946 | M15: 0.06821385421 | N15: 0.06558141946 | O15: 0.06430262591 | P15: 0.06416054268 | Q15: 0.05900919446 | R15: 0.05906657356 | S15: 0.05913391557 | T15: 0.05992413859 | U15: 0.0609876706 | V15: 0.06035578145 | W15: 0.05966673943 | X15: 0.06227926936 | Y15: 0.06277064876 | Z15: 0.06321911746 | AA15: 0.06747582104 | AB15: 0.06249078768 | AC15: 0.05937487591 | AD15: 0.06033673049 | AE15: 0.06275634519
A16: AGR | B16: 10 | C16: =IF(ISERROR(D16),"",IF(D16="","",MAX($C$11:C15)+1)) -> 5 | D16: Avangrid, Inc. | F16: 0.0314789016 | G16: N/A | H16: N/A | I16: 0.03464566929 | J16: 0.03510871733 | K16: 0.03566362715 | L16: 0.0357650884 | M16: 0.03569255729 | N16: 0.03567994435 | O16: 0.03541564191 | P16: 0.03533886867 | Q16: =IFERROR(INDEX(DIV_BV_WP,$B16,Q$11),"N/A") -> 0 | R16: N/A | S16: N/A | T16: N/A | U16: N/A | V16: N/A | W16: N/A | X16: N/A | Y16: N/A | Z16: N/A | AA16: 0.03571253001 | AB16: 0.02358483686 | AC16: N/A | AD16: N/A | AE16: N/A
A17: AVA | B17: 11 | C17: =IF(ISERROR(D17),"",IF(D17="","",MAX($C$11:C16)+1)) -> 6 | D17: Avista Corp. | F17: 0.05147405021 | G17: 0.05813953488 | H17: 0.05869632376 | I17: 0.05780710022 | J17: 0.05650080257 | K17: 0.05607166556 | L17: 0.05527123849 | M17: 0.05369267008 | N17: 0.05519745129 | O17: 0.05414205664 | P17: 0.05333644787 | Q17: 0.05380727213 | R17: 0.05327851659 | S17: 0.05645534475 | T17: 0.05508856912 | U17: 0.05420054201 | V17: 0.05073824141 | W17: 0.04225131709 | X17: 0.03771316135 | Y17: 0.03444483038 | Z17: 0.03264791798 | AA17: 0.05472045329 | AB17: 0.05376192555 | AC17: 0.05494081015 | AD17: 0.04906336684 | AE17: 0.03493530324
A18: BKH | B18: 12 | C18: =IF(ISERROR(D18),"",IF(D18="","",MAX($C$11:C17)+1)) -> 7 | D18: Black Hills | F18: 0.05318392916 | G18: 0.05242718447 | H18: 0.0518754988 | I18: 0.05302226935 | J18: 0.05318914147 | K18: 0.05319396051 | L18: 0.05319931356 | M18: 0.05335346017 | N18: 0.05308468796 | O18: 0.05670603716 | P18: 0.05554269845 | Q18: 0.05657412258 | R18: 0.05064441775 | S18: 0.05172179121 | T18: 0.05308274452 | U18: 0.05302920238 | V18: 0.05139369713 | W18: 0.0510075793 | X18: 0.05148762458 | Y18: 0.05339049104 | Z18: 0.05575266092 | AA18: 0.05321248723 | AB18: 0.05627428606 | AC18: 0.05181631783 | AD18: 0.0518101596 | AE18: 0.05354359218
A19: CNP | B19: 14 | C19: =IF(ISERROR(D19),"",IF(D19="","",MAX($C$11:C18)+1)) -> 8 | D19: CenterPoint Energy | F19: 0.0887716616 | G19: 0.04985994398 | H19: 0.04948075748 | I19: 0.05029392554 | J19: 0.04904632153 | K19: 0.04817518248 | L19: 0.08348794063 | M19: 0.06586277952 | N19: 0.08938547486 | O19: 0.123942626 | P19: 0.1282051282 | Q19: 0.1229966455 | R19: 0.08961418734 | S19: 0.08225151125 | T19: 0.08050089445 | U19: 0.07971745711 | V19: 0.1035856574 | W19: 0.1128266033 | X19: 0.1240231057 | Y19: 0.1212337315 | Z19: 0.1209433582 | AA19: 0.07957873167 | AB19: 0.1250481332 | AC19: 0.08412219768 | AD19: 0.09870990594 | AE19: 0.1220667318
A20: CMS | B20: 18 | C20: =IF(ISERROR(D20),"",IF(D20="","",MAX($C$11:C19)+1)) -> 9 | D20: CMS Energy Corp. | F20: 0.06815046377 | G20: 0.07876588022 | H20: 0.07689436357 | I20: 0.07843925986 | J20: 0.07890222985 | K20: 0.07869742198 | L20: 0.08569926393 | M20: 0.08655314816 | N20: 0.0852205006 | O20: 0.08434804668 | P20: 0.08140756303 | Q20: 0.08164414414 | R20: 0.08098380324 | S20: 0.07858243451 | T20: 0.07937820407 | U20: 0.07048753881 | V20: 0.05898123324 | W20: 0.04379050622 | X20: 0.03309431881 | Y20: 0.02113941444 | Z20: 0 | AA20: 0.08582430423 | AB20: 0.08246658462 | AC20: 0.07964814727 | AD20: 0.05775309276 | AE20: 0.01807791108
A21: ED | B21: 20 | C21: =IF(ISERROR(D21),"",IF(D21="","",MAX($C$11:C20)+1)) -> 10 | D21: Consol. Edison | F21: 0.05894797488 | G21: 0.05112781955 | H21: 0.0523989899 | I21: 0.05289795918 | J21: 0.05422100206 | K21: 0.05477031802 | L21: 0.05557573556 | M21: 0.0546327058 | N21: 0.05488811269 | O21: 0.05549411883 | P21: 0.05716845496 | Q21: 0.05836663225 | R21: 0.05868653936 | S21: 0.05883759866 | T21: 0.05971475102 | U21: 0.06146596322 | V21: 0.06274716583 | W21: 0.06473379598 | X21: 0.06604572396 | Y21: 0.07120495979 | Z21: 0.07398115089 | AA21: 0.05503218468 | AB21: 0.05700973534 | AC21: 0.05907962968 | AD21: 0.06298230834 | AE21: 0.07041061155
A22: D | B22: 22 | C22: =IF(ISERROR(D22),"",IF(D22="","",MAX($C$11:C21)+1)) -> 11 | D22: Dominion Resources | F22: 0.09994480305 | G22: 0.08436018957 | H22: 0.08663205711 | I22: 0.0869140625 | J22: 0.08541266795 | K22: 0.08 | L22: 0.1171875 | M22: 0.1038747842 | N22: 0.1131053166 | O22: 0.114127778 | P22: 0.1203576341 | Q22: 0.1219512195 | R22: 0.1215682302 | S22: 0.1123819989 | T22: 0.115023986 | U22: 0.09805385496 | V22: 0.08859411309 | W22: 0.09378349411 | X22: 0.09144047688 | Y22: 0.08953210278 | Z22: 0.07459459459 | AA22: 0.1113892003 | AB22: 0.1188122105 | AC22: 0.1163247384 | AD22: 0.09347715405 | AE22: 0.08518905808
A23: DTE | B23: 23 | C23: =IF(ISERROR(D23),"",IF(D23="","",MAX($C$11:C22)+1)) -> 12 | D23: DTE Energy | F23: 0.06384955402 | G23: 0.07551369863 | H23: 0.0743461125 | I23: 0.07245564893 | J23: 0.07637540453 | K23: 0.08635655464 | L23: 0.06425452277 | M23: 0.06339953233 | N23: 0.06379953794 | O23: 0.06336633663 | P23: 0.06093311297 | Q23: 0.05810503918 | R23: 0.0571756504 | S23: 0.05790426792 | T23: 0.05656981229 | U23: 0.05602105619 | V23: 0.05494643982 | W23: 0.05585414691 | X23: 0.0576478586 | Y23: 0.05912374153 | Z23: 0.06284260577 | AA23: 0.06381786435 | AB23: 0.06080149626 | AC23: 0.05721657687 | AD23: 0.05560721431 | AE23: 0.05987140197
A24: DUK | B24: 24 | C24: =IF(ISERROR(D24),"",IF(D24="","",MAX($C$11:C23)+1)) -> 13 | D24: Duke Energy | F24: 0.05580127979 | G24: 0.06437833715 | H24: 0.06536154089 | I24: 0.06373626374 | J24: 0.06470492603 | K24: 0.06336311942 | L24: 0.06385824139 | M24: 0.06119181059 | N24: 0.06039388761 | O24: 0.05853053147 | P24: 0.0573192992 | Q24: 0.0561106974 | R24: 0.05448413042 | S24: 0.05278351924 | T24: 0.05220177796 | U24: 0.05807587016 | V24: 0.05723276625 | W24: 0.05656743962 | X24: 0.05453994546 | Y24: 0.05119149189 | Z24: 0 | AA24: 0.06181464653 | AB24: 0.05732017602 | AC24: 0.05315647587 | AD24: 0.05729202534 | AE24: 0.03524381245
A25: EIX | B25: 25 | C25: =IF(ISERROR(D25),"",IF(D25="","",MAX($C$11:C24)+1)) -> 14 | D25: Edison Int'l | F25: 0.059578126 | G25: 0.08659793814 | H25: 0.08761746821 | I25: 0.0830094392 | J25: 0.09244791667 | K25: 0.07355756084 | L25: 0.06957928803 | M25: 0.06734693878 | N25: 0.07563627301 | O25: 0.06233773485 | P25: 0.05385806241 | Q25: 0.04966896908 | R25: 0.04408573382 | S25: 0.04484951806 | T25: 0.04535562541 | U25: 0.04163831373 | V25: 0.03899266383 | W25: 0.04121834133 | X25: 0.04193769257 | Y25: 0.04533703747 | Z25: 0.04649000465 | AA25: 0.0708541666 | AB25: 0.05528825545 | AC25: 0.04476362577 | AD25: 0.04061643963 | AE25: 0.0445882449
A26: EE | B26: 26 | C26: =IF(ISERROR(D26),"",IF(D26="","",MAX($C$11:C25)+1)) -> 15 | D26: El Paso Electric | F26: 0.02941502321 | G26: N/A | H26: N/A | I26: N/A | J26: N/A | K26: N/A | L26: 0.05134706815 | M26: N/A | N26: 0.04944958938 | O26: 0.04672565114 | P26: 0.04619677942 | Q26: 0.04634971156 | R26: 0.04530731067 | S26: 0.04458191126 | T26: 0.04716293091 | U26: 0.03468937244 | V26: 0 | W26: 0 | X26: 0 | Y26: 0 | Z26: 0 | AA26: 0.05039832876 | AB26: 0.04642404737 | AC26: 0.04568405095 | AD26: 0.01156312415 | AE26: 0
A27: ETR | B27: 28 | C27: =IF(ISERROR(D27),"",IF(D27="","",MAX($C$11:C26)+1)) -> 16 | D27: Entergy Corp. | F27: 0.0668707253 | G27: 0.06657534247 | H27: 0.06550840216 | I27: 0.06317321689 | J27: 0.0667752443 | K27: 0.06722396378 | L27: 0.0685483871 | M27: 0.0712936089 | N27: 0.07652679507 | O27: 0.07904959798 | P27: 0.07580291243 | Q27: 0.06436568962 | R27: 0.05946197657 | S27: 0.06147920447 | T27: 0.06418559691 | U27: 0.06533632463 | V27: 0.06816317085 | W27: 0.06586892085 | X27: 0.07130802691 | Y27: 0.06336886575 | Z27: 0.05339925834 | AA27: 0.07212293035 | AB27: 0.07307273334 | AC27: 0.06170892598 | AD27: 0.06645613878 | AE27: 0.06269205033
A28: ES | B28: 29 | C28: =IF(ISERROR(D28),"",IF(D28="","",MAX($C$11:C27)+1)) -> 17 | D28: Eversource Energy | F28: 0.05277791362 | G28: 0.07016317016 | H28: 0.06972208679 | I28: 0.06658446363 | J28: 0.05741950011 | K28: 0.05685303138 | L28: 0.05535235308 | M28: =IFERROR(INDEX(DIV_BV_WP,$B28,M$11),"N/A") -> 0.05589364536 | N28: =IFERROR(INDEX(DIV_BV_WP,$B28,N$11),"N/A") -> 0.05572567519 | O28: =IFERROR(INDEX(DIV_BV_WP,$B28,O$11),"N/A") -> 0.05430898957 | P28: =IFERROR(INDEX(DIV_BV_WP,$B28,P$11),"N/A") -> 0.0526580481 | Q28: =IFERROR(INDEX(DIV_BV_WP,$B28,Q$11),"N/A") -> 0.05116891871 | R28: 0.04988244265 | S28: 0.04821885456 | T28: 0.04487964096 | U28: 0.04856512141 | V28: 0.04745590074 | W28: 0.04663034408 | X28: 0.04256526674 | Y28: 0.04155050397 | Z28: 0.03996031527 | AA28: 0.05565722455 | AB28: 0.05271198546 | AC28: 0.04766031272 | AD28: 0.04755045541 | AE28: 0.04135869533
A29: EVRG | B29: =IFERROR(MATCH(A29,OFFSET(DIV_BV_WP,0,0,,1),0),"") -> 30 | C29: =IF(ISERROR(D29),"",IF(D29="","",MAX($C$11:C28)+1)) -> 18 | D29: Evergy, Inc. | F29: 0.05686175203 | G29: 0.05936473165 | H29: 0.05986645176 | I29: 0.05896338564 | J29: 0.05566172957 | K29: 0.05406746032 | L29: 0.05324675325 | M29: N/A | N29: N/A | O29: N/A | P29: =IFERROR(VLOOKUP($A29,LASTYR,'2017'!$N$3,FALSE),"N/A") -> N/A | Q29: =IFERROR(VLOOKUP($A29,LASTYR,'2017'!$N$3,FALSE),"N/A") -> N/A | R29: =IFERROR(VLOOKUP($A29,LASTYR,'2017'!$N$3,FALSE),"N/A") -> N/A | S29: =IFERROR(VLOOKUP($A29,LASTYR,'2017'!$N$3,FALSE),"N/A") -> N/A | T29: =IFERROR(VLOOKUP($A29,LASTYR,'2017'!$N$3,FALSE),"N/A") -> N/A | U29: =IFERROR(VLOOKUP($A29,LASTYR,'2017'!$N$3,FALSE),"N/A") -> N/A | V29: =IFERROR(VLOOKUP($A29,LASTYR,'2017'!$N$3,FALSE),"N/A") -> N/A | W29: =IFERROR(VLOOKUP($A29,LASTYR,'2017'!$N$3,FALSE),"N/A") -> N/A | X29: =IFERROR(VLOOKUP($A29,LASTYR,'2017'!$N$3,FALSE),"N/A") -> N/A | Y29: =IFERROR(VLOOKUP($A29,LASTYR,'2017'!$N$3,FALSE),"N/A") -> N/A | Z29: =IFERROR(VLOOKUP($A29,LASTYR,'2017'!$N$3,FALSE),"N/A") -> N/A | AA29: 0.05324675325 | AB29: N/A | AC29: N/A | AD29: N/A | AE29: N/A
A30: EXC | B30: =IFERROR(MATCH(A30,OFFSET(DIV_BV_WP,0,0,,1),0),"") -> 31 | C30: =IF(ISERROR(D30),"",IF(D30="","",MAX($C$11:C29)+1)) -> 19 | D30: Exelon Corp. | F30: 0.06902411675 | G30: 0.05944954128 | H30: 0.05673758865 | I30: 0.05585725369 | J30: 0.05423865006 | K30: 0.04355251921 | L30: 0.04619565217 | M30: 0.04378283713 | N30: 0.04343036979 | O30: 0.04226760881 | P30: 0.045062766 | Q30: 0.0442256937 | R30: 0.04716084129 | S30: 0.05487252979 | T30: 0.08375877473 | U30: 0.09684113442 | V30: 0.1024990238 | W30: 0.109609061 | X30: 0.1221328567 | Y30: 0.1186518026 | Z30: 0.1101558302 | AA30: 0.0444696197 | AB30: 0.04385202284 | AC30: 0.06193071527 | AD30: 0.1029830731 | AE30: 0.1169801632
A31: FE | B31: =IFERROR(MATCH(A31,OFFSET(DIV_BV_WP,0,0,,1),0),"") -> 32 | C31: =IF(ISERROR(D31),"",IF(D31="","",MAX($C$11:C30)+1)) -> 20 | D31: FirstEnergy Corp. | F31: 0.08705395265 | G31: 0.08 | H31: 0.0787037037 | I31: 0.0880572372 | J31: 0.08778840743 | K31: 0.1025641026 | L31: 0.1170292573 | M31: 0.1185954577 | N31: 0.1381718797 | O31: 0.1633764466 | P31: 0.1020625133 | Q31: 0.04910485934 | R31: 0.04882348952 | S31: 0.05442311498 | T31: 0.07032124021 | U31: 0.06928261006 | V31: 0.07848173516 | W31: 0.07835594971 | X31: 0.08096569999 | Y31: 0.06961187137 | Z31: 0.06535947712 | AA31: 0.1245988649 | AB31: 0.1048479397 | AC31: 0.05785594824 | AD31: 0.07537343164 | AE31: 0.07197901616
A32: FTS.TO | B32: 33 | C32: =IF(ISERROR(D32),"",IF(D32="","",MAX($C$11:C31)+1)) -> 21 | D32: Fortis Inc. | F32: 0.05452503658 | G32: 0.05724137931 | H32: 0.05716335805 | I32: 0.05835881753 | J32: 0.05954994512 | K32: 0.05589895189 | L32: 0.05385456534 | M32: 0.05082888067 | N32: 0.05029313714 | O32: 0.05192925033 | P32: 0.04796534117 | Q32: 0.04995458674 | R32: 0.05221932115 | S32: 0.05583847047 | T32: 0.05806420654 | U32: 0.05698421975 | V32: 0.05909978365 | W32: 0.05600732403 | X32: 0.05554629784 | Y32: 0.04903133222 | Z32: 0.05467156263 | AA32: 0.05165886105 | AB32: 0.04994972608 | AC32: 0.05537399939 | AD32: 0.05736377581 | AE32: 0.05308306423
A33: GXP | B33: 35 | C33: =IF(ISERROR(D33),"",IF(D33="","",MAX($C$11:C32)+1)) -> 22 | D33: Great Plains Energy | F33: 0.05309484905 | G33: N/A | H33: N/A | I33: N/A | J33: N/A | K33: N/A | L33: N/A | M33: N/A | N33: N/A | O33: 0.04778453519 | P33: 0.04265901096 | Q33: 0.04214349056 | R33: 0.04019430831 | S33: 0.03905938621 | T33: 0.03930131004 | U33: 0.03840669702 | V33: 0.03903127204 | W33: 0.04025023035 | X33: 0.07761361511 | Y33: 0.09129908701 | Z33: 0.09939524579 | AA33: N/A | AB33: 0.0441956789 | AC33: 0.03951833486 | AD33: 0.03922939981 | AE33: 0.08943598264
A34: HE | B34: 36 | C34: =IF(ISERROR(D34),"",IF(D34="","",MAX($C$11:C33)+1)) -> 23 | D34: Hawaiian Elec. | F34: 0.07093419217 | G34: N/A | H34: N/A | I34: 0.05072804133 | J34: 0.06958250497 | K34: 0.06218564243 | L34: 0.06165343298 | M34: 0.06117084827 | N34: 0.06244020343 | O34: 0.0643153527 | P34: 0.0651465798 | Q34: 0.06912699298 | R34: 0.07099507615 | S34: 0.07270168856 | T34: 0.07618579504 | U34: 0.07773807285 | V34: 0.07914220066 | W34: 0.07957900141 | X34: 0.08078175896 | Y34: 0.0811146726 | Z34: 0.0922275939 | AA34: 0.06175482823 | AB34: 0.06619630849 | AC34: 0.07329418658 | AD34: 0.07881975831 | AE34: 0.08470800849
A35: H.TO | B35: 37 | C35: =IF(ISERROR(D35),"",IF(D35="","",MAX($C$11:C34)+1)) -> 24 | D35: =VLOOKUP(A35,LUCurYr,2,FALSE) -> Hydro One Limited | F35: 0.02418338647 | G35: 0.04854368932 | H35: 0.04470938897 | I35: 0.0442159383 | J35: 0.04569606801 | K35: =IFERROR(IF(VLOOKUP(A35,lucyyr,19,FALSE)=0,"",VLOOKUP(A35,lucyyr,19,FALSE)),"N/A") -> 0.04134509372 | L35: =IFERROR(IF(VLOOKUP(A35,lucyr,19,FALSE)=0,"",VLOOKUP(A35,lucyr,19,FALSE)),"N/A") -> 0.04271070615 | M35: 0.04728434505 | N35: 0.04702808622 | O35: 0.04283965728 | P35: 0.04350528278 | Q35: 0.03578947368 | R35: 0 | S35: 0 | T35: 0 | U35: 0 | V35: 0 | W35: 0 | X35: 0 | Y35: 0 | Z35: 0 | AA35: =IFERROR(AVERAGE(L35:N35),"N/A") -> 0.04567437914 | AB35: =IFERROR(AVERAGE(O35:Q35),"N/A") -> 0.04071147125 | AC35: =IFERROR(AVERAGE(R35:T35),"N/A") -> 0 | AD35: =IFERROR(AVERAGE(U35:W35),"N/A") -> 0 | AE35: =IFERROR(AVERAGE(X35:Z35),"N/A") -> 0
A36: IDA | B36: 38 | C36: =IF(ISERROR(D36),"",IF(D36="","",MAX($C$11:C35)+1)) -> 25 | D36: IDACORP, Inc. | F36: 0.04762372504 | G36: 0.0528132033 | H36: 0.05426858902 | I36: 0.05571030641 | J36: 0.05475504323 | K36: 0.05452480121 | L36: 0.05361718904 | M36: 0.05237101592 | N36: 0.05105079554 | O36: 0.0501646026 | P36: 0.04866749339 | Q36: 0.04696788082 | R36: 0.04529778144 | S36: 0.04261440747 | T36: 0.03907029802 | U36: 0.03616091608 | V36: 0.0386959466 | W36: 0.04113251525 | X36: 0.04322922295 | Y36: 0.0447894894 | Z36: 0.04657300318 | AA36: 0.0523463335 | AB36: 0.04859999227 | AC36: 0.04232749564 | AD36: 0.03866312598 | AE36: 0.04486390518
A37: MGEE | B37: =IFERROR(MATCH(A37,OFFSET(DIV_BV_WP,0,0,,1),0),"") -> 42 | C37: =IF(ISERROR(D37),"",IF(D37="","",MAX($C$11:C36)+1)) -> 26 | D37: =VLOOKUP(A37,LUCurYr,2,FALSE) -> MGE Energy | F37: 0.06010108559 | G37: 0.0512465374 | H37: 0.0522100267 | I37: 0.05296542975 | J37: 0.05315947844 | K37: N/A | L37: =IFERROR(IF(VLOOKUP(A37,lucyr,19,FALSE)=0,"",VLOOKUP(A37,lucyr,19,FALSE)),"N/A") -> 0.05223342939 | M37: 0.05591119034 | N37: 0.05603667855 | O37: 0.05613222257 | P37: 0.057933544 | Q37: 0.05824462744 | R37: 0.05835962145 | S37: 0.06007186167 | T37: 0.06223073241 | U37: 0.06362492133 | V37: 0.06557052298 | W37: 0.06722863263 | X37: 0.06868802989 | Y37: 0.07236335643 | Z37: 0.07770978288 | AA37: 0.05472709943 | AB37: 0.057436798 | AC37: 0.06022073851 | AD37: 0.06547469231 | AE37: 0.07292038973
A38: NEE | B38: =IFERROR(MATCH(A38,OFFSET(DIV_BV_WP,0,0,,1),0),"") -> 45 | C38: =IF(ISERROR(D38),"",IF(D38="","",MAX($C$11:C37)+1)) -> 27 | D38: =VLOOKUP(A38,LUCurYr,2,FALSE) -> NextEra Energy, Inc. | F38: 0.06886441899 | G38: 0.08714011516 | H38: 0.08456486043 | I38: 0.08084738435 | J38: 0.0861195542 | K38: 0.08126649077 | L38: =IFERROR(IF(VLOOKUP(A38,lucyr,19,FALSE)=0,"",VLOOKUP(A38,lucyr,19,FALSE)),"N/A") -> 0.07514761138 | M38: 0.06607114541 | N38: 0.06215005599 | O38: 0.06546426186 | P38: 0.06692307692 | Q38: 0.06290849673 | R38: 0.06494661922 | S38: 0.06364513018 | T38: 0.06335797254 | U38: 0.06124721604 | V38: 0.05820721769 | W38: 0.05994897959 | X38: 0.06302521008 | Y38: 0.062215478 | Z38: 0.06209150327 | AA38: 0.06778960426 | AB38: 0.06509861184 | AC38: 0.06398324065 | AD38: 0.05980113777 | AE38: 0.06244406378
A39: NWE | B39: 48 | C39: =IF(ISERROR(D39),"",IF(D39="","",MAX($C$11:C38)+1)) -> 28 | D39: NorthWestern Corp | F39: 0.05794126221 | G39: 0.05569620253 | H39: 0.05579399142 | I39: 0.05628847845 | J39: 0.05648957633 | K39: 0.0573012939 | L39: 0.05839416058 | M39: 0.05690815519 | N39: 0.05699777191 | O39: 0.05763530574 | P39: 0.05766680122 | Q39: 0.05779998796 | R39: 0.05079526334 | S39: 0.057140709 | T39: 0.05897824181 | U39: 0.0608082429 | V39: 0.06006271254 | W39: 0.06129917658 | X39: 0.06211472401 | Y39: 0.06060893035 | Z39: 0.06004551838 | AA39: 0.05743336256 | AB39: 0.05770069831 | AC39: 0.05563807138 | AD39: 0.06072337734 | AE39: 0.06092305758
A40: OGE | B40: 49 | C40: =IF(ISERROR(D40),"",IF(D40="","",MAX($C$11:C39)+1)) -> 29 | D40: OGE Energy | F40: 0.06898856939 | G40: 0.072 | H40: 0.07345867949 | I40: 0.0748759585 | J40: 0.07471526196 | K40: 0.08041440553 | L40: 0.0870523416 | M40: 0.07275100305 | N40: 0.06955524531 | O40: 0.06585770587 | P40: 0.06697593505 | Q40: 0.06304413089 | R40: 0.05838608567 | S40: 0.05562091503 | T40: 0.05698371894 | U40: 0.05809414466 | V40: 0.06240409207 | W40: 0.06787072243 | X40: 0.06891452233 | Y40: 0.07471327144 | Z40: 0.07608324804 | AA40: 0.07645286332 | AB40: 0.06529259061 | AC40: 0.05699690655 | AD40: 0.06278965306 | AE40: 0.07323701394
A41: OTTR | B41: 51 | C41: =IF(ISERROR(D41),"",IF(D41="","",MAX($C$11:C40)+1)) -> 30 | D41: Otter Tail Corp. | F41: 0.06809427516 | G41: 0.04970414201 | H41: 0.04687891702 | I41: 0.05948334466 | J41: 0.05612244898 | K41: 0.06543624161 | L41: 0.07047619048 | M41: 0.07194244604 | N41: 0.07292120157 | O41: 0.07265709258 | P41: 0.07339988256 | Q41: 0.07696158178 | R41: 0.07862759114 | S41: 0.08070532384 | T41: 0.0824556541 | U41: 0.0751784699 | V41: 0.06774836322 | W41: 0.06334841629 | X41: 0.06217670725 | Y41: 0.06666286821 | Z41: 0.06899862003 | AA41: 0.07177994603 | AB41: 0.07433951897 | AC41: 0.08059618969 | AD41: 0.06875841647 | AE41: 0.06594606516
A42: PNW | B42: 54 | C42: =IF(ISERROR(D42),"",IF(D42="","",MAX($C$11:C41)+1)) -> 31 | D42: Pinnacle West Capital | F42: 0.06211850956 | G42: 0.06224137931 | H42: 0.06259918886 | I42: 0.06407196622 | J42: 0.06398503274 | K42: 0.06429391504 | L42: 0.06465172138 | M42: 0.06293995859 | N42: 0.06159987981 | O42: 0.06026516673 | P42: 0.05933480125 | Q42: 0.05907418168 | R42: 0.05886224968 | S42: 0.05844650503 | T42: 0.07375486865 | U42: 0.06002744112 | V42: 0.06201275691 | W42: 0.06423589869 | X42: 0.0614826092 | Y42: 0.05975245412 | Z42: 0.0587382161 | AA42: 0.06306385326 | AB42: 0.05955804989 | AC42: 0.06368787445 | AD42: 0.06209203224 | AE42: 0.05999109314
A43: TXNM | B43: 55 | C43: =IF(ISERROR(D43),"",IF(D43="","",MAX($C$11:C42)+1)) -> 32 | D43: TXNM Energy | F43: 0.04188867633 | G43: 0.05729166667 | H43: 0.0549719888 | I43: 0.05721966206 | J43: 0.05520751762 | K43: 0.03881188119 | L43: 0.05234505863 | M43: 0.05589561091 | N43: 0.05118648865 | O43: 0.04665695626 | P43: 0.04182509506 | Q43: 0.0385078219 | R43: 0.03371890492 | S43: 0.0325889006 | T43: 0.02893489648 | U43: 0.02548939641 | V43: 0.02841393419 | W43: 0.02645362679 | X43: 0.03202244217 | Y43: 0.04130355846 | Z43: 0.03892811878 | AA43: 0.05314238606 | AB43: 0.04232995774 | AC43: 0.03174756733 | AD43: 0.02678565247 | AE43: 0.0374180398
A44: POR | B44: 56 | C44: =IF(ISERROR(D44),"",IF(D44="","",MAX($C$11:C43)+1)) -> 33 | D44: Portland General | F44: 0.04983032554 | G44: 0.05805555556 | H44: 0.05706051873 | I44: 0.05729960378 | J44: 0.05750080308 | K44: 0.05614266843 | L44: 0.05448937629 | M44: 0.05237010971 | N44: 0.05086738147 | O44: 0.04942643208 | P44: 0.04781239328 | Q44: 0.04640188753 | R44: 0.04564434256 | S44: 0.04700579524 | T44: 0.04700480979 | U44: 0.04780894548 | V44: 0.04896626768 | W44: 0.04926348649 | X44: 0.04482854238 | Y44: 0.04418891951 | Z44: 0.03446867181 | AA44: 0.05257562249 | AB44: 0.04788023763 | AC44: 0.0465516492 | AD44: 0.04867956655 | AE44: 0.04116204457
A45: PPL | B45: 57 | C45: =IF(ISERROR(D45),"",IF(D45="","",MAX($C$11:C44)+1)) -> 34 | D45: PPL Corp. | F45: 0.08188386649 | G45: 0.05304136253 | H45: 0.05401153644 | I45: 0.05026455026 | J45: 0.04658549497 | K45: 0.08891269416 | L45: 0.09545715929 | M45: 0.097448618 | N45: 0.1013409133 | O45: 0.1018106837 | P45: 0.1043740987 | Q45: =IFERROR(INDEX(DIV_BV_WP,$B45,Q$11),"N/A") -> 0.1019021739 | R45: 0.07280011726 | S45: 0.07432876574 | T45: 0.07996001999 | U45: 0.07478632479 | V45: 0.08243052285 | W45: 0.0947086679 | X45: 0.09886380404 | Y45: 0.08196170642 | Z45: 0.08268811546 | AA45: 0.0980822302 | AB45: 0.1026956521 | AC45: 0.075696301 | AD45: 0.08397517184 | AE45: 0.08783787531
A46: PEG | B46: 58 | C46: =IF(ISERROR(D46),"",IF(D46="","",MAX($C$11:C45)+1)) -> 35 | D46: Public Serv. Enterprise | F46: 0.07015847374 | G46: 0.07466666667 | H46: 0.07416563659 | I46: 0.07335907336 | J46: 0.07820419986 | K46: 0.07120418848 | L46: 0.06181015453 | M46: 0.06279644599 | N46: 0.06310032952 | O46: 0.06272793581 | P46: 0.0630599454 | Q46: 0.06032715882 | R46: 0.061438831 | S46: 0.06275330109 | T46: 0.06663850955 | U46: 0.06749100941 | V46: 0.0719575608 | W46: 0.076577614 | X46: 0.0840007814 | Y46: 0.08151605936 | Z46: 0.08537407324 | AA46: 0.06256897668 | AB46: 0.06203834668 | AC46: 0.06361021388 | AD46: 0.07200872807 | AE46: 0.08363030467
A47: SCG | B47: 59 | C47: =IF(ISERROR(D47),"",IF(D47="","",MAX($C$11:C46)+1)) -> 36 | D47: SCANA Corp. | F47: 0.06444509709 | G47: N/A | H47: N/A | I47: N/A | J47: N/A | L47: N/A | M47: N/A | N47: N/A | O47: 0.06667029498 | P47: 0.05740957991 | Q47: 0.05723286952 | R47: 0.06009099494 | S47: 0.06137009493 | T47: 0.06292306226 | U47: 0.06478976722 | V47: 0.06540897824 | W47: 0.06803952083 | X47: 0.07117162418 | Y47: 0.06936780703 | Z47: 0.06886657102 | AA47: N/A | AB47: 0.06043758147 | AC47: 0.06146138404 | AD47: 0.0660794221 | AE47: 0.06980200074
A48: SRE | B48: 60 | C48: =IF(ISERROR(D48),"",IF(D48="","",MAX($C$11:C47)+1)) -> 37 | D48: Sempra Energy | F48: 0.05339074765 | G48: 0.05456453305 | H48: 0.0531960532 | I48: 0.05409090909 | J48: 0.05489632027 | K48: 0.0555766073 | L48: 0.05962059621 | M48: 0.06388563316 | N48: 0.06586694142 | O48: 0.06527000754 | P48: 0.05833268948 | Q48: 0.05887300252 | R48: 0.05741751669 | S48: 0.05596269154 | T48: 0.05657308535 | U48: 0.04682584201 | V48: 0.0415523533 | W48: 0.04269527615 | X48: 0.04183078379 | Y48: 0.03890806401 | Z48: 0.0418760469 | AA48: 0.06312439026 | AB48: 0.06082523318 | AC48: 0.05665109786 | AD48: 0.04369115715 | AE48: 0.04087163157
A49: SO | B49: 64 | C49: =IF(ISERROR(D49),"",IF(D49="","",MAX($C$11:C48)+1)) -> 38 | D49: Southern Co. | F49: 0.09551680579 | G49: 0.09322834646 | H49: 0.09581239531 | I49: 0.09646079112 | J49: 0.09667024705 | K49: 0.09961977186 | L49: 0.09592145015 | M49: 0.09420234357 | N49: 0.09951913025 | O49: 0.09589326662 | P49: 0.08892711417 | Q49: 0.09532453732 | R49: 0.09478522024 | S49: 0.09394688944 | T49: 0.09215081812 | U49: 0.09218427011 | V49: 0.09384759525 | W49: 0.09547157338 | X49: 0.09735393982 | Y49: 0.09827479975 | Z49: 0.1007416158 | AA49: 0.09654764132 | AB49: 0.09338163937 | AC49: 0.0936276426 | AD49: 0.09383447958 | AE49: 0.09879011846
A50: VVC | B50: 72 | C50: =IF(ISERROR(D50),"",IF(D50="","",MAX($C$11:C49)+1)) -> 39 | D50: Vectren Corp. | F50: 0.07709301236 | G50: N/A | H50: N/A | I50: N/A | J50: N/A | K50: N/A | L50: N/A | M50: N/A | N50: N/A | O50: 0.07674700417 | P50: 0.07595648912 | Q50: 0.07572777341 | R50: 0.07506426735 | S50: 0.07554471717 | T50: 0.07567596682 | U50: 0.07740024589 | V50: 0.07778787191 | W50: 0.07836080799 | X50: 0.07853246208 | Y50: 0.07860370118 | Z50: 0.07971484122 | AA50: N/A | AB50: 0.07614375557 | AC50: 0.07542831711 | AD50: 0.07784964193 | AE50: 0.07895033483
A51: WEC | B51: 73 | C51: =IF(ISERROR(D51),"",IF(D51="","",MAX($C$11:C50)+1)) -> 40 | D51: WEC Energy Group | F51: 0.06641014241 | G51: 0.08771498771 | H51: 0.08540015341 | I51: 0.08375838926 | J51: 0.07916213275 | K51: 0.07832369942 | L51: 0.07622777945 | M51: 0.07360738569 | N51: 0.07123517277 | O51: 0.06937727227 | P51: 0.06998197434 | Q51: 0.06346658885 | R51: 0.07959995918 | S51: 0.07713660385 | T51: 0.06646726487 | U51: 0.06048269846 | V51: 0.04918839154 | W51: 0.04424778761 | X51: 0.03784162579 | Y51: 0.03773300128 | Z51: 0.03724997976 | AA51: 0.07369011264 | AB51: 0.06760861182 | AC51: 0.07440127597 | AD51: 0.05130629254 | AE51: 0.03760820228
A52: WR | B52: 74 | C52: =IF(ISERROR(D52),"",IF(D52="","",MAX($C$11:C51)+1)) -> 41 | D52: Westar Energy | F52: 0.05710999094 | G52: N/A | H52: N/A | I52: N/A | J52: N/A | K52: N/A | L52: N/A | M52: N/A | N52: N/A | O52: 0.05818181818 | P52: 0.05662978279 | Q52: 0.05566508176 | R52: 0.05595523581 | S52: 0.05695380879 | T52: 0.05765702804 | U52: 0.05809995007 | V52: 0.05835019528 | W52: 0.05829204314 | X52: 0.05747126437 | Y52: 0.05642928053 | Z52: 0.0556344025 | AA52: N/A | AB52: 0.05682556091 | AC52: 0.05685535755 | AD52: 0.05824739616 | AE52: 0.05651164913
A53: XEL | B53: 76 | C53: =IF(ISERROR(D53),"",IF(D53="","",MAX($C$11:C52)+1)) -> 42 | D53: Xcel Energy Inc. | F53: 0.06207165909 | G53: 0.06368715084 | H53: 0.06443071492 | I53: 0.06553245117 | J53: 0.06427158866 | K53: 0.0637630662 | L53: 0.06342182891 | M53: 0.06418637822 | N53: 0.06392732473 | O53: 0.06382978723 | P53: 0.06259204713 | Q53: 0.06128213721 | R53: 0.05941476457 | S53: 0.057782405 | T53: 0.05883646761 | U53: 0.05907657012 | V53: 0.05966943135 | W53: 0.06093347572 | X53: 0.0612537469 | Y53: 0.06192582511 | Z53: 0.06161602017 | AA53: 0.06384517729 | AB53: 0.06256799053 | AC53: 0.05867787906 | AD53: 0.05989315906 | AE53: 0.06159853073
C54: =IF(ISERROR(D54),"",IF(D54="","",MAX($C$11:C53)+1)) -> 
C55: =IF(ISERROR(D55),"",IF(D55="","",MAX($C$11:C54)+1)) -> 43 | D55: Average | F55: =AVERAGE(G55:Z55) -> 0.06262813714 | G55: =AVERAGE(G12:G54) -> 0.06505342303 | H55: =AVERAGE(H12:H54) -> 0.06466143095 | I55: 0.06371578326 | J55: 0.06408123826 | K55: 0.06438618449 | L55: 0.06586465873 | M55: 0.06516353927 | N55: 0.0663268911 | O55: 0.06673667599 | P55: 0.06412530642 | Q55: 0.06071956071 | R55: 0.05936373854 | S55: 0.05952886753 | T55: 0.06132804335 | U55: 0.05958049839 | V55: 0.05916788139 | W55: 0.05977846688 | X55: 0.06214817348 | Y55: 0.06134918717 | Z55: 0.05948319383 | AA55: =AVERAGE(AA12:AA54) -> 0.06543623905 | AB55: 0.06386051437 | AC55: 0.0600735498 | AD55: 0.05950894889 | AE55: 0.06099351816
C56: =IF(ISERROR(D56),"",IF(D56="","",MAX($C$11:C55)+1)) -> 44 | D56: Median | F56: =MEDIAN(G56:Z56) -> 0.06118863221 | G56: =MEDIAN(G12:G54) -> 0.06202393906 | H56: =MEDIAN(H12:H54) -> 0.06259918886 | I56: 0.05948334466 | J56: 0.05883819496 | K56: 0.06277438092 | L56: 0.06173179375 | M56: 0.06286820229 | N56: 0.06215005599 | O56: 0.06233773485 | P56: 0.05833268948 | Q56: 0.05810503918 | R56: 0.05827584571 | S56: 0.05817538648 | T56: 0.05981944481 | U56: 0.06064547068 | V56: 0.05986607194 | W56: 0.05988595187 | X56: 0.06214571563 | Y56: 0.06207065155 | Z56: 0.06185376172 | AA56: =MEDIAN(AA12:AA54) -> 0.0621918116 | AB56: 0.05955804989 | AC56: 0.05870461216 | AD56: 0.06011494478 | AE56: 0.06202129725
D59: Sources:
D60: 1 | E60: ='MPG-2, pg 7'!E59 -> Data for years 2019 and prior were retrieved from the Value Line Investment Survey Investment Analyzer Software, downloaded on June 18, 2021.
E61: ='MPG-2, pg 7'!E60 -> Data for the years 2020 - 2024 was retrieved from Value Line Investment Surveys.
D62: 2 | E62: ="The Value Line Investment Survey, "&'2025 Data (WP)'!$D$1 -> The Value Line Investment Survey, May 9, June 6, and July 18, 2025.
D63: a | E63: Based on the projected 2024 Dividend Declared per share and Book Value per share,
E64: ="published in The Value Line Investment Survey, "&'2024 Data (WP)'!$D$1 -> published in The Value Line Investment Survey, April 18, May 9, and June 6, 2025.
F66: Dividends to Earnings Ratio 1
F67: =F8 -> 20-Year | AA67: 3-Year Averages
C68: Line | D68: Company | F68: Average | G68: 2025 2/a | H68: 2024 | I68: 2023 | J68: 2022 | K68: 2021 | L68: 2020 | M68: 2019 | N68: 2018 | O68: 2017 | P68: 2016 | Q68: 2015 | R68: 2014 | S68: 2013 | T68: 2012 | U68: 2011 | V68: 2010 | W68: 2009 | X68: 2008 | Y68: 2007 | Z68: 2006 | AA68: 2018-2020 | AB68: 2015-2017 | AC68: 2012-2014 | AD68: 2009-2011 | AE68: 2006-2008
F69: -1 | G69: =+F69-1 -> -2 | H69: -3 | I69: -4 | J69: -5 | K69: =+J69-1 -> -6 | AA69: =MIN($F$69:Z69)-1 -> -7 | AB69: =MIN($F$69:AA69)-1 -> -8 | AC69: =MIN($F$69:AB69)-1 -> -9 | AD69: =MIN($F$69:AC69)-1 -> -10 | AE69: =MIN($F$69:AD69)-1 -> -11
L70: =MATCH(VALUE(LEFT(L68,4)),OFFSET(DIV_EARN_WP,-1,0,1,),0) -> 6 | M70: 7 | N70: 8 | O70: 9 | P70: 10 | Q70: 11 | R70: 12 | S70: 13 | T70: 14 | U70: 15 | V70: 16 | W70: 17 | X70: 18 | Y70: 19 | Z70: 20
A71: =A12 -> ALE | B71: =IFERROR(MATCH(A71,OFFSET(DIV_EARN_WP,0,0,,1),0),"") -> 2 | C71: =IF(ISERROR(D71),"",IF(D71="","",MAX($C$69:C70)+1)) -> 1 | D71: =D12 -> ALLETE | F71: =IFERROR(AVERAGE(G71:Z71),"N/A") -> 0.7053365638 | G71: =IFERROR(IF(VLOOKUP($A71,Data2025,22,FALSE)=0,"",VLOOKUP($A71,Data2025,22,FALSE)),"N/A") -> 0.784 | H71: =IFERROR(IF(VLOOKUP($A71,Data2024,22,FALSE)=0,"",VLOOKUP($A71,Data2024,22,FALSE)),"N/A") -> 0.9096774194 | I71: =IFERROR(IF(VLOOKUP($A71,Data2023,22,FALSE)=0,"",VLOOKUP($A71,Data2023,22,FALSE)),"N/A") -> 0.6302325581 | J71: =IFERROR(IF(VLOOKUP($A71,Data2022,20,FALSE)=0,"",VLOOKUP($A71,Data2022,20,FALSE)),"N/A") -> 0.7692307692 | K71: =IFERROR(IF(VLOOKUP(A71,lucyyr,20,FALSE)=0,"",VLOOKUP(A71,lucyyr,20,FALSE)),"N/A") -> 0.7801857585 | L71: =IFERROR(IF(INDEX(DIV_EARN_WP,$B71,L$70)=0,"N/A",INDEX(DIV_EARN_WP,$B71,L$70)),"N/A") -> 0.7373134328 | M71: 0.7057057057 | N71: 0.6627218935 | O71: 0.6837060703 | P71: 0.6624203822 | Q71: 0.5976331361 | R71: 0.675862069 | S71: 0.7224334601 | T71: 0.7131782946 | U71: 0.6716981132 | V71: 0.803652968 | W71: 0.9312169312 | X71: 0.609929078 | Y71: 0.5324675325 | Z71: 0.523465704 | AA71: =IFERROR(AVERAGE(L71:N71),"N/A") -> 0.7019136773 | AB71: =IFERROR(AVERAGE(O71:Q71),"N/A") -> 0.6479198628 | AC71: =IFERROR(AVERAGE(R71:T71),"N/A") -> 0.7038246079 | AD71: =IFERROR(AVERAGE(U71:W71),"N/A") -> 0.8021893375 | AE71: =IFERROR(AVERAGE(X71:Z71),"N/A") -> 0.5552874382
A72: LNT | B72: 3 | C72: =IF(ISERROR(D72),"",IF(D72="","",MAX($C$69:C71)+1)) -> 2 | D72: Alliant Energy | F72: =IFERROR(AVERAGE(G72:Z72),"N/A") -> 0.6191350358 | G72: 0.6276923077 | H72: 0.7137546468 | I72: 0.6510791367 | J72: 0.6263736264 | K72: 0.6121673004 | L72: 0.6153846154 | M72: 0.6094420601 | N72: 0.6118721461 | O72: 0.6331658291 | P72: 0.7151515152 | Q72: 0.650887574 | R72: 0.5862068966 | S72: 0.5714285714 | T72: 0.5901639344 | U72: 0.6181818182 | V72: 0.5745454545 | W72: 0.7936507937 | X72: 0.5511811024 | Y72: 0.4721189591 | Z72: 0.5582524272 | AA72: =IFERROR(AVERAGE(L72:N72),"N/A") -> 0.6122329405 | AB72: =IFERROR(AVERAGE(O72:Q72),"N/A") -> 0.6664016394 | AC72: =IFERROR(AVERAGE(R72:T72),"N/A") -> 0.5825998008 | AD72: 0.6621260221 | AE72: =IFERROR(AVERAGE(X72:Z72),"N/A") -> 0.5271841629
A73: AEE | B73: 6 | C73: =IF(ISERROR(D73),"",IF(D73="","",MAX($C$69:C72)+1)) -> 3 | D73: Ameren Corp. | F73: 0.6541458554 | G73: 0.5757575758 | H73: 0.5838779956 | I73: 0.5766590389 | J73: 0.5700483092 | K73: 0.5729166667 | L73: 0.5714285714 | M73: 0.5731343284 | N73: 0.556626506 | O73: 0.6418772563 | P73: 0.6399253731 | Q73: 0.6953781513 | R73: 0.6708333333 | S73: 0.7619047619 | T73: 0.6639004149 | U73: 0.6295546559 | V73: 0.5559566787 | W73: 0.5539568345 | X73: 0.8819444444 | Y73: 0.8523489933 | Z73: 0.954887218 | AA73: 0.5670631353 | AB73: 0.6590602602 | AC73: 0.6988795034 | AD73: 0.579822723 | AE73: 0.8963935519
A74: AEP | B74: 7 | C74: =IF(ISERROR(D74),"",IF(D74="","",MAX($C$69:C73)+1)) -> 4 | D74: American Electric Power | F74: 0.6090312389 | G74: 0.6440677966 | H74: 0.6363636364 | I74: 0.643129771 | J74: 0.6227897839 | K74: 0.6048387097 | L74: 0.6425339367 | M74: 0.6642156863 | N74: 0.6487179487 | O74: 0.6602209945 | P74: 0.536643026 | Q74: 0.5988857939 | R74: 0.6077844311 | S74: 0.6132075472 | T74: 0.6308724832 | U74: 0.5910543131 | V74: 0.6576923077 | W74: 0.5521885522 | X74: 0.5484949833 | Y74: 0.5524475524 | Z74: 0.5244755245 | AA74: 0.6518225239 | AB74: 0.5985832715 | AC74: 0.6172881538 | AD74: 0.6003117243 | AE74: 0.5418060201
A75: AGR | B75: 10 | C75: =IF(ISERROR(D75),"",IF(D75="","",MAX($C$69:C74)+1)) -> 5 | D75: Avangrid, Inc. | F75: 0.8781061735 | G75: N/A | H75: N/A | I75: 0.8421052632 | J75: 0.7586206897 | K75: 0.8934010152 | L75: 0.9361702128 | M75: 0.7787610619 | N75: 0.9083333333 | O75: 1.034730539 | P75: 0.8727272727 | Q75: N/A | R75: N/A | S75: N/A | T75: N/A | U75: N/A | V75: N/A | W75: N/A | X75: N/A | Y75: N/A | Z75: N/A | AA75: 0.874421536 | AB75: 0.9537289058 | AC75: N/A | AD75: N/A | AE75: N/A
A76: AVA | B76: 11 | C76: =IF(ISERROR(D76),"",IF(D76="","",MAX($C$69:C75)+1)) -> 6 | D76: Avista Corp. | F76: 0.6963399413 | G76: 0.7692307692 | H76: 0.8296943231 | I76: 0.8214285714 | J76: 0.8301886792 | K76: 0.8047619048 | L76: 0.8526315789 | M76: 0.5218855219 | N76: 0.7198067633 | O76: 0.7333333333 | P76: 0.6372093023 | Q76: 0.6984126984 | R76: 0.6902173913 | S76: 0.6594594595 | T76: 0.8787878788 | U76: 0.6395348837 | V76: 0.6060606061 | W76: 0.5126582278 | X76: 0.5073529412 | Y76: 0.8263888889 | Z76: 0.387755102 | AA76: 0.6981079547 | AB76: 0.689651778 | AC76: 0.7428215765 | AD76: 0.5860845725 | AE76: 0.5738323107
A77: BKH | B77: 12 | C77: =IF(ISERROR(D77),"",IF(D77="","",MAX($C$69:C76)+1)) -> 7 | D77: Black Hills | F77: 1.016622014 | G77: 0.6585365854 | H77: 0.6649616368 | I77: 0.6393861893 | J77: 0.6070528967 | K77: 0.6122994652 | L77: 0.581769437 | M77: 0.5807365439 | N77: 0.5561959654 | O77: 0.5355029586 | P77: 0.63878327 | Q77: 0.5724381625 | R77: 0.5397923875 | S77: 0.5823754789 | T77: 0.7512690355 | U77: 1.445544554 | V77: 0.8674698795 | W77: 0.6120689655 | X77: 7.777777778 | Y77: 0.5111940299 | Z77: 0.5972850679 | AA77: 0.5729006488 | AB77: 0.5822414637 | AC77: 0.6244789673 | AD77: 0.9750277998 | AE77: 2.962085625
A78: CNP | B78: 14 | C78: =IF(ISERROR(D78),"",IF(D78="","",MAX($C$69:C77)+1)) -> 8 | D78: CenterPoint Energy | F78: 0.6992281739 | G78: 0.5235294118 | H78: 0.5126582278 | I78: 0.5620437956 | J78: 0.4528301887 | K78: 0.7021276596 | L78: 0.6976744186 | M78: 0.5791946309 | N78: 1.513513514 | O78: 0.8585987261 | P78: 1.03 | Q78: 0.9166666667 | R78: 0.6690140845 | S78: 0.6693548387 | T78: 0.6 | U78: 0.6220472441 | V78: 0.7289719626 | W78: 0.7524752475 | X78: 0.5615384615 | Y78: 0.5811965812 | Z78: 0.4511278195 | AA78: 0.930127521 | AB78: 0.9350884643 | AC78: 0.6461229744 | AD78: 0.7011648181 | AE78: 0.5312876208
A79: CMS | B79: 18 | C79: =IF(ISERROR(D79),"",IF(D79="","",MAX($C$69:C78)+1)) -> 9 | D79: CMS Energy Corp. | F79: 0.5789159467 | G79: 0.6027777778 | H79: 0.6186186186 | I79: 0.6478405316 | J79: 0.6478873239 | K79: 0.6744186047 | L79: 0.6174242424 | M79: 0.640167364 | N79: 0.6163793103 | O79: 0.6129032258 | P79: 0.6262626263 | Q79: 0.6137566138 | R79: 0.6206896552 | S79: 0.6144578313 | T79: 0.6274509804 | U79: 0.5793103448 | V79: 0.4962406015 | W79: 0.5376344086 | X79: 0.2926829268 | Y79: 0.3125 | Z79: N/A | AA79: 0.6246569723 | AB79: 0.6176408219 | AC79: 0.6208661556 | AD79: 0.5377284516 | AE79: 0.3025914634
A80: ED | B80: 20 | C80: =IF(ISERROR(D80),"",IF(D80="","",MAX($C$69:C79)+1)) -> 10 | D80: Consol. Edison | F80: 0.6768914049 | G80: 0.6017699115 | H80: 0.6171003717 | I80: 0.6428571429 | J80: 0.6945054945 | K80: 0.6540084388 | L80: 0.7766497462 | M80: 0.7254901961 | N80: 0.6285714286 | O80: 0.6731707317 | P80: 0.6802030457 | Q80: 0.6419753086 | R80: 0.6961325967 | S80: 0.6259541985 | T80: 0.6269430052 | U80: 0.6722689076 | V80: 0.6858789625 | W80: 0.7515923567 | X80: 0.6964285714 | Y80: 0.6666666667 | Z80: 0.7796610169 | AA80: 0.7102371236 | AB80: 0.665116362 | AC80: 0.6496766001 | AD80: 0.7032467423 | AE80: 0.714252085
A81: D | B81: 22 | C81: =IF(ISERROR(D81),"",IF(D81="","",MAX($C$69:C80)+1)) -> 11 | D81: Dominion Resources | F81: 0.8842531988 | G81: 0.7852941176 | H81: 0.963898917 | I81: 1.341708543 | J81: 0.6496350365 | K81: 0.789968652 | L81: =IFERROR(IF(INDEX(DIV_EARN_WP,$B81,L$70)=0,"N/A",INDEX(DIV_EARN_WP,$B81,L$70)),"N/A") -> 1.895604396 | M81: 1.675799087 | N81: 1.027692308 | O81: 0.8597733711 | P81: 0.8139534884 | Q81: 0.809375 | R81: 0.7868852459 | S81: 0.7281553398 | T81: 0.7672727273 | U81: 0.7137681159 | V81: 0.6332179931 | W81: 0.6628787879 | X81: 0.5197368421 | Y81: 0.6854460094 | Z81: 0.575 | AA81: 1.53303193 | AB81: 0.8277006198 | AC81: 0.7607711043 | AD81: 0.6699549656 | AE81: 0.5933942838
A82: DTE | B82: 23 | C82: =IF(ISERROR(D82),"",IF(D82="","",MAX($C$69:C81)+1)) -> 12 | D82: DTE Energy | F82: 0.657521444 | G82: 0.6125 | H82: 0.6129985229 | I82: 0.573964497 | J82: 0.6413043478 | K82: 0.9463414634 | L82: 0.581920904 | M82: 0.6101426307 | N82: 0.5818476499 | O82: 0.5863874346 | P82: 0.6335403727 | Q82: 0.6396396396 | R82: 0.5274509804 | S82: 0.6888297872 | T82: 0.6237113402 | U82: 0.6321525886 | V82: 0.5828877005 | W82: 0.6543209877 | X82: 0.7765567766 | Y82: 0.7969924812 | Z82: 0.8469387755 | AA82: 0.5913037282 | AB82: 0.6198558156 | AC82: 0.6133307026 | AD82: 0.6231204256 | AE82: 0.8068293444
A83: DUK | B83: 24 | C83: =IF(ISERROR(D83),"",IF(D83="","",MAX($C$69:C82)+1)) -> 13 | D83: Duke Energy | F83: 0.7893097574 | G83: 0.6645669291 | H83: 0.7016949153 | I83: 0.7302158273 | J83: 0.7552182163 | K83: 0.7910750507 | L83: 0.9744897959 | M83: 0.7386587771 | N83: 0.8813559322 | O83: 0.827014218 | P83: 0.9056603774 | Q83: 0.7902439024 | R83: 0.7627118644 | S83: 0.7763819095 | T83: 0.8167115903 | U83: 0.7173913043 | V83: 0.723880597 | W83: 0.8318584071 | X83: 0.8910891089 | Y83: 0.7166666667 | Z83: N/A | AA83: 0.8648348351 | AB83: 0.8409728326 | AC83: 0.7852684548 | AD83: 0.7577101028 | AE83: 0.8038778878
A84: EIX | B84: 25 | C84: =IF(ISERROR(D84),"",IF(D84="","",MAX($C$69:C83)+1)) -> 14 | D84: Edison Int'l | F84: 0.4880468325 | G84: 0.5843478261 | H84: 0.6456211813 | I84: 0.6281512605 | J84: 1.775 | K84: 1.345 | L84: 1.497093023 | M84: 0.6218592965 | N84: -1.926984127 | O84: 0.4951219512 | P84: 0.5032994924 | Q84: 0.4175903614 | R84: 0.3424942263 | S84: 0.3619047619 | T84: 0.2885714286 | U84: 0.3978328173 | V84: 0.3776119403 | W84: 0.3842592593 | X84: 0.3328804348 | Y84: 0.3539156627 | Z84: 0.3353658537 | AA84: 0.06398939758 | AB84: 0.472003935 | AC84: 0.3309901389 | AD84: 0.3865680056 | AE84: 0.3407206504
A85: EE | B85: 26 | C85: =IF(ISERROR(D85),"",IF(D85="","",MAX($C$69:C84)+1)) -> 15 | D85: El Paso Electric | F85: 0.4963154936 | G85: N/A | H85: N/A | I85: N/A | J85: N/A | K85: N/A | L85: N/A | M85: N/A | N85: 0.6835748792 | O85: 0.5433884298 | P85: 0.5125523013 | Q85: 0.5738916256 | R85: 0.486784141 | S85: 0.475 | T85: 0.4292035398 | U85: 0.2661290323 | V85: N/A | W85: N/A | X85: N/A | Y85: N/A | Z85: N/A | AA85: 0.6835748792 | AB85: 0.5432774522 | AC85: 0.4636625603 | AD85: 0.2661290323 | AE85: N/A
A86: ETR | B86: 28 | C86: =IF(ISERROR(D86),"",IF(D86="","",MAX($C$69:C85)+1)) -> 16 | D86: Entergy Corp. | F86: 0.5702444284 | G86: 0.7253731343 | H86: 0.9387755102 | I86: 0.390990991 | J86: 0.7635009311 | K86: 0.5618631732 | L86: 0.5420289855 | M86: 0.580952381 | N86: 0.6088435374 | O86: 0.6743737958 | P86: 0.4970930233 | Q86: 0.5748709122 | R86: 0.575389948 | S86: 0.6693548387 | T86: 0.5514950166 | U86: 0.4397350993 | V86: 0.4864864865 | W86: 0.4761904762 | X86: 0.4838709677 | Y86: 0.4607142857 | Z86: 0.4029850746 | AA86: 0.577274968 | AB86: 0.5821125771 | AC86: 0.5987466011 | AD86: 0.4674706873 | AE86: 0.4491901094
A87: ES | B87: 29 | C87: =IF(ISERROR(D87),"",IF(D87="","",MAX($C$69:C86)+1)) -> 17 | D87: Eversource Energy | F87: 0.6038949493 | G87: 0.6336842105 | H87: 0.6258205689 | I87: 0.6221198157 | J87: 0.6234718826 | K87: 0.6807909605 | L87: =IFERROR(IF(INDEX(DIV_EARN_WP,$B87,L$70)=0,"N/A",INDEX(DIV_EARN_WP,$B87,L$70)),"N/A") -> 0.6394366197 | M87: 0.6202898551 | N87: 0.6215384615 | O87: =IFERROR(IF(INDEX(DIV_EARN_WP,$B87,O$70)=0,"N/A",INDEX(DIV_EARN_WP,$B87,O$70)),"N/A") -> 0.6109324759 | P87: =IFERROR(IF(INDEX(DIV_EARN_WP,$B87,P$70)=0,"N/A",INDEX(DIV_EARN_WP,$B87,P$70)),"N/A") -> 0.6013513514 | Q87: =IFERROR(IF(INDEX(DIV_EARN_WP,$B87,Q$70)=0,"N/A",INDEX(DIV_EARN_WP,$B87,Q$70)),"N/A") -> 0.6050724638 | R87: 0.6085271318 | S87: 0.5903614458 | T87: 0.6984126984 | U87: 0.4954954955 | V87: 0.4880952381 | W87: 0.497382199 | X87: 0.4435483871 | Y87: 0.4874213836 | Z87: 0.8841463415 | AA87: 0.6270883121 | AB87: 0.6057854303 | AC87: 0.6324337587 | AD87: 0.4936576442 | AE87: 0.6050387041
A88: EVRG | B88: =IFERROR(MATCH(A88,OFFSET(DIV_EARN_WP,0,0,,1),0),"") ->  | C88: =IF(ISERROR(D88),"",IF(D88="","",MAX($C$69:C87)+1)) -> 18 | D88: Evergy, Inc. | F88: 0.6839190481 | G88: 0.6691358025 | H88: 0.6842105263 | I88: 0.7823343849 | J88: 0.7147239264 | K88: 0.5691906005 | L88: N/A | M88: N/A | N88: N/A | O88: N/A | P88: N/A | Q88: N/A | R88: N/A | S88: N/A | T88: N/A | U88: N/A | V88: N/A | W88: N/A | X88: N/A | Y88: N/A | Z88: N/A | AA88: N/A | AB88: N/A | AC88: N/A | AD88: N/A | AE88: N/A
A89: EXC | B89: =IFERROR(MATCH(A89,OFFSET(DIV_EARN_WP,0,0,,1),0),"") -> 30 | C89: =IF(ISERROR(D89),"",IF(D89="","",MAX($C$69:C88)+1)) -> 19 | D89: Exelon Corp. | F89: 0.6018060495 | G89: 0.6113207547 | H89: 0.6204081633 | I89: 0.6050420168 | J89: 0.5973451327 | K89: 0.8793103448 | L89: 0.5884615385 | M89: 0.4817275748 | N89: 0.6666666667 | O89: 0.4712230216 | P89: 0.7 | Q89: 0.4881889764 | R89: 0.5904761905 | S89: 0.6298701299 | T89: 1.09375 | U89: 0.56 | V89: 0.5426356589 | W89: 0.4895104895 | X89: 0.5 | Y89: 0.4516129032 | Z89: 0.4685714286 | AA89: 0.5789519266 | AB89: 0.5531373327 | AC89: 0.7713654401 | AD89: 0.5307153828 | AE89: 0.4733947773
A90: FE | B90: =IFERROR(MATCH(A90,OFFSET(DIV_EARN_WP,0,0,,1),0),"") -> 31 | C90: =IF(ISERROR(D90),"",IF(D90="","",MAX($C$69:C89)+1)) -> 20 | D90: FirstEnergy Corp. | F90: 0.7718855119 | G90: 0.6980392157 | H90: 0.6463878327 | I90: 0.625 | J90: 0.6473029046 | K90: 0.5799256506 | L90: 0.8432432432 | M90: 0.8315217391 | N90: 1.368421053 | O90: 0.5274725275 | P90: 0.6857142857 | Q90: 0.72 | R90: 1.694117647 | S90: 0.5555555556 | T90: 1.03286385 | U90: 1.170212766 | V90: 0.6769230769 | W90: 0.6626506024 | X90: 0.502283105 | Y90: 0.4857819905 | Z90: 0.4842931937 | AA90: 1.014395345 | AB90: 0.6443956044 | AC90: 1.094179017 | AD90: 0.8365954818 | AE90: 0.4907860964
A91: FTS.TO | B91: 32 | C91: =IF(ISERROR(D91),"",IF(D91="","",MAX($C$69:C90)+1)) -> 21 | D91: Fortis Inc. | F91: 0.7160266535 | G91: 0.7323529412 | H91: 0.7286585366 | I91: 0.7387096774 | J91: 0.7805755396 | K91: 0.7969348659 | L91: 0.7557692308 | M91: 0.6921641791 | N91: 0.6944444444 | O91: 0.6203007519 | P91: 0.8201058201 | Q91: 0.6777251185 | R91: 0.9420289855 | S91: 0.7668711656 | T91: 0.7333333333 | U91: 0.6724137931 | V91: 0.6913580247 | W91: 0.6887417219 | X91: 0.6578947368 | Y91: 0.6371406371 | Z91: 0.4930095659 | AA91: 0.7141259514 | AB91: 0.7060438968 | AC91: 0.8140778282 | AD91: 0.6841711799 | AE91: 0.5960149799
A92: GXP | B92: 34 | C92: =IF(ISERROR(D92),"",IF(D92="","",MAX($C$69:C91)+1)) -> 22 | D92: Great Plains Energy | F92: -0.8172446214 | G92: N/A | H92: N/A | I92: N/A | J92: N/A | K92: N/A | L92: N/A | M92: N/A | N92: N/A | O92: -18.33333333 | P92: 0.6552795031 | Q92: 0.7284671533 | R92: 0.5955414013 | S92: 0.5444444444 | T92: 0.6333333333 | U92: 0.668 | V92: 0.5424836601 | W92: 0.8058252427 | X92: 1.431034483 | Y92: 0.8972972973 | Z92: 1.024691358 | AA92: N/A | AB92: -5.649862226 | AC92: 0.591106393 | AD92: 0.6721029676 | AE92: 1.117674379
A93: HE | B93: 35 | C93: =IF(ISERROR(D93),"",IF(D93="","",MAX($C$69:C92)+1)) -> 23 | D93: Hawaiian Elec. | F93: 0.8180790648 | G93: N/A | H93: N/A | I93: 0.5966850829 | J93: 0.6363636364 | K93: 0.6044444444 | L93: 0.729281768 | M93: 0.6432160804 | N93: 0.6702702703 | O93: 0.756097561 | P93: 0.5414847162 | Q93: 0.8266666667 | R93: 0.756097561 | S93: 0.7654320988 | T93: 0.7425149701 | U93: 0.8611111111 | V93: 1.024793388 | W93: 1.362637363 | X93: 1.158878505 | Y93: 1.117117117 | Z93: 0.9323308271 | AA93: 0.6809227062 | AB93: 0.7080829813 | AC93: 0.7546815433 | AD93: 1.082847287 | AE93: 1.06944215
A94: H.TO | B94: =IFERROR(MATCH(A94,OFFSET(DIV_EARN_WP,0,0,,1),0),"") -> 36 | C94: =IF(ISERROR(D94),"",IF(D94="","",MAX($C$69:C93)+1)) -> 24 | D94: Hydro One Limited | F94: 0.8833193458 | G94: 0.487804878 | H94: 0.46875 | I94: 0.4751381215 | J94: 0.4914285714 | K94: =IFERROR(IF(VLOOKUP(A94,lucyyr,20,FALSE)=0,"",VLOOKUP(A94,lucyyr,20,FALSE)),"N/A") -> 0.4658385093 | L94: 0.2542372881 | M94: 0.5692307692 | N94: 4.8 | O94: 0.6363636364 | P94: 0.5785123967 | Q94: 0.4892086331 | R94: N/A | S94: N/A | T94: N/A | U94: N/A | V94: N/A | W94: N/A | X94: N/A | Y94: N/A | Z94: N/A | AA94: =IFERROR(AVERAGE(L94:N94),"N/A") -> 1.874489352 | AB94: =IFERROR(AVERAGE(O94:Q94),"N/A") -> 0.5680282221 | AC94: =IFERROR(AVERAGE(R94:T94),"N/A") -> N/A | AD94: =IFERROR(AVERAGE(U94:W94),"N/A") -> N/A | AE94: =IFERROR(AVERAGE(X94:Z94),"N/A") -> N/A
A95: =A36 -> IDA | B95: 37 | C95: =IF(ISERROR(D95),"",IF(D95="","",MAX($C$69:C94)+1)) -> 25 | D95: IDACORP, Inc. | F95: 0.5236450149 | G95: 0.6068965517 | H95: 0.6090909091 | I95: 0.6225680934 | J95: 0.5949119374 | K95: 0.593814433 | L95: 0.5799573561 | M95: 0.5553145336 | N95: 0.5345211581 | O95: 0.5320665083 | P95: 0.5279187817 | Q95: 0.496124031 | R95: 0.4571428571 | S95: 0.4313186813 | T95: 0.4065281899 | U95: 0.3571428571 | V95: 0.406779661 | W95: 0.4545454545 | X95: 0.5504587156 | Y95: 0.6451612903 | Z95: 0.5106382979 | AA95: 0.5565976826 | AB95: 0.518703107 | AC95: 0.4316632428 | AD95: 0.4061559909 | AE95: 0.5687527679
A96: MGEE | B96: =IFERROR(MATCH(A96,OFFSET(DIV_EARN_WP,0,0,,1),0),"") -> 41 | C96: =IF(ISERROR(D96),"",IF(D96="","",MAX($C$69:C95)+1)) -> 26 | D96: MGE Energy | F96: 0.5615403948 | G96: 0.5068493151 | H96: 0.5285285285 | I96: 0.5138461538 | J96: 0.5179153094 | K96: N/A | L96: 0.5557692308 | M96: 0.5498007968 | N96: 0.5432098765 | O96: 0.5727272727 | P96: 0.5550458716 | Q96: 0.5631067961 | R96: 0.4784482759 | S96: 0.4953703704 | T96: 0.5591397849 | U96: 0.5744318182 | V96: 0.5956808638 | W96: 0.660556687 | X96: 0.6023944549 | Y96: 0.6212822208 | Z96: 0.6751638747 | AA96: 0.5495933014 | AB96: 0.5636266468 | AC96: 0.5109861437 | AD96: 0.610223123 | AE96: 0.6329468501
A97: =A38 -> NEE | B97: =IFERROR(MATCH(A97,OFFSET(DIV_EARN_WP,0,0,,1),0),"") -> 44 | C97: =IF(ISERROR(D97),"",IF(D97="","",MAX($C$69:C96)+1)) -> 27 | D97: NextEra Energy, Inc. | F97: 0.5638741466 | G97: 0.6135135135 | H97: 0.6005830904 | I97: 0.5899053628 | J97: 0.5862068966 | K97: 0.8508287293 | L97: 0.6666666667 | M97: 0.6443298969 | N97: 0.6646706587 | O97: 0.6012269939 | P97: 0.6 | Q97: 0.5065789474 | R97: 0.5214285714 | S97: 0.5454545455 | T97: 0.5263157895 | U97: 0.4545454545 | V97: 0.4201680672 | W97: 0.4747474747 | X97: 0.4411764706 | Y97: 0.5 | Z97: 0.4691358025 | AA97: 0.6585557408 | AB97: 0.5692686471 | AC97: 0.5310663021 | AD97: 0.4498203322 | AE97: 0.470104091
A98: NWE | B98: 47 | C98: =IF(ISERROR(D98),"",IF(D98="","",MAX($C$69:C97)+1)) -> 28 | D98: NorthWestern Corp | F98: 0.7004748148 | G98: 0.7436619718 | H98: 0.7951070336 | I98: 0.7950310559 | J98: 0.7659574468 | K98: 0.6888888889 | L98: 0.7843137255 | M98: 0.6515580737 | N98: 0.6470588235 | O98: 0.628742515 | P98: 0.5899705015 | Q98: 0.6620689655 | R98: 0.5351170569 | S98: 0.6178861789 | T98: 0.6548672566 | U98: 0.5691699605 | V98: 0.6355140187 | W98: 0.6633663366 | X98: 0.7457627119 | Y98: 0.8888888889 | Z98: 0.9465648855 | AA98: 0.6943102076 | AB98: 0.6269273273 | AC98: 0.6026234975 | AD98: 0.6226834386 | AE98: 0.8604054954
A99: OGE | B99: 48 | C99: =IF(ISERROR(D99),"",IF(D99="","",MAX($C$69:C98)+1)) -> 29 | D99: OGE Energy | F99: 0.6122147088 | G99: 0.7434782609 | H99: 0.7671232877 | I99: 0.8019323671 | J99: 0.7288888889 | K99: 0.6906779661 | L99: 0.7596153846 | M99: 0.671875 | N99: 0.6580188679 | O99: 0.6614583333 | P99: 0.6834319527 | Q99: 0.6213017751 | R99: 0.4797979798 | S99: 0.4386597938 | T99: 0.4458100559 | U99: 0.44 | V99: 0.489632107 | W99: 0.5368421053 | X99: 0.5614457831 | Y99: 0.5181818182 | Z99: 0.546122449 | AA99: 0.6965030842 | AB99: 0.6553973537 | AC99: 0.4547559432 | AD99: 0.4888247374 | AE99: 0.5419166834
A100: OTTR | B100: 50 | C100: =IF(ISERROR(D100),"",IF(D100="","",MAX($C$69:C99)+1)) -> 30 | D100: Otter Tail Corp. | F100: 0.9155937964 | G100: 0.3387096774 | H100: 0.2608089261 | I100: 0.25 | J100: 0.2433628319 | K100: 0.3687943262 | L100: 0.6324786325 | M100: 0.6451612903 | N100: 0.6504854369 | O100: 0.688172043 | P100: 0.78125 | Q100: 0.7884615385 | R100: 0.7806451613 | S100: 0.8686131387 | T100: 1.133333333 | U100: 2.644444444 | V100: 3.131578947 | W100: 1.676056338 | X100: 1.091743119 | Y100: 0.6573033708 | Z100: 0.6804733728 | AA100: 0.6427084532 | AB100: 0.7526278605 | AC100: 0.9275305444 | AD100: 2.484026577 | AE100: 0.8098399543
A101: PNW | B101: 53 | C101: =IF(ISERROR(D101),"",IF(D101="","",MAX($C$69:C100)+1)) -> 31 | D101: Pinnacle West Capital | F101: 0.7061593065 | G101: 0.7520833333 | H101: 0.677480916 | I101: 0.79138322 | J101: 0.8028169014 | K101: 0.6142595978 | L101: 0.6632443532 | M101: 0.6373165618 | N101: 0.6321585903 | O101: 0.6094808126 | P101: 0.6481012658 | Q101: 0.6224489796 | R101: 0.6494413408 | S101: 0.6079234973 | T101: 0.7628571429 | U101: 0.7023411371 | V101: 0.6818181818 | W101: 0.9292035398 | X101: 0.9905660377 | Y101: 0.7094594595 | Z101: 0.6388012618 | AA101: 0.6442398351 | AB101: 0.6266770194 | AC101: 0.673407327 | AD101: 0.7711209529 | AE101: 0.7796089197
A102: TXNM | B102: 54 | C102: =IF(ISERROR(D102),"",IF(D102="","",MAX($C$69:C101)+1)) -> 32 | D102: TXNM Energy | F102: 0.8239675634 | G102: 0.5892857143 | H102: 0.5729927007 | I102: 0.5283687943 | J102: 0.5241635688 | K102: 0.4317180617 | L102: 0.5813953488 | M102: 0.5166666667 | N102: 0.6536144578 | O102: 0.5171875 | P102: 0.5333333333 | Q102: 0.487804878 | R102: 0.5206896552 | S102: 0.4822695035 | T102: 0.4427480916 | U102: 0.462962963 | V102: 0.5747126437 | W102: 0.8620689655 | X102: 5.5 | Y102: 1.197368421 | Z102: 0.5 | AA102: 0.5838921578 | AB102: 0.5127752371 | AC102: 0.4819024168 | AD102: 0.6332481907 | AE102: 2.399122807
A103: POR | B103: 55 | C103: =IF(ISERROR(D103),"",IF(D103="","",MAX($C$69:C102)+1)) -> 33 | D103: Portland General | F103: 0.6288768471 | G103: 0.6430769231 | H103: 0.6305732484 | I103: 0.7899159664 | J103: 0.6532846715 | K103: 0.625 | L103: 0.9215116279 | M103: 0.6351464435 | N103: 0.6025316456 | O103: 0.5851528384 | P103: 0.5833333333 | Q103: 0.5784313725 | R103: 0.5114678899 | S103: 0.6186440678 | T103: 0.5748663102 | U103: 0.541025641 | V103: 0.6234939759 | W103: 0.7709923664 | X103: 0.6978417266 | Y103: 0.3991416309 | Z103: 0.5921052632 | AA103: 0.7197299057 | AB103: 0.5823058481 | AC103: 0.5683260893 | AD103: 0.6451706611 | AE103: 0.5630295402
A104: PPL | B104: 56 | C104: =IF(ISERROR(D104),"",IF(D104="","",MAX($C$69:C103)+1)) -> 34 | D104: PPL Corp. | F104: 0.7609171923 | G104: 0.5891891892 | H104: 0.6130952381 | I104: 0.59375 | J104: 0.6241134752 | K104: 3.132075472 | L104: 0.8137254902 | M104: 0.6962025316 | N104: 0.6356589147 | O104: 0.7488151659 | P104: 0.5448028674 | Q104: =IFERROR(IF(INDEX(DIV_EARN_WP,$B104,Q$70)=0,"N/A",INDEX(DIV_EARN_WP,$B104,Q$70)),"N/A") -> 0.6329113924 | R104: 0.6260504202 | S104: 0.6176470588 | T104: 0.5517241379 | U104: 0.5363984674 | V104: 0.6113537118 | W104: 1.159663866 | X104: 0.5469387755 | Y104: 0.463878327 | Z104: 0.480349345 | AA104: 0.7151956455 | AB104: 0.6421764752 | AC104: 0.5984738723 | AD104: 0.7691386816 | AE104: 0.4970554825
A105: PEG | B105: 57 | C105: =IF(ISERROR(D105),"",IF(D105="","",MAX($C$69:C104)+1)) -> 35 | D105: Public Serv. Enterprise | F105: 0.559844569 | G105: 0.63 | H105: 0.652173913 | I105: 0.6551724138 | J105: 0.6224783862 | K105: 0.8 | L105: 0.5429362881 | M105: 0.4820512821 | N105: 0.652173913 | O105: 0.609929078 | P105: 0.5795053004 | Q105: 0.4727272727 | R105: 0.4949832776 | S105: 0.587755102 | T105: 0.5819672131 | U105: 0.4405144695 | V105: 0.4462540717 | W105: 0.4318181818 | X105: 0.4448275862 | Y105: 0.4517374517 | Z105: 0.6178861789 | AA105: 0.5590538277 | AB105: 0.5540538837 | AC105: 0.5549018642 | AD105: 0.4395289076 | AE105: 0.5048170723
A106: SCG | B106: 58 | C106: =IF(ISERROR(D106),"",IF(D106="","",MAX($C$69:C105)+1)) -> 36 | D106: SCANA Corp. | F106: 0.6129185434 | G106: N/A | H106: N/A | I106: N/A | J106: N/A | L106: N/A | M106: N/A | N106: N/A | O106: 0.5833333333 | P106: 0.5528846154 | Q106: 0.5721784777 | R106: 0.5540897098 | S106: 0.598820059 | T106: 0.6285714286 | U106: 0.6531986532 | V106: 0.6375838926 | W106: 0.6596491228 | X106: 0.6237288136 | Y106: 0.6423357664 | Z106: 0.6486486486 | AA106: N/A | AB106: 0.5694654755 | AC106: 0.5938270658 | AD106: 0.6501438895 | AE106: 0.6382377429
A107: SRE | B107: 59 | C107: =IF(ISERROR(D107),"",IF(D107="","",MAX($C$69:C106)+1)) -> 37 | D107: Sempra Energy | F107: 0.5428812591 | G107: 0.5714285714 | H107: 0.5333333333 | I107: 0.5162689805 | J107: 0.4972855592 | K107: 1.097256858 | L107: 0.6352583587 | M107: 0.648241206 | N107: 0.6532846715 | O107: 0.7105831533 | P107: 0.7122641509 | Q107: 0.5353728489 | R107: 0.5701943844 | S107: 0.5971563981 | T107: 0.5517241379 | U107: 0.4295302013 | V107: 0.3880597015 | W107: 0.3263598326 | X107: 0.309255079 | Y107: 0.2910798122 | Z107: 0.2836879433 | AA107: 0.6455947454 | AB107: 0.6527400511 | AC107: 0.5730249735 | AD107: 0.3813165785 | AE107: 0.2946742782
A108: SO | B108: 63 | C108: =IF(ISERROR(D108),"",IF(D108="","",MAX($C$69:C107)+1)) -> 38 | D108: Southern Co. | F108: 0.7460961019 | G108: 0.688372093 | H108: 0.7044334975 | I108: 0.7637362637 | J108: 0.7479224377 | K108: 0.7660818713 | L108: 0.7815384615 | M108: 0.7760252366 | N108: 0.7933333333 | O108: 0.7165109034 | P108: 0.7855123675 | Q108: 0.7580985915 | R108: 0.7519855596 | S108: 0.7455555556 | T108: 0.7277153558 | U108: 0.7345098039 | V108: 0.7639830508 | W108: 0.7469827586 | X108: 0.7391111111 | Y108: 0.6995614035 | Z108: 0.730952381 | AA108: 0.7836323438 | AB108: 0.7533739542 | AC108: 0.741752157 | AD108: 0.7484918711 | AE108: 0.7232082985
A109: VVC | B109: 71 | C109: =IF(ISERROR(D109),"",IF(D109="","",MAX($C$69:C108)+1)) -> 39 | D109: Vectren Corp. | F109: 0.7487284382 | G109: N/A | H109: N/A | I109: N/A | J109: N/A | K109: N/A | L109: N/A | M109: N/A | N109: N/A | O109: 0.6576923077 | P109: 0.6352941176 | Q109: 0.6443514644 | R109: 0.7227722772 | S109: 0.8584337349 | T109: 0.7242268041 | U109: 0.8005780347 | V109: 0.8353658537 | W109: 0.7541899441 | X109: 0.8036809816 | Y109: 0.693989071 | Z109: 0.8541666667 | AA109: N/A | AB109: 0.6457792966 | AC109: 0.7684776054 | AD109: 0.7967112775 | AE109: 0.7839455731
A110: WEC | B110: 72 | C110: =IF(ISERROR(D110),"",IF(D110="","",MAX($C$69:C109)+1)) -> 40 | D110: WEC Energy Group | F110: 0.5736693674 | G110: 0.68 | H110: 0.6830265849 | I110: 0.6738660907 | J110: 0.6524663677 | K110: 0.6593673966 | L110: 0.6675461741 | M110: 0.6592178771 | N110: 0.6616766467 | O110: 0.6624203822 | P110: 0.6689189189 | Q110: 0.7435897436 | R110: 0.6023166023 | S110: 0.5756972112 | T110: 0.5106382979 | U110: 0.4770642202 | V110: 0.4166666667 | W110: 0.421875 | X110: 0.3564356436 | Y110: 0.3521126761 | Z110: 0.3484848485 | AA110: 0.662813566 | AB110: 0.6916430149 | AC110: 0.5628840371 | AD110: 0.4385352956 | AE110: 0.3523443894
A111: WR | B111: 73 | C111: =IF(ISERROR(D111),"",IF(D111="","",MAX($C$69:C110)+1)) -> 41 | D111: Westar Energy | F111: 0.6802812112 | G111: N/A | H111: N/A | I111: N/A | J111: N/A | K111: N/A | L111: N/A | M111: N/A | N111: N/A | O111: 0.704845815 | P111: 0.6255144033 | Q111: 0.6889952153 | R111: 0.5957446809 | S111: 0.5991189427 | T111: 0.6139534884 | U111: 0.7150837989 | V111: 0.6888888889 | W111: 0.9375 | X111: 0.8854961832 | Y111: 0.5869565217 | Z111: 0.5212765957 | AA111: N/A | AB111: 0.6731184779 | AC111: 0.6029390373 | AD111: 0.7804908959 | AE111: 0.6645764336
A112: XEL | B112: 75 | C112: =IF(ISERROR(D112),"",IF(D112="","",MAX($C$69:C111)+1)) -> 42 | D112: Xcel Energy Inc. | F112: 0.6193896571 | G112: 0.6 | H112: 0.6257142857 | I112: 0.6208955224 | J112: 0.6151419558 | K112: 0.6182432432 | L112: 0.6164874552 | M112: 0.6136363636 | N112: 0.6153846154 | O112: 0.6260869565 | P112: 0.6153846154 | Q112: 0.6095238095 | R112: 0.5911330049 | S112: 0.5811518325 | T112: 0.5783783784 | U112: 0.5988372093 | V112: 0.641025641 | W112: 0.6510067114 | X112: 0.6438356164 | Y112: 0.6740740741 | Z112: 0.6518518519 | AA112: 0.6151694781 | AB112: 0.6169984605 | AC112: 0.5835544053 | AD112: 0.6302898539 | AE112: 0.6565871808
C113: =IF(ISERROR(D113),"",IF(D113="","",MAX($C$69:C112)+1)) -> 
C114: =IF(ISERROR(D114),"",IF(D114="","",MAX($C$69:C113)+1)) -> 43 | D114: Average | F114: =AVERAGE(G114:Z114) -> 0.6583241754 | G114: =AVERAGE(G71:G113) -> 0.6368093446 | H114: =AVERAGE(H71:H113) -> 0.6565142013 | I114: 0.6560395271 | J114: 0.6711436357 | K114: 0.7738560023 | L114: 0.7370275427 | M114: 0.6618566453 | N114: 0.7485997701 | O114: 0.1892379858 | P114: 0.6514716912 | Q114: 0.6327762665 | R114: 0.6376535096 | S114: 0.6215439307 | T114: 0.6530539757 | U114: 0.6716722075 | V114: 0.6772474508 | W114: 0.7008190142 | X114: 0.9647316432 | Y114: 0.6155249432 | Z114: 0.6089042213 | AA114: =AVERAGE(AA71:AA113) -> 0.7155420903 | AB114: 0.4937713522 | AC114: 0.6374171386 | AD114: 0.6760170925 | AE114: 0.7287436105
C115: =IF(ISERROR(D115),"",IF(D115="","",MAX($C$69:C114)+1)) -> 44 | D115: Median | F115: =MEDIAN(G115:Z115) -> 0.6301162791 | G115: =MEDIAN(G71:G113) -> 0.63 | H115: =MEDIAN(H71:H113) -> 0.6363636364 | I115: 0.6302325581 | J115: 0.6413043478 | K115: 0.6776047826 | L115: 0.6649555099 | M115: 0.6387419629 | N115: 0.652173913 | O115: 0.6331658291 | P115: 0.6352941176 | Q115: 0.6218753774 | R115: 0.5957446809 | S115: 0.6132075472 | T115: 0.6274509804 | U115: 0.6181818182 | V115: 0.6174238438 | W115: 0.6616036447 | X115: 0.6061617665 | Y115: 0.6041193712 | Z115: 0.5666262136 | AA115: =MEDIAN(AA71:AA113) -> 0.6585557408 | AB115: 0.6269273273 | AC115: 0.6133307026 | AD115: 0.6332481907 | AE115: 0.5947046319
D118: Sources:
D119: 1 | E119: =E60 -> Data for years 2019 and prior were retrieved from the Value Line Investment Survey Investment Analyzer Software, downloaded on June 18, 2021.
E120: =E61 -> Data for the years 2020 - 2024 was retrieved from Value Line Investment Surveys.
D121: 2 | E121: =E62 -> The Value Line Investment Survey, May 9, June 6, and July 18, 2025.
D122: Note:
D123: b | E123: Based on the projected 2024 Dividends Declared per share and Earnings per share,
E124: ="published in The Value Line Investment Survey, "&'2025 Data (WP)'!$D$1 -> published in The Value Line Investment Survey, May 9, June 6, and July 18, 2025.
F126: Cash Flow to Capital Spending Ratio 1
F127: =F8 -> 20-Year | AA127: 3-Year Averages
C128: Line | D128: Company | F128: Average | G128: 2025 2/a | H128: 2024 | I128: 2023 | J128: 2022 | K128: 2021 | L128: 2020 | M128: 2019 | N128: 2018 | O128: 2017 | P128: 2016 | Q128: 2015 | R128: 2014 | S128: 2013 | T128: 2012 | U128: 2011 | V128: 2010 | W128: 2009 | X128: 2008 | Y128: 2007 | Z128: 2006 | AA128: 2018-2020 | AB128: 2015-2017 | AC128: 2012-2014 | AD128: 2009-2011 | AE128: 2006-2008
F129: -1 | G129: =+F129-1 -> -2 | H129: -3 | I129: -4 | J129: -5 | K129: =+J129-1 -> -6 | AA129: =MIN($F$129:Z129)-1 -> -7 | AB129: =MIN($F$129:AA129)-1 -> -8 | AC129: =MIN($F$129:AB129)-1 -> -9 | AD129: =MIN($F$129:AC129)-1 -> -10 | AE129: =MIN($F$129:AD129)-1 -> -11
L130: =MATCH(VALUE(LEFT(L128,4)),OFFSET(CF_CAP_WP,-1,0,1,),0) -> 6 | M130: 7 | N130: 8 | O130: 9 | P130: 10 | Q130: 11 | R130: 12 | S130: 13 | T130: 14 | U130: 15 | V130: 16 | W130: 17 | X130: 18 | Y130: 19 | Z130: 20
A131: =A12 -> ALE | B131: =MATCH(A131,OFFSET(CF_CAP_WP,0,0,,1),0) -> 2 | C131: =IF(ISERROR(D131),"",IF(D131="","",MAX($C$129:C130)+1)) -> 1 | D131: =D12 -> ALLETE | F131: =AVERAGE(G131:Z131) -> 0.9657497446 | G131: =IFERROR(IF(VLOOKUP($A131,Data2025,23,FALSE)=0,"",VLOOKUP($A131,Data2025,23,FALSE)),"N/A") -> 1.362903226 | H131: =IFERROR(IF(VLOOKUP($A131,Data2024,23,FALSE)=0,"",VLOOKUP($A131,Data2024,23,FALSE)),"N/A") -> 1.297945205 | I131: =IFERROR(IF(VLOOKUP($A131,Data2023,23,FALSE)=0,"",VLOOKUP($A131,Data2023,23,FALSE)),"N/A") -> 1.762195122 | J131: =IFERROR(IF(VLOOKUP($A131,Data2022,21,FALSE)=0,"",VLOOKUP($A131,Data2022,21,FALSE)),"N/A") -> 2.115384615 | K131: =IFERROR(IF(VLOOKUP(A131,lucyyr,21,FALSE)=0,"",VLOOKUP(A131,lucyr,21,FALSE)),"N/A") -> 0.5457184325 | L131: =IFERROR(IF(INDEX(CF_CAP_WP,$B131,L$130)=0,"N/A",INDEX(CF_CAP_WP,$B131,L$130)),"N/A") -> 0.546127604 | M131: 0.6270672786 | N131: 1.215463238 | O131: 1.61495098 | P131: 1.32194211 | Q131: 1.162472179 | R131: 0.4547640035 | S131: 0.6735979836 | T131: 0.486260802 | U131: 0.7700266499 | V131: 0.6259168704 | W131: 0.3946728559 | X131: 0.458315288 | Y131: 0.6474725275 | Z131: 1.23179792 | AA131: =IFERROR(AVERAGE(L131:N131),"N/A") -> 0.7962193734 | AB131: =IFERROR(AVERAGE(O131:Q131),"N/A") -> 1.36645509 | AC131: =IFERROR(AVERAGE(R131:T131),"N/A") -> 0.5382075964 | AD131: =IFERROR(AVERAGE(U131:W131),"N/A") -> 0.5968721254 | AE131: =IFERROR(AVERAGE(X131:Z131),"N/A") -> 0.7791952451
A132: LNT | B132: 3 | C132: =IF(ISERROR(D132),"",IF(D132="","",MAX($C$129:C131)+1)) -> 2 | D132: Alliant Energy | F132: =AVERAGE(G132:Z132) -> 0.8079937973 | G132: 1.044642857 | H132: 0.6506849315 | I132: 0.7430939227 | J132: 0.9137055838 | K132: 0.9516441006 | L132: N/A | M132: N/A | N132: N/A | O132: 0.4892744479 | P132: N/A | Q132: 0.8112052731 | R132: 0.9100766993 | S132: 1.007536931 | T132: 0.565075714 | U132: 0.9080118694 | V132: 0.6661550269 | W132: 0.3870077291 | X132: 0.5725056547 | Y132: 1.041938111 | Z132: 1.265341905 | AA132: =IFERROR(AVERAGE(L132:N132),"N/A") -> N/A | AB132: =IFERROR(AVERAGE(O132:Q132),"N/A") -> 0.6502398605 | AC132: =IFERROR(AVERAGE(R132:T132),"N/A") -> 0.8275631148 | AD132: 0.6537248751 | AE132: =IFERROR(AVERAGE(X132:Z132),"N/A") -> 0.9599285569
A133: AEE | B133: 6 | C133: =IF(ISERROR(D133),"",IF(D133="","",MAX($C$129:C132)+1)) -> 3 | D133: Ameren Corp. | F133: 0.8646204283 | G133: 0.875 | H133: 0.8299050633 | I133: 0.7762237762 | J133: 0.7068021892 | K133: 0.6205837174 | L133: 0.6201627764 | M133: 0.7894949088 | N133: 0.7989960259 | O133: 0.7520725102 | P133: 0.7498576796 | Q133: 0.7491065927 | R133: 0.7530670843 | S133: 0.8940194241 | T133: 1.070543201 | U133: 1.305043324 | V133: 1.356851812 | W133: 0.805988024 | X133: 0.6606813052 | Y133: 0.9723979298 | Z133: 1.205611222 | AA133: 0.7362179037 | AB133: 0.7503455942 | AC133: 0.9058765698 | AD133: 1.155961053 | AE133: 0.9462301525
A134: AEP | B134: 7 | C134: =IF(ISERROR(D134),"",IF(D134="","",MAX($C$129:C133)+1)) -> 4 | D134: American Electric Power | F134: 0.8618597225 | G134: 0.865248227 | H134: 0.835235378 | I134: 0.7861771058 | J134: 0.813353566 | K134: 0.8081761006 | L134: 0.8086177072 | M134: 0.7524131274 | N134: 0.6802451893 | O134: 0.6741325189 | P134: 0.8481722584 | Q134: 0.8517292912 | R134: 0.8722938738 | S134: 0.906132989 | T134: 1.073034579 | U134: 1.189198606 | V134: 1.242005527 | W134: 1.020503713 | X134: 0.6953514393 | Y134: 0.7654543407 | Z134: 0.7497189116 | AA134: 0.747092008 | AB134: 0.7913446895 | AC134: 0.9504871473 | AD134: 1.150569282 | AE134: 0.7368415639
A135: AGR | B135: 10 | C135: =IF(ISERROR(D135),"",IF(D135="","",MAX($C$129:C134)+1)) -> 5 | D135: Avangrid, Inc. | F135: 0.7069741973 | G135: N/A | H135: N/A | I135: 0.6614583333 | J135: 0.7883435583 | K135: 0.5633333333 | L135: 0.5637919538 | M135: 0.6197135446 | N135: 0.845063116 | O135: 0.5741143369 | P135: 0.857711803 | Q135: 0.8892377962 | R135: N/A | S135: N/A | T135: N/A | U135: N/A | V135: N/A | W135: N/A | X135: N/A | Y135: N/A | Z135: N/A | AA135: 0.6761895381 | AB135: 0.7736879787 | AC135: N/A | AD135: N/A | AE135: N/A
A136: AVA | B136: 11 | C136: =IF(ISERROR(D136),"",IF(D136="","",MAX($C$129:C135)+1)) -> 6 | D136: Avista Corp. | F136: 0.8908003208 | G136: 0.9545454545 | H136: 0.8513513514 | I136: 0.8810641628 | J136: 0.7296849088 | K136: 0.8835616438 | L136: 0.8828566535 | M136: 0.92044937 | N136: 0.7756965944 | O136: 0.7741423126 | P136: 0.8350417915 | Q136: 0.7618384401 | R136: 0.795761783 | S136: 0.864222002 | T136: 0.8021239705 | U136: 0.8993815414 | V136: 0.9945085118 | W136: 1.152669777 | X136: 0.973330071 | Y136: 0.725315516 | Z136: 1.35846056 | AA136: 0.8596675393 | AB136: 0.7903408481 | AC136: 0.8207025852 | AD136: 1.015519943 | AE136: 1.019035382
A137: BKH | B137: 12 | C137: =IF(ISERROR(D137),"",IF(D137="","",MAX($C$129:C136)+1)) -> 7 | D137: Black Hills | F137: 0.6757063389 | G137: 0.6739130435 | H137: 0.6834986474 | I137: 0.9521472393 | J137: 0.8588621444 | K137: 0.6063829787 | L137: 0.6062515342 | M137: 0.5271935096 | N137: 0.8670163934 | O137: 1.174905567 | P137: 0.7066561727 | Q137: 0.6367314825 | R137: 0.7001121076 | S137: 0.7437280482 | T137: 0.70777412 | U137: 0.3992823682 | V137: 0.4050843233 | W137: 0.6081339175 | X137: 0.3468812405 | Y137: 0.7645697758 | Z137: 0.5450021636 | AA137: 0.6668204791 | AB137: 0.8394310742 | AC137: 0.7172047586 | AD137: 0.4708335364 | AE137: 0.55215106
A138: CNP | B138: 14 | C138: =IF(ISERROR(D138),"",IF(D138="","",MAX($C$129:C137)+1)) -> 8 | D138: CenterPoint Energy | F138: 0.9317519564 | G138: 0.522875817 | H138: 0.5447976879 | I138: 0.5265423242 | J138: 0.5199430199 | K138: 0.7346072187 | L138: 0.7342820731 | M138: 0.8260521042 | N138: 0.9836065574 | O138: 1.219467956 | P138: 1.120316783 | Q138: 0.9229098806 | R138: 1.204190119 | S138: 1.181787859 | T138: 1.372486772 | U138: 1.122302158 | V138: 0.8834787504 | W138: 0.9932455252 | X138: 1.159823549 | Y138: 0.9829084589 | Z138: 1.079414513 | AA138: 0.8479802449 | AB138: 1.087564873 | AC138: 1.252821583 | AD138: 0.9996754779 | AE138: 1.07404884
A139: CMS | B139: 18 | C139: =IF(ISERROR(D139),"",IF(D139="","",MAX($C$129:C138)+1)) -> 9 | D139: CMS Energy Corp. | F139: 0.848832717 | G139: 0.6745098039 | H139: 0.7396039604 | I139: 0.8533007335 | J139: 0.8208588957 | K139: 0.7780548628 | L139: 0.7781518893 | M139: 0.7946573125 | N139: 0.7666347862 | O139: 0.8942828146 | P139: 0.8146292585 | Q139: 0.8139287613 | R139: 0.7368237347 | S139: 0.8152239406 | T139: 0.822427895 | U139: 1.052146356 | V139: 1.125570082 | W139: 0.9660072444 | X139: 1.108633505 | Y139: 0.5493761141 | Z139: 1.071832391 | AA139: 0.7798146626 | AB139: 0.8409469448 | AC139: 0.7914918567 | AD139: 1.047907894 | AE139: 0.9099473367
A140: ED | B140: 20 | C140: =IF(ISERROR(D140),"",IF(D140="","",MAX($C$129:C139)+1)) -> 10 | D140: Consol. Edison | F140: 0.8304424463 | G140: 0.8793103448 | H140: 0.8431372549 | I140: 0.8439661799 | J140: 0.8824531516 | K140: 0.8301225919 | L140: 0.8298598949 | M140: 0.8683206107 | N140: 0.8184321645 | O140: 0.7572483342 | P140: 0.653489143 | Q140: 0.7606255397 | R140: 0.8835210074 | S140: 0.8593353335 | T140: 1.011464968 | U140: 0.9837701013 | V140: 0.8975280253 | W140: 0.7514421228 | X140: 0.704636385 | Y140: 0.8143340858 | Z140: 0.7358516866 | AA140: 0.83887089 | AB140: 0.7237876723 | AC140: 0.918107103 | AD140: 0.8775800831 | AE140: 0.7516073858
A141: D | B141: 22 | C141: =IF(ISERROR(D141),"",IF(D141="","",MAX($C$129:C140)+1)) -> 11 | D141: Dominion Resources | F141: 0.7386502205 | G141: 0.5322580645 | H141: 0.405726257 | I141: 0.4577522559 | J141: 0.8591859186 | K141: 0.733601071 | L141: 0.7341009506 | M141: 0.9634864547 | N141: 1.036651729 | O141: 0.8077058204 | P141: 0.6527390901 | Q141: 0.6400684565 | R141: 0.6252737626 | S141: 0.7745820346 | T141: 0.7288394719 | U141: 0.7870514821 | V141: 0.8664290563 | W141: 0.7523824402 | X141: 0.8314735806 | Y141: 0.7378739471 | Z141: 0.8458225668 | AA141: 0.9114130446 | AB141: 0.7001711223 | AC141: 0.7095650897 | AD141: 0.8019543262 | AE141: 0.8050566982
A142: DTE | B142: 23 | C142: =IF(ISERROR(D142),"",IF(D142="","",MAX($C$129:C141)+1)) -> 12 | D142: DTE Energy | F142: 0.9708869828 | G142: 0.8985915493 | H142: 0.8661327231 | I142: 0.8542890717 | J142: 0.8556638246 | K142: 0.738322451 | L142: 0.7384074353 | M142: 0.8315161621 | N142: 0.8436934218 | O142: 0.9386111775 | P142: 0.9300693165 | Q142: 0.8386494891 | R142: 1.023926751 | S142: 0.9557296583 | T142: 0.9252840909 | U142: 1.091012774 | V142: 1.507630646 | W142: 1.499360818 | X142: 0.980408454 | Y142: 1.066222669 | Z142: 1.034217172 | AA142: 0.8045390064 | AB142: 0.9024433277 | AC142: 0.9683135002 | AD142: 1.366001413 | AE142: 1.026949432
A143: DUK | B143: 24 | C143: =IF(ISERROR(D143),"",IF(D143="","",MAX($C$129:C142)+1)) -> 13 | D143: Duke Energy | F143: 0.8907597607 | G143: 0.9202453988 | H143: 0.894437421 | I143: 0.8085626911 | J143: 0.8746612466 | K143: 0.8454968944 | L143: 0.8453776294 | M143: 0.7993145719 | N143: 0.8120015486 | O143: 0.8704685734 | P143: 0.8150970143 | Q143: 0.9558673988 | R143: 1.196323047 | S143: 1.09339466 | T143: 0.8699769644 | U143: 0.8858950806 | V143: 0.7826247349 | W143: 0.7697775972 | X143: 0.7098115031 | Y143: 1.091263966 | Z143: 0.9745972739 | AA143: 0.8188979167 | AB143: 0.8804776622 | AC143: 1.053231557 | AD143: 0.8127658042 | AE143: 0.9252242475
A144: EIX | B144: 25 | C144: =IF(ISERROR(D144),"",IF(D144="","",MAX($C$129:C143)+1)) -> 14 | D144: Edison Int'l | F144: 0.7520907189 | G144: 0.8523076923 | H144: 0.8489548213 | I144: 0.8315715292 | J144: 0.6183862434 | K144: 0.5487214927 | L144: 0.5485386582 | M144: 0.6789133823 | N144: 0.3391140978 | O144: 0.938888416 | P144: 0.909693744 | Q144: 0.7981184454 | R144: 0.8300108433 | S144: 0.7963968858 | T144: 0.7560860688 | U144: 0.6119129904 | V144: 0.6033419392 | W144: 0.7907276879 | X144: 0.9326257499 | Y144: 0.8757205442 | Z144: 0.9317831449 | AA144: 0.5221887128 | AB144: 0.8822335351 | AC144: 0.7941645993 | AD144: 0.6686608725 | AE144: 0.9133764797
A145: EE | B145: 26 | C145: =IF(ISERROR(D145),"",IF(D145="","",MAX($C$129:C144)+1)) -> 15 | D145: El Paso Electric | F145: 0.8667318755 | G145: N/A | H145: N/A | I145: N/A | J145: N/A | K145: 0.8263888889 | L145: N/A | M145: N/A | N145: 0.8610258658 | O145: 1.04467761 | P145: 0.8503130336 | Q145: 0.6722001403 | R145: 0.6908598988 | S145: 0.785664579 | T145: 0.8450515002 | U145: 1.025423729 | V145: 0.9783558003 | W145: 0.6839892365 | X145: 0.7766573296 | Y145: 0.8353144586 | Z145: 1.258324186 | AA145: 0.8610258658 | AB145: 0.8557302614 | AC145: 0.7738586593 | AD145: 0.8959229218 | AE145: 0.9567653247
A146: ETR | B146: 28 | C146: =IF(ISERROR(D146),"",IF(D146="","",MAX($C$129:C145)+1)) -> 16 | D146: Entergy Corp. | F146: 0.9365797009 | G146: 0.7333333333 | H146: 0.7193605684 | I146: 1.032118888 | J146: 0.6194089457 | K146: 0.7426590538 | L146: 0.7426077736 | M146: 0.7913731989 | N146: 0.7347229645 | O146: 0.7567383918 | P146: 1.083690242 | Q146: 1.054807578 | R146: 1.192551612 | S146: 1.032934893 | T146: 0.8789328933 | U146: 1.153041763 | V146: 1.240807444 | W146: 1.022940724 | X146: 0.9258727194 | Y146: 1.140357698 | Z146: 1.133333333 | AA146: 0.7562346457 | AB146: 0.9650787372 | AC146: 1.034806466 | AD146: 1.138929977 | AE146: 1.06652125
A147: ES | B147: 29 | C147: =IF(ISERROR(D147),"",IF(D147="","",MAX($C$129:C146)+1)) -> 17 | D147: Eversource Energy | F147: 0.8256320648 | G147: 0.7428571429 | H147: 0.7610474632 | I147: 0.5382755842 | J147: 0.8896761134 | K147: 0.803030303 | L147: =IFERROR(IF(INDEX(CF_CAP_WP,$B147,L$130)=0,"N/A",INDEX(CF_CAP_WP,$B147,L$130)),"N/A") -> 0.8034028668 | M147: 0.7535690007 | N147: 0.8342333291 | O147: 0.7886639676 | P147: 0.8749599231 | Q147: =IFERROR(IF(INDEX(CF_CAP_WP,$B147,Q$130)=0,"N/A",INDEX(CF_CAP_WP,$B147,Q$130)),"N/A") -> 0.9085724798 | R147: 0.9009685709 | S147: 1.129625622 | T147: 0.8604948805 | U147: 0.8022375782 | V147: 1.049362174 | W147: 0.9590021272 | X147: 0.765019861 | Y147: 0.6754484305 | Z147: 0.6721938776 | AA147: 0.7970683989 | AB147: 0.8573987901 | AC147: 0.9636963579 | AD147: 0.9368672932 | AE147: 0.704220723
A148: EVRG | B148: =MATCH(A148,OFFSET(CF_CAP_WP,0,0,,1),0) ->  | C148: =IF(ISERROR(D148),"",IF(D148="","",MAX($C$129:C147)+1)) -> 18 | D148: Evergy, Inc. | F148: 0.9122152228 | G148: 0.9193548387 | H148: 0.9330453564 | I148: 0.9024918743 | J148: 0.780021254 | K148: 1.026162791 | L148: N/A | M148: N/A | N148: N/A | O148: N/A | P148: N/A | Q148: N/A | R148: N/A | S148: N/A | T148: N/A | U148: N/A | V148: N/A | W148: N/A | X148: N/A | Y148: N/A | Z148: N/A | AA148: N/A | AB148: N/A | AC148: N/A | AD148: N/A | AE148: N/A
A149: EXC | B149: =MATCH(A149,OFFSET(CF_CAP_WP,0,0,,1),0) -> 30 | C149: =IF(ISERROR(D149),"",IF(D149="","",MAX($C$129:C148)+1)) -> 19 | D149: Exelon Corp. | F149: 1.158865815 | G149: 0.8269230769 | H149: 0.8081471748 | I149: 0.8247978437 | J149: 0.8442280946 | K149: 1.093333333 | L149: 1.093742421 | M149: 1.202577527 | N149: 1.050866905 | O149: 1.063127143 | P149: 0.7568063959 | Q149: 0.8205839768 | R149: 0.9347764573 | S149: 1.068647704 | T149: 0.9754873006 | U149: 1.187264074 | V149: 1.655522388 | W149: 1.662366458 | X149: 1.612119932 | Y149: 1.835887296 | Z149: 1.860110803 | AA149: 1.115728951 | AB149: 0.8801725054 | AC149: 0.9929704872 | AD149: 1.50171764 | AE149: 1.769372677
A150: FE | B150: =MATCH(A150,OFFSET(CF_CAP_WP,0,0,,1),0) -> 31 | C150: =IF(ISERROR(D150),"",IF(D150="","",MAX($C$129:C149)+1)) -> 20 | D150: FirstEnergy Corp. | F150: 0.9742588091 | G150: 0.6424242424 | H150: 0.7696709585 | I150: 0.8184931507 | J150: 0.9771784232 | K150: 0.8282208589 | L150: 0.8286999182 | M150: 0.7999594238 | N150: 0.7622966507 | O150: 1.02539583 | P150: 0.9418805884 | Q150: 0.9259476072 | R150: 0.5405084343 | S150: 0.9134657197 | T150: 0.854240158 | U150: 1.054892601 | V150: 1.320341615 | W150: 1.217379272 | X150: 0.9542959679 | Y150: 1.557214859 | Z150: 1.752669903 | AA150: 0.7969853309 | AB150: 0.9644080086 | AC150: 0.7694047707 | AD150: 1.19753783 | AE150: 1.421393577
A151: FTS.TO | B151: 32 | C151: =IF(ISERROR(D151),"",IF(D151="","",MAX($C$129:C150)+1)) -> 21 | D151: Fortis Inc. | F151: 0.720097247 | G151: 0.8909090909 | H151: 0.8841843088 | I151: 0.93454039 | J151: 0.8888888889 | K151: 0.6531791908 | L151: 0.6528371663 | M151: 0.6776684519 | N151: 0.7187749667 | O151: 0.7565798635 | P151: 0.760763686 | Q151: 0.65453176 | R151: 0.6038333333 | S151: 0.7708920188 | T151: 0.7223591549 | U151: 0.6604060914 | V151: 0.6766853456 | W151: 0.6310428177 | X151: 0.6559985027 | Y151: 0.5738911486 | Z151: 0.6339787633 | AA151: 0.6830935283 | AB151: 0.7239584365 | AC151: 0.699028169 | AD151: 0.6560447515 | AE151: 0.6212894715
A152: GXP | B152: 34 | C152: =IF(ISERROR(D152),"",IF(D152="","",MAX($C$129:C151)+1)) -> 22 | D152: Great Plains Energy | F152: 0.7902461329 | G152: N/A | H152: N/A | I152: N/A | J152: N/A | L152: N/A | M152: N/A | N152: N/A | O152: 0.780669145 | P152: 1.1726669 | Q152: 0.9002939182 | R152: 0.7856163041 | S152: 0.9059887006 | T152: 0.8593165378 | U152: 1.033568905 | V152: 0.8648194794 | W152: 0.5031591925 | X152: 0.3490970655 | Y152: 0.6893188099 | Z152: 0.6384386371 | AA152: N/A | AB152: 0.9512099876 | AC152: 0.8503071808 | AD152: 0.8005158588 | AE152: 0.5589515042
A153: HE | B153: 35 | C153: =IF(ISERROR(D153),"",IF(D153="","",MAX($C$129:C152)+1)) -> 23 | D153: Hawaiian Elec. | F153: 1.219596673 | G153: 1.285714286 | H153: 2.985 | I153: 1.137592138 | J153: 1.560509554 | K153: 1.272727273 | L153: 1.272753129 | M153: 1.084325869 | N153: 0.851266464 | O153: 0.8090949033 | P153: 1.372368421 | Q153: 0.9772525849 | R153: 1.028985507 | S153: 0.921888412 | T153: 0.9873646209 | U153: 1.300245098 | V153: 1.497659906 | W153: 0.7865816636 | X153: 0.8735558408 | Y153: 1.152140673 | Z153: 1.234907121 | AA153: 1.069448487 | AB153: 1.052905303 | AC153: 0.9794128467 | AD153: 1.194828889 | AE153: 1.086867878
A154: H.TO | B154: =MATCH(A154,OFFSET(CF_CAP_WP,0,0,,1),0) -> 36 | C154: =IF(ISERROR(D154),"",IF(D154="","",MAX($C$129:C153)+1)) -> 24 | D154: Hydro One Limited | F154: 0.8701186959 | G154: 0.6336633663 | H154: 0.6 | I154: 0.6342710997 | J154: 0.7247706422 | K154: =IFERROR(IF(VLOOKUP(A154,lucyyr,21,FALSE)=0,"",VLOOKUP(A154,lucyr,21,FALSE)),"N/A") -> 1.213286713 | L154: 1.213286713 | M154: 1.110671937 | N154: 0.5443037975 | O154: 1.020325203 | P154: 0.9514925373 | Q154: 0.9252336449 | R154: N/A | S154: N/A | T154: N/A | U154: N/A | V154: N/A | W154: N/A | X154: N/A | Y154: N/A | Z154: N/A | AA154: =IFERROR(AVERAGE(L154:N154),"N/A") -> 0.9560874825 | AB154: =IFERROR(AVERAGE(O154:Q154),"N/A") -> 0.9656837951 | AC154: =IFERROR(AVERAGE(R154:T154),"N/A") -> N/A | AD154: =IFERROR(AVERAGE(U154:W154),"N/A") -> N/A | AE154: =IFERROR(AVERAGE(X154:Z154),"N/A") -> N/A
A155: =A36 -> IDA | B155: 37 | C155: =IF(ISERROR(D155),"",IF(D155="","",MAX($C$129:C154)+1)) -> 25 | D155: IDACORP, Inc. | F155: 1.038282498 | G155: 0.5648648649 | H155: 0.5128342246 | I155: 0.7547638774 | J155: 0.9988317757 | K155: 1.329545455 | L155: 1.329276209 | M155: 1.458936324 | N155: 1.42478679 | O155: 1.32532674 | P155: 1.163781399 | Q155: 1.147063859 | R155: 1.206162876 | S155: 1.343936806 | T155: 1.241004184 | U155: 0.8630582668 | V155: 0.7814782355 | W155: 0.9644486692 | X155: 0.8231554614 | Y155: 0.6440651425 | Z155: 0.8883288096 | AA155: 1.404333108 | AB155: 1.212057332 | AC155: 1.263701289 | AD155: 0.8696617238 | AE155: 0.7851831378
A156: MGEE | B156: =MATCH(A156,OFFSET(CF_CAP_WP,0,0,,1),0) -> 41 | C156: =IF(ISERROR(D156),"",IF(D156="","",MAX($C$129:C155)+1)) -> 26 | D156: MGE Energy | F156: 1.061355595 | G156: 0.8176470588 | H156: 0.967642527 | I156: 0.9820846906 | J156: 1.121900826 | K156: =IFERROR(IF(VLOOKUP(A156,lucyyr,21,FALSE)=0,"",VLOOKUP(A156,lucyr,21,FALSE)),"N/A") -> 0.8200692042 | L156: 0.8201887128 | M156: 0.9657650042 | N156: 0.662800196 | O156: 1.194613658 | P156: 1.436800663 | Q156: 1.604427334 | R156: 1.306023195 | S156: 0.9554455446 | T156: 1.047904192 | U156: 1.562765957 | V156: 1.57118451 | W156: 1.128292268 | X156: 0.8700876908 | Y156: 0.5947317545 | Z156: 0.7967369137 | AA156: 0.8162513044 | AB156: 1.411947218 | AC156: 1.10312431 | AD156: 1.420747579 | AE156: 0.7538521196
A157: =A38 -> NEE | B157: =MATCH(A157,OFFSET(CF_CAP_WP,0,0,,1),0) -> 44 | C157: =IF(ISERROR(D157),"",IF(D157="","",MAX($C$129:C156)+1)) -> 27 | D157: NextEra Energy, Inc. | F157: 0.6030087349 | G157: 0.5954545455 | H157: 0.5183028286 | I157: 0.5016339869 | J157: 0.5463917526 | K157: =IFERROR(IF(VLOOKUP(A157,lucyyr,21,FALSE)=0,"",VLOOKUP(A157,lucyr,21,FALSE)),"N/A") -> 0.5785234899 | L157: 0.5778105715 | M157: 0.6705901066 | N157: 0.5647058824 | O157: 0.5315789474 | P157: 0.6291262136 | Q157: 0.7114537445 | R157: 0.7651515152 | S157: 0.6848958333 | T157: 0.3888888889 | U157: 0.5829145729 | V157: 0.6945244957 | W157: 0.6033057851 | X157: 0.628125 | Y157: 0.5551948052 | Z157: 0.7316017316 | AA157: 0.6043688535 | AB157: 0.6240529685 | AC157: 0.6129787458 | AD157: 0.6269149512 | AE157: 0.6383071789
A158: NWE | B158: 47 | C158: =IF(ISERROR(D158),"",IF(D158="","",MAX($C$129:C157)+1)) -> 28 | D158: NorthWestern Corp | F158: 0.9852570762 | G158: 0.8639053254 | H158: 0.7890625 | I158: 0.722462203 | J158: 0.7494199536 | K158: 0.8379052369 | L158: =IFERROR(IF(INDEX(CF_CAP_WP,$B158,L$130)=0,"N/A",INDEX(CF_CAP_WP,$B158,L$130)),"N/A") -> 0.8374267548 | M158: 1.129310345 | N158: 1.233209286 | O158: 1.206822647 | P158: 1.130938392 | Q158: 1.005943284 | R158: 0.9349297241 | S158: 0.9166106254 | T158: 0.8797962649 | U158: 1.042099193 | V158: 0.7558305569 | W158: 0.8781137098 | X158: 1.269974041 | Y158: 1.233022636 | Z158: 1.288358847 | AA158: 1.066648795 | AB158: 1.114568108 | AC158: 0.9104455381 | AD158: 0.8920144864 | AE158: 1.263785175
A159: OGE | B159: 48 | C159: =IF(ISERROR(D159),"",IF(D159="","",MAX($C$129:C158)+1)) -> 29 | D159: OGE Energy | F159: 0.9284145572 | G159: 1.063157895 | H159: 1.017316017 | I159: 1.026726058 | J159: 0.8685714286 | K159: 1.24 | L159: 1.24084897 | M159: 1.266057935 | N159: 1.302576602 | O159: 0.8102738066 | P159: 1.001210287 | Q159: 1.178271965 | R159: 1.189492119 | S159: 0.6927855711 | T159: 0.6308507004 | U159: 0.5116602317 | V159: 0.690121476 | W159: 0.614416476 | X159: 0.5986038394 | Y159: 0.7880184332 | Z159: 0.8373313343 | AA159: 1.269827835 | AB159: 0.996585353 | AC159: 0.8377094635 | AD159: 0.6053993946 | AE159: 0.741317869
A160: OTTR | B160: 50 | C160: =IF(ISERROR(D160),"",IF(D160="","",MAX($C$129:C159)+1)) -> 30 | D160: Otter Tail Corp. | F160: 1.041525065 | G160: 1.466666667 | H160: 1.829588015 | I160: 1.980932203 | J160: 2.133819951 | K160: 0.4787946429 | L160: 0.4787946429 | M160: 0.7953137103 | N160: 1.489089541 | O160: 1.101488095 | P160: 0.8401659346 | Q160: 0.74296524 | R160: 0.7028441411 | S160: 0.6660785179 | T160: 0.8462980319 | U160: 1.158255757 | V160: 1.092132941 | W160: 0.5584310554 | X160: 0.3741016769 | Y160: 0.6546895154 | Z160: 1.44005102 | AA160: 0.9210659647 | AB160: 0.8948730899 | AC160: 0.7384068969 | AD160: 0.936273251 | AE160: 0.8229474042
A161: PNW | B161: 53 | C161: =IF(ISERROR(D161),"",IF(D161="","",MAX($C$129:C160)+1)) -> 31 | D161: Pinnacle West Capital | F161: 0.9183601603 | G161: 0.7671641791 | H161: 0.6956061408 | I161: 0.734029484 | J161: 0.8906560636 | K161: 0.9103101425 | L161: 0.9105541118 | M161: 1.034755134 | N161: 1.062697969 | O161: 0.7642924086 | P161: 0.8068758058 | Q161: 0.9236005283 | R161: 0.9653772684 | S161: 0.8712469281 | T161: 0.9603251638 | U161: 0.91056517 | V161: 0.9735607676 | W161: 1.056776557 | X161: 0.8598308668 | Y161: 0.9916764486 | Z161: 1.277302068 | AA161: 1.002669072 | AB161: 0.8315895809 | AC161: 0.9323164534 | AD161: 0.9803008315 | AE161: 1.042936461
A162: TXNM | B162: 54 | C162: =IF(ISERROR(D162),"",IF(D162="","",MAX($C$129:C161)+1)) -> 32 | D162: TXNM Energy | F162: 0.6787987439 | G162: 0.523465704 | H162: 0.5076142132 | I162: 0.5549036044 | J162: 0.6274694262 | K162: 0.7180783818 | L162: 0.7178612059 | M162: 0.7842833139 | N162: 0.8150031786 | O162: 0.8433869171 | P162: 0.568224051 | Q162: 0.5672322829 | R162: 0.6259726785 | S162: 0.8040741588 | T162: 0.8715832904 | U162: 0.7743664717 | V162: 0.8211206897 | W162: 0.6975624436 | X162: 0.4405418966 | Y162: 0.4277291105 | Z162: 0.8855018587 | AA162: 0.7723825662 | AB162: 0.659614417 | AC162: 0.7672100426 | AD162: 0.7643498683 | AE162: 0.5845909553
A163: POR | B163: 55 | C163: =IF(ISERROR(D163),"",IF(D163="","",MAX($C$129:C162)+1)) -> 33 | D163: Portland General | F163: 0.8080314566 | G163: 0.7086956522 | H163: 0.649137931 | I163: 0.5089418778 | J163: 0.8636363636 | K163: 0.7762557078 | L163: 0.7768387392 | M163: 1.028175247 | N163: 0.9983495874 | O163: 1.068134535 | P163: 0.8801401157 | Q163: 0.7976243504 | R163: 0.4726947875 | S163: 0.5868349006 | T163: 1.283790524 | U163: 1.246671691 | V163: 0.8066945607 | W163: 0.4397017506 | X163: 0.7701355988 | Y163: 0.7165040539 | Z163: 0.781671159 | AA163: 0.9344545245 | AB163: 0.9152996672 | AC163: 0.7811067373 | AD163: 0.8310226673 | AE163: 0.7561036039
A164: PPL | B164: 56 | C164: =IF(ISERROR(D164),"",IF(D164="","",MAX($C$129:C163)+1)) -> 34 | D164: PPL Corp. | F164: 0.9699210715 | G164: 1 | H164: 0.899408284 | I164: 1.061728395 | J164: 1.054607509 | K164: 0.9007092199 | L164: 0.9020118343 | M164: 0.9815828771 | N164: 0.9261401557 | O164: 0.8151837096 | P164: 0.9958100559 | Q164: =IFERROR(IF(INDEX(CF_CAP_WP,$B164,Q$130)=0,"N/A",INDEX(CF_CAP_WP,$B164,Q$130)),"N/A") -> 0.7203890902 | R164: 0.7452384828 | S164: 0.6942532176 | T164: 0.9074212894 | U164: 1.06744186 | V164: 1.107748184 | W164: 1.066810345 | X164: 1.245377707 | Y164: 1.130039876 | Z164: 1.176519337 | AA164: 0.936578289 | AB164: 0.8437942852 | AC164: 0.7823043299 | AD164: 1.080666796 | AE164: 1.183978973
